Workbook

Sheet CC Instructions
B6: General instructions
B10: Before starting, make sure that Macros are enabled in Microsoft Excel. Always use a clean, blank template when starting a calculation for a new project.
B11: Please use the following filename format for Carbon Calculators: [SOP code]_[Project name]_[Area]_[Gateway stage] - e.g. ‘ENV0001234_Townville sea defence_SW_GW4’
B13: Only certain parts of the whole life carbon assessment require manual entry of information. The other parts are automatically generated by the calculator based on the information entered manually. This includes the summary information. The automatically generated information is only created when the manual entry parts are completed in full and the green button entitled 'Recalculate and create summary' is pressed. It is therefore important that the following steps are followed within the Calculator sheet in order to create an accurate whole life carbon assessment.
B15: 1) Complete the Project Details section. Complete this in full before proceeding as some of this information informs calculations in the sheet.
B17: 2) Complete the Assets section. This must contain all standard Environment Agency Assets that form part of the project. Do not enter 'general items' such as temporary works - such items are assessed within the calculator and are allocated to the Assets automatically.
B19: 3) Complete the Sub-Assets sections. This section allows Assets to be broken down into separate parts that each have different useful lives, enabling the whole life calculation to function. All Sub-Assets relating to each Asset must be entered. If an Asset does not need to be broken down into Sub-Assets, enter a single Sub-Asset item for that Asset.
B21: 4) Complete the Capital Carbon section. Use the instructions provided for each data entry field for support and refer to the Carbon Planning Tool User Guide for further information.
B22: ²
B23: 5) Complete the Operational Carbon section. Again, use the instructions provided for each data entry field for support and refer to the Carbon Planning Tool User Guide for further information.
B25: 6) If the project involves Natural Flood Management (NFM) techniques, please follow the guidance on the 'NFM Instructions' tab. To update the graphs on the summary tab correctly to include carbon sequestration, the grey 'calculate macro' button must be clicked.
B27: 7) Click the green 'Recalculate and create summary' button at the top-left of the Calculator sheet. Depending on how large your project is, the calculator will take a few seconds to process the information - please be patient. You will then be taken to the Summary sheet where you can analyse the whole life carbon for your project. At this point, all whole life carbon figures will be completed within the Calculator sheet as well.
B29: 8) You may subsequently amend the information entered in the Calculator sheet. Following any amendments, click the 'Recalculate and create summary' button to refresh the whole life carbon figures.
B31: 9) Complete the QA Checklist tab and make changes under the Calculator tab as needed. Following any amendments, click the 'Recalculate and create summary' button to refresh the whole-life carbon figures.
B33: 10) Once the QA checklist has been completed and the Carbon Calculator accepted by the EA PM, please send it on for final approval via carbonplanningtool@environment-agency.gov.uk
B35: 11) The Carbon Appendix should also be completed and submitted by the EA PM alongside the Carbon Calculator.
B37: NB. If you are using Microsoft Excel 2003 or older, some functionality may not work and you should seek further guidance how to proceed.

Sheet Summary
B6: Summary
B9: SOP | G9: Project manager | M9: Produced by
B10: =IF(Calculator!$G$10="","-",Calculator!$G$10) -> - | G10: =IF(Calculator!$I$10="","-",Calculator!$I$10) -> - | M10: =IF(Calculator!$E$10="","-",Calculator!$E$10) -> -
B12: Project name | G12: Date produced | M12: Reviewed by
B13: =IF(Calculator!$H$10="","-",Calculator!$H$10) -> - | G13: =IF(Calculator!$C$10="","-",Calculator!$C$10) -> - | M13: =IF(Calculator!$F$10="","-",Calculator!$F$10) -> -
B16: Results
B18: Total Whole Life Carbon | G18: Residual Carbon | L18: Carbon Sequestration | Q18: Net Whole Life Carbon
B19: =SUM(FlatData!BA:BA) -> 0 | G19: =SUM(FlatData!BB:BB) -> 0 | L19: =0-('NFM Instructions'!B34+'NFM Instructions'!B20) -> 0 | Q19: =IFERROR(B19+G19+L19,0) -> 0

Sheet Summary_Anc
B6: Summary
B9: SOP | G9: Project manager | M9: Produced by
B10: =IF(Calculator!$G$10="","-",Calculator!$G$10) -> - | G10: =IF(Calculator!$I$10="","-",Calculator!$I$10) -> - | M10: =IF(Calculator!$E$10="","-",Calculator!$E$10) -> -
B12: Project name | G12: Date produced | M12: Reviewed by
B13: =IF(Calculator!$H$10="","-",Calculator!$H$10) -> - | G13: =IF(Calculator!$C$10="","-",Calculator!$C$10) -> - | M13: =IF(Calculator!$F$10="","-",Calculator!$F$10) -> -
B16: Results
B18: Total Whole Life Carbon (Incl Anc) | G18: Residual Carbon (Incl Anc) | L18: Carbon Sequestration | Q18: Net Whole Life Carbon
B19: =SUM(FlatDataAnc!BA:BA)+SUM(FlatData!BA:BA) -> 0 | G19: =SUM(FlatDataAnc!BB:BB) + SUM(FlatData!BB:BB) -> 0 | L19: =0-('NFM Instructions'!B34+'NFM Instructions'!B20) -> 0 | Q19: =IFERROR(B19+G19+L19,0) -> 0

Sheet MaterialValidationList (hidden)
A1: Material | B1: Material Type | D1: Material | F1: Material Type | G1: Material Description | I1: Material | J1: MeasureUnit
A2: Aggregate | B2: General - mixed | D2: Aggregate | F2: 21-35% Fly Ash (CEM II/B-V) | G2: N/A | I2: 21-35% Fly Ash (CEM II/B-V) | J2: m3
A3: Aggregate | B3: General-Primary | D3: Aluminium | F3: 21-35% GGBS (CEM II/B-S) | G3: N/A | I3: 21-35% Fly Ash (CEM II/B-V) | J3: t
A4: Aggregate | B4: Land won-Virgin | D4: Asphalt | F4: 36-65% GGBS (CEM III/A) | G4: N/A | I4: 21-35% GGBS (CEM II/B-S) | J4: m3
A5: Aggregate | B5: Recycled (no heat) | D5: Bricks | F5: 6-20% Fly Ash (CEM II/A-V) | G5: N/A | I5: 21-35% GGBS (CEM II/B-S) | J5: t
A6: Aggregate | B6: Recycled (with heat) | D6: Cables | F6: 66-80% GGBS (CEM III/B) | G6: N/A | I6: 36-65% GGBS (CEM III/A) | J6: m3
A7: Aggregate | B7: Marine Virgin | D7: Cement | F7: Air Bricks | G7: N/A | I7: 36-65% GGBS (CEM III/A) | J7: t
A8: Aggregate | B8: General-Secondary | D8: Clay | F8: Asphalt road - Cold construction method | G8: Construction | I8: 6-20% Fly Ash (CEM II/A-V) | J8: m3
A9: Aggregate | B9: Recycled & Secondary | D9: Concrete | F9: Asphalt road - Hot construction method | G9: Construction | I9: 6-20% Fly Ash (CEM II/A-V) | J9: t
A10: Aggregate | B10: Marine Aggregate | D10: Copper | F10: Asphalt, 3% (bitumen) binder content (by mass) | G10: N/A | I10: 66-80% GGBS (CEM III/B) | J10: t
A11: Aggregate | B11: Site won aggregates | D11: Fencing | F11: Asphalt, 3.5% binder content | G11: N/A | I11: 66-80% GGBS (CEM III/B) | J11: m3
A12: Aluminium | B12: General (Aluminium) | D12: Flow Meter | F12: Asphalt, 4% (bitumen) binder content (by mass) | G12: N/A | I12: Air Bricks | J12: t
A13: Asphalt | B13: General | D13: Glass | F13: Asphalt, 4.5% (bitumen) binder content | G13: N/A | I13: Air Bricks | J13: m3
A14: Asphalt | B14: Asphalt, 3% (bitumen) binder content (by mass) | D14: Insulation | F14: Asphalt, 5% binder content | G14: N/A | I14: Air Bricks | J14: Per Single Brick
A15: Asphalt | B15: Asphalt, 3.5% binder content | D15: Iron | F15: Asphalt, 5.5% binder content | G15: N/A | I15: Asphalt road - Cold construction method | J15: m2
A16: Asphalt | B16: Asphalt, 4% (bitumen) binder content (by mass) | D16: Lead | F16: Asphalt, 6% binder content | G16: N/A | I16: Asphalt road - Hot construction method | J16: m2
A17: Asphalt | B17: Asphalt, 4.5% (bitumen) binder content | D17: Lime | F17: Asphalt, 6.5% binder content | G17: N/A | I17: Asphalt, 3% (bitumen) binder content (by mass) | J17: t
A18: Asphalt | B18: Asphalt, 5% binder content | D18: Metal | F18: Asphalt, 7% binder content | G18: N/A | I18: Asphalt, 3% (bitumen) binder content (by mass) | J18: m3
A19: Asphalt | B19: Asphalt, 5.5% binder content | D19: Miscellaneous | F19: Asphalt, 8% binder content | G19: N/A | I19: Asphalt, 3.5% binder content | J19: m3
A20: Asphalt | B20: Asphalt, 6% binder content | D20: Paint | F20: Average CEM I Portland Cement, 94% Clinker | G20: N/A | I20: Asphalt, 3.5% binder content | J20: t
A21: Asphalt | B21: Asphalt, 6.5% binder content | D21: Plaster | F21: Axial Flow | G21: 7.5KW | I21: Asphalt, 4% (bitumen) binder content (by mass) | J21: t
A22: Asphalt | B22: Asphalt, 7% binder content | D22: Plastics | F22: Axial Flow | G22: 40KW | I22: Asphalt, 4% (bitumen) binder content (by mass) | J22: m3
A23: Asphalt | B23: Asphalt, 8% binder content | D23: Property Level Protection | F23: Axial Flow | G23: 95KW | I23: Asphalt, 4.5% (bitumen) binder content | J23: t
A24: Bricks | B24: General (Bricks) | D24: Pumps | F24: Axial Flow | G24: 160KW | I24: Asphalt, 4.5% (bitumen) binder content | J24: m3
A25: Bricks | B25: Site won (reclaimed) bricks | D25: Roads | F25: Axial Flow | G25: 205KW | I25: Asphalt, 5% binder content | J25: t
A26: Cables | B26: Ducting | D26: Sand | F26: Bar & Rod - UK (EU) Average Recycled Content | G26: N/A | I26: Asphalt, 5% binder content | J26: m3
A27: Cables | B27: Steel tray | D27: Soil/Clay | F27: Blastfurnace Cement | G27: CEM III/A (65% GGBS) | I27: Asphalt, 5.5% binder content | J27: t
A28: Cables | B28: GRP tray | D28: Steel | F28: Blastfurnace Cement | G28: CEM III/A (50.5% GGBS) | I28: Asphalt, 5.5% binder content | J28: m3
A29: Cables | B29: Three core insulated copper | D29: Stone | F29: Blastfurnace Cement | G29: CEM III/A (36% GGBS) | I29: Asphalt, 6% binder content | J29: t
A30: Cement | B30: Average CEM I Portland Cement, 94% Clinker | D30: Timber | F30: Blastfurnace Cement | G30: CEM III/A (80% GGBS) | I30: Asphalt, 6% binder content | J30: m3
A31: Cement | B31: Ground Granulated Blastfurnace Slag (GGBS) | D31: Timber (sustainably sourced) | F31: Blastfurnace Cement | G31: CEM III/A (73% GGBS) | I31: Asphalt, 6.5% binder content | J31: t
A32: Cement | B32: Fly Ash | D32: Zinc | F32: Blastfurnace Cement | G32: CEM III/A (66% GGBS) | I32: Asphalt, 6.5% binder content | J32: m3
A33: Cement | B33: Portland Limestone Cement | F33: Blastfurnace Cement | G33: CEM III/C - 88% GGBS | I33: Asphalt, 7% binder content | J33: t
A34: Cement | B34: Portland Fly Ash Cement | F34: Cavity filling | G34: N/A | I34: Asphalt, 7% binder content | J34: m3
A35: Cement | B35: Portland Slag Cement | F35: Centrifugal | G35: 1.2KW | I35: Asphalt, 8% binder content | J35: t
A36: Cement | B36: Portland-composite Cement | F36: Centrifugal | G36: 2.2KW | I36: Asphalt, 8% binder content | J36: m3
A37: Cement | B37: Blastfurnace Cement | D37: Waste_Material | F37: Centrifugal | G37: 4KW | I37: Average CEM I Portland Cement, 94% Clinker | J37: t
A38: Cement | B38: Pozzolanic (Siliceous Fly Ash) Cement | D38: Aggregate | F38: Centrifugal | G38: 45KW | I38: Average CEM I Portland Cement, 94% Clinker | J38: m3
A39: Cement | B39: Composite Cement | D39: Aluminium | F39: Centrifugal | G39: 250KW | I39: Axial Flow | J39: Item
A40: Cement | B40: General | D40: Asphalt | F40: Centrifugal | G40: 560KW | I40: Bar & Rod - UK (EU) Average Recycled Content | J40: t
A41: Cement | B41: 6-20% Fly Ash (CEM II/A-V) | D41: Bricks | F41: Centrifugal | G41: 630KW | I41: Bar & Rod - UK (EU) Average Recycled Content | J41: m3
A42: Cement | B42: 21-35% Fly Ash (CEM II/B-V) | D42: Cables | F42: Centrifugal | G42: 1400KW | I42: Blastfurnace Cement | J42: t
A43: Cement | B43: 21-35% GGBS (CEM II/B-S) | D43: Cement | F43: Chipboard | G43: N/A | I43: Blastfurnace Cement | J43: m3
A44: Cement | B44: 36-65% GGBS (CEM III/A) | D44: Clay | F44: Coil (Sheet) - Galvanised - UK (EU) Average Recycled Content | G44: N/A | I44: Cavity filling | J44: t
A45: Cement | B45: 66-80% GGBS (CEM III/B) | D45: Concrete | F45: Coil (Sheet) - UK (EU) Average Recycled Content | G45: N/A | I45: Imported (includes transport to site) | J45: t
A46: Clay | B46: Vitrified clay pipe DN 100 & DN 150 | D46: Copper | F46: Cold-rolled coil | G46: N/A | I46: Imported (includes transport to site) | J46: m3
A47: Clay | B47: Vitrified clay pipe DN 200 & DN 300 | D47: Fencing | F47: Composite Cement | G47: CEM V/A - 24% GGBS and 24% cement replacement | I47: Imported (excludes transport to site) | J47: t
A48: Clay | B48: Vitrified clay pipe DN 500 | D48: Flow Meter | F48: Composite Cement | G48: CEM V/B - 36% GGBS and 36% cement replacement | I48: Imported (excludes transport to site) | J48: m3
A49: Concrete | B49: In-situ Concrete (General) | D49: Glass | F49: Concrete Blocks | G49: Block - 8 MPa Compressive Strength | I49: Site won | J49: t
A50: Concrete | B50: In-situ Concrete (CEM 1) | D50: Insulation | F50: Concrete Blocks | G50: Block - 10 MPa | I50: Site won | J50: m3
A51: Concrete | B51: In-situ Concrete (Fly Ash Replacement) | D51: Iron | F51: Concrete Blocks | G51: Block - 12 MPa | I51: Site won aggregates | J51: t
A52: Concrete | B52: In-situ Concrete (Blast Furnace Slag Replacement) | D52: Lead | F52: Concrete Blocks | G52: Block - 13 MPa | I52: Site won aggregates | J52: m3
A53: Concrete | B53: Reinforced In-situ Concrete (General) | D53: Lime | F53: Concrete Blocks | G53: Autoclaved Aerated Blocks (AACs) | I53: Site won (reclaimed) bricks | J53: t
A54: Concrete | B54: Reinforced In-situ Concrete (CEM 1) | D54: Metal | F54: coppiced material | G54: N/A | I54: Site won (reclaimed) bricks | J54: m3
A55: Concrete | B55: Reinforced In-situ Concrete (Fly Ash Replacement) | D55: Miscellaneous | F55: Covers | G55: Air Vent Covers | I55: Site won (reclaimed) general stone | J55: t
A56: Concrete | B56: Precast Concrete (General) | D56: Paint | F56: Covers | G56: Air Brick Covers Single | I56: Site won (reclaimed) general stone | J56: m3
A57: Concrete | B57: Precast Concrete (CEM 1) | D57: Plaster | F57: Covers | G57: Air Brick Covers Double | I57: Site won (reclaimed) timber | J57: t
A58: Concrete | B58: Precast Concrete (Fly Ash Replacement) | D58: Plastics | F58: Damp Proof Course/Membrane | G58: N/A | I58: Site won (reclaimed) timber | J58: m3
A59: Concrete | B59: Precast Concrete (Blast Furnace Slag Replacement) | D59: Property Level Protection | F59: Demountable Barriers | G59: Plastic | I59: Centrifugal | J59: Item
A60: Concrete | B60: Reinforced Precast Concrete (General) | D60: Pumps | F60: Demountable Barriers | G60: Steel | I60: Chipboard | J60: t
A61: Concrete | B61: Reinforced Precast Concrete (CEM 1) | D61: Roads | F61: Diameter 1000mm | G61: N/A | I61: Chipboard | J61: m3
A62: Concrete | B62: Reinforced Precast Concrete (Fly Ash Replacement) | D62: Sand | F62: Diameter 100mm | G62: N/A | I62: Coil (Sheet) - Galvanised - UK (EU) Average Recycled Content | J62: t
A63: Concrete | B63: Reinforced Precast Concrete (Blast Furnace Slag Replacement) | D63: Soil/Clay | F63: Diameter 1200mm | G63: N/A | I63: Coil (Sheet) - Galvanised - UK (EU) Average Recycled Content | J63: m3
A64: Concrete | B64: Concrete Blocks | D64: Steel | F64: Diameter 125mm | G64: N/A | I64: Coil (Sheet) - UK (EU) Average Recycled Content | J64: t
A65: Concrete | B65: Proportions Method (Cement:Sand:Aggregate) | D65: Stone | F65: Diameter 1500mm | G65: N/A | I65: Coil (Sheet) - UK (EU) Average Recycled Content | J65: m3
A66: Copper | B66: EU Tube & Sheet | D66: Timber | F66: Diameter 150mm | G66: N/A | I66: Cold-rolled coil | J66: t
A67: Copper | B67: Reused | D67: Timber (sustainably sourced) | F67: Diameter 1800mm | G67: N/A | I67: Cold-rolled coil | J67: m3
A68: Fencing | B68: Steel | D68: Zinc | F68: Diameter 200mm | G68: N/A | I68: Composite Cement | J68: t
A69: Fencing | B69: Steel and concrete | F69: Diameter 250mm | G69: N/A | I69: Composite Cement | J69: m3
A70: Fencing | B70: Mesh | F70: Diameter 25mm | G70: N/A | I70: Concrete Blocks | J70: t
A71: Fencing | B71: Timber | F71: Diameter 300mm | G71: N/A | I71: Concrete Blocks | J71: m3
A72: Flow Meter | B72: Diameter 25mm | F72: Diameter 350mm | G72: N/A | I72: coppiced material | J72: t
A73: Flow Meter | B73: Diameter 50mm | F73: Diameter 400mm | G73: N/A | I73: coppiced material | J73: m3
A74: Flow Meter | B74: Diameter 65mm | F74: Diameter 450mm | G74: N/A | I74: Covers | J74: t
A75: Flow Meter | B75: Diameter 80mm | F75: Diameter 500mm | G75: N/A | I75: Damp Proof Course/Membrane | J75: t
A76: Flow Meter | B76: Diameter 100mm | F76: Diameter 50mm | G76: N/A | I76: Damp Proof Course/Membrane | J76: m2
A77: Flow Meter | B77: Diameter 125mm | F77: Diameter 65mm | G77: N/A | I77: Demountable Barriers | J77: t
A78: Flow Meter | B78: Diameter 150mm | F78: Diameter 700mm | G78: N/A | I78: Diameter 1000mm | J78: Item
A79: Flow Meter | B79: Diameter 200mm | F79: Diameter 800mm | G79: N/A | I79: Diameter 100mm | J79: Item
A80: Flow Meter | B80: Diameter 250mm | F80: Diameter 80mm | G80: N/A | I80: Diameter 1200mm | J80: Item
A81: Flow Meter | B81: Diameter 300mm | F81: Diameter 900mm | G81: N/A | I81: Diameter 125mm | J81: Item
A82: Flow Meter | B82: Diameter 350mm | F82: Diaphragm | G82: 0.25KW | I82: Diameter 1500mm | J82: Item
A83: Flow Meter | B83: Diameter 400mm | F83: Diaphragm | G83: 1.5KW | I83: Diameter 150mm | J83: Item
A84: Flow Meter | B84: Diameter 450mm | F84: Diaphragm | G84: 4KW | I84: Diameter 1800mm | J84: Item
A85: Flow Meter | B85: Diameter 500mm | F85: Door | G85: Standard Single White UPVC Flood Angel Door | I85: Diameter 200mm | J85: Item
A86: Flow Meter | B86: Diameter 700mm | F86: Door | G86: Standard Single Oak UPVC Flood Angel Door | I86: Diameter 250mm | J86: Item
A87: Flow Meter | B87: Diameter 800mm | F87: Door | G87: Standard Single Composite Flood Angel Door | I87: Diameter 25mm | J87: Item
A88: Flow Meter | B88: Diameter 900mm | F88: Door | G88: Standard Double White UPVC Flood Angel Door | I88: Diameter 300mm | J88: Item
A89: Flow Meter | B89: Diameter 1000mm | F89: Door | G89: Standard Double Oak UPVC Flood Angel Door | I89: Diameter 350mm | J89: Item
A90: Flow Meter | B90: Diameter 1200mm | F90: Double Glazing | G90: N/A | I90: Diameter 400mm | J90: Item
A91: Flow Meter | B91: Diameter 1500mm | F91: Ducting | G91: 100mm | I91: Diameter 450mm | J91: Item
A92: Flow Meter | B92: Diameter 1800mm | F92: Ducting | G92: 150mm | I92: Diameter 500mm | J92: Item
A93: Glass | B93: General | F93: Ducting | G93: 200mm | I93: Diameter 50mm | J93: Item
A94: Glass | B94: Double Glazing | F94: Electrogalvanised | G94: N/A | I94: Diameter 65mm | J94: Item
A95: Glass | B95: Triple Glazing | F95: Engineering Steel | G95: N/A | I95: Diameter 700mm | J95: Item
A96: Glass | B96: Toughened | F96: Engineering Steel - Recycled | G96: N/A | I96: Diameter 800mm | J96: Item
A97: Glass | B97: Multi layer safety - filled core | F97: EU Tube & Sheet | G97: General | I97: Diameter 80mm | J97: Item
A98: Glass | B98: Multi layer safety - unfilled | F98: EU Tube & Sheet | G98: Virgin | I98: Diameter 900mm | J98: Item
A99: Glass | B99: Sky light or roof | F99: EU Tube & Sheet | G99: Recycled | I99: Diaphragm | J99: Item
A100: Insulation | B100: General Insulation | F100: Finished cold-rolled coil | G100: N/A | I100: Door | J100: t
A101: Iron | B101: General (Iron) | F101: Flap Valves | G101: DN 100 & DN 150 | I101: Door | J101: Item
A102: Lead | B102: General (Lead) | F102: Flap Valves | G102: DN 200 & DN 300 | I102: Double Glazing | J102: t
A103: Lime | B103: General (Lime) | F103: Flap Valves | G103: DN 500 | I103: Double Glazing | J103: m3
A104: Metal | B104: Handrail | F104: Flood Gates | G104: N/A | I104: Ducting | J104: Item
A105: Metal | B105: Sheet Piling | F105: Fly Ash | G105: N/A | I105: Electrogalvanised | J105: t
A106: Metal | B106: Flap Valves | F106: Gear | G106: 2.6KW | I106: Electrogalvanised | J106: m3
A107: Miscellaneous | B107: Damp Proof Course/Membrane | F107: Gear | G107: 10.4KW | I107: Engineering Steel | J107: t
A108: Miscellaneous | B108: Grit | F108: Gear | G108: 32.3KW | I108: Engineering Steel | J108: m3
A109: Miscellaneous | B109: Ground Limestone | F109: Gear | G109: 63.4KW | I109: Engineering Steel - Recycled | J109: t
A110: Miscellaneous | B110: Glass Reinforced Plastic - GRP - Fibreglass | F110: Gear | G110: 102.1KW | I110: Engineering Steel - Recycled | J110: m3
A111: Miscellaneous | B111: New davit socket | F111: Gear | G111: 155.7KW | I111: EU Tube & Sheet | J111: t
A112: Miscellaneous | B112: New fenders | F112: General | G112: N/A | I112: EU Tube & Sheet | J112: m3
A113: Miscellaneous | B113: Cavity filling | F113: General - mixed | G113: N/A | I113: Finished cold-rolled coil | J113: t
A114: Miscellaneous | B114: Grouting | F114: General - UK (EU) Average Recycled Content | G114: N/A | I114: Finished cold-rolled coil | J114: m3
A115: Miscellaneous | B115: Painting | F115: General (Aluminium) | G115: General | I115: Flap Valves | J115: t
A116: Paint | B116: General (Paint) | F116: General (Aluminium) | G116: Virgin | I116: Flap Valves | J116: item
A117: Plaster | B117: General (Gypsum) | F117: General (Aluminium) | G117: Recycled | I117: Flood Gates | J117: t
A118: Plaster | B118: Plasterboard | F118: General (Bricks) | G118: N/A | I118: Fly Ash | J118: t
A119: Plastics | B119: General (Plastics) | F119: General (Gypsum) | G119: N/A | I119: Fly Ash | J119: m3
A120: Plastics | B120: General Polyethylene | F120: General (Iron) | G120: N/A | I120: Gear | J120: Item
A121: Plastics | B121: HDPE Pipe | F121: General (Lead) | G121: General | I121: General | J121: t
A122: Plastics | B122: PVC General | F122: General (Lead) | G122: Virgin | I122: General | J122: m3
A123: Plastics | B123: PVC Pipe | F123: General (Lead) | G123: Recycled | I123: General - mixed | J123: t
A124: Plastics | B124: Sheet piles | F124: General (Lime) | G124: N/A | I124: General - mixed | J124: m3
A125: Property Level Protection | B125: Flood Gates | F125: General (Paint) | G125: N/A | I125: General - UK (EU) Average Recycled Content | J125: t
A126: Property Level Protection | B126: Demountable Barriers | F126: General (Plastics) | G126: N/A | I126: General - UK (EU) Average Recycled Content | J126: m3
A127: Property Level Protection | B127: Air Bricks | F127: General (Rammed Soil) | G127: N/A | I127: General (Aluminium) | J127: t
A128: Property Level Protection | B128: Non return valves | F128: General (Sand) | G128: N/A | I128: General (Aluminium) | J128: m3
A129: Property Level Protection | B129: Door | F129: General (Stone) | G129: N/A | I129: General (Bricks) | J129: t
A130: Property Level Protection | B130: Covers | F130: General (Timber) | G130: N/A | I130: General (Bricks) | J130: m3
A131: Property Level Protection | B131: Toilet Bung | F131: General (Zinc) | G131: N/A | I131: General (Bricks) | J131: Per Single Brick
A132: Property Level Protection | B132: Seal Entry Points | F132: General Insulation | G132: N/A | I132: General (Gypsum) | J132: t
A133: Property Level Protection | B133: Pointing per SQM | F133: General Polyethylene | G133: N/A | I133: General (Gypsum) | J133: m3
A134: Property Level Protection | B134: Waterproof External Walls per Property | F134: General-Primary | G134: N/A | I134: General (Iron) | J134: t
A135: Pumps | B135: Centrifugal | F135: General-Secondary | G135: N/A | I135: General (Iron) | J135: m3
A136: Pumps | B136: Hydraulic | F136: Glass Reinforced Plastic - GRP - Fibreglass | G136: N/A | I136: General (Lead) | J136: t
A137: Pumps | B137: Gear | F137: Glue Laminated timber | G137: N/A | I137: General (Lead) | J137: m3
A138: Pumps | B138: Axial Flow | F138: Granite | G138: N/A | I138: General (Lime) | J138: t
A139: Pumps | B139: Screw | F139: Grit | G139: N/A | I139: General (Lime) | J139: m3
A140: Pumps | B140: Lobe | F140: Ground Granulated Blastfurnace Slag (GGBS) | G140: N/A | I140: General (Paint) | J140: t
A141: Pumps | B141: Submersible | F141: Ground Limestone | G141: N/A | I141: General (Paint) | J141: m3
A142: Pumps | B142: Progressive Cavity | F142: Grouting | G142: N/A | I142: General (Plastics) | J142: t
A143: Pumps | B143: Multistage | F143: GRP tray | G143: 6000mm2 | I143: General (Plastics) | J143: m3
A144: Pumps | B144: Piston | F144: GRP tray | G144: 9000mm2 | I144: General (Sand) | J144: t
A145: Pumps | B145: Peristatic | F145: GRP tray | G145: 12000mm2 | I145: General (Sand) | J145: m3
A146: Pumps | B146: Diaphragm | F146: GRP tray | G146: 18000mm2 | I146: General (Stone) | J146: t
A147: Pumps | B147: Vacuum | F147: GRP tray | G147: 32000mm2 | I147: General (Stone) | J147: m3
A148: Pumps | B148: Macerator | F148: Handrail | G148: Galvanised with fittings | I148: General (Timber) | J148: t
A149: Roads | B149: Asphalt road - Hot construction method | F149: Handrail | G149: Stainless steel with fittings | I149: General (Timber) | J149: m3
A150: Roads | B150: Asphalt road - Cold construction method | F150: Hardboard | G150: N/A | I150: General (Zinc) | J150: t
A151: Sand | B151: General (Sand) | F151: HDPE Pipe | G151: N/A | I151: General Insulation | J151: t
A152: Soil/Clay | B152: Imported (includes transport to site) | F152: Hot rolled coil | G152: N/A | I152: General Insulation | J152: m3
A153: Soil/Clay | B153: Imported (excludes transport to site) | F153: Hot-dip galvanised steel | G153: N/A | I153: General Polyethylene | J153: t
A154: Soil/Clay | B154: Site won | F154: Hydraulic | G154: 1.2KW | I154: General Polyethylene | J154: m3
A155: Steel | B155: General - UK (EU) Average Recycled Content | F155: Hydraulic | G155: 2.2KW | I155: General-Primary | J155: t
A156: Steel | B156: Bar & Rod - UK (EU) Average Recycled Content | F156: Hydraulic | G156: 3.7KW | I156: General-Primary | J156: m3
A157: Steel | B157: Coil (Sheet) - UK (EU) Average Recycled Content | F157: Hydraulic | G157: 5.6KW | I157: General-Secondary | J157: t
A158: Steel | B158: Coil (Sheet) - Galvanised - UK (EU) Average Recycled Content | F158: Hydraulic | G158: 10KW | I158: General-Secondary | J158: m3
A159: Steel | B159: Engineering Steel - Recycled | F159: Hydraulic | G159: 18KW | I159: Glass Reinforced Plastic - GRP - Fibreglass | J159: t
A160: Steel | B160: Pipe - UK (EU) Average Recycled Content | F160: Hydraulic | G160: 44KW | I160: Glass Reinforced Plastic - GRP - Fibreglass | J160: m3
A161: Steel | B161: Plate - UK (EU) Average Recycled Content | F161: Hydraulic | G161: 88KW | I161: Glue Laminated timber | J161: t
A162: Steel | B162: Stainless | F162: Imported (includes transport to site) | G162: General (Rammed Soil) (includes some compaction) | I162: Glue Laminated timber | J162: m3
A163: Steel | B163: Reused | F163: Imported (includes transport to site) | G163: Cement stabilised soil @ 5% | I163: Granite | J163: t
A164: Steel | B164: UO Pipe | F164: Imported (includes transport to site) | G164: Cement stabilised soil @ 8% | I164: Granite | J164: m3
A165: Steel | B165: Tin-free Electrolytic Chrome Coated Steel Sheet | F165: Imported (includes transport to site) | G165: GGBS stabilised soil | I165: Grit | J165: t
A166: Steel | B166: Electrogalvanised | F166: Imported (includes transport to site) | G166: Fly ash stabilised soil | I166: Grit | J166: m3
A167: Steel | B167: Welded pipe | F167: Imported (excludes transport to site) | G167: Topsoil | I167: Ground Granulated Blastfurnace Slag (GGBS) | J167: t
A168: Steel | B168: Organic coated sheet | F168: Imported (excludes transport to site) | G168: Material other than topsoil, rock or artificial hard material | I168: Ground Granulated Blastfurnace Slag (GGBS) | J168: m3
A169: Steel | B169: Tinplate | F169: Imported (excludes transport to site) | G169: Recycled soils | I169: Ground Limestone | J169: t
A170: Steel | B170: Finished cold-rolled coil | F170: In-situ Concrete (Blast Furnace Slag Replacement) | G170: GEN 0 (6/8 MPa) - 25% Cement Replacement | I170: Ground Limestone | J170: m3
A171: Steel | B171: Hot-dip galvanised steel | F171: In-situ Concrete (Blast Furnace Slag Replacement) | G171: GEN 0 (6/8 MPa) - 50% Cement Replacement | I171: Grouting | J171: t
A172: Steel | B172: Plate | F172: In-situ Concrete (Blast Furnace Slag Replacement) | G172: GEN 0 (6/8 MPa) - 70% Cement Replacement | I172: Grouting | J172: m3
A173: Steel | B173: Cold-rolled coil | F173: In-situ Concrete (Blast Furnace Slag Replacement) | G173: GEN 0 (6/8 MPa) - 80% Cement Replacement | I173: GRP tray | J173: Item
A174: Steel | B174: Pickled hot-rolled coil | F174: In-situ Concrete (Blast Furnace Slag Replacement) | G174: GEN 1 (8/10 MPa) - 25% Cement Replacement | I174: Handrail | J174: t
A175: Steel | B175: Wire rod | F175: In-situ Concrete (Blast Furnace Slag Replacement) | G175: GEN 1 (8/10 MPa) - 50% Cement Replacement | I175: Handrail | J175: m
A176: Steel | B176: Hot rolled coil | F176: In-situ Concrete (Blast Furnace Slag Replacement) | G176: GEN 1 (8/10 MPa) - 70% Cement Replacement | I176: Hardboard | J176: t
A177: Steel | B177: Rebar | F177: In-situ Concrete (Blast Furnace Slag Replacement) | G177: GEN 1 (8/10 MPa) - 80% Cement Replacement | I177: Hardboard | J177: m3
A178: Steel | B178: Section | F178: In-situ Concrete (Blast Furnace Slag Replacement) | G178: GEN 2 (12/15 MPa) - 25% Cement Replacement | I178: HDPE Pipe | J178: t
A179: Steel | B179: Engineering Steel | F179: In-situ Concrete (Blast Furnace Slag Replacement) | G179: GEN 2 (12/15 MPa) - 50% Cement Replacement | I179: HDPE Pipe | J179: m3
A180: Steel | B180: Seamless Tube | F180: In-situ Concrete (Blast Furnace Slag Replacement) | G180: GEN 2 (12/15 MPa) - 70% Cement Replacement | I180: Hot rolled coil | J180: t
A181: Stone | B181: General (Stone) | F181: In-situ Concrete (Blast Furnace Slag Replacement) | G181: GEN 2 (12/15 MPa) - 80% Cement Replacement | I181: Hot rolled coil | J181: m3
A182: Stone | B182: Granite | F182: In-situ Concrete (Blast Furnace Slag Replacement) | G182: GEN 3 (16/20 MPa) - 25% Cement Replacement | I182: Hot-dip galvanised steel | J182: t
A183: Stone | B183: Limestone | F183: In-situ Concrete (Blast Furnace Slag Replacement) | G183: GEN 3 (16/20 MPa) - 50% Cement Replacement | I183: Hot-dip galvanised steel | J183: m3
A184: Stone | B184: Marble | F184: In-situ Concrete (Blast Furnace Slag Replacement) | G184: GEN 3 (16/20 MPa) - 70% Cement Replacement | I184: Hydraulic | J184: Item
A185: Stone | B185: Sandstone | F185: In-situ Concrete (Blast Furnace Slag Replacement) | G185: GEN 3 (16/20 MPa) - 80% Cement Replacement | I185: In-situ Concrete (Blast Furnace Slag Replacement) | J185: t
A186: Stone | B186: Slate | F186: In-situ Concrete (Blast Furnace Slag Replacement) | G186: RC 20/25 (20/25 MPa) - 25% Cement Replacement | I186: In-situ Concrete (Blast Furnace Slag Replacement) | J186: m3
A187: Stone | B187: Shale | F187: In-situ Concrete (Blast Furnace Slag Replacement) | G187: RC 20/25 (20/25 MPa) - 50% Cement Replacement | I187: In-situ Concrete (CEM 1) | J187: t
A188: Stone | B188: Site won (reclaimed) general stone | F188: In-situ Concrete (Blast Furnace Slag Replacement) | G188: RC 20/25 (20/25 MPa) - 70% Cement Replacement | I188: In-situ Concrete (CEM 1) | J188: m3
A189: Timber | B189: General (Timber) | F189: In-situ Concrete (Blast Furnace Slag Replacement) | G189: RC 20/25 (20/25 MPa) - 80% Cement Replacement | I189: In-situ Concrete (Fly Ash Replacement) | J189: t
A190: Timber | B190: Glue Laminated timber | F190: In-situ Concrete (Blast Furnace Slag Replacement) | G190: RC 25/30 (25/30 MPa) - 25% Cement Replacement | I190: In-situ Concrete (Fly Ash Replacement) | J190: m3
A191: Timber | B191: Hardboard | F191: In-situ Concrete (Blast Furnace Slag Replacement) | G191: RC 25/30 (25/30 MPa) - 50% Cement Replacement | I191: In-situ Concrete (General) | J191: t
A192: Timber | B192: MDF | F192: In-situ Concrete (Blast Furnace Slag Replacement) | G192: RC 25/30 (25/30 MPa) - 70% Cement Replacement | I192: In-situ Concrete (General) | J192: m3
A193: Timber | B193: Plywood | F193: In-situ Concrete (Blast Furnace Slag Replacement) | G193: RC 25/30 (25/30 MPa) - 80% Cement Replacement | I193: Laminate | J193: t
A194: Timber | B194: Reclaimed Timber | F194: In-situ Concrete (Blast Furnace Slag Replacement) | G194: RC 28/35 (28/35 MPa) - 25% Cement Replacement | I194: Laminate | J194: m3
A195: Timber | B195: softwood | F195: In-situ Concrete (Blast Furnace Slag Replacement) | G195: RC 28/35 (28/35 MPa) - 50% Cement Replacement | I195: Land won-Virgin | J195: t
A196: Timber | B196: temperate hardwood | F196: In-situ Concrete (Blast Furnace Slag Replacement) | G196: RC 28/35 (28/35 MPa) - 70% Cement Replacement | I196: Land won-Virgin | J196: m3
A197: Timber | B197: tropical hardwood | F197: In-situ Concrete (Blast Furnace Slag Replacement) | G197: RC 28/35 (28/35 MPa) - 80% Cement Replacement | I197: Limestone | J197: t
A198: Timber | B198: coppiced material | F198: In-situ Concrete (Blast Furnace Slag Replacement) | G198: RC 32/40 (32/40 MPa) - 25% Cement Replacement | I198: Limestone | J198: m3
A199: Timber | B199: Chipboard | F199: In-situ Concrete (Blast Furnace Slag Replacement) | G199: RC 32/40 (32/40 MPa) - 50% Cement Replacement | I199: Lobe | J199: Item
A200: Timber | B200: Laminate | F200: In-situ Concrete (Blast Furnace Slag Replacement) | G200: RC 32/40 (32/40 MPa) - 70% Cement Replacement | I200: Macerator | J200: Item
... 609 more rows

Sheet GraphData (hidden)
A1: Culmative Whole Life Carbon | D1: Whole Life Carbon by Asset | G1: Whole Life Carbon per New Build Stage | J1: Whole Life Operational Carbon per Asset | M1: Whole Life Use Carbon Operational stage | P1: Carbon by Stage | S1: Material Carbon | V1: Whole Life New Build per Asset
A2: Row Labels | B2: Sum of WLCDF | D2: Row Labels | E2: Sum of WLCDF | G2: Values | J2: Row Labels | K2: Sum of OP Co2eDF | M2: Values | P2: Values | S2: Row Labels | T2: CO2e (t) | V2: Row Labels | W2: Sum of WLCDF
A3: 0 | B3: 0 | D3: Channel | E3: 0 | G3: Materials - (A1) | H3: 0 | J3: Channel | K3: 0 | M3: Use - (B1) | N3: 0 | P3: Capital Carbon - (A1-A5) | Q3: 0 | S3: Aggregate | T3: 0 | V3: Channel | W3: 0
A4: 1 | B4: 0 | D4: Grand Total | E4: 0 | G4: Materials Transport - (A2) | H4: 0 | J4: Grand Total | K4: 0 | M4: Maintenance - (B2) | N4: 0 | P4: Operational Carbon - (B1-B3) | Q4: 0 | S4: Grand Total | T4: 0 | V4: Grand Total | W4: 0
A5: 2 | B5: 0 | G5: People Transport - (A4) | H5: 0 | M5: Repar - (B3) | N5: 0 | P5: Replacement Carbon - (B4) | Q5: 0
A6: 3 | B6: 0 | G6: Plant Transport - (A4) | H6: 0 | M6: Energy - (B1) | N6: 0 | P6: Refurbishment Carbon - (B5) | Q6: 0
A7: 4 | B7: 0 | G7: Site Establishment - (A5) | H7: 0 | P7: Demolition Carbon - (C1 - C2) | Q7: 0
A8: 5 | B8: 0 | G8: Plant Use - (A5) | H8: 0 | P8: Residual Carbon (D) | Q8: 0
A9: 6 | B9: 0 | G9: Waste - (A5) | H9: 0 | P9: Carbon Sequestration (woodland and peatland) | Q9: 0
A10: 7 | B10: 0
A11: 8 | B11: 0
A12: 9 | B12: 0
A13: 10 | B13: 0
A14: 11 | B14: 0
A15: 12 | B15: 0
A16: 13 | B16: 0
A17: 14 | B17: 0
A18: 15 | B18: 0
A19: 16 | B19: 0
A20: 17 | B20: 0
A21: 18 | B21: 0
A22: 19 | B22: 0
A23: 20 | B23: 0
A24: 21 | B24: 0
A25: 22 | B25: 0
A26: 23 | B26: 0
A27: 24 | B27: 0
A28: 25 | B28: 0
A29: 26 | B29: 0
A30: 27 | B30: 0
A31: 28 | B31: 0
A32: 29 | B32: 0
A33: 30 | B33: 0
A34: 31 | B34: 0
A35: 32 | B35: 0
A36: 33 | B36: 0
A37: 34 | B37: 0
A38: 35 | B38: 0
A39: 36 | B39: 0
A40: 37 | B40: 0
A41: 38 | B41: 0
A42: 39 | B42: 0
A43: 40 | B43: 0
A44: 41 | B44: 0
A45: 42 | B45: 0
A46: 43 | B46: 0
A47: 44 | B47: 0
A48: 45 | B48: 0
A49: 46 | B49: 0
A50: 47 | B50: 0
A51: 48 | B51: 0
A52: 49 | B52: 0
A53: 50 | B53: 0
A54: 51 | B54: 0
A55: 52 | B55: 0
A56: 53 | B56: 0
A57: 54 | B57: 0
A58: 55 | B58: 0
A59: 56 | B59: 0
A60: 57 | B60: 0
A61: 58 | B61: 0
A62: 59 | B62: 0
A63: 60 | B63: 0
A64: 61 | B64: 0
A65: 62 | B65: 0
A66: 63 | B66: 0
A67: 64 | B67: 0
A68: 65 | B68: 0
A69: 66 | B69: 0
A70: 67 | B70: 0
A71: 68 | B71: 0
A72: 69 | B72: 0
A73: 70 | B73: 0
A74: 71 | B74: 0
A75: 72 | B75: 0
A76: 73 | B76: 0
A77: 74 | B77: 0
A78: 75 | B78: 0
A79: 76 | B79: 0
A80: 77 | B80: 0
A81: 78 | B81: 0
A82: 79 | B82: 0
A83: 80 | B83: 0
A84: 81 | B84: 0
A85: 82 | B85: 0
A86: 83 | B86: 0
A87: 84 | B87: 0
A88: 85 | B88: 0
A89: 86 | B89: 0
A90: 87 | B90: 0
A91: 88 | B91: 0
A92: 89 | B92: 0
A93: 90 | B93: 0
A94: 91 | B94: 0
A95: 92 | B95: 0
A96: 93 | B96: 0
A97: 94 | B97: 0
A98: 95 | B98: 0
A99: 96 | B99: 0
A100: 97 | B100: 0
A101: 98 | B101: 0
A102: 99 | B102: 0
A103: 100 | B103: 0
A104: Grand Total

Sheet GraphDataAnc (hidden)
A1: Culmative Whole Life Carbon | D1: Whole Life Carbon by Asset | G1: Whole Life Carbon per New Build Stage | J1: Whole Life Operational Carbon per Asset | M1: Whole Life Use Carbon Operational stage | P1: Carbon by Stage | S1: Material Carbon | X1: Whole Life New Build per Asset
A2: Row Labels | D2: Row Labels | J2: Row Labels | P2: Sum of Calc_Demolition | S2: Row Labels | X2: Row Labels
A3: Grand Total | D3: Grand Total | J3: Grand Total | S3: Aggregate | X3: Channel
S4: Grand Total | X4: Grand Total

Sheet GraphDataComb (hidden)
A1: Sum of WLCDF | B1: Column Labels | F1: Whole Life Carbon by Asset | K1: Whole Life Carbon per New Build Stage | P1: Whole Life Operational Carbon per Asset | V1: Whole Life Use Carbon Operational stage | AC1: Carbon by Stage | AJ1: Material Carbon | AQ1: Whole Life New Build per Asset
A2: Row Labels | B2: Original | C2: Grand Total | F2: Sum of WLCDF | G2: Column Labels | L2: Column Labels | P2: Sum of OP Co2eDF | Q2: Column Labels | W2: Column Labels | AD2: Column Labels | AJ2: Sum of CO2e (t) | AK2: Column Labels | AQ2: Sum of WLCDF | AR2: Column Labels
A3: 0 | B3: 0 | C3: 0 | F3: Row Labels | G3: Original | H3: Grand Total | K3: Values | L3: Original | M3: Grand Total | P3: Row Labels | Q3: Original | R3: Grand Total | V3: Values | W3: Original | X3: Grand Total | AC3: Values | AD3: Original | AE3: Grand Total | AJ3: Row Labels | AK3: Original | AL3: Grand Total | AQ3: Row Labels | AR3: Original | AS3: Grand Total
A4: 1 | B4: 0 | C4: 0 | F4: Channel | G4: 0 | H4: 0 | K4: Materials - (A1) | L4: 0 | M4: 0 | P4: Channel | Q4: 0 | R4: 0 | V4: Use - (B1) | W4: 0 | X4: 0 | AC4: Capital Carbon - (A1-A5) | AD4: 0 | AE4: 0 | AJ4: Aggregate | AK4: 0 | AL4: 0 | AQ4: Channel | AR4: 0 | AS4: 0
A5: 2 | B5: 0 | C5: 0 | F5: Grand Total | G5: 0 | H5: 0 | K5: Materials Transport - (A2) | L5: 0 | M5: 0 | P5: Grand Total | Q5: 0 | R5: 0 | V5: Maintenance - (B2) | W5: 0 | X5: 0 | AC5: Operational Carbon - (B1-B3) | AD5: 0 | AE5: 0 | AJ5: Grand Total | AK5: 0 | AL5: 0 | AQ5: Grand Total | AR5: 0 | AS5: 0
A6: 3 | B6: 0 | C6: 0 | K6: People Transport - (A4) | L6: 0 | M6: 0 | V6: Repair - (B3) | W6: 0 | X6: 0 | AC6: Replacement Carbon - (B4) | AD6: 0 | AE6: 0
A7: 4 | B7: 0 | C7: 0 | K7: Plant Transport - (A4) | L7: 0 | M7: 0 | V7: Energy - (B1) | W7: 0 | X7: 0 | AC7: Refurbishment Carbon - (B5) | AD7: 0 | AE7: 0
A8: 5 | B8: 0 | C8: 0 | K8: SIte Establishment - (A5) | L8: 0 | M8: 0 | AC8: Demolition Carbon - (C1- C2) | AD8: 0 | AE8: 0
A9: 6 | B9: 0 | C9: 0 | K9: Plant Use - (A5) | L9: 0 | M9: 0 | AC9: Residual Carbon - (D) | AD9: 0 | AE9: 0
A10: 7 | B10: 0 | C10: 0 | K10: Waste - (A5) | L10: 0 | M10: 0 | AC10: Carbon Sequestration (woodland and peatland)
A11: 8 | B11: 0 | C11: 0
A12: 9 | B12: 0 | C12: 0
A13: 10 | B13: 0 | C13: 0
A14: 11 | B14: 0 | C14: 0
A15: 12 | B15: 0 | C15: 0
A16: 13 | B16: 0 | C16: 0
A17: 14 | B17: 0 | C17: 0
A18: 15 | B18: 0 | C18: 0
A19: 16 | B19: 0 | C19: 0
A20: 17 | B20: 0 | C20: 0
A21: 18 | B21: 0 | C21: 0
A22: 19 | B22: 0 | C22: 0
A23: 20 | B23: 0 | C23: 0
A24: 21 | B24: 0 | C24: 0
A25: 22 | B25: 0 | C25: 0
A26: 23 | B26: 0 | C26: 0
A27: 24 | B27: 0 | C27: 0
A28: 25 | B28: 0 | C28: 0
A29: 26 | B29: 0 | C29: 0
A30: 27 | B30: 0 | C30: 0
A31: 28 | B31: 0 | C31: 0
A32: 29 | B32: 0 | C32: 0
A33: 30 | B33: 0 | C33: 0
A34: 31 | B34: 0 | C34: 0
A35: 32 | B35: 0 | C35: 0
A36: 33 | B36: 0 | C36: 0
A37: 34 | B37: 0 | C37: 0
A38: 35 | B38: 0 | C38: 0
A39: 36 | B39: 0 | C39: 0
A40: 37 | B40: 0 | C40: 0
A41: 38 | B41: 0 | C41: 0
A42: 39 | B42: 0 | C42: 0
A43: 40 | B43: 0 | C43: 0
A44: 41 | B44: 0 | C44: 0
A45: 42 | B45: 0 | C45: 0
A46: 43 | B46: 0 | C46: 0
A47: 44 | B47: 0 | C47: 0
A48: 45 | B48: 0 | C48: 0
A49: 46 | B49: 0 | C49: 0
A50: 47 | B50: 0 | C50: 0
A51: 48 | B51: 0 | C51: 0
A52: 49 | B52: 0 | C52: 0
A53: 50 | B53: 0 | C53: 0
A54: 51 | B54: 0 | C54: 0
A55: 52 | B55: 0 | C55: 0
A56: 53 | B56: 0 | C56: 0
A57: 54 | B57: 0 | C57: 0
A58: 55 | B58: 0 | C58: 0
A59: 56 | B59: 0 | C59: 0
A60: 57 | B60: 0 | C60: 0
A61: 58 | B61: 0 | C61: 0
A62: 59 | B62: 0 | C62: 0
A63: 60 | B63: 0 | C63: 0
A64: 61 | B64: 0 | C64: 0
A65: 62 | B65: 0 | C65: 0
A66: 63 | B66: 0 | C66: 0
A67: 64 | B67: 0 | C67: 0
A68: 65 | B68: 0 | C68: 0
A69: 66 | B69: 0 | C69: 0
A70: 67 | B70: 0 | C70: 0
A71: 68 | B71: 0 | C71: 0
A72: 69 | B72: 0 | C72: 0
A73: 70 | B73: 0 | C73: 0
A74: 71 | B74: 0 | C74: 0
A75: 72 | B75: 0 | C75: 0
A76: 73 | B76: 0 | C76: 0
A77: 74 | B77: 0 | C77: 0
A78: 75 | B78: 0 | C78: 0
A79: 76 | B79: 0 | C79: 0
A80: 77 | B80: 0 | C80: 0
A81: 78 | B81: 0 | C81: 0
A82: 79 | B82: 0 | C82: 0
A83: 80 | B83: 0 | C83: 0
A84: 81 | B84: 0 | C84: 0
A85: 82 | B85: 0 | C85: 0
A86: 83 | B86: 0 | C86: 0
A87: 84 | B87: 0 | C87: 0
A88: 85 | B88: 0 | C88: 0
A89: 86 | B89: 0 | C89: 0
A90: 87 | B90: 0 | C90: 0
A91: 88 | B91: 0 | C91: 0
A92: 89 | B92: 0 | C92: 0
A93: 90 | B93: 0 | C93: 0
A94: 91 | B94: 0 | C94: 0
A95: 92 | B95: 0 | C95: 0
A96: 93 | B96: 0 | C96: 0
A97: 94 | B97: 0 | C97: 0
A98: 95 | B98: 0 | C98: 0
A99: 96 | B99: 0 | C99: 0
A100: 97 | B100: 0 | C100: 0
A101: 98 | B101: 0 | C101: 0
A102: 99 | B102: 0 | C102: 0
A103: 100 | B103: 0 | C103: 0
A104: Grand Total

Sheet FlatData (hidden)
A1: Asset ID | B1: Asset description | C1: Asset class | D1: Sub-Asset ref. | E1: Sub-Asset description | F1: Sub-Asset category | G1: Standard life | H1: First intervention | I1: Expected new build/Replacement life | J1: Refurbishment type | K1: Expected refurbished Life | L1: Last Refurb | M1: Last Replace | N1: Remaining Life | O1: First Intervention code | P1: Last intervention | Q1: Weighted Split | R1: Materials | S1: Materials Transport | T1: People Transport | U1: Plant Transport | V1: Site Establishment | W1: Plant use | X1: Waste | Y1: New Build Co2e | Z1: Use | AA1: Energy | AB1: Refurbishment | AC1: Den - Material Waste | AD1: Dem - Plant use | AE1: Dem - People | AF1: Year | AG1: Profile | AH1: Financial - Discount Factor | AI1: MaterialsDF | AJ1: Materials TransportDF | AK1: People TransportDF | AL1: Plant TransportDF | AM1: Site EstablishmentDF | AN1: Plant UseDF | AO1: WasteDF | AP1: CapitalDF | AQ1: UseDF | AR1: MaintenanceDF | AS1: RepairDF | AT1: EnergyDF | AU1: OP Co2eDF | AV1: RefurbDF | AW1: Dem - MaterialsDF | AX1: Dem - Plant | AY1: Dem - PeopleDf | AZ1: ReplacementDF | BA1: WLCDF | BB1: Residual | BC1: Replace Materials TransportDF | BD1: Replace People TransportDF | BE1: Replace Plant TransportDF | BF1: Replace MaterialsDF | BG1: Replace Site EstablishmentDF | BH1: Replace Plant UseDF | BI1: Replace WasteDF | BJ1: Electricity - Discount Rate | BK1: Plant and Transport - Discount Rate | BL1: Commuting - Discount Rate | BM1: Embodied emissions - Discount Rate | BN1: Site Establishment - Discount Rate | BO1: Maintenance/Repair/Refurbishment/Residual - Discount Rate | BP1: Sequestration (woodland and peatland) | BQ1: Buffer
A2: ChanEA05 | C2: Channel | D2: ChanEA0556 | F2: Channel | G2: 120 | H2: First intervention | I2: Expected new build/Replacement life | J2: Refurbishment type | K2: Expected refurbished Life | L2: 0 | M2: 0 | N2: 0 | O2: First Intervention code | P2: 2 | Q2: 0 | R2: 0 | S2: 0 | T2: 0 | U2: 0 | V2: 0 | W2: 0 | X2: 0 | Y2: 0 | Z2: 0 | AA2: 0 | AB2: 0 | AC2: 0 | AD2: 0 | AE2: 0 | AF2: 0 | AH2: =VLOOKUP(AF2,ValidationLists!$M$1:$N$102,2,FALSE) -> 1 | AI2: =IF(AF2=0,R2*BM2,0) -> 0 | AJ2: =IF(AF2=0,S2*BK2,0) -> 0 | AK2: =IF(AF2=0,T2*BL2,0) -> 0 | AL2: =IF(AF2=0,U2*BK2,0) -> 0 | AM2: =IF(AF2=0,V2*BN2,0) -> 0 | AN2: =IF(AF2=0,W2*BK2,0) -> 0 | AO2: =IF(AF2=0,X2*BK2,0) -> 0 | AP2: =IF(AF2=0,AI2+AJ2+AK2+AL2+AM2+AN2+AO2,0) -> 0 | AQ2: =IF(OR(AG2=3,AG2=2,AG2=0),Z2*BL2,0) -> 0 | AR2: =IF(AND(O2=1,OR(AG2=3,AG2=2,AG2=0)),SUMIFS(FlatMaint!$Z$2:$Z$10000,FlatMaint!$A$2:$A$10000,D2,FlatMaint!$Y$2:$Y$10000,AF2)*BO2,IF(AND(O2=2,OR(AG2=3,AG2=2,AG2=0)),SUMIFS(FlatMaint!$Z$2:$Z$10000,FlatMaint!$A$2:$A$10000,D2,FlatMaint!$Y$2:$Y$10000,AF2)/SUMIF(Refurb_Poss_Tbl[Refurbishment Possible],J2,Refurb_Poss_Tbl[%])*BO2,IF(AND(O2=3,OR(AG2=3,AG2=2,AG2=0)),SUMIFS(FlatMaint!$Z$2:$Z$10000,FlatMaint!$A$2:$A$10000,D2,FlatMaint!$Y$2:$Y$10000,AF2)*BO2,0))) -> 0 | AS2: =IF(AND(O2=1,OR(AG2=3,AG2=2,AG2=0)),SUMIFS(FlatRepair!$Z$2:$Z$10000,FlatRepair!$A$2:$A$10000,D2,FlatRepair!$Y$2:$Y$10000,AF2)*BO2,IF(AND(O2=2,OR(AG2=3,AG2=2,AG2=0)),SUMIFS(FlatRepair!$Z$2:$Z$10000,FlatRepair!$A$2:$A$10000,D2,FlatRepair!$Y$2:$Y$10000,AF2)/SUMIF(Refurb_Poss_Tbl[Refurbishment Possible],J2,Refurb_Poss_Tbl[%])*BO2,IF(AND(O2=3,OR(AG2=3,AG2=2,AG2=0)),SUMIFS(FlatRepair!$Z$2:$Z$10000,FlatRepair!$A$2:$A$10000,D2,FlatRepair!$Y$2:$Y$10000,AF2)*BO2,0))) -> 0 | AT2: =IF(OR(AF2=3,AF2=2,AG2=0),AA2*BJ2,0) -> 0 | AU2: =AQ2+AR2+AS2+AT2 -> 0 | AV2: =IF(AF2=0,0,IF(AG2=2,AB2*BO2,0)) -> 0 | AW2: =IF(AND(AG2=3,O2=1),AC2*BM2,IF(AND(AG2=3,O2=3),AC2*BM2,IF(AND(AG2=3,O2=2),AC2/SUMIF(Refurb_Poss_Tbl[Refurbishment Possible],J2,Refurb_Poss_Tbl[%])*BM2,IF(AND(AG2=2,O2=2),AC2*BM2,IF(AND(AG2=2,O2=1),SUMIF(Refurb_Poss_Tbl[Refurbishment Possible],J2,Refurb_Poss_Tbl[%])*AC2*BM2,IF(AND(AG2=2,O2=3),SUMIF(Refurb_Poss_Tbl[Refurbishment Possible],J2,Refurb_Poss_Tbl[%])*AC2*BM2,0)))))) -> 0 | AX2: =IF(AND(AG2=3,O2=1),AD2*BK2,IF(AND(AG2=3,O2=3),AD2*BK2,IF(AND(AG2=3,O2=2),AD2/SUMIF(Refurb_Poss_Tbl[Refurbishment Possible],J2,Refurb_Poss_Tbl[%])*BK2,IF(AND(AG2=2,O2=2),AD2*BK2,IF(AND(AG2=2,O2=1),SUMIF(Refurb_Poss_Tbl[Refurbishment Possible],J2,Refurb_Poss_Tbl[%])*AD2*BK2,IF(AND(AG2=2,O2=3),SUMIF(Refurb_Poss_Tbl[Refurbishment Possible],J2,Refurb_Poss_Tbl[%])*AD2*BK2,0)))))) -> 0 | AY2: =IF(AND(AG2=3,O2=1),(AE2/ValidationLists!$F$114)*BL2,IF(AND(AG2=3,O2=3),AE2*BL2,IF(AND(AG2=3,O2=2),AE2/SUMIF(Refurb_Poss_Tbl[Refurbishment Possible],J2,Refurb_Poss_Tbl[%])*BL2,IF(AND(AG2=2,O2=2),AE2*BL2,IF(AND(AG2=2,O2=1),SUMIF(Refurb_Poss_Tbl[Refurbishment Possible],J2,Refurb_Poss_Tbl[%])*AE2*BL2,IF(AND(AG2=2,O2=3),SUMIF(Refurb_Poss_Tbl[Refurbishment Possible],J2,Refurb_Poss_Tbl[%])*AE2*BL2,0)))))) -> 0 | AZ2: =BC2+BD2+BE2+BF2+BG2+BH2+BI2 -> 0 | BA2: =AP2+AU2+AV2+AW2+AX2+AY2+AZ2 -> 0 | BB2: =IFERROR(IF(AF2=100,IF(P2=1,(N2/I2)*(Y2*BO2)*-1,IF(P2=2,(N2/K2)*(Y2*SUMIF(Refurb_Poss_Tbl[Refurbishment Possible],J2,Refurb_Poss_Tbl[%]))*BO2*-1,IF(P2=3,(N2/I2)*(Y2+(T2*ValidationLists!$F$114)+(U2*ValidationLists!$F$115))*BO2*-1,0))),0),0) -> 0 | BC2: =IF(AF2=0,0,IF(AND($AG2=3,O2=1),S2*BO2,IF(AND(AG2=3,O2=3),S2*BO2,IF(AND(AG2=3,O2=2),S2/SUMIF(Refurb_Poss_Tbl[Refurbishment Possible],J2,Refurb_Poss_Tbl[%])*BO2,0)))) -> 0 | BD2: =IF(AF2=0,0,IF(AND(AG2=3,O2=1),(T2/ValidationLists!$F$114)*BO2,IF(AND($AG2=3,O2=3),T2*BO2,IF(AND(AG2=3,O2=2),T2/SUMIF(Refurb_Poss_Tbl[Refurbishment Possible],J2,Refurb_Poss_Tbl[%])*BO2,0)))) -> 0 | BE2: =IF(AF2=0,0,IF(AND(AG2=3,O2=1),(U2/ValidationLists!$F$114)*BO2,IF(AND($AG2=3,O2=3),U2*BO2,IF(AND(AG2=3,O2=2),U2/SUMIF(Refurb_Poss_Tbl[Refurbishment Possible],J2,Refurb_Poss_Tbl[%])*BO2,0)))) -> 0 | BF2: =IF(AF2=0,0,IF(AND(AG2=3,O2=1),R2*BO2,IF(AND(AG2=3,O2=3),R2*BO2,IF(AND(AG2=3,O2=2),R2/SUMIF(Refurb_Poss_Tbl[Refurbishment Possible],J2,Refurb_Poss_Tbl[%])*BO2,0)))) -> 0 | BG2: =IF(AF2=0,0,IF(AND(AG2=3,O2=1),V2*BO2,IF(AND(AG2=3,O2=3),V2*BO2,IF(AND(AG2=3,O2=2),V2/SUMIF(Refurb_Poss_Tbl[Refurbishment Possible],J2,Refurb_Poss_Tbl[%])*BO2,0)))) -> 0 | BH2: =IF(AF2=0,0,IF(AND(AG2=3,O2=1),W2*BO2,IF(AND(AG2=3,O2=3),W2*BO2,IF(AND(AG2=3,O2=2),W2/SUMIF(Refurb_Poss_Tbl[Refurbishment Possible],J2,Refurb_Poss_Tbl[%])*BO2,0)))) -> 0 | BI2: =IF(AF2=0,0,IF(AND(AG2=3,O2=1),X2*BO2,IF(AND(AG2=3,O2=3),X2*BO2,IF(AND(AG2=3,O2=2),X2/SUMIF(Refurb_Poss_Tbl[Refurbishment Possible],J2,Refurb_Poss_Tbl[%])*BO2,0)))) -> 0 | BJ2: =VLOOKUP($AF2,DiscountWorking!$B$7:$C$107,2,FALSE) -> 1 | BK2: =VLOOKUP($AF2,DiscountWorking!$J$7:$K$107,2,FALSE) -> 1 | BL2: =VLOOKUP($AF2,DiscountWorking!$Q$7:$R$107,2,FALSE) -> 1 | BM2: =VLOOKUP($AF2,DiscountWorking!$T$7:$U$107,2,FALSE) -> 1 | BN2: =VLOOKUP($AF2,DiscountWorking!$W$7:$X$107,2,FALSE) -> 1 | BO2: =VLOOKUP($AF2,DiscountWorking!$Z$7:$AA$107,2,FALSE) -> 1 | BP2: =-'NFM Instructions'!B20+-'NFM Instructions'!B34 -> 0
A3: ChanEA05 | C3: Channel | D3: ChanEA0556 | F3: Channel | G3: 120 | H3: First intervention | I3: Expected new build/Replacement life | J3: Refurbishment type | K3: Expected refurbished Life | L3: 0 | M3: 0 | N3: 0 | O3: First Intervention code | P3: 2 | Q3: 0 | R3: 0 | S3: 0 | T3: 0 | U3: 0 | V3: 0 | W3: 0 | X3: 0 | Y3: 0 | Z3: 0 | AA3: 0 | AB3: 0 | AC3: 0 | AD3: 0 | AE3: 0 | AF3: 1 | AG3: 0 | AH3: =VLOOKUP(AF3,ValidationLists!$M$1:$N$102,2,FALSE) -> 0.9661835749 | AI3: 0 | AJ3: 0 | AK3: 0 | AL3: 0 | AM3: 0 | AN3: 0 | AO3: 0 | AP3: 0 | AQ3: 0 | AR3: =IF(AND(O3=1,OR(AG3=3,AG3=2,AG3=0)),SUMIFS(FlatMaint!$Z$2:$Z$10000,FlatMaint!$A$2:$A$10000,D3,FlatMaint!$Y$2:$Y$10000,AF3)*BO3,IF(AND(O3=2,OR(AG3=3,AG3=2,AG3=0)),SUMIFS(FlatMaint!$Z$2:$Z$10000,FlatMaint!$A$2:$A$10000,D3,FlatMaint!$Y$2:$Y$10000,AF3)/SUMIF(Refurb_Poss_Tbl[Refurbishment Possible],J3,Refurb_Poss_Tbl[%])*BO3,IF(AND(O3=3,OR(AG3=3,AG3=2,AG3=0)),SUMIFS(FlatMaint!$Z$2:$Z$10000,FlatMaint!$A$2:$A$10000,D3,FlatMaint!$Y$2:$Y$10000,AF3)*BO3,0))) -> 0 | AS3: =IF(AND(O3=1,OR(AG3=3,AG3=2,AG3=0)),SUMIFS(FlatRepair!$Z$2:$Z$10000,FlatRepair!$A$2:$A$10000,D3,FlatRepair!$Y$2:$Y$10000,AF3)*BO3,IF(AND(O3=2,OR(AG3=3,AG3=2,AG3=0)),SUMIFS(FlatRepair!$Z$2:$Z$10000,FlatRepair!$A$2:$A$10000,D3,FlatRepair!$Y$2:$Y$10000,AF3)/SUMIF(Refurb_Poss_Tbl[Refurbishment Possible],J3,Refurb_Poss_Tbl[%])*BO3,IF(AND(O3=3,OR(AG3=3,AG3=2,AG3=0)),SUMIFS(FlatRepair!$Z$2:$Z$10000,FlatRepair!$A$2:$A$10000,D3,FlatRepair!$Y$2:$Y$10000,AF3)*BO3,0))) -> 0 | AT3: 0 | AU3: 0 | AV3: 0 | AW3: =IF(AND(AG3=3,O3=1),AC3*BM3,IF(AND(AG3=3,O3=3),AC3*BM3,IF(AND(AG3=3,O3=2),AC3/SUMIF(Refurb_Poss_Tbl[Refurbishment Possible],J3,Refurb_Poss_Tbl[%])*BM3,IF(AND(AG3=2,O3=2),AC3*BM3,IF(AND(AG3=2,O3=1),SUMIF(Refurb_Poss_Tbl[Refurbishment Possible],J3,Refurb_Poss_Tbl[%])*AC3*BM3,IF(AND(AG3=2,O3=3),SUMIF(Refurb_Poss_Tbl[Refurbishment Possible],J3,Refurb_Poss_Tbl[%])*AC3*BM3,0)))))) -> 0 | AX3: =IF(AND(AG3=3,O3=1),AD3*BK3,IF(AND(AG3=3,O3=3),AD3*BK3,IF(AND(AG3=3,O3=2),AD3/SUMIF(Refurb_Poss_Tbl[Refurbishment Possible],J3,Refurb_Poss_Tbl[%])*BK3,IF(AND(AG3=2,O3=2),AD3*BK3,IF(AND(AG3=2,O3=1),SUMIF(Refurb_Poss_Tbl[Refurbishment Possible],J3,Refurb_Poss_Tbl[%])*AD3*BK3,IF(AND(AG3=2,O3=3),SUMIF(Refurb_Poss_Tbl[Refurbishment Possible],J3,Refurb_Poss_Tbl[%])*AD3*BK3,0)))))) -> 0 | AY3: =IF(AND(AG3=3,O3=1),(AE3/ValidationLists!$F$114)*BL3,IF(AND(AG3=3,O3=3),AE3*BL3,IF(AND(AG3=3,O3=2),AE3/SUMIF(Refurb_Poss_Tbl[Refurbishment Possible],J3,Refurb_Poss_Tbl[%])*BL3,IF(AND(AG3=2,O3=2),AE3*BL3,IF(AND(AG3=2,O3=1),SUMIF(Refurb_Poss_Tbl[Refurbishment Possible],J3,Refurb_Poss_Tbl[%])*AE3*BL3,IF(AND(AG3=2,O3=3),SUMIF(Refurb_Poss_Tbl[Refurbishment Possible],J3,Refurb_Poss_Tbl[%])*AE3*BL3,0)))))) -> 0 | AZ3: 0 | BA3: 0 | BB3: =IFERROR(IF(AF3=100,IF(P3=1,(N3/I3)*(Y3*BO3)*-1,IF(P3=2,(N3/K3)*(Y3*SUMIF(Refurb_Poss_Tbl[Refurbishment Possible],J3,Refurb_Poss_Tbl[%]))*BO3*-1,IF(P3=3,(N3/I3)*(Y3+(T3*ValidationLists!$F$114)+(U3*ValidationLists!$F$115))*BO3*-1,0))),0),0) -> 0 | BC3: =IF(AF3=0,0,IF(AND($AG3=3,O3=1),S3*BO3,IF(AND(AG3=3,O3=3),S3*BO3,IF(AND(AG3=3,O3=2),S3/SUMIF(Refurb_Poss_Tbl[Refurbishment Possible],J3,Refurb_Poss_Tbl[%])*BO3,0)))) -> 0 | BD3: =IF(AF3=0,0,IF(AND(AG3=3,O3=1),(T3/ValidationLists!$F$114)*BO3,IF(AND($AG3=3,O3=3),T3*BO3,IF(AND(AG3=3,O3=2),T3/SUMIF(Refurb_Poss_Tbl[Refurbishment Possible],J3,Refurb_Poss_Tbl[%])*BO3,0)))) -> 0 | BE3: =IF(AF3=0,0,IF(AND(AG3=3,O3=1),(U3/ValidationLists!$F$114)*BO3,IF(AND($AG3=3,O3=3),U3*BO3,IF(AND(AG3=3,O3=2),U3/SUMIF(Refurb_Poss_Tbl[Refurbishment Possible],J3,Refurb_Poss_Tbl[%])*BO3,0)))) -> 0 | BF3: =IF(AF3=0,0,IF(AND(AG3=3,O3=1),R3*BO3,IF(AND(AG3=3,O3=3),R3*BO3,IF(AND(AG3=3,O3=2),R3/SUMIF(Refurb_Poss_Tbl[Refurbishment Possible],J3,Refurb_Poss_Tbl[%])*BO3,0)))) -> 0 | BG3: =IF(AF3=0,0,IF(AND(AG3=3,O3=1),V3*BO3,IF(AND(AG3=3,O3=3),V3*BO3,IF(AND(AG3=3,O3=2),V3/SUMIF(Refurb_Poss_Tbl[Refurbishment Possible],J3,Refurb_Poss_Tbl[%])*BO3,0)))) -> 0 | BH3: =IF(AF3=0,0,IF(AND(AG3=3,O3=1),W3*BO3,IF(AND(AG3=3,O3=3),W3*BO3,IF(AND(AG3=3,O3=2),W3/SUMIF(Refurb_Poss_Tbl[Refurbishment Possible],J3,Refurb_Poss_Tbl[%])*BO3,0)))) -> 0 | BI3: =IF(AF3=0,0,IF(AND(AG3=3,O3=1),X3*BO3,IF(AND(AG3=3,O3=3),X3*BO3,IF(AND(AG3=3,O3=2),X3/SUMIF(Refurb_Poss_Tbl[Refurbishment Possible],J3,Refurb_Poss_Tbl[%])*BO3,0)))) -> 0 | BJ3: =VLOOKUP($AF3,DiscountWorking!$B$7:$C$107,2,FALSE) -> 0.8198827863 | BK3: =VLOOKUP($AF3,DiscountWorking!$J$7:$K$107,2,FALSE) -> 0.9864542115 | BL3: =VLOOKUP($AF3,DiscountWorking!$Q$7:$R$107,2,FALSE) -> 0.98099729 | BM3: =VLOOKUP($AF3,DiscountWorking!$T$7:$U$107,2,FALSE) -> 0.9037295816 | BN3: =VLOOKUP($AF3,DiscountWorking!$W$7:$X$107,2,FALSE) -> 0.9031684989 | BO3: =VLOOKUP($AF3,DiscountWorking!$Z$7:$AA$107,2,FALSE) -> 0.9360493083
A4: ChanEA05 | C4: Channel | D4: ChanEA0556 | F4: Channel | G4: 120 | H4: First intervention | I4: Expected new build/Replacement life | J4: Refurbishment type | K4: Expected refurbished Life | L4: 0 | M4: 0 | N4: 0 | O4: First Intervention code | P4: 2 | Q4: 0 | R4: 0 | S4: 0 | T4: 0 | U4: 0 | V4: 0 | W4: 0 | X4: 0 | Y4: 0 | Z4: 0 | AA4: 0 | AB4: 0 | AC4: 0 | AD4: 0 | AE4: 0 | AF4: 2 | AG4: 0 | AH4: =VLOOKUP(AF4,ValidationLists!$M$1:$N$102,2,FALSE) -> 0.9335107004 | AI4: 0 | AJ4: 0 | AK4: 0 | AL4: 0 | AM4: 0 | AN4: 0 | AO4: 0 | AP4: 0 | AQ4: 0 | AR4: =IF(AND(O4=1,OR(AG4=3,AG4=2,AG4=0)),SUMIFS(FlatMaint!$Z$2:$Z$10000,FlatMaint!$A$2:$A$10000,D4,FlatMaint!$Y$2:$Y$10000,AF4)*BO4,IF(AND(O4=2,OR(AG4=3,AG4=2,AG4=0)),SUMIFS(FlatMaint!$Z$2:$Z$10000,FlatMaint!$A$2:$A$10000,D4,FlatMaint!$Y$2:$Y$10000,AF4)/SUMIF(Refurb_Poss_Tbl[Refurbishment Possible],J4,Refurb_Poss_Tbl[%])*BO4,IF(AND(O4=3,OR(AG4=3,AG4=2,AG4=0)),SUMIFS(FlatMaint!$Z$2:$Z$10000,FlatMaint!$A$2:$A$10000,D4,FlatMaint!$Y$2:$Y$10000,AF4)*BO4,0))) -> 0 | AS4: =IF(AND(O4=1,OR(AG4=3,AG4=2,AG4=0)),SUMIFS(FlatRepair!$Z$2:$Z$10000,FlatRepair!$A$2:$A$10000,D4,FlatRepair!$Y$2:$Y$10000,AF4)*BO4,IF(AND(O4=2,OR(AG4=3,AG4=2,AG4=0)),SUMIFS(FlatRepair!$Z$2:$Z$10000,FlatRepair!$A$2:$A$10000,D4,FlatRepair!$Y$2:$Y$10000,AF4)/SUMIF(Refurb_Poss_Tbl[Refurbishment Possible],J4,Refurb_Poss_Tbl[%])*BO4,IF(AND(O4=3,OR(AG4=3,AG4=2,AG4=0)),SUMIFS(FlatRepair!$Z$2:$Z$10000,FlatRepair!$A$2:$A$10000,D4,FlatRepair!$Y$2:$Y$10000,AF4)*BO4,0))) -> 0 | AT4: 0 | AU4: 0 | AV4: 0 | AW4: =IF(AND(AG4=3,O4=1),AC4*BM4,IF(AND(AG4=3,O4=3),AC4*BM4,IF(AND(AG4=3,O4=2),AC4/SUMIF(Refurb_Poss_Tbl[Refurbishment Possible],J4,Refurb_Poss_Tbl[%])*BM4,IF(AND(AG4=2,O4=2),AC4*BM4,IF(AND(AG4=2,O4=1),SUMIF(Refurb_Poss_Tbl[Refurbishment Possible],J4,Refurb_Poss_Tbl[%])*AC4*BM4,IF(AND(AG4=2,O4=3),SUMIF(Refurb_Poss_Tbl[Refurbishment Possible],J4,Refurb_Poss_Tbl[%])*AC4*BM4,0)))))) -> 0 | AX4: =IF(AND(AG4=3,O4=1),AD4*BK4,IF(AND(AG4=3,O4=3),AD4*BK4,IF(AND(AG4=3,O4=2),AD4/SUMIF(Refurb_Poss_Tbl[Refurbishment Possible],J4,Refurb_Poss_Tbl[%])*BK4,IF(AND(AG4=2,O4=2),AD4*BK4,IF(AND(AG4=2,O4=1),SUMIF(Refurb_Poss_Tbl[Refurbishment Possible],J4,Refurb_Poss_Tbl[%])*AD4*BK4,IF(AND(AG4=2,O4=3),SUMIF(Refurb_Poss_Tbl[Refurbishment Possible],J4,Refurb_Poss_Tbl[%])*AD4*BK4,0)))))) -> 0 | AY4: =IF(AND(AG4=3,O4=1),(AE4/ValidationLists!$F$114)*BL4,IF(AND(AG4=3,O4=3),AE4*BL4,IF(AND(AG4=3,O4=2),AE4/SUMIF(Refurb_Poss_Tbl[Refurbishment Possible],J4,Refurb_Poss_Tbl[%])*BL4,IF(AND(AG4=2,O4=2),AE4*BL4,IF(AND(AG4=2,O4=1),SUMIF(Refurb_Poss_Tbl[Refurbishment Possible],J4,Refurb_Poss_Tbl[%])*AE4*BL4,IF(AND(AG4=2,O4=3),SUMIF(Refurb_Poss_Tbl[Refurbishment Possible],J4,Refurb_Poss_Tbl[%])*AE4*BL4,0)))))) -> 0 | AZ4: 0 | BA4: 0 | BB4: =IFERROR(IF(AF4=100,IF(P4=1,(N4/I4)*(Y4*BO4)*-1,IF(P4=2,(N4/K4)*(Y4*SUMIF(Refurb_Poss_Tbl[Refurbishment Possible],J4,Refurb_Poss_Tbl[%]))*BO4*-1,IF(P4=3,(N4/I4)*(Y4+(T4*ValidationLists!$F$114)+(U4*ValidationLists!$F$115))*BO4*-1,0))),0),0) -> 0 | BC4: =IF(AF4=0,0,IF(AND($AG4=3,O4=1),S4*BO4,IF(AND(AG4=3,O4=3),S4*BO4,IF(AND(AG4=3,O4=2),S4/SUMIF(Refurb_Poss_Tbl[Refurbishment Possible],J4,Refurb_Poss_Tbl[%])*BO4,0)))) -> 0 | BD4: =IF(AF4=0,0,IF(AND(AG4=3,O4=1),(T4/ValidationLists!$F$114)*BO4,IF(AND($AG4=3,O4=3),T4*BO4,IF(AND(AG4=3,O4=2),T4/SUMIF(Refurb_Poss_Tbl[Refurbishment Possible],J4,Refurb_Poss_Tbl[%])*BO4,0)))) -> 0 | BE4: =IF(AF4=0,0,IF(AND(AG4=3,O4=1),(U4/ValidationLists!$F$114)*BO4,IF(AND($AG4=3,O4=3),U4*BO4,IF(AND(AG4=3,O4=2),U4/SUMIF(Refurb_Poss_Tbl[Refurbishment Possible],J4,Refurb_Poss_Tbl[%])*BO4,0)))) -> 0 | BF4: =IF(AF4=0,0,IF(AND(AG4=3,O4=1),R4*BO4,IF(AND(AG4=3,O4=3),R4*BO4,IF(AND(AG4=3,O4=2),R4/SUMIF(Refurb_Poss_Tbl[Refurbishment Possible],J4,Refurb_Poss_Tbl[%])*BO4,0)))) -> 0 | BG4: =IF(AF4=0,0,IF(AND(AG4=3,O4=1),V4*BO4,IF(AND(AG4=3,O4=3),V4*BO4,IF(AND(AG4=3,O4=2),V4/SUMIF(Refurb_Poss_Tbl[Refurbishment Possible],J4,Refurb_Poss_Tbl[%])*BO4,0)))) -> 0 | BH4: =IF(AF4=0,0,IF(AND(AG4=3,O4=1),W4*BO4,IF(AND(AG4=3,O4=3),W4*BO4,IF(AND(AG4=3,O4=2),W4/SUMIF(Refurb_Poss_Tbl[Refurbishment Possible],J4,Refurb_Poss_Tbl[%])*BO4,0)))) -> 0 | BI4: =IF(AF4=0,0,IF(AND(AG4=3,O4=1),X4*BO4,IF(AND(AG4=3,O4=3),X4*BO4,IF(AND(AG4=3,O4=2),X4/SUMIF(Refurb_Poss_Tbl[Refurbishment Possible],J4,Refurb_Poss_Tbl[%])*BO4,0)))) -> 0 | BJ4: =VLOOKUP($AF4,DiscountWorking!$B$7:$C$107,2,FALSE) -> 0.7618076847 | BK4: =VLOOKUP($AF4,DiscountWorking!$J$7:$K$107,2,FALSE) -> 0.9749863898 | BL4: =VLOOKUP($AF4,DiscountWorking!$Q$7:$R$107,2,FALSE) -> 0.9610594046 | BM4: =VLOOKUP($AF4,DiscountWorking!$T$7:$U$107,2,FALSE) -> 0.8691151129 | BN4: =VLOOKUP($AF4,DiscountWorking!$W$7:$X$107,2,FALSE) -> 0.8683970373 | BO4: =VLOOKUP($AF4,DiscountWorking!$Z$7:$AA$107,2,FALSE) -> 0.9097836949
A5: ChanEA05 | C5: Channel | D5: ChanEA0556 | F5: Channel | G5: 120 | H5: First intervention | I5: Expected new build/Replacement life | J5: Refurbishment type | K5: Expected refurbished Life | L5: 0 | M5: 0 | N5: 0 | O5: First Intervention code | P5: 2 | Q5: 0 | R5: 0 | S5: 0 | T5: 0 | U5: 0 | V5: 0 | W5: 0 | X5: 0 | Y5: 0 | Z5: 0 | AA5: 0 | AB5: 0 | AC5: 0 | AD5: 0 | AE5: 0 | AF5: 3 | AG5: 0 | AH5: =VLOOKUP(AF5,ValidationLists!$M$1:$N$102,2,FALSE) -> 0.9019427057 | AI5: 0 | AJ5: 0 | AK5: 0 | AL5: 0 | AM5: 0 | AN5: 0 | AO5: 0 | AP5: 0 | AQ5: 0 | AR5: =IF(AND(O5=1,OR(AG5=3,AG5=2,AG5=0)),SUMIFS(FlatMaint!$Z$2:$Z$10000,FlatMaint!$A$2:$A$10000,D5,FlatMaint!$Y$2:$Y$10000,AF5)*BO5,IF(AND(O5=2,OR(AG5=3,AG5=2,AG5=0)),SUMIFS(FlatMaint!$Z$2:$Z$10000,FlatMaint!$A$2:$A$10000,D5,FlatMaint!$Y$2:$Y$10000,AF5)/SUMIF(Refurb_Poss_Tbl[Refurbishment Possible],J5,Refurb_Poss_Tbl[%])*BO5,IF(AND(O5=3,OR(AG5=3,AG5=2,AG5=0)),SUMIFS(FlatMaint!$Z$2:$Z$10000,FlatMaint!$A$2:$A$10000,D5,FlatMaint!$Y$2:$Y$10000,AF5)*BO5,0))) -> 0 | AS5: =IF(AND(O5=1,OR(AG5=3,AG5=2,AG5=0)),SUMIFS(FlatRepair!$Z$2:$Z$10000,FlatRepair!$A$2:$A$10000,D5,FlatRepair!$Y$2:$Y$10000,AF5)*BO5,IF(AND(O5=2,OR(AG5=3,AG5=2,AG5=0)),SUMIFS(FlatRepair!$Z$2:$Z$10000,FlatRepair!$A$2:$A$10000,D5,FlatRepair!$Y$2:$Y$10000,AF5)/SUMIF(Refurb_Poss_Tbl[Refurbishment Possible],J5,Refurb_Poss_Tbl[%])*BO5,IF(AND(O5=3,OR(AG5=3,AG5=2,AG5=0)),SUMIFS(FlatRepair!$Z$2:$Z$10000,FlatRepair!$A$2:$A$10000,D5,FlatRepair!$Y$2:$Y$10000,AF5)*BO5,0))) -> 0 | AT5: 0 | AU5: 0 | AV5: 0 | AW5: =IF(AND(AG5=3,O5=1),AC5*BM5,IF(AND(AG5=3,O5=3),AC5*BM5,IF(AND(AG5=3,O5=2),AC5/SUMIF(Refurb_Poss_Tbl[Refurbishment Possible],J5,Refurb_Poss_Tbl[%])*BM5,IF(AND(AG5=2,O5=2),AC5*BM5,IF(AND(AG5=2,O5=1),SUMIF(Refurb_Poss_Tbl[Refurbishment Possible],J5,Refurb_Poss_Tbl[%])*AC5*BM5,IF(AND(AG5=2,O5=3),SUMIF(Refurb_Poss_Tbl[Refurbishment Possible],J5,Refurb_Poss_Tbl[%])*AC5*BM5,0)))))) -> 0 | AX5: =IF(AND(AG5=3,O5=1),AD5*BK5,IF(AND(AG5=3,O5=3),AD5*BK5,IF(AND(AG5=3,O5=2),AD5/SUMIF(Refurb_Poss_Tbl[Refurbishment Possible],J5,Refurb_Poss_Tbl[%])*BK5,IF(AND(AG5=2,O5=2),AD5*BK5,IF(AND(AG5=2,O5=1),SUMIF(Refurb_Poss_Tbl[Refurbishment Possible],J5,Refurb_Poss_Tbl[%])*AD5*BK5,IF(AND(AG5=2,O5=3),SUMIF(Refurb_Poss_Tbl[Refurbishment Possible],J5,Refurb_Poss_Tbl[%])*AD5*BK5,0)))))) -> 0 | AY5: =IF(AND(AG5=3,O5=1),(AE5/ValidationLists!$F$114)*BL5,IF(AND(AG5=3,O5=3),AE5*BL5,IF(AND(AG5=3,O5=2),AE5/SUMIF(Refurb_Poss_Tbl[Refurbishment Possible],J5,Refurb_Poss_Tbl[%])*BL5,IF(AND(AG5=2,O5=2),AE5*BL5,IF(AND(AG5=2,O5=1),SUMIF(Refurb_Poss_Tbl[Refurbishment Possible],J5,Refurb_Poss_Tbl[%])*AE5*BL5,IF(AND(AG5=2,O5=3),SUMIF(Refurb_Poss_Tbl[Refurbishment Possible],J5,Refurb_Poss_Tbl[%])*AE5*BL5,0)))))) -> 0 | AZ5: 0 | BA5: 0 | BB5: =IFERROR(IF(AF5=100,IF(P5=1,(N5/I5)*(Y5*BO5)*-1,IF(P5=2,(N5/K5)*(Y5*SUMIF(Refurb_Poss_Tbl[Refurbishment Possible],J5,Refurb_Poss_Tbl[%]))*BO5*-1,IF(P5=3,(N5/I5)*(Y5+(T5*ValidationLists!$F$114)+(U5*ValidationLists!$F$115))*BO5*-1,0))),0),0) -> 0 | BC5: =IF(AF5=0,0,IF(AND($AG5=3,O5=1),S5*BO5,IF(AND(AG5=3,O5=3),S5*BO5,IF(AND(AG5=3,O5=2),S5/SUMIF(Refurb_Poss_Tbl[Refurbishment Possible],J5,Refurb_Poss_Tbl[%])*BO5,0)))) -> 0 | BD5: =IF(AF5=0,0,IF(AND(AG5=3,O5=1),(T5/ValidationLists!$F$114)*BO5,IF(AND($AG5=3,O5=3),T5*BO5,IF(AND(AG5=3,O5=2),T5/SUMIF(Refurb_Poss_Tbl[Refurbishment Possible],J5,Refurb_Poss_Tbl[%])*BO5,0)))) -> 0 | BE5: =IF(AF5=0,0,IF(AND(AG5=3,O5=1),(U5/ValidationLists!$F$114)*BO5,IF(AND($AG5=3,O5=3),U5*BO5,IF(AND(AG5=3,O5=2),U5/SUMIF(Refurb_Poss_Tbl[Refurbishment Possible],J5,Refurb_Poss_Tbl[%])*BO5,0)))) -> 0 | BF5: =IF(AF5=0,0,IF(AND(AG5=3,O5=1),R5*BO5,IF(AND(AG5=3,O5=3),R5*BO5,IF(AND(AG5=3,O5=2),R5/SUMIF(Refurb_Poss_Tbl[Refurbishment Possible],J5,Refurb_Poss_Tbl[%])*BO5,0)))) -> 0 | BG5: =IF(AF5=0,0,IF(AND(AG5=3,O5=1),V5*BO5,IF(AND(AG5=3,O5=3),V5*BO5,IF(AND(AG5=3,O5=2),V5/SUMIF(Refurb_Poss_Tbl[Refurbishment Possible],J5,Refurb_Poss_Tbl[%])*BO5,0)))) -> 0 | BH5: =IF(AF5=0,0,IF(AND(AG5=3,O5=1),W5*BO5,IF(AND(AG5=3,O5=3),W5*BO5,IF(AND(AG5=3,O5=2),W5/SUMIF(Refurb_Poss_Tbl[Refurbishment Possible],J5,Refurb_Poss_Tbl[%])*BO5,0)))) -> 0 | BI5: =IF(AF5=0,0,IF(AND(AG5=3,O5=1),X5*BO5,IF(AND(AG5=3,O5=3),X5*BO5,IF(AND(AG5=3,O5=2),X5/SUMIF(Refurb_Poss_Tbl[Refurbishment Possible],J5,Refurb_Poss_Tbl[%])*BO5,0)))) -> 0 | BJ5: =VLOOKUP($AF5,DiscountWorking!$B$7:$C$107,2,FALSE) -> 0.7962946744 | BK5: =VLOOKUP($AF5,DiscountWorking!$J$7:$K$107,2,FALSE) -> 0.9650914274 | BL5: =VLOOKUP($AF5,DiscountWorking!$Q$7:$R$107,2,FALSE) -> 0.940297056 | BM5: =VLOOKUP($AF5,DiscountWorking!$T$7:$U$107,2,FALSE) -> 0.8812616294 | BN5: =VLOOKUP($AF5,DiscountWorking!$W$7:$X$107,2,FALSE) -> 0.8806930509 | BO5: =VLOOKUP($AF5,DiscountWorking!$Z$7:$AA$107,2,FALSE) -> 0.9120866801
A6: ChanEA05 | C6: Channel | D6: ChanEA0556 | F6: Channel | G6: 120 | H6: First intervention | I6: Expected new build/Replacement life | J6: Refurbishment type | K6: Expected refurbished Life | L6: 0 | M6: 0 | N6: 0 | O6: First Intervention code | P6: 2 | Q6: 0 | R6: 0 | S6: 0 | T6: 0 | U6: 0 | V6: 0 | W6: 0 | X6: 0 | Y6: 0 | Z6: 0 | AA6: 0 | AB6: 0 | AC6: 0 | AD6: 0 | AE6: 0 | AF6: 4 | AG6: 0 | AH6: =VLOOKUP(AF6,ValidationLists!$M$1:$N$102,2,FALSE) -> 0.8714422277 | AI6: 0 | AJ6: 0 | AK6: 0 | AL6: 0 | AM6: 0 | AN6: 0 | AO6: 0 | AP6: 0 | AQ6: 0 | AR6: =IF(AND(O6=1,OR(AG6=3,AG6=2,AG6=0)),SUMIFS(FlatMaint!$Z$2:$Z$10000,FlatMaint!$A$2:$A$10000,D6,FlatMaint!$Y$2:$Y$10000,AF6)*BO6,IF(AND(O6=2,OR(AG6=3,AG6=2,AG6=0)),SUMIFS(FlatMaint!$Z$2:$Z$10000,FlatMaint!$A$2:$A$10000,D6,FlatMaint!$Y$2:$Y$10000,AF6)/SUMIF(Refurb_Poss_Tbl[Refurbishment Possible],J6,Refurb_Poss_Tbl[%])*BO6,IF(AND(O6=3,OR(AG6=3,AG6=2,AG6=0)),SUMIFS(FlatMaint!$Z$2:$Z$10000,FlatMaint!$A$2:$A$10000,D6,FlatMaint!$Y$2:$Y$10000,AF6)*BO6,0))) -> 0 | AS6: =IF(AND(O6=1,OR(AG6=3,AG6=2,AG6=0)),SUMIFS(FlatRepair!$Z$2:$Z$10000,FlatRepair!$A$2:$A$10000,D6,FlatRepair!$Y$2:$Y$10000,AF6)*BO6,IF(AND(O6=2,OR(AG6=3,AG6=2,AG6=0)),SUMIFS(FlatRepair!$Z$2:$Z$10000,FlatRepair!$A$2:$A$10000,D6,FlatRepair!$Y$2:$Y$10000,AF6)/SUMIF(Refurb_Poss_Tbl[Refurbishment Possible],J6,Refurb_Poss_Tbl[%])*BO6,IF(AND(O6=3,OR(AG6=3,AG6=2,AG6=0)),SUMIFS(FlatRepair!$Z$2:$Z$10000,FlatRepair!$A$2:$A$10000,D6,FlatRepair!$Y$2:$Y$10000,AF6)*BO6,0))) -> 0 | AT6: 0 | AU6: 0 | AV6: 0 | AW6: =IF(AND(AG6=3,O6=1),AC6*BM6,IF(AND(AG6=3,O6=3),AC6*BM6,IF(AND(AG6=3,O6=2),AC6/SUMIF(Refurb_Poss_Tbl[Refurbishment Possible],J6,Refurb_Poss_Tbl[%])*BM6,IF(AND(AG6=2,O6=2),AC6*BM6,IF(AND(AG6=2,O6=1),SUMIF(Refurb_Poss_Tbl[Refurbishment Possible],J6,Refurb_Poss_Tbl[%])*AC6*BM6,IF(AND(AG6=2,O6=3),SUMIF(Refurb_Poss_Tbl[Refurbishment Possible],J6,Refurb_Poss_Tbl[%])*AC6*BM6,0)))))) -> 0 | AX6: =IF(AND(AG6=3,O6=1),AD6*BK6,IF(AND(AG6=3,O6=3),AD6*BK6,IF(AND(AG6=3,O6=2),AD6/SUMIF(Refurb_Poss_Tbl[Refurbishment Possible],J6,Refurb_Poss_Tbl[%])*BK6,IF(AND(AG6=2,O6=2),AD6*BK6,IF(AND(AG6=2,O6=1),SUMIF(Refurb_Poss_Tbl[Refurbishment Possible],J6,Refurb_Poss_Tbl[%])*AD6*BK6,IF(AND(AG6=2,O6=3),SUMIF(Refurb_Poss_Tbl[Refurbishment Possible],J6,Refurb_Poss_Tbl[%])*AD6*BK6,0)))))) -> 0 | AY6: =IF(AND(AG6=3,O6=1),(AE6/ValidationLists!$F$114)*BL6,IF(AND(AG6=3,O6=3),AE6*BL6,IF(AND(AG6=3,O6=2),AE6/SUMIF(Refurb_Poss_Tbl[Refurbishment Possible],J6,Refurb_Poss_Tbl[%])*BL6,IF(AND(AG6=2,O6=2),AE6*BL6,IF(AND(AG6=2,O6=1),SUMIF(Refurb_Poss_Tbl[Refurbishment Possible],J6,Refurb_Poss_Tbl[%])*AE6*BL6,IF(AND(AG6=2,O6=3),SUMIF(Refurb_Poss_Tbl[Refurbishment Possible],J6,Refurb_Poss_Tbl[%])*AE6*BL6,0)))))) -> 0 | AZ6: 0 | BA6: 0 | BB6: =IFERROR(IF(AF6=100,IF(P6=1,(N6/I6)*(Y6*BO6)*-1,IF(P6=2,(N6/K6)*(Y6*SUMIF(Refurb_Poss_Tbl[Refurbishment Possible],J6,Refurb_Poss_Tbl[%]))*BO6*-1,IF(P6=3,(N6/I6)*(Y6+(T6*ValidationLists!$F$114)+(U6*ValidationLists!$F$115))*BO6*-1,0))),0),0) -> 0 | BC6: =IF(AF6=0,0,IF(AND($AG6=3,O6=1),S6*BO6,IF(AND(AG6=3,O6=3),S6*BO6,IF(AND(AG6=3,O6=2),S6/SUMIF(Refurb_Poss_Tbl[Refurbishment Possible],J6,Refurb_Poss_Tbl[%])*BO6,0)))) -> 0 | BD6: =IF(AF6=0,0,IF(AND(AG6=3,O6=1),(T6/ValidationLists!$F$114)*BO6,IF(AND($AG6=3,O6=3),T6*BO6,IF(AND(AG6=3,O6=2),T6/SUMIF(Refurb_Poss_Tbl[Refurbishment Possible],J6,Refurb_Poss_Tbl[%])*BO6,0)))) -> 0 | BE6: =IF(AF6=0,0,IF(AND(AG6=3,O6=1),(U6/ValidationLists!$F$114)*BO6,IF(AND($AG6=3,O6=3),U6*BO6,IF(AND(AG6=3,O6=2),U6/SUMIF(Refurb_Poss_Tbl[Refurbishment Possible],J6,Refurb_Poss_Tbl[%])*BO6,0)))) -> 0 | BF6: =IF(AF6=0,0,IF(AND(AG6=3,O6=1),R6*BO6,IF(AND(AG6=3,O6=3),R6*BO6,IF(AND(AG6=3,O6=2),R6/SUMIF(Refurb_Poss_Tbl[Refurbishment Possible],J6,Refurb_Poss_Tbl[%])*BO6,0)))) -> 0 | BG6: =IF(AF6=0,0,IF(AND(AG6=3,O6=1),V6*BO6,IF(AND(AG6=3,O6=3),V6*BO6,IF(AND(AG6=3,O6=2),V6/SUMIF(Refurb_Poss_Tbl[Refurbishment Possible],J6,Refurb_Poss_Tbl[%])*BO6,0)))) -> 0 | BH6: =IF(AF6=0,0,IF(AND(AG6=3,O6=1),W6*BO6,IF(AND(AG6=3,O6=3),W6*BO6,IF(AND(AG6=3,O6=2),W6/SUMIF(Refurb_Poss_Tbl[Refurbishment Possible],J6,Refurb_Poss_Tbl[%])*BO6,0)))) -> 0 | BI6: =IF(AF6=0,0,IF(AND(AG6=3,O6=1),X6*BO6,IF(AND(AG6=3,O6=3),X6*BO6,IF(AND(AG6=3,O6=2),X6/SUMIF(Refurb_Poss_Tbl[Refurbishment Possible],J6,Refurb_Poss_Tbl[%])*BO6,0)))) -> 0 | BJ6: =VLOOKUP($AF6,DiscountWorking!$B$7:$C$107,2,FALSE) -> 0.7420656556 | BK6: =VLOOKUP($AF6,DiscountWorking!$J$7:$K$107,2,FALSE) -> 0.9563935144 | BL6: =VLOOKUP($AF6,DiscountWorking!$Q$7:$R$107,2,FALSE) -> 0.9231469678 | BM6: =VLOOKUP($AF6,DiscountWorking!$T$7:$U$107,2,FALSE) -> 0.8499515315 | BN6: =VLOOKUP($AF6,DiscountWorking!$W$7:$X$107,2,FALSE) -> 0.849229585 | BO6: =VLOOKUP($AF6,DiscountWorking!$Z$7:$AA$107,2,FALSE) -> 0.8889148914
A7: ChanEA05 | C7: Channel | D7: ChanEA0556 | F7: Channel | G7: 120 | H7: First intervention | I7: Expected new build/Replacement life | J7: Refurbishment type | K7: Expected refurbished Life | L7: 0 | M7: 0 | N7: 0 | O7: First Intervention code | P7: 2 | Q7: 0 | R7: 0 | S7: 0 | T7: 0 | U7: 0 | V7: 0 | W7: 0 | X7: 0 | Y7: 0 | Z7: 0 | AA7: 0 | AB7: 0 | AC7: 0 | AD7: 0 | AE7: 0 | AF7: 5 | AG7: 0 | AH7: =VLOOKUP(AF7,ValidationLists!$M$1:$N$102,2,FALSE) -> 0.8419731669 | AI7: 0 | AJ7: 0 | AK7: 0 | AL7: 0 | AM7: 0 | AN7: 0 | AO7: 0 | AP7: 0 | AQ7: 0 | AR7: =IF(AND(O7=1,OR(AG7=3,AG7=2,AG7=0)),SUMIFS(FlatMaint!$Z$2:$Z$10000,FlatMaint!$A$2:$A$10000,D7,FlatMaint!$Y$2:$Y$10000,AF7)*BO7,IF(AND(O7=2,OR(AG7=3,AG7=2,AG7=0)),SUMIFS(FlatMaint!$Z$2:$Z$10000,FlatMaint!$A$2:$A$10000,D7,FlatMaint!$Y$2:$Y$10000,AF7)/SUMIF(Refurb_Poss_Tbl[Refurbishment Possible],J7,Refurb_Poss_Tbl[%])*BO7,IF(AND(O7=3,OR(AG7=3,AG7=2,AG7=0)),SUMIFS(FlatMaint!$Z$2:$Z$10000,FlatMaint!$A$2:$A$10000,D7,FlatMaint!$Y$2:$Y$10000,AF7)*BO7,0))) -> 0 | AS7: =IF(AND(O7=1,OR(AG7=3,AG7=2,AG7=0)),SUMIFS(FlatRepair!$Z$2:$Z$10000,FlatRepair!$A$2:$A$10000,D7,FlatRepair!$Y$2:$Y$10000,AF7)*BO7,IF(AND(O7=2,OR(AG7=3,AG7=2,AG7=0)),SUMIFS(FlatRepair!$Z$2:$Z$10000,FlatRepair!$A$2:$A$10000,D7,FlatRepair!$Y$2:$Y$10000,AF7)/SUMIF(Refurb_Poss_Tbl[Refurbishment Possible],J7,Refurb_Poss_Tbl[%])*BO7,IF(AND(O7=3,OR(AG7=3,AG7=2,AG7=0)),SUMIFS(FlatRepair!$Z$2:$Z$10000,FlatRepair!$A$2:$A$10000,D7,FlatRepair!$Y$2:$Y$10000,AF7)*BO7,0))) -> 0 | AT7: 0 | AU7: 0 | AV7: 0 | AW7: =IF(AND(AG7=3,O7=1),AC7*BM7,IF(AND(AG7=3,O7=3),AC7*BM7,IF(AND(AG7=3,O7=2),AC7/SUMIF(Refurb_Poss_Tbl[Refurbishment Possible],J7,Refurb_Poss_Tbl[%])*BM7,IF(AND(AG7=2,O7=2),AC7*BM7,IF(AND(AG7=2,O7=1),SUMIF(Refurb_Poss_Tbl[Refurbishment Possible],J7,Refurb_Poss_Tbl[%])*AC7*BM7,IF(AND(AG7=2,O7=3),SUMIF(Refurb_Poss_Tbl[Refurbishment Possible],J7,Refurb_Poss_Tbl[%])*AC7*BM7,0)))))) -> 0 | AX7: =IF(AND(AG7=3,O7=1),AD7*BK7,IF(AND(AG7=3,O7=3),AD7*BK7,IF(AND(AG7=3,O7=2),AD7/SUMIF(Refurb_Poss_Tbl[Refurbishment Possible],J7,Refurb_Poss_Tbl[%])*BK7,IF(AND(AG7=2,O7=2),AD7*BK7,IF(AND(AG7=2,O7=1),SUMIF(Refurb_Poss_Tbl[Refurbishment Possible],J7,Refurb_Poss_Tbl[%])*AD7*BK7,IF(AND(AG7=2,O7=3),SUMIF(Refurb_Poss_Tbl[Refurbishment Possible],J7,Refurb_Poss_Tbl[%])*AD7*BK7,0)))))) -> 0 | AY7: =IF(AND(AG7=3,O7=1),(AE7/ValidationLists!$F$114)*BL7,IF(AND(AG7=3,O7=3),AE7*BL7,IF(AND(AG7=3,O7=2),AE7/SUMIF(Refurb_Poss_Tbl[Refurbishment Possible],J7,Refurb_Poss_Tbl[%])*BL7,IF(AND(AG7=2,O7=2),AE7*BL7,IF(AND(AG7=2,O7=1),SUMIF(Refurb_Poss_Tbl[Refurbishment Possible],J7,Refurb_Poss_Tbl[%])*AE7*BL7,IF(AND(AG7=2,O7=3),SUMIF(Refurb_Poss_Tbl[Refurbishment Possible],J7,Refurb_Poss_Tbl[%])*AE7*BL7,0)))))) -> 0 | AZ7: 0 | BA7: 0 | BB7: =IFERROR(IF(AF7=100,IF(P7=1,(N7/I7)*(Y7*BO7)*-1,IF(P7=2,(N7/K7)*(Y7*SUMIF(Refurb_Poss_Tbl[Refurbishment Possible],J7,Refurb_Poss_Tbl[%]))*BO7*-1,IF(P7=3,(N7/I7)*(Y7+(T7*ValidationLists!$F$114)+(U7*ValidationLists!$F$115))*BO7*-1,0))),0),0) -> 0 | BC7: =IF(AF7=0,0,IF(AND($AG7=3,O7=1),S7*BO7,IF(AND(AG7=3,O7=3),S7*BO7,IF(AND(AG7=3,O7=2),S7/SUMIF(Refurb_Poss_Tbl[Refurbishment Possible],J7,Refurb_Poss_Tbl[%])*BO7,0)))) -> 0 | BD7: =IF(AF7=0,0,IF(AND(AG7=3,O7=1),(T7/ValidationLists!$F$114)*BO7,IF(AND($AG7=3,O7=3),T7*BO7,IF(AND(AG7=3,O7=2),T7/SUMIF(Refurb_Poss_Tbl[Refurbishment Possible],J7,Refurb_Poss_Tbl[%])*BO7,0)))) -> 0 | BE7: =IF(AF7=0,0,IF(AND(AG7=3,O7=1),(U7/ValidationLists!$F$114)*BO7,IF(AND($AG7=3,O7=3),U7*BO7,IF(AND(AG7=3,O7=2),U7/SUMIF(Refurb_Poss_Tbl[Refurbishment Possible],J7,Refurb_Poss_Tbl[%])*BO7,0)))) -> 0 | BF7: =IF(AF7=0,0,IF(AND(AG7=3,O7=1),R7*BO7,IF(AND(AG7=3,O7=3),R7*BO7,IF(AND(AG7=3,O7=2),R7/SUMIF(Refurb_Poss_Tbl[Refurbishment Possible],J7,Refurb_Poss_Tbl[%])*BO7,0)))) -> 0 | BG7: =IF(AF7=0,0,IF(AND(AG7=3,O7=1),V7*BO7,IF(AND(AG7=3,O7=3),V7*BO7,IF(AND(AG7=3,O7=2),V7/SUMIF(Refurb_Poss_Tbl[Refurbishment Possible],J7,Refurb_Poss_Tbl[%])*BO7,0)))) -> 0 | BH7: =IF(AF7=0,0,IF(AND(AG7=3,O7=1),W7*BO7,IF(AND(AG7=3,O7=3),W7*BO7,IF(AND(AG7=3,O7=2),W7/SUMIF(Refurb_Poss_Tbl[Refurbishment Possible],J7,Refurb_Poss_Tbl[%])*BO7,0)))) -> 0 | BI7: =IF(AF7=0,0,IF(AND(AG7=3,O7=1),X7*BO7,IF(AND(AG7=3,O7=3),X7*BO7,IF(AND(AG7=3,O7=2),X7/SUMIF(Refurb_Poss_Tbl[Refurbishment Possible],J7,Refurb_Poss_Tbl[%])*BO7,0)))) -> 0 | BJ7: =VLOOKUP($AF7,DiscountWorking!$B$7:$C$107,2,FALSE) -> 0.7494342008 | BK7: =VLOOKUP($AF7,DiscountWorking!$J$7:$K$107,2,FALSE) -> 0.9486785295 | BL7: =VLOOKUP($AF7,DiscountWorking!$Q$7:$R$107,2,FALSE) -> 0.9069963823 | BM7: =VLOOKUP($AF7,DiscountWorking!$T$7:$U$107,2,FALSE) -> 0.8497275039 | BN7: =VLOOKUP($AF7,DiscountWorking!$W$7:$X$107,2,FALSE) -> 0.8490563651 | BO7: =VLOOKUP($AF7,DiscountWorking!$Z$7:$AA$107,2,FALSE) -> 0.8848712439
A8: ChanEA05 | C8: Channel | D8: ChanEA0556 | F8: Channel | G8: 120 | H8: First intervention | I8: Expected new build/Replacement life | J8: Refurbishment type | K8: Expected refurbished Life | L8: 0 | M8: 0 | N8: 0 | O8: First Intervention code | P8: 2 | Q8: 0 | R8: 0 | S8: 0 | T8: 0 | U8: 0 | V8: 0 | W8: 0 | X8: 0 | Y8: 0 | Z8: 0 | AA8: 0 | AB8: 0 | AC8: 0 | AD8: 0 | AE8: 0 | AF8: 6 | AG8: 0 | AH8: =VLOOKUP(AF8,ValidationLists!$M$1:$N$102,2,FALSE) -> 0.8135006443 | AI8: 0 | AJ8: 0 | AK8: 0 | AL8: 0 | AM8: 0 | AN8: 0 | AO8: 0 | AP8: 0 | AQ8: 0 | AR8: =IF(AND(O8=1,OR(AG8=3,AG8=2,AG8=0)),SUMIFS(FlatMaint!$Z$2:$Z$10000,FlatMaint!$A$2:$A$10000,D8,FlatMaint!$Y$2:$Y$10000,AF8)*BO8,IF(AND(O8=2,OR(AG8=3,AG8=2,AG8=0)),SUMIFS(FlatMaint!$Z$2:$Z$10000,FlatMaint!$A$2:$A$10000,D8,FlatMaint!$Y$2:$Y$10000,AF8)/SUMIF(Refurb_Poss_Tbl[Refurbishment Possible],J8,Refurb_Poss_Tbl[%])*BO8,IF(AND(O8=3,OR(AG8=3,AG8=2,AG8=0)),SUMIFS(FlatMaint!$Z$2:$Z$10000,FlatMaint!$A$2:$A$10000,D8,FlatMaint!$Y$2:$Y$10000,AF8)*BO8,0))) -> 0 | AS8: =IF(AND(O8=1,OR(AG8=3,AG8=2,AG8=0)),SUMIFS(FlatRepair!$Z$2:$Z$10000,FlatRepair!$A$2:$A$10000,D8,FlatRepair!$Y$2:$Y$10000,AF8)*BO8,IF(AND(O8=2,OR(AG8=3,AG8=2,AG8=0)),SUMIFS(FlatRepair!$Z$2:$Z$10000,FlatRepair!$A$2:$A$10000,D8,FlatRepair!$Y$2:$Y$10000,AF8)/SUMIF(Refurb_Poss_Tbl[Refurbishment Possible],J8,Refurb_Poss_Tbl[%])*BO8,IF(AND(O8=3,OR(AG8=3,AG8=2,AG8=0)),SUMIFS(FlatRepair!$Z$2:$Z$10000,FlatRepair!$A$2:$A$10000,D8,FlatRepair!$Y$2:$Y$10000,AF8)*BO8,0))) -> 0 | AT8: 0 | AU8: 0 | AV8: 0 | AW8: =IF(AND(AG8=3,O8=1),AC8*BM8,IF(AND(AG8=3,O8=3),AC8*BM8,IF(AND(AG8=3,O8=2),AC8/SUMIF(Refurb_Poss_Tbl[Refurbishment Possible],J8,Refurb_Poss_Tbl[%])*BM8,IF(AND(AG8=2,O8=2),AC8*BM8,IF(AND(AG8=2,O8=1),SUMIF(Refurb_Poss_Tbl[Refurbishment Possible],J8,Refurb_Poss_Tbl[%])*AC8*BM8,IF(AND(AG8=2,O8=3),SUMIF(Refurb_Poss_Tbl[Refurbishment Possible],J8,Refurb_Poss_Tbl[%])*AC8*BM8,0)))))) -> 0 | AX8: =IF(AND(AG8=3,O8=1),AD8*BK8,IF(AND(AG8=3,O8=3),AD8*BK8,IF(AND(AG8=3,O8=2),AD8/SUMIF(Refurb_Poss_Tbl[Refurbishment Possible],J8,Refurb_Poss_Tbl[%])*BK8,IF(AND(AG8=2,O8=2),AD8*BK8,IF(AND(AG8=2,O8=1),SUMIF(Refurb_Poss_Tbl[Refurbishment Possible],J8,Refurb_Poss_Tbl[%])*AD8*BK8,IF(AND(AG8=2,O8=3),SUMIF(Refurb_Poss_Tbl[Refurbishment Possible],J8,Refurb_Poss_Tbl[%])*AD8*BK8,0)))))) -> 0 | AY8: =IF(AND(AG8=3,O8=1),(AE8/ValidationLists!$F$114)*BL8,IF(AND(AG8=3,O8=3),AE8*BL8,IF(AND(AG8=3,O8=2),AE8/SUMIF(Refurb_Poss_Tbl[Refurbishment Possible],J8,Refurb_Poss_Tbl[%])*BL8,IF(AND(AG8=2,O8=2),AE8*BL8,IF(AND(AG8=2,O8=1),SUMIF(Refurb_Poss_Tbl[Refurbishment Possible],J8,Refurb_Poss_Tbl[%])*AE8*BL8,IF(AND(AG8=2,O8=3),SUMIF(Refurb_Poss_Tbl[Refurbishment Possible],J8,Refurb_Poss_Tbl[%])*AE8*BL8,0)))))) -> 0 | AZ8: 0 | BA8: 0 | BB8: =IFERROR(IF(AF8=100,IF(P8=1,(N8/I8)*(Y8*BO8)*-1,IF(P8=2,(N8/K8)*(Y8*SUMIF(Refurb_Poss_Tbl[Refurbishment Possible],J8,Refurb_Poss_Tbl[%]))*BO8*-1,IF(P8=3,(N8/I8)*(Y8+(T8*ValidationLists!$F$114)+(U8*ValidationLists!$F$115))*BO8*-1,0))),0),0) -> 0 | BC8: =IF(AF8=0,0,IF(AND($AG8=3,O8=1),S8*BO8,IF(AND(AG8=3,O8=3),S8*BO8,IF(AND(AG8=3,O8=2),S8/SUMIF(Refurb_Poss_Tbl[Refurbishment Possible],J8,Refurb_Poss_Tbl[%])*BO8,0)))) -> 0 | BD8: =IF(AF8=0,0,IF(AND(AG8=3,O8=1),(T8/ValidationLists!$F$114)*BO8,IF(AND($AG8=3,O8=3),T8*BO8,IF(AND(AG8=3,O8=2),T8/SUMIF(Refurb_Poss_Tbl[Refurbishment Possible],J8,Refurb_Poss_Tbl[%])*BO8,0)))) -> 0 | BE8: =IF(AF8=0,0,IF(AND(AG8=3,O8=1),(U8/ValidationLists!$F$114)*BO8,IF(AND($AG8=3,O8=3),U8*BO8,IF(AND(AG8=3,O8=2),U8/SUMIF(Refurb_Poss_Tbl[Refurbishment Possible],J8,Refurb_Poss_Tbl[%])*BO8,0)))) -> 0 | BF8: =IF(AF8=0,0,IF(AND(AG8=3,O8=1),R8*BO8,IF(AND(AG8=3,O8=3),R8*BO8,IF(AND(AG8=3,O8=2),R8/SUMIF(Refurb_Poss_Tbl[Refurbishment Possible],J8,Refurb_Poss_Tbl[%])*BO8,0)))) -> 0 | BG8: =IF(AF8=0,0,IF(AND(AG8=3,O8=1),V8*BO8,IF(AND(AG8=3,O8=3),V8*BO8,IF(AND(AG8=3,O8=2),V8/SUMIF(Refurb_Poss_Tbl[Refurbishment Possible],J8,Refurb_Poss_Tbl[%])*BO8,0)))) -> 0 | BH8: =IF(AF8=0,0,IF(AND(AG8=3,O8=1),W8*BO8,IF(AND(AG8=3,O8=3),W8*BO8,IF(AND(AG8=3,O8=2),W8/SUMIF(Refurb_Poss_Tbl[Refurbishment Possible],J8,Refurb_Poss_Tbl[%])*BO8,0)))) -> 0 | BI8: =IF(AF8=0,0,IF(AND(AG8=3,O8=1),X8*BO8,IF(AND(AG8=3,O8=3),X8*BO8,IF(AND(AG8=3,O8=2),X8/SUMIF(Refurb_Poss_Tbl[Refurbishment Possible],J8,Refurb_Poss_Tbl[%])*BO8,0)))) -> 0 | BJ8: =VLOOKUP($AF8,DiscountWorking!$B$7:$C$107,2,FALSE) -> 0.7022527248 | BK8: =VLOOKUP($AF8,DiscountWorking!$J$7:$K$107,2,FALSE) -> 0.9418548707 | BL8: =VLOOKUP($AF8,DiscountWorking!$Q$7:$R$107,2,FALSE) -> 0.8889704253 | BM8: =VLOOKUP($AF8,DiscountWorking!$T$7:$U$107,2,FALSE) -> 0.8228608787 | BN8: =VLOOKUP($AF8,DiscountWorking!$W$7:$X$107,2,FALSE) -> 0.8220537978 | BO8: =VLOOKUP($AF8,DiscountWorking!$Z$7:$AA$107,2,FALSE) -> 0.8648471986
A9: ChanEA05 | C9: Channel | D9: ChanEA0556 | F9: Channel | G9: 120 | H9: First intervention | I9: Expected new build/Replacement life | J9: Refurbishment type | K9: Expected refurbished Life | L9: 0 | M9: 0 | N9: 0 | O9: First Intervention code | P9: 2 | Q9: 0 | R9: 0 | S9: 0 | T9: 0 | U9: 0 | V9: 0 | W9: 0 | X9: 0 | Y9: 0 | Z9: 0 | AA9: 0 | AB9: 0 | AC9: 0 | AD9: 0 | AE9: 0 | AF9: 7 | AG9: 0 | AH9: =VLOOKUP(AF9,ValidationLists!$M$1:$N$102,2,FALSE) -> 0.7859909607 | AI9: 0 | AJ9: 0 | AK9: 0 | AL9: 0 | AM9: 0 | AN9: 0 | AO9: 0 | AP9: 0 | AQ9: 0 | AR9: =IF(AND(O9=1,OR(AG9=3,AG9=2,AG9=0)),SUMIFS(FlatMaint!$Z$2:$Z$10000,FlatMaint!$A$2:$A$10000,D9,FlatMaint!$Y$2:$Y$10000,AF9)*BO9,IF(AND(O9=2,OR(AG9=3,AG9=2,AG9=0)),SUMIFS(FlatMaint!$Z$2:$Z$10000,FlatMaint!$A$2:$A$10000,D9,FlatMaint!$Y$2:$Y$10000,AF9)/SUMIF(Refurb_Poss_Tbl[Refurbishment Possible],J9,Refurb_Poss_Tbl[%])*BO9,IF(AND(O9=3,OR(AG9=3,AG9=2,AG9=0)),SUMIFS(FlatMaint!$Z$2:$Z$10000,FlatMaint!$A$2:$A$10000,D9,FlatMaint!$Y$2:$Y$10000,AF9)*BO9,0))) -> 0 | AS9: =IF(AND(O9=1,OR(AG9=3,AG9=2,AG9=0)),SUMIFS(FlatRepair!$Z$2:$Z$10000,FlatRepair!$A$2:$A$10000,D9,FlatRepair!$Y$2:$Y$10000,AF9)*BO9,IF(AND(O9=2,OR(AG9=3,AG9=2,AG9=0)),SUMIFS(FlatRepair!$Z$2:$Z$10000,FlatRepair!$A$2:$A$10000,D9,FlatRepair!$Y$2:$Y$10000,AF9)/SUMIF(Refurb_Poss_Tbl[Refurbishment Possible],J9,Refurb_Poss_Tbl[%])*BO9,IF(AND(O9=3,OR(AG9=3,AG9=2,AG9=0)),SUMIFS(FlatRepair!$Z$2:$Z$10000,FlatRepair!$A$2:$A$10000,D9,FlatRepair!$Y$2:$Y$10000,AF9)*BO9,0))) -> 0 | AT9: 0 | AU9: 0 | AV9: 0 | AW9: =IF(AND(AG9=3,O9=1),AC9*BM9,IF(AND(AG9=3,O9=3),AC9*BM9,IF(AND(AG9=3,O9=2),AC9/SUMIF(Refurb_Poss_Tbl[Refurbishment Possible],J9,Refurb_Poss_Tbl[%])*BM9,IF(AND(AG9=2,O9=2),AC9*BM9,IF(AND(AG9=2,O9=1),SUMIF(Refurb_Poss_Tbl[Refurbishment Possible],J9,Refurb_Poss_Tbl[%])*AC9*BM9,IF(AND(AG9=2,O9=3),SUMIF(Refurb_Poss_Tbl[Refurbishment Possible],J9,Refurb_Poss_Tbl[%])*AC9*BM9,0)))))) -> 0 | AX9: =IF(AND(AG9=3,O9=1),AD9*BK9,IF(AND(AG9=3,O9=3),AD9*BK9,IF(AND(AG9=3,O9=2),AD9/SUMIF(Refurb_Poss_Tbl[Refurbishment Possible],J9,Refurb_Poss_Tbl[%])*BK9,IF(AND(AG9=2,O9=2),AD9*BK9,IF(AND(AG9=2,O9=1),SUMIF(Refurb_Poss_Tbl[Refurbishment Possible],J9,Refurb_Poss_Tbl[%])*AD9*BK9,IF(AND(AG9=2,O9=3),SUMIF(Refurb_Poss_Tbl[Refurbishment Possible],J9,Refurb_Poss_Tbl[%])*AD9*BK9,0)))))) -> 0 | AY9: =IF(AND(AG9=3,O9=1),(AE9/ValidationLists!$F$114)*BL9,IF(AND(AG9=3,O9=3),AE9*BL9,IF(AND(AG9=3,O9=2),AE9/SUMIF(Refurb_Poss_Tbl[Refurbishment Possible],J9,Refurb_Poss_Tbl[%])*BL9,IF(AND(AG9=2,O9=2),AE9*BL9,IF(AND(AG9=2,O9=1),SUMIF(Refurb_Poss_Tbl[Refurbishment Possible],J9,Refurb_Poss_Tbl[%])*AE9*BL9,IF(AND(AG9=2,O9=3),SUMIF(Refurb_Poss_Tbl[Refurbishment Possible],J9,Refurb_Poss_Tbl[%])*AE9*BL9,0)))))) -> 0 | AZ9: 0 | BA9: 0 | BB9: =IFERROR(IF(AF9=100,IF(P9=1,(N9/I9)*(Y9*BO9)*-1,IF(P9=2,(N9/K9)*(Y9*SUMIF(Refurb_Poss_Tbl[Refurbishment Possible],J9,Refurb_Poss_Tbl[%]))*BO9*-1,IF(P9=3,(N9/I9)*(Y9+(T9*ValidationLists!$F$114)+(U9*ValidationLists!$F$115))*BO9*-1,0))),0),0) -> 0 | BC9: =IF(AF9=0,0,IF(AND($AG9=3,O9=1),S9*BO9,IF(AND(AG9=3,O9=3),S9*BO9,IF(AND(AG9=3,O9=2),S9/SUMIF(Refurb_Poss_Tbl[Refurbishment Possible],J9,Refurb_Poss_Tbl[%])*BO9,0)))) -> 0 | BD9: =IF(AF9=0,0,IF(AND(AG9=3,O9=1),(T9/ValidationLists!$F$114)*BO9,IF(AND($AG9=3,O9=3),T9*BO9,IF(AND(AG9=3,O9=2),T9/SUMIF(Refurb_Poss_Tbl[Refurbishment Possible],J9,Refurb_Poss_Tbl[%])*BO9,0)))) -> 0 | BE9: =IF(AF9=0,0,IF(AND(AG9=3,O9=1),(U9/ValidationLists!$F$114)*BO9,IF(AND($AG9=3,O9=3),U9*BO9,IF(AND(AG9=3,O9=2),U9/SUMIF(Refurb_Poss_Tbl[Refurbishment Possible],J9,Refurb_Poss_Tbl[%])*BO9,0)))) -> 0 | BF9: =IF(AF9=0,0,IF(AND(AG9=3,O9=1),R9*BO9,IF(AND(AG9=3,O9=3),R9*BO9,IF(AND(AG9=3,O9=2),R9/SUMIF(Refurb_Poss_Tbl[Refurbishment Possible],J9,Refurb_Poss_Tbl[%])*BO9,0)))) -> 0 | BG9: =IF(AF9=0,0,IF(AND(AG9=3,O9=1),V9*BO9,IF(AND(AG9=3,O9=3),V9*BO9,IF(AND(AG9=3,O9=2),V9/SUMIF(Refurb_Poss_Tbl[Refurbishment Possible],J9,Refurb_Poss_Tbl[%])*BO9,0)))) -> 0 | BH9: =IF(AF9=0,0,IF(AND(AG9=3,O9=1),W9*BO9,IF(AND(AG9=3,O9=3),W9*BO9,IF(AND(AG9=3,O9=2),W9/SUMIF(Refurb_Poss_Tbl[Refurbishment Possible],J9,Refurb_Poss_Tbl[%])*BO9,0)))) -> 0 | BI9: =IF(AF9=0,0,IF(AND(AG9=3,O9=1),X9*BO9,IF(AND(AG9=3,O9=3),X9*BO9,IF(AND(AG9=3,O9=2),X9/SUMIF(Refurb_Poss_Tbl[Refurbishment Possible],J9,Refurb_Poss_Tbl[%])*BO9,0)))) -> 0 | BJ9: =VLOOKUP($AF9,DiscountWorking!$B$7:$C$107,2,FALSE) -> 0.7489197674 | BK9: =VLOOKUP($AF9,DiscountWorking!$J$7:$K$107,2,FALSE) -> 0.9349949179 | BL9: =VLOOKUP($AF9,DiscountWorking!$Q$7:$R$107,2,FALSE) -> 0.876129818 | BM9: =VLOOKUP($AF9,DiscountWorking!$T$7:$U$107,2,FALSE) -> 0.8425841221 | BN9: =VLOOKUP($AF9,DiscountWorking!$W$7:$X$107,2,FALSE) -> 0.8419573427 | BO9: =VLOOKUP($AF9,DiscountWorking!$Z$7:$AA$107,2,FALSE) -> 0.8734112187
A10: ChanEA05 | C10: Channel | D10: ChanEA0556 | F10: Channel | G10: 120 | H10: First intervention | I10: Expected new build/Replacement life | J10: Refurbishment type | K10: Expected refurbished Life | L10: 0 | M10: 0 | N10: 0 | O10: First Intervention code | P10: 2 | Q10: 0 | R10: 0 | S10: 0 | T10: 0 | U10: 0 | V10: 0 | W10: 0 | X10: 0 | Y10: 0 | Z10: 0 | AA10: 0 | AB10: 0 | AC10: 0 | AD10: 0 | AE10: 0 | AF10: 8 | AG10: 0 | AH10: =VLOOKUP(AF10,ValidationLists!$M$1:$N$102,2,FALSE) -> 0.7594115562 | AI10: 0 | AJ10: 0 | AK10: 0 | AL10: 0 | AM10: 0 | AN10: 0 | AO10: 0 | AP10: 0 | AQ10: 0 | AR10: =IF(AND(O10=1,OR(AG10=3,AG10=2,AG10=0)),SUMIFS(FlatMaint!$Z$2:$Z$10000,FlatMaint!$A$2:$A$10000,D10,FlatMaint!$Y$2:$Y$10000,AF10)*BO10,IF(AND(O10=2,OR(AG10=3,AG10=2,AG10=0)),SUMIFS(FlatMaint!$Z$2:$Z$10000,FlatMaint!$A$2:$A$10000,D10,FlatMaint!$Y$2:$Y$10000,AF10)/SUMIF(Refurb_Poss_Tbl[Refurbishment Possible],J10,Refurb_Poss_Tbl[%])*BO10,IF(AND(O10=3,OR(AG10=3,AG10=2,AG10=0)),SUMIFS(FlatMaint!$Z$2:$Z$10000,FlatMaint!$A$2:$A$10000,D10,FlatMaint!$Y$2:$Y$10000,AF10)*BO10,0))) -> 0 | AS10: =IF(AND(O10=1,OR(AG10=3,AG10=2,AG10=0)),SUMIFS(FlatRepair!$Z$2:$Z$10000,FlatRepair!$A$2:$A$10000,D10,FlatRepair!$Y$2:$Y$10000,AF10)*BO10,IF(AND(O10=2,OR(AG10=3,AG10=2,AG10=0)),SUMIFS(FlatRepair!$Z$2:$Z$10000,FlatRepair!$A$2:$A$10000,D10,FlatRepair!$Y$2:$Y$10000,AF10)/SUMIF(Refurb_Poss_Tbl[Refurbishment Possible],J10,Refurb_Poss_Tbl[%])*BO10,IF(AND(O10=3,OR(AG10=3,AG10=2,AG10=0)),SUMIFS(FlatRepair!$Z$2:$Z$10000,FlatRepair!$A$2:$A$10000,D10,FlatRepair!$Y$2:$Y$10000,AF10)*BO10,0))) -> 0 | AT10: 0 | AU10: 0 | AV10: 0 | AW10: =IF(AND(AG10=3,O10=1),AC10*BM10,IF(AND(AG10=3,O10=3),AC10*BM10,IF(AND(AG10=3,O10=2),AC10/SUMIF(Refurb_Poss_Tbl[Refurbishment Possible],J10,Refurb_Poss_Tbl[%])*BM10,IF(AND(AG10=2,O10=2),AC10*BM10,IF(AND(AG10=2,O10=1),SUMIF(Refurb_Poss_Tbl[Refurbishment Possible],J10,Refurb_Poss_Tbl[%])*AC10*BM10,IF(AND(AG10=2,O10=3),SUMIF(Refurb_Poss_Tbl[Refurbishment Possible],J10,Refurb_Poss_Tbl[%])*AC10*BM10,0)))))) -> 0 | AX10: =IF(AND(AG10=3,O10=1),AD10*BK10,IF(AND(AG10=3,O10=3),AD10*BK10,IF(AND(AG10=3,O10=2),AD10/SUMIF(Refurb_Poss_Tbl[Refurbishment Possible],J10,Refurb_Poss_Tbl[%])*BK10,IF(AND(AG10=2,O10=2),AD10*BK10,IF(AND(AG10=2,O10=1),SUMIF(Refurb_Poss_Tbl[Refurbishment Possible],J10,Refurb_Poss_Tbl[%])*AD10*BK10,IF(AND(AG10=2,O10=3),SUMIF(Refurb_Poss_Tbl[Refurbishment Possible],J10,Refurb_Poss_Tbl[%])*AD10*BK10,0)))))) -> 0 | AY10: =IF(AND(AG10=3,O10=1),(AE10/ValidationLists!$F$114)*BL10,IF(AND(AG10=3,O10=3),AE10*BL10,IF(AND(AG10=3,O10=2),AE10/SUMIF(Refurb_Poss_Tbl[Refurbishment Possible],J10,Refurb_Poss_Tbl[%])*BL10,IF(AND(AG10=2,O10=2),AE10*BL10,IF(AND(AG10=2,O10=1),SUMIF(Refurb_Poss_Tbl[Refurbishment Possible],J10,Refurb_Poss_Tbl[%])*AE10*BL10,IF(AND(AG10=2,O10=3),SUMIF(Refurb_Poss_Tbl[Refurbishment Possible],J10,Refurb_Poss_Tbl[%])*AE10*BL10,0)))))) -> 0 | AZ10: 0 | BA10: 0 | BB10: =IFERROR(IF(AF10=100,IF(P10=1,(N10/I10)*(Y10*BO10)*-1,IF(P10=2,(N10/K10)*(Y10*SUMIF(Refurb_Poss_Tbl[Refurbishment Possible],J10,Refurb_Poss_Tbl[%]))*BO10*-1,IF(P10=3,(N10/I10)*(Y10+(T10*ValidationLists!$F$114)+(U10*ValidationLists!$F$115))*BO10*-1,0))),0),0) -> 0 | BC10: =IF(AF10=0,0,IF(AND($AG10=3,O10=1),S10*BO10,IF(AND(AG10=3,O10=3),S10*BO10,IF(AND(AG10=3,O10=2),S10/SUMIF(Refurb_Poss_Tbl[Refurbishment Possible],J10,Refurb_Poss_Tbl[%])*BO10,0)))) -> 0 | BD10: =IF(AF10=0,0,IF(AND(AG10=3,O10=1),(T10/ValidationLists!$F$114)*BO10,IF(AND($AG10=3,O10=3),T10*BO10,IF(AND(AG10=3,O10=2),T10/SUMIF(Refurb_Poss_Tbl[Refurbishment Possible],J10,Refurb_Poss_Tbl[%])*BO10,0)))) -> 0 | BE10: =IF(AF10=0,0,IF(AND(AG10=3,O10=1),(U10/ValidationLists!$F$114)*BO10,IF(AND($AG10=3,O10=3),U10*BO10,IF(AND(AG10=3,O10=2),U10/SUMIF(Refurb_Poss_Tbl[Refurbishment Possible],J10,Refurb_Poss_Tbl[%])*BO10,0)))) -> 0 | BF10: =IF(AF10=0,0,IF(AND(AG10=3,O10=1),R10*BO10,IF(AND(AG10=3,O10=3),R10*BO10,IF(AND(AG10=3,O10=2),R10/SUMIF(Refurb_Poss_Tbl[Refurbishment Possible],J10,Refurb_Poss_Tbl[%])*BO10,0)))) -> 0 | BG10: =IF(AF10=0,0,IF(AND(AG10=3,O10=1),V10*BO10,IF(AND(AG10=3,O10=3),V10*BO10,IF(AND(AG10=3,O10=2),V10/SUMIF(Refurb_Poss_Tbl[Refurbishment Possible],J10,Refurb_Poss_Tbl[%])*BO10,0)))) -> 0 | BH10: =IF(AF10=0,0,IF(AND(AG10=3,O10=1),W10*BO10,IF(AND(AG10=3,O10=3),W10*BO10,IF(AND(AG10=3,O10=2),W10/SUMIF(Refurb_Poss_Tbl[Refurbishment Possible],J10,Refurb_Poss_Tbl[%])*BO10,0)))) -> 0 | BI10: =IF(AF10=0,0,IF(AND(AG10=3,O10=1),X10*BO10,IF(AND(AG10=3,O10=3),X10*BO10,IF(AND(AG10=3,O10=2),X10/SUMIF(Refurb_Poss_Tbl[Refurbishment Possible],J10,Refurb_Poss_Tbl[%])*BO10,0)))) -> 0 | BJ10: =VLOOKUP($AF10,DiscountWorking!$B$7:$C$107,2,FALSE) -> 0.7091951558 | BK10: =VLOOKUP($AF10,DiscountWorking!$J$7:$K$107,2,FALSE) -> 0.9296157434 | BL10: =VLOOKUP($AF10,DiscountWorking!$Q$7:$R$107,2,FALSE) -> 0.8649760432 | BM10: =VLOOKUP($AF10,DiscountWorking!$T$7:$U$107,2,FALSE) -> 0.820147919 | BN10: =VLOOKUP($AF10,DiscountWorking!$W$7:$X$107,2,FALSE) -> 0.8194054496 | BO10: =VLOOKUP($AF10,DiscountWorking!$Z$7:$AA$107,2,FALSE) -> 0.857174091
A11: ChanEA05 | C11: Channel | D11: ChanEA0556 | F11: Channel | G11: 120 | H11: First intervention | I11: Expected new build/Replacement life | J11: Refurbishment type | K11: Expected refurbished Life | L11: 0 | M11: 0 | N11: 0 | O11: First Intervention code | P11: 2 | Q11: 0 | R11: 0 | S11: 0 | T11: 0 | U11: 0 | V11: 0 | W11: 0 | X11: 0 | Y11: 0 | Z11: 0 | AA11: 0 | AB11: 0 | AC11: 0 | AD11: 0 | AE11: 0 | AF11: 9 | AG11: 0 | AH11: =VLOOKUP(AF11,ValidationLists!$M$1:$N$102,2,FALSE) -> 0.7337309722 | AI11: 0 | AJ11: 0 | AK11: 0 | AL11: 0 | AM11: 0 | AN11: 0 | AO11: 0 | AP11: 0 | AQ11: 0 | AR11: =IF(AND(O11=1,OR(AG11=3,AG11=2,AG11=0)),SUMIFS(FlatMaint!$Z$2:$Z$10000,FlatMaint!$A$2:$A$10000,D11,FlatMaint!$Y$2:$Y$10000,AF11)*BO11,IF(AND(O11=2,OR(AG11=3,AG11=2,AG11=0)),SUMIFS(FlatMaint!$Z$2:$Z$10000,FlatMaint!$A$2:$A$10000,D11,FlatMaint!$Y$2:$Y$10000,AF11)/SUMIF(Refurb_Poss_Tbl[Refurbishment Possible],J11,Refurb_Poss_Tbl[%])*BO11,IF(AND(O11=3,OR(AG11=3,AG11=2,AG11=0)),SUMIFS(FlatMaint!$Z$2:$Z$10000,FlatMaint!$A$2:$A$10000,D11,FlatMaint!$Y$2:$Y$10000,AF11)*BO11,0))) -> 0 | AS11: =IF(AND(O11=1,OR(AG11=3,AG11=2,AG11=0)),SUMIFS(FlatRepair!$Z$2:$Z$10000,FlatRepair!$A$2:$A$10000,D11,FlatRepair!$Y$2:$Y$10000,AF11)*BO11,IF(AND(O11=2,OR(AG11=3,AG11=2,AG11=0)),SUMIFS(FlatRepair!$Z$2:$Z$10000,FlatRepair!$A$2:$A$10000,D11,FlatRepair!$Y$2:$Y$10000,AF11)/SUMIF(Refurb_Poss_Tbl[Refurbishment Possible],J11,Refurb_Poss_Tbl[%])*BO11,IF(AND(O11=3,OR(AG11=3,AG11=2,AG11=0)),SUMIFS(FlatRepair!$Z$2:$Z$10000,FlatRepair!$A$2:$A$10000,D11,FlatRepair!$Y$2:$Y$10000,AF11)*BO11,0))) -> 0 | AT11: 0 | AU11: 0 | AV11: 0 | AW11: =IF(AND(AG11=3,O11=1),AC11*BM11,IF(AND(AG11=3,O11=3),AC11*BM11,IF(AND(AG11=3,O11=2),AC11/SUMIF(Refurb_Poss_Tbl[Refurbishment Possible],J11,Refurb_Poss_Tbl[%])*BM11,IF(AND(AG11=2,O11=2),AC11*BM11,IF(AND(AG11=2,O11=1),SUMIF(Refurb_Poss_Tbl[Refurbishment Possible],J11,Refurb_Poss_Tbl[%])*AC11*BM11,IF(AND(AG11=2,O11=3),SUMIF(Refurb_Poss_Tbl[Refurbishment Possible],J11,Refurb_Poss_Tbl[%])*AC11*BM11,0)))))) -> 0 | AX11: =IF(AND(AG11=3,O11=1),AD11*BK11,IF(AND(AG11=3,O11=3),AD11*BK11,IF(AND(AG11=3,O11=2),AD11/SUMIF(Refurb_Poss_Tbl[Refurbishment Possible],J11,Refurb_Poss_Tbl[%])*BK11,IF(AND(AG11=2,O11=2),AD11*BK11,IF(AND(AG11=2,O11=1),SUMIF(Refurb_Poss_Tbl[Refurbishment Possible],J11,Refurb_Poss_Tbl[%])*AD11*BK11,IF(AND(AG11=2,O11=3),SUMIF(Refurb_Poss_Tbl[Refurbishment Possible],J11,Refurb_Poss_Tbl[%])*AD11*BK11,0)))))) -> 0 | AY11: =IF(AND(AG11=3,O11=1),(AE11/ValidationLists!$F$114)*BL11,IF(AND(AG11=3,O11=3),AE11*BL11,IF(AND(AG11=3,O11=2),AE11/SUMIF(Refurb_Poss_Tbl[Refurbishment Possible],J11,Refurb_Poss_Tbl[%])*BL11,IF(AND(AG11=2,O11=2),AE11*BL11,IF(AND(AG11=2,O11=1),SUMIF(Refurb_Poss_Tbl[Refurbishment Possible],J11,Refurb_Poss_Tbl[%])*AE11*BL11,IF(AND(AG11=2,O11=3),SUMIF(Refurb_Poss_Tbl[Refurbishment Possible],J11,Refurb_Poss_Tbl[%])*AE11*BL11,0)))))) -> 0 | AZ11: 0 | BA11: 0 | BB11: =IFERROR(IF(AF11=100,IF(P11=1,(N11/I11)*(Y11*BO11)*-1,IF(P11=2,(N11/K11)*(Y11*SUMIF(Refurb_Poss_Tbl[Refurbishment Possible],J11,Refurb_Poss_Tbl[%]))*BO11*-1,IF(P11=3,(N11/I11)*(Y11+(T11*ValidationLists!$F$114)+(U11*ValidationLists!$F$115))*BO11*-1,0))),0),0) -> 0 | BC11: =IF(AF11=0,0,IF(AND($AG11=3,O11=1),S11*BO11,IF(AND(AG11=3,O11=3),S11*BO11,IF(AND(AG11=3,O11=2),S11/SUMIF(Refurb_Poss_Tbl[Refurbishment Possible],J11,Refurb_Poss_Tbl[%])*BO11,0)))) -> 0 | BD11: =IF(AF11=0,0,IF(AND(AG11=3,O11=1),(T11/ValidationLists!$F$114)*BO11,IF(AND($AG11=3,O11=3),T11*BO11,IF(AND(AG11=3,O11=2),T11/SUMIF(Refurb_Poss_Tbl[Refurbishment Possible],J11,Refurb_Poss_Tbl[%])*BO11,0)))) -> 0 | BE11: =IF(AF11=0,0,IF(AND(AG11=3,O11=1),(U11/ValidationLists!$F$114)*BO11,IF(AND($AG11=3,O11=3),U11*BO11,IF(AND(AG11=3,O11=2),U11/SUMIF(Refurb_Poss_Tbl[Refurbishment Possible],J11,Refurb_Poss_Tbl[%])*BO11,0)))) -> 0 | BF11: =IF(AF11=0,0,IF(AND(AG11=3,O11=1),R11*BO11,IF(AND(AG11=3,O11=3),R11*BO11,IF(AND(AG11=3,O11=2),R11/SUMIF(Refurb_Poss_Tbl[Refurbishment Possible],J11,Refurb_Poss_Tbl[%])*BO11,0)))) -> 0 | BG11: =IF(AF11=0,0,IF(AND(AG11=3,O11=1),V11*BO11,IF(AND(AG11=3,O11=3),V11*BO11,IF(AND(AG11=3,O11=2),V11/SUMIF(Refurb_Poss_Tbl[Refurbishment Possible],J11,Refurb_Poss_Tbl[%])*BO11,0)))) -> 0 | BH11: =IF(AF11=0,0,IF(AND(AG11=3,O11=1),W11*BO11,IF(AND(AG11=3,O11=3),W11*BO11,IF(AND(AG11=3,O11=2),W11/SUMIF(Refurb_Poss_Tbl[Refurbishment Possible],J11,Refurb_Poss_Tbl[%])*BO11,0)))) -> 0 | BI11: =IF(AF11=0,0,IF(AND(AG11=3,O11=1),X11*BO11,IF(AND(AG11=3,O11=3),X11*BO11,IF(AND(AG11=3,O11=2),X11/SUMIF(Refurb_Poss_Tbl[Refurbishment Possible],J11,Refurb_Poss_Tbl[%])*BO11,0)))) -> 0 | BJ11: =VLOOKUP($AF11,DiscountWorking!$B$7:$C$107,2,FALSE) -> 0.6532327641 | BK11: =VLOOKUP($AF11,DiscountWorking!$J$7:$K$107,2,FALSE) -> 0.9249878962 | BL11: =VLOOKUP($AF11,DiscountWorking!$Q$7:$R$107,2,FALSE) -> 0.8518940006 | BM11: =VLOOKUP($AF11,DiscountWorking!$T$7:$U$107,2,FALSE) -> 0.7900257158 | BN11: =VLOOKUP($AF11,DiscountWorking!$W$7:$X$107,2,FALSE) -> 0.7891103301 | BO11: =VLOOKUP($AF11,DiscountWorking!$Z$7:$AA$107,2,FALSE) -> 0.8363350441
A12: ChanEA05 | C12: Channel | D12: ChanEA0556 | F12: Channel | G12: 120 | H12: First intervention | I12: Expected new build/Replacement life | J12: Refurbishment type | K12: Expected refurbished Life | L12: 0 | M12: 0 | N12: 0 | O12: First Intervention code | P12: 2 | Q12: 0 | R12: 0 | S12: 0 | T12: 0 | U12: 0 | V12: 0 | W12: 0 | X12: 0 | Y12: 0 | Z12: 0 | AA12: 0 | AB12: 0 | AC12: 0 | AD12: 0 | AE12: 0 | AF12: 10 | AG12: 0 | AH12: =VLOOKUP(AF12,ValidationLists!$M$1:$N$102,2,FALSE) -> 0.7089188137 | AI12: 0 | AJ12: 0 | AK12: 0 | AL12: 0 | AM12: 0 | AN12: 0 | AO12: 0 | AP12: 0 | AQ12: 0 | AR12: =IF(AND(O12=1,OR(AG12=3,AG12=2,AG12=0)),SUMIFS(FlatMaint!$Z$2:$Z$10000,FlatMaint!$A$2:$A$10000,D12,FlatMaint!$Y$2:$Y$10000,AF12)*BO12,IF(AND(O12=2,OR(AG12=3,AG12=2,AG12=0)),SUMIFS(FlatMaint!$Z$2:$Z$10000,FlatMaint!$A$2:$A$10000,D12,FlatMaint!$Y$2:$Y$10000,AF12)/SUMIF(Refurb_Poss_Tbl[Refurbishment Possible],J12,Refurb_Poss_Tbl[%])*BO12,IF(AND(O12=3,OR(AG12=3,AG12=2,AG12=0)),SUMIFS(FlatMaint!$Z$2:$Z$10000,FlatMaint!$A$2:$A$10000,D12,FlatMaint!$Y$2:$Y$10000,AF12)*BO12,0))) -> 0 | AS12: =IF(AND(O12=1,OR(AG12=3,AG12=2,AG12=0)),SUMIFS(FlatRepair!$Z$2:$Z$10000,FlatRepair!$A$2:$A$10000,D12,FlatRepair!$Y$2:$Y$10000,AF12)*BO12,IF(AND(O12=2,OR(AG12=3,AG12=2,AG12=0)),SUMIFS(FlatRepair!$Z$2:$Z$10000,FlatRepair!$A$2:$A$10000,D12,FlatRepair!$Y$2:$Y$10000,AF12)/SUMIF(Refurb_Poss_Tbl[Refurbishment Possible],J12,Refurb_Poss_Tbl[%])*BO12,IF(AND(O12=3,OR(AG12=3,AG12=2,AG12=0)),SUMIFS(FlatRepair!$Z$2:$Z$10000,FlatRepair!$A$2:$A$10000,D12,FlatRepair!$Y$2:$Y$10000,AF12)*BO12,0))) -> 0 | AT12: 0 | AU12: 0 | AV12: 0 | AW12: =IF(AND(AG12=3,O12=1),AC12*BM12,IF(AND(AG12=3,O12=3),AC12*BM12,IF(AND(AG12=3,O12=2),AC12/SUMIF(Refurb_Poss_Tbl[Refurbishment Possible],J12,Refurb_Poss_Tbl[%])*BM12,IF(AND(AG12=2,O12=2),AC12*BM12,IF(AND(AG12=2,O12=1),SUMIF(Refurb_Poss_Tbl[Refurbishment Possible],J12,Refurb_Poss_Tbl[%])*AC12*BM12,IF(AND(AG12=2,O12=3),SUMIF(Refurb_Poss_Tbl[Refurbishment Possible],J12,Refurb_Poss_Tbl[%])*AC12*BM12,0)))))) -> 0 | AX12: =IF(AND(AG12=3,O12=1),AD12*BK12,IF(AND(AG12=3,O12=3),AD12*BK12,IF(AND(AG12=3,O12=2),AD12/SUMIF(Refurb_Poss_Tbl[Refurbishment Possible],J12,Refurb_Poss_Tbl[%])*BK12,IF(AND(AG12=2,O12=2),AD12*BK12,IF(AND(AG12=2,O12=1),SUMIF(Refurb_Poss_Tbl[Refurbishment Possible],J12,Refurb_Poss_Tbl[%])*AD12*BK12,IF(AND(AG12=2,O12=3),SUMIF(Refurb_Poss_Tbl[Refurbishment Possible],J12,Refurb_Poss_Tbl[%])*AD12*BK12,0)))))) -> 0 | AY12: =IF(AND(AG12=3,O12=1),(AE12/ValidationLists!$F$114)*BL12,IF(AND(AG12=3,O12=3),AE12*BL12,IF(AND(AG12=3,O12=2),AE12/SUMIF(Refurb_Poss_Tbl[Refurbishment Possible],J12,Refurb_Poss_Tbl[%])*BL12,IF(AND(AG12=2,O12=2),AE12*BL12,IF(AND(AG12=2,O12=1),SUMIF(Refurb_Poss_Tbl[Refurbishment Possible],J12,Refurb_Poss_Tbl[%])*AE12*BL12,IF(AND(AG12=2,O12=3),SUMIF(Refurb_Poss_Tbl[Refurbishment Possible],J12,Refurb_Poss_Tbl[%])*AE12*BL12,0)))))) -> 0 | AZ12: 0 | BA12: 0 | BB12: =IFERROR(IF(AF12=100,IF(P12=1,(N12/I12)*(Y12*BO12)*-1,IF(P12=2,(N12/K12)*(Y12*SUMIF(Refurb_Poss_Tbl[Refurbishment Possible],J12,Refurb_Poss_Tbl[%]))*BO12*-1,IF(P12=3,(N12/I12)*(Y12+(T12*ValidationLists!$F$114)+(U12*ValidationLists!$F$115))*BO12*-1,0))),0),0) -> 0 | BC12: =IF(AF12=0,0,IF(AND($AG12=3,O12=1),S12*BO12,IF(AND(AG12=3,O12=3),S12*BO12,IF(AND(AG12=3,O12=2),S12/SUMIF(Refurb_Poss_Tbl[Refurbishment Possible],J12,Refurb_Poss_Tbl[%])*BO12,0)))) -> 0 | BD12: =IF(AF12=0,0,IF(AND(AG12=3,O12=1),(T12/ValidationLists!$F$114)*BO12,IF(AND($AG12=3,O12=3),T12*BO12,IF(AND(AG12=3,O12=2),T12/SUMIF(Refurb_Poss_Tbl[Refurbishment Possible],J12,Refurb_Poss_Tbl[%])*BO12,0)))) -> 0 | BE12: =IF(AF12=0,0,IF(AND(AG12=3,O12=1),(U12/ValidationLists!$F$114)*BO12,IF(AND($AG12=3,O12=3),U12*BO12,IF(AND(AG12=3,O12=2),U12/SUMIF(Refurb_Poss_Tbl[Refurbishment Possible],J12,Refurb_Poss_Tbl[%])*BO12,0)))) -> 0 | BF12: =IF(AF12=0,0,IF(AND(AG12=3,O12=1),R12*BO12,IF(AND(AG12=3,O12=3),R12*BO12,IF(AND(AG12=3,O12=2),R12/SUMIF(Refurb_Poss_Tbl[Refurbishment Possible],J12,Refurb_Poss_Tbl[%])*BO12,0)))) -> 0 | BG12: =IF(AF12=0,0,IF(AND(AG12=3,O12=1),V12*BO12,IF(AND(AG12=3,O12=3),V12*BO12,IF(AND(AG12=3,O12=2),V12/SUMIF(Refurb_Poss_Tbl[Refurbishment Possible],J12,Refurb_Poss_Tbl[%])*BO12,0)))) -> 0 | BH12: =IF(AF12=0,0,IF(AND(AG12=3,O12=1),W12*BO12,IF(AND(AG12=3,O12=3),W12*BO12,IF(AND(AG12=3,O12=2),W12/SUMIF(Refurb_Poss_Tbl[Refurbishment Possible],J12,Refurb_Poss_Tbl[%])*BO12,0)))) -> 0 | BI12: =IF(AF12=0,0,IF(AND(AG12=3,O12=1),X12*BO12,IF(AND(AG12=3,O12=3),X12*BO12,IF(AND(AG12=3,O12=2),X12/SUMIF(Refurb_Poss_Tbl[Refurbishment Possible],J12,Refurb_Poss_Tbl[%])*BO12,0)))) -> 0 | BJ12: =VLOOKUP($AF12,DiscountWorking!$B$7:$C$107,2,FALSE) -> 0.5889447446 | BK12: =VLOOKUP($AF12,DiscountWorking!$J$7:$K$107,2,FALSE) -> 0.9211614098 | BL12: =VLOOKUP($AF12,DiscountWorking!$Q$7:$R$107,2,FALSE) -> 0.8435489904 | BM12: =VLOOKUP($AF12,DiscountWorking!$T$7:$U$107,2,FALSE) -> 0.7561721228 | BN12: =VLOOKUP($AF12,DiscountWorking!$W$7:$X$107,2,FALSE) -> 0.7550530772 | BO12: =VLOOKUP($AF12,DiscountWorking!$Z$7:$AA$107,2,FALSE) -> 0.8139589774
A13: ChanEA05 | C13: Channel | D13: ChanEA0556 | F13: Channel | G13: 120 | H13: First intervention | I13: Expected new build/Replacement life | J13: Refurbishment type | K13: Expected refurbished Life | L13: 0 | M13: 0 | N13: 0 | O13: First Intervention code | P13: 2 | Q13: 0 | R13: 0 | S13: 0 | T13: 0 | U13: 0 | V13: 0 | W13: 0 | X13: 0 | Y13: 0 | Z13: 0 | AA13: 0 | AB13: 0 | AC13: 0 | AD13: 0 | AE13: 0 | AF13: 11 | AG13: 0 | AH13: =VLOOKUP(AF13,ValidationLists!$M$1:$N$102,2,FALSE) -> 0.6849457137 | AI13: 0 | AJ13: 0 | AK13: 0 | AL13: 0 | AM13: 0 | AN13: 0 | AO13: 0 | AP13: 0 | AQ13: 0 | AR13: =IF(AND(O13=1,OR(AG13=3,AG13=2,AG13=0)),SUMIFS(FlatMaint!$Z$2:$Z$10000,FlatMaint!$A$2:$A$10000,D13,FlatMaint!$Y$2:$Y$10000,AF13)*BO13,IF(AND(O13=2,OR(AG13=3,AG13=2,AG13=0)),SUMIFS(FlatMaint!$Z$2:$Z$10000,FlatMaint!$A$2:$A$10000,D13,FlatMaint!$Y$2:$Y$10000,AF13)/SUMIF(Refurb_Poss_Tbl[Refurbishment Possible],J13,Refurb_Poss_Tbl[%])*BO13,IF(AND(O13=3,OR(AG13=3,AG13=2,AG13=0)),SUMIFS(FlatMaint!$Z$2:$Z$10000,FlatMaint!$A$2:$A$10000,D13,FlatMaint!$Y$2:$Y$10000,AF13)*BO13,0))) -> 0 | AS13: =IF(AND(O13=1,OR(AG13=3,AG13=2,AG13=0)),SUMIFS(FlatRepair!$Z$2:$Z$10000,FlatRepair!$A$2:$A$10000,D13,FlatRepair!$Y$2:$Y$10000,AF13)*BO13,IF(AND(O13=2,OR(AG13=3,AG13=2,AG13=0)),SUMIFS(FlatRepair!$Z$2:$Z$10000,FlatRepair!$A$2:$A$10000,D13,FlatRepair!$Y$2:$Y$10000,AF13)/SUMIF(Refurb_Poss_Tbl[Refurbishment Possible],J13,Refurb_Poss_Tbl[%])*BO13,IF(AND(O13=3,OR(AG13=3,AG13=2,AG13=0)),SUMIFS(FlatRepair!$Z$2:$Z$10000,FlatRepair!$A$2:$A$10000,D13,FlatRepair!$Y$2:$Y$10000,AF13)*BO13,0))) -> 0 | AT13: 0 | AU13: 0 | AV13: 0 | AW13: =IF(AND(AG13=3,O13=1),AC13*BM13,IF(AND(AG13=3,O13=3),AC13*BM13,IF(AND(AG13=3,O13=2),AC13/SUMIF(Refurb_Poss_Tbl[Refurbishment Possible],J13,Refurb_Poss_Tbl[%])*BM13,IF(AND(AG13=2,O13=2),AC13*BM13,IF(AND(AG13=2,O13=1),SUMIF(Refurb_Poss_Tbl[Refurbishment Possible],J13,Refurb_Poss_Tbl[%])*AC13*BM13,IF(AND(AG13=2,O13=3),SUMIF(Refurb_Poss_Tbl[Refurbishment Possible],J13,Refurb_Poss_Tbl[%])*AC13*BM13,0)))))) -> 0 | AX13: =IF(AND(AG13=3,O13=1),AD13*BK13,IF(AND(AG13=3,O13=3),AD13*BK13,IF(AND(AG13=3,O13=2),AD13/SUMIF(Refurb_Poss_Tbl[Refurbishment Possible],J13,Refurb_Poss_Tbl[%])*BK13,IF(AND(AG13=2,O13=2),AD13*BK13,IF(AND(AG13=2,O13=1),SUMIF(Refurb_Poss_Tbl[Refurbishment Possible],J13,Refurb_Poss_Tbl[%])*AD13*BK13,IF(AND(AG13=2,O13=3),SUMIF(Refurb_Poss_Tbl[Refurbishment Possible],J13,Refurb_Poss_Tbl[%])*AD13*BK13,0)))))) -> 0 | AY13: =IF(AND(AG13=3,O13=1),(AE13/ValidationLists!$F$114)*BL13,IF(AND(AG13=3,O13=3),AE13*BL13,IF(AND(AG13=3,O13=2),AE13/SUMIF(Refurb_Poss_Tbl[Refurbishment Possible],J13,Refurb_Poss_Tbl[%])*BL13,IF(AND(AG13=2,O13=2),AE13*BL13,IF(AND(AG13=2,O13=1),SUMIF(Refurb_Poss_Tbl[Refurbishment Possible],J13,Refurb_Poss_Tbl[%])*AE13*BL13,IF(AND(AG13=2,O13=3),SUMIF(Refurb_Poss_Tbl[Refurbishment Possible],J13,Refurb_Poss_Tbl[%])*AE13*BL13,0)))))) -> 0 | AZ13: 0 | BA13: 0 | BB13: =IFERROR(IF(AF13=100,IF(P13=1,(N13/I13)*(Y13*BO13)*-1,IF(P13=2,(N13/K13)*(Y13*SUMIF(Refurb_Poss_Tbl[Refurbishment Possible],J13,Refurb_Poss_Tbl[%]))*BO13*-1,IF(P13=3,(N13/I13)*(Y13+(T13*ValidationLists!$F$114)+(U13*ValidationLists!$F$115))*BO13*-1,0))),0),0) -> 0 | BC13: =IF(AF13=0,0,IF(AND($AG13=3,O13=1),S13*BO13,IF(AND(AG13=3,O13=3),S13*BO13,IF(AND(AG13=3,O13=2),S13/SUMIF(Refurb_Poss_Tbl[Refurbishment Possible],J13,Refurb_Poss_Tbl[%])*BO13,0)))) -> 0 | BD13: =IF(AF13=0,0,IF(AND(AG13=3,O13=1),(T13/ValidationLists!$F$114)*BO13,IF(AND($AG13=3,O13=3),T13*BO13,IF(AND(AG13=3,O13=2),T13/SUMIF(Refurb_Poss_Tbl[Refurbishment Possible],J13,Refurb_Poss_Tbl[%])*BO13,0)))) -> 0 | BE13: =IF(AF13=0,0,IF(AND(AG13=3,O13=1),(U13/ValidationLists!$F$114)*BO13,IF(AND($AG13=3,O13=3),U13*BO13,IF(AND(AG13=3,O13=2),U13/SUMIF(Refurb_Poss_Tbl[Refurbishment Possible],J13,Refurb_Poss_Tbl[%])*BO13,0)))) -> 0 | BF13: =IF(AF13=0,0,IF(AND(AG13=3,O13=1),R13*BO13,IF(AND(AG13=3,O13=3),R13*BO13,IF(AND(AG13=3,O13=2),R13/SUMIF(Refurb_Poss_Tbl[Refurbishment Possible],J13,Refurb_Poss_Tbl[%])*BO13,0)))) -> 0 | BG13: =IF(AF13=0,0,IF(AND(AG13=3,O13=1),V13*BO13,IF(AND(AG13=3,O13=3),V13*BO13,IF(AND(AG13=3,O13=2),V13/SUMIF(Refurb_Poss_Tbl[Refurbishment Possible],J13,Refurb_Poss_Tbl[%])*BO13,0)))) -> 0 | BH13: =IF(AF13=0,0,IF(AND(AG13=3,O13=1),W13*BO13,IF(AND(AG13=3,O13=3),W13*BO13,IF(AND(AG13=3,O13=2),W13/SUMIF(Refurb_Poss_Tbl[Refurbishment Possible],J13,Refurb_Poss_Tbl[%])*BO13,0)))) -> 0 | BI13: =IF(AF13=0,0,IF(AND(AG13=3,O13=1),X13*BO13,IF(AND(AG13=3,O13=3),X13*BO13,IF(AND(AG13=3,O13=2),X13/SUMIF(Refurb_Poss_Tbl[Refurbishment Possible],J13,Refurb_Poss_Tbl[%])*BO13,0)))) -> 0 | BJ13: =VLOOKUP($AF13,DiscountWorking!$B$7:$C$107,2,FALSE) -> 0.5182083672 | BK13: =VLOOKUP($AF13,DiscountWorking!$J$7:$K$107,2,FALSE) -> 0.9181512732 | BL13: =VLOOKUP($AF13,DiscountWorking!$Q$7:$R$107,2,FALSE) -> 0.8363347394 | BM13: =VLOOKUP($AF13,DiscountWorking!$T$7:$U$107,2,FALSE) -> 0.7195269963 | BN13: =VLOOKUP($AF13,DiscountWorking!$W$7:$X$107,2,FALSE) -> 0.7181798202 | BO13: =VLOOKUP($AF13,DiscountWorking!$Z$7:$AA$107,2,FALSE) -> 0.7902561832
A14: ChanEA05 | C14: Channel | D14: ChanEA0556 | F14: Channel | G14: 120 | H14: First intervention | I14: Expected new build/Replacement life | J14: Refurbishment type | K14: Expected refurbished Life | L14: 0 | M14: 0 | N14: 0 | O14: First Intervention code | P14: 2 | Q14: 0 | R14: 0 | S14: 0 | T14: 0 | U14: 0 | V14: 0 | W14: 0 | X14: 0 | Y14: 0 | Z14: 0 | AA14: 0 | AB14: 0 | AC14: 0 | AD14: 0 | AE14: 0 | AF14: 12 | AG14: 0 | AH14: =VLOOKUP(AF14,ValidationLists!$M$1:$N$102,2,FALSE) -> 0.6617832983 | AI14: 0 | AJ14: 0 | AK14: 0 | AL14: 0 | AM14: 0 | AN14: 0 | AO14: 0 | AP14: 0 | AQ14: 0 | AR14: =IF(AND(O14=1,OR(AG14=3,AG14=2,AG14=0)),SUMIFS(FlatMaint!$Z$2:$Z$10000,FlatMaint!$A$2:$A$10000,D14,FlatMaint!$Y$2:$Y$10000,AF14)*BO14,IF(AND(O14=2,OR(AG14=3,AG14=2,AG14=0)),SUMIFS(FlatMaint!$Z$2:$Z$10000,FlatMaint!$A$2:$A$10000,D14,FlatMaint!$Y$2:$Y$10000,AF14)/SUMIF(Refurb_Poss_Tbl[Refurbishment Possible],J14,Refurb_Poss_Tbl[%])*BO14,IF(AND(O14=3,OR(AG14=3,AG14=2,AG14=0)),SUMIFS(FlatMaint!$Z$2:$Z$10000,FlatMaint!$A$2:$A$10000,D14,FlatMaint!$Y$2:$Y$10000,AF14)*BO14,0))) -> 0 | AS14: =IF(AND(O14=1,OR(AG14=3,AG14=2,AG14=0)),SUMIFS(FlatRepair!$Z$2:$Z$10000,FlatRepair!$A$2:$A$10000,D14,FlatRepair!$Y$2:$Y$10000,AF14)*BO14,IF(AND(O14=2,OR(AG14=3,AG14=2,AG14=0)),SUMIFS(FlatRepair!$Z$2:$Z$10000,FlatRepair!$A$2:$A$10000,D14,FlatRepair!$Y$2:$Y$10000,AF14)/SUMIF(Refurb_Poss_Tbl[Refurbishment Possible],J14,Refurb_Poss_Tbl[%])*BO14,IF(AND(O14=3,OR(AG14=3,AG14=2,AG14=0)),SUMIFS(FlatRepair!$Z$2:$Z$10000,FlatRepair!$A$2:$A$10000,D14,FlatRepair!$Y$2:$Y$10000,AF14)*BO14,0))) -> 0 | AT14: 0 | AU14: 0 | AV14: 0 | AW14: =IF(AND(AG14=3,O14=1),AC14*BM14,IF(AND(AG14=3,O14=3),AC14*BM14,IF(AND(AG14=3,O14=2),AC14/SUMIF(Refurb_Poss_Tbl[Refurbishment Possible],J14,Refurb_Poss_Tbl[%])*BM14,IF(AND(AG14=2,O14=2),AC14*BM14,IF(AND(AG14=2,O14=1),SUMIF(Refurb_Poss_Tbl[Refurbishment Possible],J14,Refurb_Poss_Tbl[%])*AC14*BM14,IF(AND(AG14=2,O14=3),SUMIF(Refurb_Poss_Tbl[Refurbishment Possible],J14,Refurb_Poss_Tbl[%])*AC14*BM14,0)))))) -> 0 | AX14: =IF(AND(AG14=3,O14=1),AD14*BK14,IF(AND(AG14=3,O14=3),AD14*BK14,IF(AND(AG14=3,O14=2),AD14/SUMIF(Refurb_Poss_Tbl[Refurbishment Possible],J14,Refurb_Poss_Tbl[%])*BK14,IF(AND(AG14=2,O14=2),AD14*BK14,IF(AND(AG14=2,O14=1),SUMIF(Refurb_Poss_Tbl[Refurbishment Possible],J14,Refurb_Poss_Tbl[%])*AD14*BK14,IF(AND(AG14=2,O14=3),SUMIF(Refurb_Poss_Tbl[Refurbishment Possible],J14,Refurb_Poss_Tbl[%])*AD14*BK14,0)))))) -> 0 | AY14: =IF(AND(AG14=3,O14=1),(AE14/ValidationLists!$F$114)*BL14,IF(AND(AG14=3,O14=3),AE14*BL14,IF(AND(AG14=3,O14=2),AE14/SUMIF(Refurb_Poss_Tbl[Refurbishment Possible],J14,Refurb_Poss_Tbl[%])*BL14,IF(AND(AG14=2,O14=2),AE14*BL14,IF(AND(AG14=2,O14=1),SUMIF(Refurb_Poss_Tbl[Refurbishment Possible],J14,Refurb_Poss_Tbl[%])*AE14*BL14,IF(AND(AG14=2,O14=3),SUMIF(Refurb_Poss_Tbl[Refurbishment Possible],J14,Refurb_Poss_Tbl[%])*AE14*BL14,0)))))) -> 0 | AZ14: 0 | BA14: 0 | BB14: =IFERROR(IF(AF14=100,IF(P14=1,(N14/I14)*(Y14*BO14)*-1,IF(P14=2,(N14/K14)*(Y14*SUMIF(Refurb_Poss_Tbl[Refurbishment Possible],J14,Refurb_Poss_Tbl[%]))*BO14*-1,IF(P14=3,(N14/I14)*(Y14+(T14*ValidationLists!$F$114)+(U14*ValidationLists!$F$115))*BO14*-1,0))),0),0) -> 0 | BC14: =IF(AF14=0,0,IF(AND($AG14=3,O14=1),S14*BO14,IF(AND(AG14=3,O14=3),S14*BO14,IF(AND(AG14=3,O14=2),S14/SUMIF(Refurb_Poss_Tbl[Refurbishment Possible],J14,Refurb_Poss_Tbl[%])*BO14,0)))) -> 0 | BD14: =IF(AF14=0,0,IF(AND(AG14=3,O14=1),(T14/ValidationLists!$F$114)*BO14,IF(AND($AG14=3,O14=3),T14*BO14,IF(AND(AG14=3,O14=2),T14/SUMIF(Refurb_Poss_Tbl[Refurbishment Possible],J14,Refurb_Poss_Tbl[%])*BO14,0)))) -> 0 | BE14: =IF(AF14=0,0,IF(AND(AG14=3,O14=1),(U14/ValidationLists!$F$114)*BO14,IF(AND($AG14=3,O14=3),U14*BO14,IF(AND(AG14=3,O14=2),U14/SUMIF(Refurb_Poss_Tbl[Refurbishment Possible],J14,Refurb_Poss_Tbl[%])*BO14,0)))) -> 0 | BF14: =IF(AF14=0,0,IF(AND(AG14=3,O14=1),R14*BO14,IF(AND(AG14=3,O14=3),R14*BO14,IF(AND(AG14=3,O14=2),R14/SUMIF(Refurb_Poss_Tbl[Refurbishment Possible],J14,Refurb_Poss_Tbl[%])*BO14,0)))) -> 0 | BG14: =IF(AF14=0,0,IF(AND(AG14=3,O14=1),V14*BO14,IF(AND(AG14=3,O14=3),V14*BO14,IF(AND(AG14=3,O14=2),V14/SUMIF(Refurb_Poss_Tbl[Refurbishment Possible],J14,Refurb_Poss_Tbl[%])*BO14,0)))) -> 0 | BH14: =IF(AF14=0,0,IF(AND(AG14=3,O14=1),W14*BO14,IF(AND(AG14=3,O14=3),W14*BO14,IF(AND(AG14=3,O14=2),W14/SUMIF(Refurb_Poss_Tbl[Refurbishment Possible],J14,Refurb_Poss_Tbl[%])*BO14,0)))) -> 0 | BI14: =IF(AF14=0,0,IF(AND(AG14=3,O14=1),X14*BO14,IF(AND(AG14=3,O14=3),X14*BO14,IF(AND(AG14=3,O14=2),X14/SUMIF(Refurb_Poss_Tbl[Refurbishment Possible],J14,Refurb_Poss_Tbl[%])*BO14,0)))) -> 0 | BJ14: =VLOOKUP($AF14,DiscountWorking!$B$7:$C$107,2,FALSE) -> 0.4359940355 | BK14: =VLOOKUP($AF14,DiscountWorking!$J$7:$K$107,2,FALSE) -> 0.9159118264 | BL14: =VLOOKUP($AF14,DiscountWorking!$Q$7:$R$107,2,FALSE) -> 0.8269575172 | BM14: =VLOOKUP($AF14,DiscountWorking!$T$7:$U$107,2,FALSE) -> 0.6775694961 | BN14: =VLOOKUP($AF14,DiscountWorking!$W$7:$X$107,2,FALSE) -> 0.6759529309 | BO14: =VLOOKUP($AF14,DiscountWorking!$Z$7:$AA$107,2,FALSE) -> 0.7633643712
A15: ChanEA05 | C15: Channel | D15: ChanEA0556 | F15: Channel | G15: 120 | H15: First intervention | I15: Expected new build/Replacement life | J15: Refurbishment type | K15: Expected refurbished Life | L15: 0 | M15: 0 | N15: 0 | O15: First Intervention code | P15: 2 | Q15: 0 | R15: 0 | S15: 0 | T15: 0 | U15: 0 | V15: 0 | W15: 0 | X15: 0 | Y15: 0 | Z15: 0 | AA15: 0 | AB15: 0 | AC15: 0 | AD15: 0 | AE15: 0 | AF15: 13 | AG15: 0 | AH15: =VLOOKUP(AF15,ValidationLists!$M$1:$N$102,2,FALSE) -> 0.6394041529 | AI15: 0 | AJ15: 0 | AK15: 0 | AL15: 0 | AM15: 0 | AN15: 0 | AO15: 0 | AP15: 0 | AQ15: 0 | AR15: =IF(AND(O15=1,OR(AG15=3,AG15=2,AG15=0)),SUMIFS(FlatMaint!$Z$2:$Z$10000,FlatMaint!$A$2:$A$10000,D15,FlatMaint!$Y$2:$Y$10000,AF15)*BO15,IF(AND(O15=2,OR(AG15=3,AG15=2,AG15=0)),SUMIFS(FlatMaint!$Z$2:$Z$10000,FlatMaint!$A$2:$A$10000,D15,FlatMaint!$Y$2:$Y$10000,AF15)/SUMIF(Refurb_Poss_Tbl[Refurbishment Possible],J15,Refurb_Poss_Tbl[%])*BO15,IF(AND(O15=3,OR(AG15=3,AG15=2,AG15=0)),SUMIFS(FlatMaint!$Z$2:$Z$10000,FlatMaint!$A$2:$A$10000,D15,FlatMaint!$Y$2:$Y$10000,AF15)*BO15,0))) -> 0 | AS15: =IF(AND(O15=1,OR(AG15=3,AG15=2,AG15=0)),SUMIFS(FlatRepair!$Z$2:$Z$10000,FlatRepair!$A$2:$A$10000,D15,FlatRepair!$Y$2:$Y$10000,AF15)*BO15,IF(AND(O15=2,OR(AG15=3,AG15=2,AG15=0)),SUMIFS(FlatRepair!$Z$2:$Z$10000,FlatRepair!$A$2:$A$10000,D15,FlatRepair!$Y$2:$Y$10000,AF15)/SUMIF(Refurb_Poss_Tbl[Refurbishment Possible],J15,Refurb_Poss_Tbl[%])*BO15,IF(AND(O15=3,OR(AG15=3,AG15=2,AG15=0)),SUMIFS(FlatRepair!$Z$2:$Z$10000,FlatRepair!$A$2:$A$10000,D15,FlatRepair!$Y$2:$Y$10000,AF15)*BO15,0))) -> 0 | AT15: 0 | AU15: 0 | AV15: 0 | AW15: =IF(AND(AG15=3,O15=1),AC15*BM15,IF(AND(AG15=3,O15=3),AC15*BM15,IF(AND(AG15=3,O15=2),AC15/SUMIF(Refurb_Poss_Tbl[Refurbishment Possible],J15,Refurb_Poss_Tbl[%])*BM15,IF(AND(AG15=2,O15=2),AC15*BM15,IF(AND(AG15=2,O15=1),SUMIF(Refurb_Poss_Tbl[Refurbishment Possible],J15,Refurb_Poss_Tbl[%])*AC15*BM15,IF(AND(AG15=2,O15=3),SUMIF(Refurb_Poss_Tbl[Refurbishment Possible],J15,Refurb_Poss_Tbl[%])*AC15*BM15,0)))))) -> 0 | AX15: =IF(AND(AG15=3,O15=1),AD15*BK15,IF(AND(AG15=3,O15=3),AD15*BK15,IF(AND(AG15=3,O15=2),AD15/SUMIF(Refurb_Poss_Tbl[Refurbishment Possible],J15,Refurb_Poss_Tbl[%])*BK15,IF(AND(AG15=2,O15=2),AD15*BK15,IF(AND(AG15=2,O15=1),SUMIF(Refurb_Poss_Tbl[Refurbishment Possible],J15,Refurb_Poss_Tbl[%])*AD15*BK15,IF(AND(AG15=2,O15=3),SUMIF(Refurb_Poss_Tbl[Refurbishment Possible],J15,Refurb_Poss_Tbl[%])*AD15*BK15,0)))))) -> 0 | AY15: =IF(AND(AG15=3,O15=1),(AE15/ValidationLists!$F$114)*BL15,IF(AND(AG15=3,O15=3),AE15*BL15,IF(AND(AG15=3,O15=2),AE15/SUMIF(Refurb_Poss_Tbl[Refurbishment Possible],J15,Refurb_Poss_Tbl[%])*BL15,IF(AND(AG15=2,O15=2),AE15*BL15,IF(AND(AG15=2,O15=1),SUMIF(Refurb_Poss_Tbl[Refurbishment Possible],J15,Refurb_Poss_Tbl[%])*AE15*BL15,IF(AND(AG15=2,O15=3),SUMIF(Refurb_Poss_Tbl[Refurbishment Possible],J15,Refurb_Poss_Tbl[%])*AE15*BL15,0)))))) -> 0 | AZ15: 0 | BA15: 0 | BB15: =IFERROR(IF(AF15=100,IF(P15=1,(N15/I15)*(Y15*BO15)*-1,IF(P15=2,(N15/K15)*(Y15*SUMIF(Refurb_Poss_Tbl[Refurbishment Possible],J15,Refurb_Poss_Tbl[%]))*BO15*-1,IF(P15=3,(N15/I15)*(Y15+(T15*ValidationLists!$F$114)+(U15*ValidationLists!$F$115))*BO15*-1,0))),0),0) -> 0 | BC15: =IF(AF15=0,0,IF(AND($AG15=3,O15=1),S15*BO15,IF(AND(AG15=3,O15=3),S15*BO15,IF(AND(AG15=3,O15=2),S15/SUMIF(Refurb_Poss_Tbl[Refurbishment Possible],J15,Refurb_Poss_Tbl[%])*BO15,0)))) -> 0 | BD15: =IF(AF15=0,0,IF(AND(AG15=3,O15=1),(T15/ValidationLists!$F$114)*BO15,IF(AND($AG15=3,O15=3),T15*BO15,IF(AND(AG15=3,O15=2),T15/SUMIF(Refurb_Poss_Tbl[Refurbishment Possible],J15,Refurb_Poss_Tbl[%])*BO15,0)))) -> 0 | BE15: =IF(AF15=0,0,IF(AND(AG15=3,O15=1),(U15/ValidationLists!$F$114)*BO15,IF(AND($AG15=3,O15=3),U15*BO15,IF(AND(AG15=3,O15=2),U15/SUMIF(Refurb_Poss_Tbl[Refurbishment Possible],J15,Refurb_Poss_Tbl[%])*BO15,0)))) -> 0 | BF15: =IF(AF15=0,0,IF(AND(AG15=3,O15=1),R15*BO15,IF(AND(AG15=3,O15=3),R15*BO15,IF(AND(AG15=3,O15=2),R15/SUMIF(Refurb_Poss_Tbl[Refurbishment Possible],J15,Refurb_Poss_Tbl[%])*BO15,0)))) -> 0 | BG15: =IF(AF15=0,0,IF(AND(AG15=3,O15=1),V15*BO15,IF(AND(AG15=3,O15=3),V15*BO15,IF(AND(AG15=3,O15=2),V15/SUMIF(Refurb_Poss_Tbl[Refurbishment Possible],J15,Refurb_Poss_Tbl[%])*BO15,0)))) -> 0 | BH15: =IF(AF15=0,0,IF(AND(AG15=3,O15=1),W15*BO15,IF(AND(AG15=3,O15=3),W15*BO15,IF(AND(AG15=3,O15=2),W15/SUMIF(Refurb_Poss_Tbl[Refurbishment Possible],J15,Refurb_Poss_Tbl[%])*BO15,0)))) -> 0 | BI15: =IF(AF15=0,0,IF(AND(AG15=3,O15=1),X15*BO15,IF(AND(AG15=3,O15=3),X15*BO15,IF(AND(AG15=3,O15=2),X15/SUMIF(Refurb_Poss_Tbl[Refurbishment Possible],J15,Refurb_Poss_Tbl[%])*BO15,0)))) -> 0 | BJ15: =VLOOKUP($AF15,DiscountWorking!$B$7:$C$107,2,FALSE) -> 0.4042013157 | BK15: =VLOOKUP($AF15,DiscountWorking!$J$7:$K$107,2,FALSE) -> 0.9141975577 | BL15: =VLOOKUP($AF15,DiscountWorking!$Q$7:$R$107,2,FALSE) -> 0.8222509129 | BM15: =VLOOKUP($AF15,DiscountWorking!$T$7:$U$107,2,FALSE) -> 0.6609173188 | BN15: =VLOOKUP($AF15,DiscountWorking!$W$7:$X$107,2,FALSE) -> 0.6591994367 | BO15: =VLOOKUP($AF15,DiscountWorking!$Z$7:$AA$107,2,FALSE) -> 0.752347597
A16: ChanEA05 | C16: Channel | D16: ChanEA0556 | F16: Channel | G16: 120 | H16: First intervention | I16: Expected new build/Replacement life | J16: Refurbishment type | K16: Expected refurbished Life | L16: 0 | M16: 0 | N16: 0 | O16: First Intervention code | P16: 2 | Q16: 0 | R16: 0 | S16: 0 | T16: 0 | U16: 0 | V16: 0 | W16: 0 | X16: 0 | Y16: 0 | Z16: 0 | AA16: 0 | AB16: 0 | AC16: 0 | AD16: 0 | AE16: 0 | AF16: 14 | AG16: 0 | AH16: =VLOOKUP(AF16,ValidationLists!$M$1:$N$102,2,FALSE) -> 0.6177817903 | AI16: 0 | AJ16: 0 | AK16: 0 | AL16: 0 | AM16: 0 | AN16: 0 | AO16: 0 | AP16: 0 | AQ16: 0 | AR16: =IF(AND(O16=1,OR(AG16=3,AG16=2,AG16=0)),SUMIFS(FlatMaint!$Z$2:$Z$10000,FlatMaint!$A$2:$A$10000,D16,FlatMaint!$Y$2:$Y$10000,AF16)*BO16,IF(AND(O16=2,OR(AG16=3,AG16=2,AG16=0)),SUMIFS(FlatMaint!$Z$2:$Z$10000,FlatMaint!$A$2:$A$10000,D16,FlatMaint!$Y$2:$Y$10000,AF16)/SUMIF(Refurb_Poss_Tbl[Refurbishment Possible],J16,Refurb_Poss_Tbl[%])*BO16,IF(AND(O16=3,OR(AG16=3,AG16=2,AG16=0)),SUMIFS(FlatMaint!$Z$2:$Z$10000,FlatMaint!$A$2:$A$10000,D16,FlatMaint!$Y$2:$Y$10000,AF16)*BO16,0))) -> 0 | AS16: =IF(AND(O16=1,OR(AG16=3,AG16=2,AG16=0)),SUMIFS(FlatRepair!$Z$2:$Z$10000,FlatRepair!$A$2:$A$10000,D16,FlatRepair!$Y$2:$Y$10000,AF16)*BO16,IF(AND(O16=2,OR(AG16=3,AG16=2,AG16=0)),SUMIFS(FlatRepair!$Z$2:$Z$10000,FlatRepair!$A$2:$A$10000,D16,FlatRepair!$Y$2:$Y$10000,AF16)/SUMIF(Refurb_Poss_Tbl[Refurbishment Possible],J16,Refurb_Poss_Tbl[%])*BO16,IF(AND(O16=3,OR(AG16=3,AG16=2,AG16=0)),SUMIFS(FlatRepair!$Z$2:$Z$10000,FlatRepair!$A$2:$A$10000,D16,FlatRepair!$Y$2:$Y$10000,AF16)*BO16,0))) -> 0 | AT16: 0 | AU16: 0 | AV16: 0 | AW16: =IF(AND(AG16=3,O16=1),AC16*BM16,IF(AND(AG16=3,O16=3),AC16*BM16,IF(AND(AG16=3,O16=2),AC16/SUMIF(Refurb_Poss_Tbl[Refurbishment Possible],J16,Refurb_Poss_Tbl[%])*BM16,IF(AND(AG16=2,O16=2),AC16*BM16,IF(AND(AG16=2,O16=1),SUMIF(Refurb_Poss_Tbl[Refurbishment Possible],J16,Refurb_Poss_Tbl[%])*AC16*BM16,IF(AND(AG16=2,O16=3),SUMIF(Refurb_Poss_Tbl[Refurbishment Possible],J16,Refurb_Poss_Tbl[%])*AC16*BM16,0)))))) -> 0 | AX16: =IF(AND(AG16=3,O16=1),AD16*BK16,IF(AND(AG16=3,O16=3),AD16*BK16,IF(AND(AG16=3,O16=2),AD16/SUMIF(Refurb_Poss_Tbl[Refurbishment Possible],J16,Refurb_Poss_Tbl[%])*BK16,IF(AND(AG16=2,O16=2),AD16*BK16,IF(AND(AG16=2,O16=1),SUMIF(Refurb_Poss_Tbl[Refurbishment Possible],J16,Refurb_Poss_Tbl[%])*AD16*BK16,IF(AND(AG16=2,O16=3),SUMIF(Refurb_Poss_Tbl[Refurbishment Possible],J16,Refurb_Poss_Tbl[%])*AD16*BK16,0)))))) -> 0 | AY16: =IF(AND(AG16=3,O16=1),(AE16/ValidationLists!$F$114)*BL16,IF(AND(AG16=3,O16=3),AE16*BL16,IF(AND(AG16=3,O16=2),AE16/SUMIF(Refurb_Poss_Tbl[Refurbishment Possible],J16,Refurb_Poss_Tbl[%])*BL16,IF(AND(AG16=2,O16=2),AE16*BL16,IF(AND(AG16=2,O16=1),SUMIF(Refurb_Poss_Tbl[Refurbishment Possible],J16,Refurb_Poss_Tbl[%])*AE16*BL16,IF(AND(AG16=2,O16=3),SUMIF(Refurb_Poss_Tbl[Refurbishment Possible],J16,Refurb_Poss_Tbl[%])*AE16*BL16,0)))))) -> 0 | AZ16: 0 | BA16: 0 | BB16: =IFERROR(IF(AF16=100,IF(P16=1,(N16/I16)*(Y16*BO16)*-1,IF(P16=2,(N16/K16)*(Y16*SUMIF(Refurb_Poss_Tbl[Refurbishment Possible],J16,Refurb_Poss_Tbl[%]))*BO16*-1,IF(P16=3,(N16/I16)*(Y16+(T16*ValidationLists!$F$114)+(U16*ValidationLists!$F$115))*BO16*-1,0))),0),0) -> 0 | BC16: =IF(AF16=0,0,IF(AND($AG16=3,O16=1),S16*BO16,IF(AND(AG16=3,O16=3),S16*BO16,IF(AND(AG16=3,O16=2),S16/SUMIF(Refurb_Poss_Tbl[Refurbishment Possible],J16,Refurb_Poss_Tbl[%])*BO16,0)))) -> 0 | BD16: =IF(AF16=0,0,IF(AND(AG16=3,O16=1),(T16/ValidationLists!$F$114)*BO16,IF(AND($AG16=3,O16=3),T16*BO16,IF(AND(AG16=3,O16=2),T16/SUMIF(Refurb_Poss_Tbl[Refurbishment Possible],J16,Refurb_Poss_Tbl[%])*BO16,0)))) -> 0 | BE16: =IF(AF16=0,0,IF(AND(AG16=3,O16=1),(U16/ValidationLists!$F$114)*BO16,IF(AND($AG16=3,O16=3),U16*BO16,IF(AND(AG16=3,O16=2),U16/SUMIF(Refurb_Poss_Tbl[Refurbishment Possible],J16,Refurb_Poss_Tbl[%])*BO16,0)))) -> 0 | BF16: =IF(AF16=0,0,IF(AND(AG16=3,O16=1),R16*BO16,IF(AND(AG16=3,O16=3),R16*BO16,IF(AND(AG16=3,O16=2),R16/SUMIF(Refurb_Poss_Tbl[Refurbishment Possible],J16,Refurb_Poss_Tbl[%])*BO16,0)))) -> 0 | BG16: =IF(AF16=0,0,IF(AND(AG16=3,O16=1),V16*BO16,IF(AND(AG16=3,O16=3),V16*BO16,IF(AND(AG16=3,O16=2),V16/SUMIF(Refurb_Poss_Tbl[Refurbishment Possible],J16,Refurb_Poss_Tbl[%])*BO16,0)))) -> 0 | BH16: =IF(AF16=0,0,IF(AND(AG16=3,O16=1),W16*BO16,IF(AND(AG16=3,O16=3),W16*BO16,IF(AND(AG16=3,O16=2),W16/SUMIF(Refurb_Poss_Tbl[Refurbishment Possible],J16,Refurb_Poss_Tbl[%])*BO16,0)))) -> 0 | BI16: =IF(AF16=0,0,IF(AND(AG16=3,O16=1),X16*BO16,IF(AND(AG16=3,O16=3),X16*BO16,IF(AND(AG16=3,O16=2),X16/SUMIF(Refurb_Poss_Tbl[Refurbishment Possible],J16,Refurb_Poss_Tbl[%])*BO16,0)))) -> 0 | BJ16: =VLOOKUP($AF16,DiscountWorking!$B$7:$C$107,2,FALSE) -> 0.3513397707 | BK16: =VLOOKUP($AF16,DiscountWorking!$J$7:$K$107,2,FALSE) -> 0.9129914355 | BL16: =VLOOKUP($AF16,DiscountWorking!$Q$7:$R$107,2,FALSE) -> 0.8187216234 | BM16: =VLOOKUP($AF16,DiscountWorking!$T$7:$U$107,2,FALSE) -> 0.6340574824 | BN16: =VLOOKUP($AF16,DiscountWorking!$W$7:$X$107,2,FALSE) -> 0.6321656031 | BO16: =VLOOKUP($AF16,DiscountWorking!$Z$7:$AA$107,2,FALSE) -> 0.7354473307
A17: ChanEA05 | C17: Channel | D17: ChanEA0556 | F17: Channel | G17: 120 | H17: First intervention | I17: Expected new build/Replacement life | J17: Refurbishment type | K17: Expected refurbished Life | L17: 0 | M17: 0 | N17: 0 | O17: First Intervention code | P17: 2 | Q17: 0 | R17: 0 | S17: 0 | T17: 0 | U17: 0 | V17: 0 | W17: 0 | X17: 0 | Y17: 0 | Z17: 0 | AA17: 0 | AB17: 0 | AC17: 0 | AD17: 0 | AE17: 0 | AF17: 15 | AG17: 0 | AH17: =VLOOKUP(AF17,ValidationLists!$M$1:$N$102,2,FALSE) -> 0.5968906186 | AI17: 0 | AJ17: 0 | AK17: 0 | AL17: 0 | AM17: 0 | AN17: 0 | AO17: 0 | AP17: 0 | AQ17: 0 | AR17: =IF(AND(O17=1,OR(AG17=3,AG17=2,AG17=0)),SUMIFS(FlatMaint!$Z$2:$Z$10000,FlatMaint!$A$2:$A$10000,D17,FlatMaint!$Y$2:$Y$10000,AF17)*BO17,IF(AND(O17=2,OR(AG17=3,AG17=2,AG17=0)),SUMIFS(FlatMaint!$Z$2:$Z$10000,FlatMaint!$A$2:$A$10000,D17,FlatMaint!$Y$2:$Y$10000,AF17)/SUMIF(Refurb_Poss_Tbl[Refurbishment Possible],J17,Refurb_Poss_Tbl[%])*BO17,IF(AND(O17=3,OR(AG17=3,AG17=2,AG17=0)),SUMIFS(FlatMaint!$Z$2:$Z$10000,FlatMaint!$A$2:$A$10000,D17,FlatMaint!$Y$2:$Y$10000,AF17)*BO17,0))) -> 0 | AS17: =IF(AND(O17=1,OR(AG17=3,AG17=2,AG17=0)),SUMIFS(FlatRepair!$Z$2:$Z$10000,FlatRepair!$A$2:$A$10000,D17,FlatRepair!$Y$2:$Y$10000,AF17)*BO17,IF(AND(O17=2,OR(AG17=3,AG17=2,AG17=0)),SUMIFS(FlatRepair!$Z$2:$Z$10000,FlatRepair!$A$2:$A$10000,D17,FlatRepair!$Y$2:$Y$10000,AF17)/SUMIF(Refurb_Poss_Tbl[Refurbishment Possible],J17,Refurb_Poss_Tbl[%])*BO17,IF(AND(O17=3,OR(AG17=3,AG17=2,AG17=0)),SUMIFS(FlatRepair!$Z$2:$Z$10000,FlatRepair!$A$2:$A$10000,D17,FlatRepair!$Y$2:$Y$10000,AF17)*BO17,0))) -> 0 | AT17: 0 | AU17: 0 | AV17: 0 | AW17: =IF(AND(AG17=3,O17=1),AC17*BM17,IF(AND(AG17=3,O17=3),AC17*BM17,IF(AND(AG17=3,O17=2),AC17/SUMIF(Refurb_Poss_Tbl[Refurbishment Possible],J17,Refurb_Poss_Tbl[%])*BM17,IF(AND(AG17=2,O17=2),AC17*BM17,IF(AND(AG17=2,O17=1),SUMIF(Refurb_Poss_Tbl[Refurbishment Possible],J17,Refurb_Poss_Tbl[%])*AC17*BM17,IF(AND(AG17=2,O17=3),SUMIF(Refurb_Poss_Tbl[Refurbishment Possible],J17,Refurb_Poss_Tbl[%])*AC17*BM17,0)))))) -> 0 | AX17: =IF(AND(AG17=3,O17=1),AD17*BK17,IF(AND(AG17=3,O17=3),AD17*BK17,IF(AND(AG17=3,O17=2),AD17/SUMIF(Refurb_Poss_Tbl[Refurbishment Possible],J17,Refurb_Poss_Tbl[%])*BK17,IF(AND(AG17=2,O17=2),AD17*BK17,IF(AND(AG17=2,O17=1),SUMIF(Refurb_Poss_Tbl[Refurbishment Possible],J17,Refurb_Poss_Tbl[%])*AD17*BK17,IF(AND(AG17=2,O17=3),SUMIF(Refurb_Poss_Tbl[Refurbishment Possible],J17,Refurb_Poss_Tbl[%])*AD17*BK17,0)))))) -> 0 | AY17: =IF(AND(AG17=3,O17=1),(AE17/ValidationLists!$F$114)*BL17,IF(AND(AG17=3,O17=3),AE17*BL17,IF(AND(AG17=3,O17=2),AE17/SUMIF(Refurb_Poss_Tbl[Refurbishment Possible],J17,Refurb_Poss_Tbl[%])*BL17,IF(AND(AG17=2,O17=2),AE17*BL17,IF(AND(AG17=2,O17=1),SUMIF(Refurb_Poss_Tbl[Refurbishment Possible],J17,Refurb_Poss_Tbl[%])*AE17*BL17,IF(AND(AG17=2,O17=3),SUMIF(Refurb_Poss_Tbl[Refurbishment Possible],J17,Refurb_Poss_Tbl[%])*AE17*BL17,0)))))) -> 0 | AZ17: 0 | BA17: 0 | BB17: =IFERROR(IF(AF17=100,IF(P17=1,(N17/I17)*(Y17*BO17)*-1,IF(P17=2,(N17/K17)*(Y17*SUMIF(Refurb_Poss_Tbl[Refurbishment Possible],J17,Refurb_Poss_Tbl[%]))*BO17*-1,IF(P17=3,(N17/I17)*(Y17+(T17*ValidationLists!$F$114)+(U17*ValidationLists!$F$115))*BO17*-1,0))),0),0) -> 0 | BC17: =IF(AF17=0,0,IF(AND($AG17=3,O17=1),S17*BO17,IF(AND(AG17=3,O17=3),S17*BO17,IF(AND(AG17=3,O17=2),S17/SUMIF(Refurb_Poss_Tbl[Refurbishment Possible],J17,Refurb_Poss_Tbl[%])*BO17,0)))) -> 0 | BD17: =IF(AF17=0,0,IF(AND(AG17=3,O17=1),(T17/ValidationLists!$F$114)*BO17,IF(AND($AG17=3,O17=3),T17*BO17,IF(AND(AG17=3,O17=2),T17/SUMIF(Refurb_Poss_Tbl[Refurbishment Possible],J17,Refurb_Poss_Tbl[%])*BO17,0)))) -> 0 | BE17: =IF(AF17=0,0,IF(AND(AG17=3,O17=1),(U17/ValidationLists!$F$114)*BO17,IF(AND($AG17=3,O17=3),U17*BO17,IF(AND(AG17=3,O17=2),U17/SUMIF(Refurb_Poss_Tbl[Refurbishment Possible],J17,Refurb_Poss_Tbl[%])*BO17,0)))) -> 0 | BF17: =IF(AF17=0,0,IF(AND(AG17=3,O17=1),R17*BO17,IF(AND(AG17=3,O17=3),R17*BO17,IF(AND(AG17=3,O17=2),R17/SUMIF(Refurb_Poss_Tbl[Refurbishment Possible],J17,Refurb_Poss_Tbl[%])*BO17,0)))) -> 0 | BG17: =IF(AF17=0,0,IF(AND(AG17=3,O17=1),V17*BO17,IF(AND(AG17=3,O17=3),V17*BO17,IF(AND(AG17=3,O17=2),V17/SUMIF(Refurb_Poss_Tbl[Refurbishment Possible],J17,Refurb_Poss_Tbl[%])*BO17,0)))) -> 0 | BH17: =IF(AF17=0,0,IF(AND(AG17=3,O17=1),W17*BO17,IF(AND(AG17=3,O17=3),W17*BO17,IF(AND(AG17=3,O17=2),W17/SUMIF(Refurb_Poss_Tbl[Refurbishment Possible],J17,Refurb_Poss_Tbl[%])*BO17,0)))) -> 0 | BI17: =IF(AF17=0,0,IF(AND(AG17=3,O17=1),X17*BO17,IF(AND(AG17=3,O17=3),X17*BO17,IF(AND(AG17=3,O17=2),X17/SUMIF(Refurb_Poss_Tbl[Refurbishment Possible],J17,Refurb_Poss_Tbl[%])*BO17,0)))) -> 0 | BJ17: =VLOOKUP($AF17,DiscountWorking!$B$7:$C$107,2,FALSE) -> 0.290952938 | BK17: =VLOOKUP($AF17,DiscountWorking!$J$7:$K$107,2,FALSE) -> 0.9121499355 | BL17: =VLOOKUP($AF17,DiscountWorking!$Q$7:$R$107,2,FALSE) -> 0.8127157357 | BM17: =VLOOKUP($AF17,DiscountWorking!$T$7:$U$107,2,FALSE) -> 0.6036438898 | BN17: =VLOOKUP($AF17,DiscountWorking!$W$7:$X$107,2,FALSE) -> 0.6015514368 | BO17: =VLOOKUP($AF17,DiscountWorking!$Z$7:$AA$107,2,FALSE) -> 0.7162659069
A18: ChanEA05 | C18: Channel | D18: ChanEA0556 | F18: Channel | G18: 120 | H18: First intervention | I18: Expected new build/Replacement life | J18: Refurbishment type | K18: Expected refurbished Life | L18: 0 | M18: 0 | N18: 0 | O18: First Intervention code | P18: 2 | Q18: 0 | R18: 0 | S18: 0 | T18: 0 | U18: 0 | V18: 0 | W18: 0 | X18: 0 | Y18: 0 | Z18: 0 | AA18: 0 | AB18: 0 | AC18: 0 | AD18: 0 | AE18: 0 | AF18: 16 | AG18: 0 | AH18: =VLOOKUP(AF18,ValidationLists!$M$1:$N$102,2,FALSE) -> 0.5767059117 | AI18: 0 | AJ18: 0 | AK18: 0 | AL18: 0 | AM18: 0 | AN18: 0 | AO18: 0 | AP18: 0 | AQ18: 0 | AR18: =IF(AND(O18=1,OR(AG18=3,AG18=2,AG18=0)),SUMIFS(FlatMaint!$Z$2:$Z$10000,FlatMaint!$A$2:$A$10000,D18,FlatMaint!$Y$2:$Y$10000,AF18)*BO18,IF(AND(O18=2,OR(AG18=3,AG18=2,AG18=0)),SUMIFS(FlatMaint!$Z$2:$Z$10000,FlatMaint!$A$2:$A$10000,D18,FlatMaint!$Y$2:$Y$10000,AF18)/SUMIF(Refurb_Poss_Tbl[Refurbishment Possible],J18,Refurb_Poss_Tbl[%])*BO18,IF(AND(O18=3,OR(AG18=3,AG18=2,AG18=0)),SUMIFS(FlatMaint!$Z$2:$Z$10000,FlatMaint!$A$2:$A$10000,D18,FlatMaint!$Y$2:$Y$10000,AF18)*BO18,0))) -> 0 | AS18: =IF(AND(O18=1,OR(AG18=3,AG18=2,AG18=0)),SUMIFS(FlatRepair!$Z$2:$Z$10000,FlatRepair!$A$2:$A$10000,D18,FlatRepair!$Y$2:$Y$10000,AF18)*BO18,IF(AND(O18=2,OR(AG18=3,AG18=2,AG18=0)),SUMIFS(FlatRepair!$Z$2:$Z$10000,FlatRepair!$A$2:$A$10000,D18,FlatRepair!$Y$2:$Y$10000,AF18)/SUMIF(Refurb_Poss_Tbl[Refurbishment Possible],J18,Refurb_Poss_Tbl[%])*BO18,IF(AND(O18=3,OR(AG18=3,AG18=2,AG18=0)),SUMIFS(FlatRepair!$Z$2:$Z$10000,FlatRepair!$A$2:$A$10000,D18,FlatRepair!$Y$2:$Y$10000,AF18)*BO18,0))) -> 0 | AT18: 0 | AU18: 0 | AV18: 0 | AW18: =IF(AND(AG18=3,O18=1),AC18*BM18,IF(AND(AG18=3,O18=3),AC18*BM18,IF(AND(AG18=3,O18=2),AC18/SUMIF(Refurb_Poss_Tbl[Refurbishment Possible],J18,Refurb_Poss_Tbl[%])*BM18,IF(AND(AG18=2,O18=2),AC18*BM18,IF(AND(AG18=2,O18=1),SUMIF(Refurb_Poss_Tbl[Refurbishment Possible],J18,Refurb_Poss_Tbl[%])*AC18*BM18,IF(AND(AG18=2,O18=3),SUMIF(Refurb_Poss_Tbl[Refurbishment Possible],J18,Refurb_Poss_Tbl[%])*AC18*BM18,0)))))) -> 0 | AX18: =IF(AND(AG18=3,O18=1),AD18*BK18,IF(AND(AG18=3,O18=3),AD18*BK18,IF(AND(AG18=3,O18=2),AD18/SUMIF(Refurb_Poss_Tbl[Refurbishment Possible],J18,Refurb_Poss_Tbl[%])*BK18,IF(AND(AG18=2,O18=2),AD18*BK18,IF(AND(AG18=2,O18=1),SUMIF(Refurb_Poss_Tbl[Refurbishment Possible],J18,Refurb_Poss_Tbl[%])*AD18*BK18,IF(AND(AG18=2,O18=3),SUMIF(Refurb_Poss_Tbl[Refurbishment Possible],J18,Refurb_Poss_Tbl[%])*AD18*BK18,0)))))) -> 0 | AY18: =IF(AND(AG18=3,O18=1),(AE18/ValidationLists!$F$114)*BL18,IF(AND(AG18=3,O18=3),AE18*BL18,IF(AND(AG18=3,O18=2),AE18/SUMIF(Refurb_Poss_Tbl[Refurbishment Possible],J18,Refurb_Poss_Tbl[%])*BL18,IF(AND(AG18=2,O18=2),AE18*BL18,IF(AND(AG18=2,O18=1),SUMIF(Refurb_Poss_Tbl[Refurbishment Possible],J18,Refurb_Poss_Tbl[%])*AE18*BL18,IF(AND(AG18=2,O18=3),SUMIF(Refurb_Poss_Tbl[Refurbishment Possible],J18,Refurb_Poss_Tbl[%])*AE18*BL18,0)))))) -> 0 | AZ18: 0 | BA18: 0 | BB18: =IFERROR(IF(AF18=100,IF(P18=1,(N18/I18)*(Y18*BO18)*-1,IF(P18=2,(N18/K18)*(Y18*SUMIF(Refurb_Poss_Tbl[Refurbishment Possible],J18,Refurb_Poss_Tbl[%]))*BO18*-1,IF(P18=3,(N18/I18)*(Y18+(T18*ValidationLists!$F$114)+(U18*ValidationLists!$F$115))*BO18*-1,0))),0),0) -> 0 | BC18: =IF(AF18=0,0,IF(AND($AG18=3,O18=1),S18*BO18,IF(AND(AG18=3,O18=3),S18*BO18,IF(AND(AG18=3,O18=2),S18/SUMIF(Refurb_Poss_Tbl[Refurbishment Possible],J18,Refurb_Poss_Tbl[%])*BO18,0)))) -> 0 | BD18: =IF(AF18=0,0,IF(AND(AG18=3,O18=1),(T18/ValidationLists!$F$114)*BO18,IF(AND($AG18=3,O18=3),T18*BO18,IF(AND(AG18=3,O18=2),T18/SUMIF(Refurb_Poss_Tbl[Refurbishment Possible],J18,Refurb_Poss_Tbl[%])*BO18,0)))) -> 0 | BE18: =IF(AF18=0,0,IF(AND(AG18=3,O18=1),(U18/ValidationLists!$F$114)*BO18,IF(AND($AG18=3,O18=3),U18*BO18,IF(AND(AG18=3,O18=2),U18/SUMIF(Refurb_Poss_Tbl[Refurbishment Possible],J18,Refurb_Poss_Tbl[%])*BO18,0)))) -> 0 | BF18: =IF(AF18=0,0,IF(AND(AG18=3,O18=1),R18*BO18,IF(AND(AG18=3,O18=3),R18*BO18,IF(AND(AG18=3,O18=2),R18/SUMIF(Refurb_Poss_Tbl[Refurbishment Possible],J18,Refurb_Poss_Tbl[%])*BO18,0)))) -> 0 | BG18: =IF(AF18=0,0,IF(AND(AG18=3,O18=1),V18*BO18,IF(AND(AG18=3,O18=3),V18*BO18,IF(AND(AG18=3,O18=2),V18/SUMIF(Refurb_Poss_Tbl[Refurbishment Possible],J18,Refurb_Poss_Tbl[%])*BO18,0)))) -> 0 | BH18: =IF(AF18=0,0,IF(AND(AG18=3,O18=1),W18*BO18,IF(AND(AG18=3,O18=3),W18*BO18,IF(AND(AG18=3,O18=2),W18/SUMIF(Refurb_Poss_Tbl[Refurbishment Possible],J18,Refurb_Poss_Tbl[%])*BO18,0)))) -> 0 | BI18: =IF(AF18=0,0,IF(AND(AG18=3,O18=1),X18*BO18,IF(AND(AG18=3,O18=3),X18*BO18,IF(AND(AG18=3,O18=2),X18/SUMIF(Refurb_Poss_Tbl[Refurbishment Possible],J18,Refurb_Poss_Tbl[%])*BO18,0)))) -> 0 | BJ18: =VLOOKUP($AF18,DiscountWorking!$B$7:$C$107,2,FALSE) -> 0.290952938 | BK18: =VLOOKUP($AF18,DiscountWorking!$J$7:$K$107,2,FALSE) -> 0.9115523437 | BL18: =VLOOKUP($AF18,DiscountWorking!$Q$7:$R$107,2,FALSE) -> 0.8109730788 | BM18: =VLOOKUP($AF18,DiscountWorking!$T$7:$U$107,2,FALSE) -> 0.603343081 | BN18: =VLOOKUP($AF18,DiscountWorking!$W$7:$X$107,2,FALSE) -> 0.6012526409 | BO18: =VLOOKUP($AF18,DiscountWorking!$Z$7:$AA$107,2,FALSE) -> 0.7157326835
A19: ChanEA05 | C19: Channel | D19: ChanEA0556 | F19: Channel | G19: 120 | H19: First intervention | I19: Expected new build/Replacement life | J19: Refurbishment type | K19: Expected refurbished Life | L19: 0 | M19: 0 | N19: 0 | O19: First Intervention code | P19: 2 | Q19: 0 | R19: 0 | S19: 0 | T19: 0 | U19: 0 | V19: 0 | W19: 0 | X19: 0 | Y19: 0 | Z19: 0 | AA19: 0 | AB19: 0 | AC19: 0 | AD19: 0 | AE19: 0 | AF19: 17 | AG19: 0 | AH19: =VLOOKUP(AF19,ValidationLists!$M$1:$N$102,2,FALSE) -> 0.5572037794 | AI19: 0 | AJ19: 0 | AK19: 0 | AL19: 0 | AM19: 0 | AN19: 0 | AO19: 0 | AP19: 0 | AQ19: 0 | AR19: =IF(AND(O19=1,OR(AG19=3,AG19=2,AG19=0)),SUMIFS(FlatMaint!$Z$2:$Z$10000,FlatMaint!$A$2:$A$10000,D19,FlatMaint!$Y$2:$Y$10000,AF19)*BO19,IF(AND(O19=2,OR(AG19=3,AG19=2,AG19=0)),SUMIFS(FlatMaint!$Z$2:$Z$10000,FlatMaint!$A$2:$A$10000,D19,FlatMaint!$Y$2:$Y$10000,AF19)/SUMIF(Refurb_Poss_Tbl[Refurbishment Possible],J19,Refurb_Poss_Tbl[%])*BO19,IF(AND(O19=3,OR(AG19=3,AG19=2,AG19=0)),SUMIFS(FlatMaint!$Z$2:$Z$10000,FlatMaint!$A$2:$A$10000,D19,FlatMaint!$Y$2:$Y$10000,AF19)*BO19,0))) -> 0 | AS19: =IF(AND(O19=1,OR(AG19=3,AG19=2,AG19=0)),SUMIFS(FlatRepair!$Z$2:$Z$10000,FlatRepair!$A$2:$A$10000,D19,FlatRepair!$Y$2:$Y$10000,AF19)*BO19,IF(AND(O19=2,OR(AG19=3,AG19=2,AG19=0)),SUMIFS(FlatRepair!$Z$2:$Z$10000,FlatRepair!$A$2:$A$10000,D19,FlatRepair!$Y$2:$Y$10000,AF19)/SUMIF(Refurb_Poss_Tbl[Refurbishment Possible],J19,Refurb_Poss_Tbl[%])*BO19,IF(AND(O19=3,OR(AG19=3,AG19=2,AG19=0)),SUMIFS(FlatRepair!$Z$2:$Z$10000,FlatRepair!$A$2:$A$10000,D19,FlatRepair!$Y$2:$Y$10000,AF19)*BO19,0))) -> 0 | AT19: 0 | AU19: 0 | AV19: 0 | AW19: =IF(AND(AG19=3,O19=1),AC19*BM19,IF(AND(AG19=3,O19=3),AC19*BM19,IF(AND(AG19=3,O19=2),AC19/SUMIF(Refurb_Poss_Tbl[Refurbishment Possible],J19,Refurb_Poss_Tbl[%])*BM19,IF(AND(AG19=2,O19=2),AC19*BM19,IF(AND(AG19=2,O19=1),SUMIF(Refurb_Poss_Tbl[Refurbishment Possible],J19,Refurb_Poss_Tbl[%])*AC19*BM19,IF(AND(AG19=2,O19=3),SUMIF(Refurb_Poss_Tbl[Refurbishment Possible],J19,Refurb_Poss_Tbl[%])*AC19*BM19,0)))))) -> 0 | AX19: =IF(AND(AG19=3,O19=1),AD19*BK19,IF(AND(AG19=3,O19=3),AD19*BK19,IF(AND(AG19=3,O19=2),AD19/SUMIF(Refurb_Poss_Tbl[Refurbishment Possible],J19,Refurb_Poss_Tbl[%])*BK19,IF(AND(AG19=2,O19=2),AD19*BK19,IF(AND(AG19=2,O19=1),SUMIF(Refurb_Poss_Tbl[Refurbishment Possible],J19,Refurb_Poss_Tbl[%])*AD19*BK19,IF(AND(AG19=2,O19=3),SUMIF(Refurb_Poss_Tbl[Refurbishment Possible],J19,Refurb_Poss_Tbl[%])*AD19*BK19,0)))))) -> 0 | AY19: =IF(AND(AG19=3,O19=1),(AE19/ValidationLists!$F$114)*BL19,IF(AND(AG19=3,O19=3),AE19*BL19,IF(AND(AG19=3,O19=2),AE19/SUMIF(Refurb_Poss_Tbl[Refurbishment Possible],J19,Refurb_Poss_Tbl[%])*BL19,IF(AND(AG19=2,O19=2),AE19*BL19,IF(AND(AG19=2,O19=1),SUMIF(Refurb_Poss_Tbl[Refurbishment Possible],J19,Refurb_Poss_Tbl[%])*AE19*BL19,IF(AND(AG19=2,O19=3),SUMIF(Refurb_Poss_Tbl[Refurbishment Possible],J19,Refurb_Poss_Tbl[%])*AE19*BL19,0)))))) -> 0 | AZ19: 0 | BA19: 0 | BB19: =IFERROR(IF(AF19=100,IF(P19=1,(N19/I19)*(Y19*BO19)*-1,IF(P19=2,(N19/K19)*(Y19*SUMIF(Refurb_Poss_Tbl[Refurbishment Possible],J19,Refurb_Poss_Tbl[%]))*BO19*-1,IF(P19=3,(N19/I19)*(Y19+(T19*ValidationLists!$F$114)+(U19*ValidationLists!$F$115))*BO19*-1,0))),0),0) -> 0 | BC19: =IF(AF19=0,0,IF(AND($AG19=3,O19=1),S19*BO19,IF(AND(AG19=3,O19=3),S19*BO19,IF(AND(AG19=3,O19=2),S19/SUMIF(Refurb_Poss_Tbl[Refurbishment Possible],J19,Refurb_Poss_Tbl[%])*BO19,0)))) -> 0 | BD19: =IF(AF19=0,0,IF(AND(AG19=3,O19=1),(T19/ValidationLists!$F$114)*BO19,IF(AND($AG19=3,O19=3),T19*BO19,IF(AND(AG19=3,O19=2),T19/SUMIF(Refurb_Poss_Tbl[Refurbishment Possible],J19,Refurb_Poss_Tbl[%])*BO19,0)))) -> 0 | BE19: =IF(AF19=0,0,IF(AND(AG19=3,O19=1),(U19/ValidationLists!$F$114)*BO19,IF(AND($AG19=3,O19=3),U19*BO19,IF(AND(AG19=3,O19=2),U19/SUMIF(Refurb_Poss_Tbl[Refurbishment Possible],J19,Refurb_Poss_Tbl[%])*BO19,0)))) -> 0 | BF19: =IF(AF19=0,0,IF(AND(AG19=3,O19=1),R19*BO19,IF(AND(AG19=3,O19=3),R19*BO19,IF(AND(AG19=3,O19=2),R19/SUMIF(Refurb_Poss_Tbl[Refurbishment Possible],J19,Refurb_Poss_Tbl[%])*BO19,0)))) -> 0 | BG19: =IF(AF19=0,0,IF(AND(AG19=3,O19=1),V19*BO19,IF(AND(AG19=3,O19=3),V19*BO19,IF(AND(AG19=3,O19=2),V19/SUMIF(Refurb_Poss_Tbl[Refurbishment Possible],J19,Refurb_Poss_Tbl[%])*BO19,0)))) -> 0 | BH19: =IF(AF19=0,0,IF(AND(AG19=3,O19=1),W19*BO19,IF(AND(AG19=3,O19=3),W19*BO19,IF(AND(AG19=3,O19=2),W19/SUMIF(Refurb_Poss_Tbl[Refurbishment Possible],J19,Refurb_Poss_Tbl[%])*BO19,0)))) -> 0 | BI19: =IF(AF19=0,0,IF(AND(AG19=3,O19=1),X19*BO19,IF(AND(AG19=3,O19=3),X19*BO19,IF(AND(AG19=3,O19=2),X19/SUMIF(Refurb_Poss_Tbl[Refurbishment Possible],J19,Refurb_Poss_Tbl[%])*BO19,0)))) -> 0 | BJ19: =VLOOKUP($AF19,DiscountWorking!$B$7:$C$107,2,FALSE) -> 0.290952938 | BK19: =VLOOKUP($AF19,DiscountWorking!$J$7:$K$107,2,FALSE) -> 0.9111111305 | BL19: =VLOOKUP($AF19,DiscountWorking!$Q$7:$R$107,2,FALSE) -> 0.8098276988 | BM19: =VLOOKUP($AF19,DiscountWorking!$T$7:$U$107,2,FALSE) -> 0.6031209881 | BN19: =VLOOKUP($AF19,DiscountWorking!$W$7:$X$107,2,FALSE) -> 0.6010320342 | BO19: =VLOOKUP($AF19,DiscountWorking!$Z$7:$AA$107,2,FALSE) -> 0.7153531203
A20: ChanEA05 | C20: Channel | D20: ChanEA0556 | F20: Channel | G20: 120 | H20: First intervention | I20: Expected new build/Replacement life | J20: Refurbishment type | K20: Expected refurbished Life | L20: 0 | M20: 0 | N20: 0 | O20: First Intervention code | P20: 2 | Q20: 0 | R20: 0 | S20: 0 | T20: 0 | U20: 0 | V20: 0 | W20: 0 | X20: 0 | Y20: 0 | Z20: 0 | AA20: 0 | AB20: 0 | AC20: 0 | AD20: 0 | AE20: 0 | AF20: 18 | AG20: 0 | AH20: =VLOOKUP(AF20,ValidationLists!$M$1:$N$102,2,FALSE) -> 0.5383611396 | AI20: 0 | AJ20: 0 | AK20: 0 | AL20: 0 | AM20: 0 | AN20: 0 | AO20: 0 | AP20: 0 | AQ20: 0 | AR20: =IF(AND(O20=1,OR(AG20=3,AG20=2,AG20=0)),SUMIFS(FlatMaint!$Z$2:$Z$10000,FlatMaint!$A$2:$A$10000,D20,FlatMaint!$Y$2:$Y$10000,AF20)*BO20,IF(AND(O20=2,OR(AG20=3,AG20=2,AG20=0)),SUMIFS(FlatMaint!$Z$2:$Z$10000,FlatMaint!$A$2:$A$10000,D20,FlatMaint!$Y$2:$Y$10000,AF20)/SUMIF(Refurb_Poss_Tbl[Refurbishment Possible],J20,Refurb_Poss_Tbl[%])*BO20,IF(AND(O20=3,OR(AG20=3,AG20=2,AG20=0)),SUMIFS(FlatMaint!$Z$2:$Z$10000,FlatMaint!$A$2:$A$10000,D20,FlatMaint!$Y$2:$Y$10000,AF20)*BO20,0))) -> 0 | AS20: =IF(AND(O20=1,OR(AG20=3,AG20=2,AG20=0)),SUMIFS(FlatRepair!$Z$2:$Z$10000,FlatRepair!$A$2:$A$10000,D20,FlatRepair!$Y$2:$Y$10000,AF20)*BO20,IF(AND(O20=2,OR(AG20=3,AG20=2,AG20=0)),SUMIFS(FlatRepair!$Z$2:$Z$10000,FlatRepair!$A$2:$A$10000,D20,FlatRepair!$Y$2:$Y$10000,AF20)/SUMIF(Refurb_Poss_Tbl[Refurbishment Possible],J20,Refurb_Poss_Tbl[%])*BO20,IF(AND(O20=3,OR(AG20=3,AG20=2,AG20=0)),SUMIFS(FlatRepair!$Z$2:$Z$10000,FlatRepair!$A$2:$A$10000,D20,FlatRepair!$Y$2:$Y$10000,AF20)*BO20,0))) -> 0 | AT20: 0 | AU20: 0 | AV20: 0 | AW20: =IF(AND(AG20=3,O20=1),AC20*BM20,IF(AND(AG20=3,O20=3),AC20*BM20,IF(AND(AG20=3,O20=2),AC20/SUMIF(Refurb_Poss_Tbl[Refurbishment Possible],J20,Refurb_Poss_Tbl[%])*BM20,IF(AND(AG20=2,O20=2),AC20*BM20,IF(AND(AG20=2,O20=1),SUMIF(Refurb_Poss_Tbl[Refurbishment Possible],J20,Refurb_Poss_Tbl[%])*AC20*BM20,IF(AND(AG20=2,O20=3),SUMIF(Refurb_Poss_Tbl[Refurbishment Possible],J20,Refurb_Poss_Tbl[%])*AC20*BM20,0)))))) -> 0 | AX20: =IF(AND(AG20=3,O20=1),AD20*BK20,IF(AND(AG20=3,O20=3),AD20*BK20,IF(AND(AG20=3,O20=2),AD20/SUMIF(Refurb_Poss_Tbl[Refurbishment Possible],J20,Refurb_Poss_Tbl[%])*BK20,IF(AND(AG20=2,O20=2),AD20*BK20,IF(AND(AG20=2,O20=1),SUMIF(Refurb_Poss_Tbl[Refurbishment Possible],J20,Refurb_Poss_Tbl[%])*AD20*BK20,IF(AND(AG20=2,O20=3),SUMIF(Refurb_Poss_Tbl[Refurbishment Possible],J20,Refurb_Poss_Tbl[%])*AD20*BK20,0)))))) -> 0 | AY20: =IF(AND(AG20=3,O20=1),(AE20/ValidationLists!$F$114)*BL20,IF(AND(AG20=3,O20=3),AE20*BL20,IF(AND(AG20=3,O20=2),AE20/SUMIF(Refurb_Poss_Tbl[Refurbishment Possible],J20,Refurb_Poss_Tbl[%])*BL20,IF(AND(AG20=2,O20=2),AE20*BL20,IF(AND(AG20=2,O20=1),SUMIF(Refurb_Poss_Tbl[Refurbishment Possible],J20,Refurb_Poss_Tbl[%])*AE20*BL20,IF(AND(AG20=2,O20=3),SUMIF(Refurb_Poss_Tbl[Refurbishment Possible],J20,Refurb_Poss_Tbl[%])*AE20*BL20,0)))))) -> 0 | AZ20: 0 | BA20: 0 | BB20: =IFERROR(IF(AF20=100,IF(P20=1,(N20/I20)*(Y20*BO20)*-1,IF(P20=2,(N20/K20)*(Y20*SUMIF(Refurb_Poss_Tbl[Refurbishment Possible],J20,Refurb_Poss_Tbl[%]))*BO20*-1,IF(P20=3,(N20/I20)*(Y20+(T20*ValidationLists!$F$114)+(U20*ValidationLists!$F$115))*BO20*-1,0))),0),0) -> 0 | BC20: =IF(AF20=0,0,IF(AND($AG20=3,O20=1),S20*BO20,IF(AND(AG20=3,O20=3),S20*BO20,IF(AND(AG20=3,O20=2),S20/SUMIF(Refurb_Poss_Tbl[Refurbishment Possible],J20,Refurb_Poss_Tbl[%])*BO20,0)))) -> 0 | BD20: =IF(AF20=0,0,IF(AND(AG20=3,O20=1),(T20/ValidationLists!$F$114)*BO20,IF(AND($AG20=3,O20=3),T20*BO20,IF(AND(AG20=3,O20=2),T20/SUMIF(Refurb_Poss_Tbl[Refurbishment Possible],J20,Refurb_Poss_Tbl[%])*BO20,0)))) -> 0 | BE20: =IF(AF20=0,0,IF(AND(AG20=3,O20=1),(U20/ValidationLists!$F$114)*BO20,IF(AND($AG20=3,O20=3),U20*BO20,IF(AND(AG20=3,O20=2),U20/SUMIF(Refurb_Poss_Tbl[Refurbishment Possible],J20,Refurb_Poss_Tbl[%])*BO20,0)))) -> 0 | BF20: =IF(AF20=0,0,IF(AND(AG20=3,O20=1),R20*BO20,IF(AND(AG20=3,O20=3),R20*BO20,IF(AND(AG20=3,O20=2),R20/SUMIF(Refurb_Poss_Tbl[Refurbishment Possible],J20,Refurb_Poss_Tbl[%])*BO20,0)))) -> 0 | BG20: =IF(AF20=0,0,IF(AND(AG20=3,O20=1),V20*BO20,IF(AND(AG20=3,O20=3),V20*BO20,IF(AND(AG20=3,O20=2),V20/SUMIF(Refurb_Poss_Tbl[Refurbishment Possible],J20,Refurb_Poss_Tbl[%])*BO20,0)))) -> 0 | BH20: =IF(AF20=0,0,IF(AND(AG20=3,O20=1),W20*BO20,IF(AND(AG20=3,O20=3),W20*BO20,IF(AND(AG20=3,O20=2),W20/SUMIF(Refurb_Poss_Tbl[Refurbishment Possible],J20,Refurb_Poss_Tbl[%])*BO20,0)))) -> 0 | BI20: =IF(AF20=0,0,IF(AND(AG20=3,O20=1),X20*BO20,IF(AND(AG20=3,O20=3),X20*BO20,IF(AND(AG20=3,O20=2),X20/SUMIF(Refurb_Poss_Tbl[Refurbishment Possible],J20,Refurb_Poss_Tbl[%])*BO20,0)))) -> 0 | BJ20: =VLOOKUP($AF20,DiscountWorking!$B$7:$C$107,2,FALSE) -> 0.290952938 | BK20: =VLOOKUP($AF20,DiscountWorking!$J$7:$K$107,2,FALSE) -> 0.9107748787 | BL20: =VLOOKUP($AF20,DiscountWorking!$Q$7:$R$107,2,FALSE) -> 0.8056786567 | BM20: =VLOOKUP($AF20,DiscountWorking!$T$7:$U$107,2,FALSE) -> 0.6029517296 | BN20: =VLOOKUP($AF20,DiscountWorking!$W$7:$X$107,2,FALSE) -> 0.6008639084 | BO20: =VLOOKUP($AF20,DiscountWorking!$Z$7:$AA$107,2,FALSE) -> 0.7147362385
A21: ChanEA05 | C21: Channel | D21: ChanEA0556 | F21: Channel | G21: 120 | H21: First intervention | I21: Expected new build/Replacement life | J21: Refurbishment type | K21: Expected refurbished Life | L21: 0 | M21: 0 | N21: 0 | O21: First Intervention code | P21: 2 | Q21: 0 | R21: 0 | S21: 0 | T21: 0 | U21: 0 | V21: 0 | W21: 0 | X21: 0 | Y21: 0 | Z21: 0 | AA21: 0 | AB21: 0 | AC21: 0 | AD21: 0 | AE21: 0 | AF21: 19 | AG21: 0 | AH21: =VLOOKUP(AF21,ValidationLists!$M$1:$N$102,2,FALSE) -> 0.5201556904 | AI21: 0 | AJ21: 0 | AK21: 0 | AL21: 0 | AM21: 0 | AN21: 0 | AO21: 0 | AP21: 0 | AQ21: 0 | AR21: =IF(AND(O21=1,OR(AG21=3,AG21=2,AG21=0)),SUMIFS(FlatMaint!$Z$2:$Z$10000,FlatMaint!$A$2:$A$10000,D21,FlatMaint!$Y$2:$Y$10000,AF21)*BO21,IF(AND(O21=2,OR(AG21=3,AG21=2,AG21=0)),SUMIFS(FlatMaint!$Z$2:$Z$10000,FlatMaint!$A$2:$A$10000,D21,FlatMaint!$Y$2:$Y$10000,AF21)/SUMIF(Refurb_Poss_Tbl[Refurbishment Possible],J21,Refurb_Poss_Tbl[%])*BO21,IF(AND(O21=3,OR(AG21=3,AG21=2,AG21=0)),SUMIFS(FlatMaint!$Z$2:$Z$10000,FlatMaint!$A$2:$A$10000,D21,FlatMaint!$Y$2:$Y$10000,AF21)*BO21,0))) -> 0 | AS21: =IF(AND(O21=1,OR(AG21=3,AG21=2,AG21=0)),SUMIFS(FlatRepair!$Z$2:$Z$10000,FlatRepair!$A$2:$A$10000,D21,FlatRepair!$Y$2:$Y$10000,AF21)*BO21,IF(AND(O21=2,OR(AG21=3,AG21=2,AG21=0)),SUMIFS(FlatRepair!$Z$2:$Z$10000,FlatRepair!$A$2:$A$10000,D21,FlatRepair!$Y$2:$Y$10000,AF21)/SUMIF(Refurb_Poss_Tbl[Refurbishment Possible],J21,Refurb_Poss_Tbl[%])*BO21,IF(AND(O21=3,OR(AG21=3,AG21=2,AG21=0)),SUMIFS(FlatRepair!$Z$2:$Z$10000,FlatRepair!$A$2:$A$10000,D21,FlatRepair!$Y$2:$Y$10000,AF21)*BO21,0))) -> 0 | AT21: 0 | AU21: 0 | AV21: 0 | AW21: =IF(AND(AG21=3,O21=1),AC21*BM21,IF(AND(AG21=3,O21=3),AC21*BM21,IF(AND(AG21=3,O21=2),AC21/SUMIF(Refurb_Poss_Tbl[Refurbishment Possible],J21,Refurb_Poss_Tbl[%])*BM21,IF(AND(AG21=2,O21=2),AC21*BM21,IF(AND(AG21=2,O21=1),SUMIF(Refurb_Poss_Tbl[Refurbishment Possible],J21,Refurb_Poss_Tbl[%])*AC21*BM21,IF(AND(AG21=2,O21=3),SUMIF(Refurb_Poss_Tbl[Refurbishment Possible],J21,Refurb_Poss_Tbl[%])*AC21*BM21,0)))))) -> 0 | AX21: =IF(AND(AG21=3,O21=1),AD21*BK21,IF(AND(AG21=3,O21=3),AD21*BK21,IF(AND(AG21=3,O21=2),AD21/SUMIF(Refurb_Poss_Tbl[Refurbishment Possible],J21,Refurb_Poss_Tbl[%])*BK21,IF(AND(AG21=2,O21=2),AD21*BK21,IF(AND(AG21=2,O21=1),SUMIF(Refurb_Poss_Tbl[Refurbishment Possible],J21,Refurb_Poss_Tbl[%])*AD21*BK21,IF(AND(AG21=2,O21=3),SUMIF(Refurb_Poss_Tbl[Refurbishment Possible],J21,Refurb_Poss_Tbl[%])*AD21*BK21,0)))))) -> 0 | AY21: =IF(AND(AG21=3,O21=1),(AE21/ValidationLists!$F$114)*BL21,IF(AND(AG21=3,O21=3),AE21*BL21,IF(AND(AG21=3,O21=2),AE21/SUMIF(Refurb_Poss_Tbl[Refurbishment Possible],J21,Refurb_Poss_Tbl[%])*BL21,IF(AND(AG21=2,O21=2),AE21*BL21,IF(AND(AG21=2,O21=1),SUMIF(Refurb_Poss_Tbl[Refurbishment Possible],J21,Refurb_Poss_Tbl[%])*AE21*BL21,IF(AND(AG21=2,O21=3),SUMIF(Refurb_Poss_Tbl[Refurbishment Possible],J21,Refurb_Poss_Tbl[%])*AE21*BL21,0)))))) -> 0 | AZ21: 0 | BA21: 0 | BB21: =IFERROR(IF(AF21=100,IF(P21=1,(N21/I21)*(Y21*BO21)*-1,IF(P21=2,(N21/K21)*(Y21*SUMIF(Refurb_Poss_Tbl[Refurbishment Possible],J21,Refurb_Poss_Tbl[%]))*BO21*-1,IF(P21=3,(N21/I21)*(Y21+(T21*ValidationLists!$F$114)+(U21*ValidationLists!$F$115))*BO21*-1,0))),0),0) -> 0 | BC21: =IF(AF21=0,0,IF(AND($AG21=3,O21=1),S21*BO21,IF(AND(AG21=3,O21=3),S21*BO21,IF(AND(AG21=3,O21=2),S21/SUMIF(Refurb_Poss_Tbl[Refurbishment Possible],J21,Refurb_Poss_Tbl[%])*BO21,0)))) -> 0 | BD21: =IF(AF21=0,0,IF(AND(AG21=3,O21=1),(T21/ValidationLists!$F$114)*BO21,IF(AND($AG21=3,O21=3),T21*BO21,IF(AND(AG21=3,O21=2),T21/SUMIF(Refurb_Poss_Tbl[Refurbishment Possible],J21,Refurb_Poss_Tbl[%])*BO21,0)))) -> 0 | BE21: =IF(AF21=0,0,IF(AND(AG21=3,O21=1),(U21/ValidationLists!$F$114)*BO21,IF(AND($AG21=3,O21=3),U21*BO21,IF(AND(AG21=3,O21=2),U21/SUMIF(Refurb_Poss_Tbl[Refurbishment Possible],J21,Refurb_Poss_Tbl[%])*BO21,0)))) -> 0 | BF21: =IF(AF21=0,0,IF(AND(AG21=3,O21=1),R21*BO21,IF(AND(AG21=3,O21=3),R21*BO21,IF(AND(AG21=3,O21=2),R21/SUMIF(Refurb_Poss_Tbl[Refurbishment Possible],J21,Refurb_Poss_Tbl[%])*BO21,0)))) -> 0 | BG21: =IF(AF21=0,0,IF(AND(AG21=3,O21=1),V21*BO21,IF(AND(AG21=3,O21=3),V21*BO21,IF(AND(AG21=3,O21=2),V21/SUMIF(Refurb_Poss_Tbl[Refurbishment Possible],J21,Refurb_Poss_Tbl[%])*BO21,0)))) -> 0 | BH21: =IF(AF21=0,0,IF(AND(AG21=3,O21=1),W21*BO21,IF(AND(AG21=3,O21=3),W21*BO21,IF(AND(AG21=3,O21=2),W21/SUMIF(Refurb_Poss_Tbl[Refurbishment Possible],J21,Refurb_Poss_Tbl[%])*BO21,0)))) -> 0 | BI21: =IF(AF21=0,0,IF(AND(AG21=3,O21=1),X21*BO21,IF(AND(AG21=3,O21=3),X21*BO21,IF(AND(AG21=3,O21=2),X21/SUMIF(Refurb_Poss_Tbl[Refurbishment Possible],J21,Refurb_Poss_Tbl[%])*BO21,0)))) -> 0 | BJ21: =VLOOKUP($AF21,DiscountWorking!$B$7:$C$107,2,FALSE) -> 0.290952938 | BK21: =VLOOKUP($AF21,DiscountWorking!$J$7:$K$107,2,FALSE) -> 0.9105146637 | BL21: =VLOOKUP($AF21,DiscountWorking!$Q$7:$R$107,2,FALSE) -> 0.8053780828 | BM21: =VLOOKUP($AF21,DiscountWorking!$T$7:$U$107,2,FALSE) -> 0.6028207456 | BN21: =VLOOKUP($AF21,DiscountWorking!$W$7:$X$107,2,FALSE) -> 0.6007338008 | BO21: =VLOOKUP($AF21,DiscountWorking!$Z$7:$AA$107,2,FALSE) -> 0.7145498768
A22: ChanEA05 | C22: Channel | D22: ChanEA0556 | F22: Channel | G22: 120 | H22: First intervention | I22: Expected new build/Replacement life | J22: Refurbishment type | K22: Expected refurbished Life | L22: 0 | M22: 0 | N22: 0 | O22: First Intervention code | P22: 2 | Q22: 0 | R22: 0 | S22: 0 | T22: 0 | U22: 0 | V22: 0 | W22: 0 | X22: 0 | Y22: 0 | Z22: 0 | AA22: 0 | AB22: 0 | AC22: 0 | AD22: 0 | AE22: 0 | AF22: 20 | AG22: 0 | AH22: =VLOOKUP(AF22,ValidationLists!$M$1:$N$102,2,FALSE) -> 0.5025658844 | AI22: 0 | AJ22: 0 | AK22: 0 | AL22: 0 | AM22: 0 | AN22: 0 | AO22: 0 | AP22: 0 | AQ22: 0 | AR22: =IF(AND(O22=1,OR(AG22=3,AG22=2,AG22=0)),SUMIFS(FlatMaint!$Z$2:$Z$10000,FlatMaint!$A$2:$A$10000,D22,FlatMaint!$Y$2:$Y$10000,AF22)*BO22,IF(AND(O22=2,OR(AG22=3,AG22=2,AG22=0)),SUMIFS(FlatMaint!$Z$2:$Z$10000,FlatMaint!$A$2:$A$10000,D22,FlatMaint!$Y$2:$Y$10000,AF22)/SUMIF(Refurb_Poss_Tbl[Refurbishment Possible],J22,Refurb_Poss_Tbl[%])*BO22,IF(AND(O22=3,OR(AG22=3,AG22=2,AG22=0)),SUMIFS(FlatMaint!$Z$2:$Z$10000,FlatMaint!$A$2:$A$10000,D22,FlatMaint!$Y$2:$Y$10000,AF22)*BO22,0))) -> 0 | AS22: =IF(AND(O22=1,OR(AG22=3,AG22=2,AG22=0)),SUMIFS(FlatRepair!$Z$2:$Z$10000,FlatRepair!$A$2:$A$10000,D22,FlatRepair!$Y$2:$Y$10000,AF22)*BO22,IF(AND(O22=2,OR(AG22=3,AG22=2,AG22=0)),SUMIFS(FlatRepair!$Z$2:$Z$10000,FlatRepair!$A$2:$A$10000,D22,FlatRepair!$Y$2:$Y$10000,AF22)/SUMIF(Refurb_Poss_Tbl[Refurbishment Possible],J22,Refurb_Poss_Tbl[%])*BO22,IF(AND(O22=3,OR(AG22=3,AG22=2,AG22=0)),SUMIFS(FlatRepair!$Z$2:$Z$10000,FlatRepair!$A$2:$A$10000,D22,FlatRepair!$Y$2:$Y$10000,AF22)*BO22,0))) -> 0 | AT22: 0 | AU22: 0 | AV22: 0 | AW22: =IF(AND(AG22=3,O22=1),AC22*BM22,IF(AND(AG22=3,O22=3),AC22*BM22,IF(AND(AG22=3,O22=2),AC22/SUMIF(Refurb_Poss_Tbl[Refurbishment Possible],J22,Refurb_Poss_Tbl[%])*BM22,IF(AND(AG22=2,O22=2),AC22*BM22,IF(AND(AG22=2,O22=1),SUMIF(Refurb_Poss_Tbl[Refurbishment Possible],J22,Refurb_Poss_Tbl[%])*AC22*BM22,IF(AND(AG22=2,O22=3),SUMIF(Refurb_Poss_Tbl[Refurbishment Possible],J22,Refurb_Poss_Tbl[%])*AC22*BM22,0)))))) -> 0 | AX22: =IF(AND(AG22=3,O22=1),AD22*BK22,IF(AND(AG22=3,O22=3),AD22*BK22,IF(AND(AG22=3,O22=2),AD22/SUMIF(Refurb_Poss_Tbl[Refurbishment Possible],J22,Refurb_Poss_Tbl[%])*BK22,IF(AND(AG22=2,O22=2),AD22*BK22,IF(AND(AG22=2,O22=1),SUMIF(Refurb_Poss_Tbl[Refurbishment Possible],J22,Refurb_Poss_Tbl[%])*AD22*BK22,IF(AND(AG22=2,O22=3),SUMIF(Refurb_Poss_Tbl[Refurbishment Possible],J22,Refurb_Poss_Tbl[%])*AD22*BK22,0)))))) -> 0 | AY22: =IF(AND(AG22=3,O22=1),(AE22/ValidationLists!$F$114)*BL22,IF(AND(AG22=3,O22=3),AE22*BL22,IF(AND(AG22=3,O22=2),AE22/SUMIF(Refurb_Poss_Tbl[Refurbishment Possible],J22,Refurb_Poss_Tbl[%])*BL22,IF(AND(AG22=2,O22=2),AE22*BL22,IF(AND(AG22=2,O22=1),SUMIF(Refurb_Poss_Tbl[Refurbishment Possible],J22,Refurb_Poss_Tbl[%])*AE22*BL22,IF(AND(AG22=2,O22=3),SUMIF(Refurb_Poss_Tbl[Refurbishment Possible],J22,Refurb_Poss_Tbl[%])*AE22*BL22,0)))))) -> 0 | AZ22: 0 | BA22: 0 | BB22: =IFERROR(IF(AF22=100,IF(P22=1,(N22/I22)*(Y22*BO22)*-1,IF(P22=2,(N22/K22)*(Y22*SUMIF(Refurb_Poss_Tbl[Refurbishment Possible],J22,Refurb_Poss_Tbl[%]))*BO22*-1,IF(P22=3,(N22/I22)*(Y22+(T22*ValidationLists!$F$114)+(U22*ValidationLists!$F$115))*BO22*-1,0))),0),0) -> 0 | BC22: =IF(AF22=0,0,IF(AND($AG22=3,O22=1),S22*BO22,IF(AND(AG22=3,O22=3),S22*BO22,IF(AND(AG22=3,O22=2),S22/SUMIF(Refurb_Poss_Tbl[Refurbishment Possible],J22,Refurb_Poss_Tbl[%])*BO22,0)))) -> 0 | BD22: =IF(AF22=0,0,IF(AND(AG22=3,O22=1),(T22/ValidationLists!$F$114)*BO22,IF(AND($AG22=3,O22=3),T22*BO22,IF(AND(AG22=3,O22=2),T22/SUMIF(Refurb_Poss_Tbl[Refurbishment Possible],J22,Refurb_Poss_Tbl[%])*BO22,0)))) -> 0 | BE22: =IF(AF22=0,0,IF(AND(AG22=3,O22=1),(U22/ValidationLists!$F$114)*BO22,IF(AND($AG22=3,O22=3),U22*BO22,IF(AND(AG22=3,O22=2),U22/SUMIF(Refurb_Poss_Tbl[Refurbishment Possible],J22,Refurb_Poss_Tbl[%])*BO22,0)))) -> 0 | BF22: =IF(AF22=0,0,IF(AND(AG22=3,O22=1),R22*BO22,IF(AND(AG22=3,O22=3),R22*BO22,IF(AND(AG22=3,O22=2),R22/SUMIF(Refurb_Poss_Tbl[Refurbishment Possible],J22,Refurb_Poss_Tbl[%])*BO22,0)))) -> 0 | BG22: =IF(AF22=0,0,IF(AND(AG22=3,O22=1),V22*BO22,IF(AND(AG22=3,O22=3),V22*BO22,IF(AND(AG22=3,O22=2),V22/SUMIF(Refurb_Poss_Tbl[Refurbishment Possible],J22,Refurb_Poss_Tbl[%])*BO22,0)))) -> 0 | BH22: =IF(AF22=0,0,IF(AND(AG22=3,O22=1),W22*BO22,IF(AND(AG22=3,O22=3),W22*BO22,IF(AND(AG22=3,O22=2),W22/SUMIF(Refurb_Poss_Tbl[Refurbishment Possible],J22,Refurb_Poss_Tbl[%])*BO22,0)))) -> 0 | BI22: =IF(AF22=0,0,IF(AND(AG22=3,O22=1),X22*BO22,IF(AND(AG22=3,O22=3),X22*BO22,IF(AND(AG22=3,O22=2),X22/SUMIF(Refurb_Poss_Tbl[Refurbishment Possible],J22,Refurb_Poss_Tbl[%])*BO22,0)))) -> 0 | BJ22: =VLOOKUP($AF22,DiscountWorking!$B$7:$C$107,2,FALSE) -> 0.290952938 | BK22: =VLOOKUP($AF22,DiscountWorking!$J$7:$K$107,2,FALSE) -> 0.9103057004 | BL22: =VLOOKUP($AF22,DiscountWorking!$Q$7:$R$107,2,FALSE) -> 0.8053425955 | BM22: =VLOOKUP($AF22,DiscountWorking!$T$7:$U$107,2,FALSE) -> 0.6027155601 | BN22: =VLOOKUP($AF22,DiscountWorking!$W$7:$X$107,2,FALSE) -> 0.6006293192 | BO22: =VLOOKUP($AF22,DiscountWorking!$Z$7:$AA$107,2,FALSE) -> 0.7144208094
A23: ChanEA05 | C23: Channel | D23: ChanEA0556 | F23: Channel | G23: 120 | H23: First intervention | I23: Expected new build/Replacement life | J23: Refurbishment type | K23: Expected refurbished Life | L23: 0 | M23: 0 | N23: 0 | O23: First Intervention code | P23: 2 | Q23: 0 | R23: 0 | S23: 0 | T23: 0 | U23: 0 | V23: 0 | W23: 0 | X23: 0 | Y23: 0 | Z23: 0 | AA23: 0 | AB23: 0 | AC23: 0 | AD23: 0 | AE23: 0 | AF23: 21 | AG23: 0 | AH23: =VLOOKUP(AF23,ValidationLists!$M$1:$N$102,2,FALSE) -> 0.4855709028 | AI23: 0 | AJ23: 0 | AK23: 0 | AL23: 0 | AM23: 0 | AN23: 0 | AO23: 0 | AP23: 0 | AQ23: 0 | AR23: =IF(AND(O23=1,OR(AG23=3,AG23=2,AG23=0)),SUMIFS(FlatMaint!$Z$2:$Z$10000,FlatMaint!$A$2:$A$10000,D23,FlatMaint!$Y$2:$Y$10000,AF23)*BO23,IF(AND(O23=2,OR(AG23=3,AG23=2,AG23=0)),SUMIFS(FlatMaint!$Z$2:$Z$10000,FlatMaint!$A$2:$A$10000,D23,FlatMaint!$Y$2:$Y$10000,AF23)/SUMIF(Refurb_Poss_Tbl[Refurbishment Possible],J23,Refurb_Poss_Tbl[%])*BO23,IF(AND(O23=3,OR(AG23=3,AG23=2,AG23=0)),SUMIFS(FlatMaint!$Z$2:$Z$10000,FlatMaint!$A$2:$A$10000,D23,FlatMaint!$Y$2:$Y$10000,AF23)*BO23,0))) -> 0 | AS23: =IF(AND(O23=1,OR(AG23=3,AG23=2,AG23=0)),SUMIFS(FlatRepair!$Z$2:$Z$10000,FlatRepair!$A$2:$A$10000,D23,FlatRepair!$Y$2:$Y$10000,AF23)*BO23,IF(AND(O23=2,OR(AG23=3,AG23=2,AG23=0)),SUMIFS(FlatRepair!$Z$2:$Z$10000,FlatRepair!$A$2:$A$10000,D23,FlatRepair!$Y$2:$Y$10000,AF23)/SUMIF(Refurb_Poss_Tbl[Refurbishment Possible],J23,Refurb_Poss_Tbl[%])*BO23,IF(AND(O23=3,OR(AG23=3,AG23=2,AG23=0)),SUMIFS(FlatRepair!$Z$2:$Z$10000,FlatRepair!$A$2:$A$10000,D23,FlatRepair!$Y$2:$Y$10000,AF23)*BO23,0))) -> 0 | AT23: 0 | AU23: 0 | AV23: 0 | AW23: =IF(AND(AG23=3,O23=1),AC23*BM23,IF(AND(AG23=3,O23=3),AC23*BM23,IF(AND(AG23=3,O23=2),AC23/SUMIF(Refurb_Poss_Tbl[Refurbishment Possible],J23,Refurb_Poss_Tbl[%])*BM23,IF(AND(AG23=2,O23=2),AC23*BM23,IF(AND(AG23=2,O23=1),SUMIF(Refurb_Poss_Tbl[Refurbishment Possible],J23,Refurb_Poss_Tbl[%])*AC23*BM23,IF(AND(AG23=2,O23=3),SUMIF(Refurb_Poss_Tbl[Refurbishment Possible],J23,Refurb_Poss_Tbl[%])*AC23*BM23,0)))))) -> 0 | AX23: =IF(AND(AG23=3,O23=1),AD23*BK23,IF(AND(AG23=3,O23=3),AD23*BK23,IF(AND(AG23=3,O23=2),AD23/SUMIF(Refurb_Poss_Tbl[Refurbishment Possible],J23,Refurb_Poss_Tbl[%])*BK23,IF(AND(AG23=2,O23=2),AD23*BK23,IF(AND(AG23=2,O23=1),SUMIF(Refurb_Poss_Tbl[Refurbishment Possible],J23,Refurb_Poss_Tbl[%])*AD23*BK23,IF(AND(AG23=2,O23=3),SUMIF(Refurb_Poss_Tbl[Refurbishment Possible],J23,Refurb_Poss_Tbl[%])*AD23*BK23,0)))))) -> 0 | AY23: =IF(AND(AG23=3,O23=1),(AE23/ValidationLists!$F$114)*BL23,IF(AND(AG23=3,O23=3),AE23*BL23,IF(AND(AG23=3,O23=2),AE23/SUMIF(Refurb_Poss_Tbl[Refurbishment Possible],J23,Refurb_Poss_Tbl[%])*BL23,IF(AND(AG23=2,O23=2),AE23*BL23,IF(AND(AG23=2,O23=1),SUMIF(Refurb_Poss_Tbl[Refurbishment Possible],J23,Refurb_Poss_Tbl[%])*AE23*BL23,IF(AND(AG23=2,O23=3),SUMIF(Refurb_Poss_Tbl[Refurbishment Possible],J23,Refurb_Poss_Tbl[%])*AE23*BL23,0)))))) -> 0 | AZ23: 0 | BA23: 0 | BB23: =IFERROR(IF(AF23=100,IF(P23=1,(N23/I23)*(Y23*BO23)*-1,IF(P23=2,(N23/K23)*(Y23*SUMIF(Refurb_Poss_Tbl[Refurbishment Possible],J23,Refurb_Poss_Tbl[%]))*BO23*-1,IF(P23=3,(N23/I23)*(Y23+(T23*ValidationLists!$F$114)+(U23*ValidationLists!$F$115))*BO23*-1,0))),0),0) -> 0 | BC23: =IF(AF23=0,0,IF(AND($AG23=3,O23=1),S23*BO23,IF(AND(AG23=3,O23=3),S23*BO23,IF(AND(AG23=3,O23=2),S23/SUMIF(Refurb_Poss_Tbl[Refurbishment Possible],J23,Refurb_Poss_Tbl[%])*BO23,0)))) -> 0 | BD23: =IF(AF23=0,0,IF(AND(AG23=3,O23=1),(T23/ValidationLists!$F$114)*BO23,IF(AND($AG23=3,O23=3),T23*BO23,IF(AND(AG23=3,O23=2),T23/SUMIF(Refurb_Poss_Tbl[Refurbishment Possible],J23,Refurb_Poss_Tbl[%])*BO23,0)))) -> 0 | BE23: =IF(AF23=0,0,IF(AND(AG23=3,O23=1),(U23/ValidationLists!$F$114)*BO23,IF(AND($AG23=3,O23=3),U23*BO23,IF(AND(AG23=3,O23=2),U23/SUMIF(Refurb_Poss_Tbl[Refurbishment Possible],J23,Refurb_Poss_Tbl[%])*BO23,0)))) -> 0 | BF23: =IF(AF23=0,0,IF(AND(AG23=3,O23=1),R23*BO23,IF(AND(AG23=3,O23=3),R23*BO23,IF(AND(AG23=3,O23=2),R23/SUMIF(Refurb_Poss_Tbl[Refurbishment Possible],J23,Refurb_Poss_Tbl[%])*BO23,0)))) -> 0 | BG23: =IF(AF23=0,0,IF(AND(AG23=3,O23=1),V23*BO23,IF(AND(AG23=3,O23=3),V23*BO23,IF(AND(AG23=3,O23=2),V23/SUMIF(Refurb_Poss_Tbl[Refurbishment Possible],J23,Refurb_Poss_Tbl[%])*BO23,0)))) -> 0 | BH23: =IF(AF23=0,0,IF(AND(AG23=3,O23=1),W23*BO23,IF(AND(AG23=3,O23=3),W23*BO23,IF(AND(AG23=3,O23=2),W23/SUMIF(Refurb_Poss_Tbl[Refurbishment Possible],J23,Refurb_Poss_Tbl[%])*BO23,0)))) -> 0 | BI23: =IF(AF23=0,0,IF(AND(AG23=3,O23=1),X23*BO23,IF(AND(AG23=3,O23=3),X23*BO23,IF(AND(AG23=3,O23=2),X23/SUMIF(Refurb_Poss_Tbl[Refurbishment Possible],J23,Refurb_Poss_Tbl[%])*BO23,0)))) -> 0 | BJ23: =VLOOKUP($AF23,DiscountWorking!$B$7:$C$107,2,FALSE) -> 0.2814940656 | BK23: =VLOOKUP($AF23,DiscountWorking!$J$7:$K$107,2,FALSE) -> 0.9101334343 | BL23: =VLOOKUP($AF23,DiscountWorking!$Q$7:$R$107,2,FALSE) -> 0.8020220159 | BM23: =VLOOKUP($AF23,DiscountWorking!$T$7:$U$107,2,FALSE) -> 0.5979312721 | BN23: =VLOOKUP($AF23,DiscountWorking!$W$7:$X$107,2,FALSE) -> 0.59581375 | BO23: =VLOOKUP($AF23,DiscountWorking!$Z$7:$AA$107,2,FALSE) -> 0.7111539863
A24: ChanEA05 | C24: Channel | D24: ChanEA0556 | F24: Channel | G24: 120 | H24: First intervention | I24: Expected new build/Replacement life | J24: Refurbishment type | K24: Expected refurbished Life | L24: 0 | M24: 0 | N24: 0 | O24: First Intervention code | P24: 2 | Q24: 0 | R24: 0 | S24: 0 | T24: 0 | U24: 0 | V24: 0 | W24: 0 | X24: 0 | Y24: 0 | Z24: 0 | AA24: 0 | AB24: 0 | AC24: 0 | AD24: 0 | AE24: 0 | AF24: 22 | AG24: 0 | AH24: =VLOOKUP(AF24,ValidationLists!$M$1:$N$102,2,FALSE) -> 0.4691506308 | AI24: 0 | AJ24: 0 | AK24: 0 | AL24: 0 | AM24: 0 | AN24: 0 | AO24: 0 | AP24: 0 | AQ24: 0 | AR24: =IF(AND(O24=1,OR(AG24=3,AG24=2,AG24=0)),SUMIFS(FlatMaint!$Z$2:$Z$10000,FlatMaint!$A$2:$A$10000,D24,FlatMaint!$Y$2:$Y$10000,AF24)*BO24,IF(AND(O24=2,OR(AG24=3,AG24=2,AG24=0)),SUMIFS(FlatMaint!$Z$2:$Z$10000,FlatMaint!$A$2:$A$10000,D24,FlatMaint!$Y$2:$Y$10000,AF24)/SUMIF(Refurb_Poss_Tbl[Refurbishment Possible],J24,Refurb_Poss_Tbl[%])*BO24,IF(AND(O24=3,OR(AG24=3,AG24=2,AG24=0)),SUMIFS(FlatMaint!$Z$2:$Z$10000,FlatMaint!$A$2:$A$10000,D24,FlatMaint!$Y$2:$Y$10000,AF24)*BO24,0))) -> 0 | AS24: =IF(AND(O24=1,OR(AG24=3,AG24=2,AG24=0)),SUMIFS(FlatRepair!$Z$2:$Z$10000,FlatRepair!$A$2:$A$10000,D24,FlatRepair!$Y$2:$Y$10000,AF24)*BO24,IF(AND(O24=2,OR(AG24=3,AG24=2,AG24=0)),SUMIFS(FlatRepair!$Z$2:$Z$10000,FlatRepair!$A$2:$A$10000,D24,FlatRepair!$Y$2:$Y$10000,AF24)/SUMIF(Refurb_Poss_Tbl[Refurbishment Possible],J24,Refurb_Poss_Tbl[%])*BO24,IF(AND(O24=3,OR(AG24=3,AG24=2,AG24=0)),SUMIFS(FlatRepair!$Z$2:$Z$10000,FlatRepair!$A$2:$A$10000,D24,FlatRepair!$Y$2:$Y$10000,AF24)*BO24,0))) -> 0 | AT24: 0 | AU24: 0 | AV24: 0 | AW24: =IF(AND(AG24=3,O24=1),AC24*BM24,IF(AND(AG24=3,O24=3),AC24*BM24,IF(AND(AG24=3,O24=2),AC24/SUMIF(Refurb_Poss_Tbl[Refurbishment Possible],J24,Refurb_Poss_Tbl[%])*BM24,IF(AND(AG24=2,O24=2),AC24*BM24,IF(AND(AG24=2,O24=1),SUMIF(Refurb_Poss_Tbl[Refurbishment Possible],J24,Refurb_Poss_Tbl[%])*AC24*BM24,IF(AND(AG24=2,O24=3),SUMIF(Refurb_Poss_Tbl[Refurbishment Possible],J24,Refurb_Poss_Tbl[%])*AC24*BM24,0)))))) -> 0 | AX24: =IF(AND(AG24=3,O24=1),AD24*BK24,IF(AND(AG24=3,O24=3),AD24*BK24,IF(AND(AG24=3,O24=2),AD24/SUMIF(Refurb_Poss_Tbl[Refurbishment Possible],J24,Refurb_Poss_Tbl[%])*BK24,IF(AND(AG24=2,O24=2),AD24*BK24,IF(AND(AG24=2,O24=1),SUMIF(Refurb_Poss_Tbl[Refurbishment Possible],J24,Refurb_Poss_Tbl[%])*AD24*BK24,IF(AND(AG24=2,O24=3),SUMIF(Refurb_Poss_Tbl[Refurbishment Possible],J24,Refurb_Poss_Tbl[%])*AD24*BK24,0)))))) -> 0 | AY24: =IF(AND(AG24=3,O24=1),(AE24/ValidationLists!$F$114)*BL24,IF(AND(AG24=3,O24=3),AE24*BL24,IF(AND(AG24=3,O24=2),AE24/SUMIF(Refurb_Poss_Tbl[Refurbishment Possible],J24,Refurb_Poss_Tbl[%])*BL24,IF(AND(AG24=2,O24=2),AE24*BL24,IF(AND(AG24=2,O24=1),SUMIF(Refurb_Poss_Tbl[Refurbishment Possible],J24,Refurb_Poss_Tbl[%])*AE24*BL24,IF(AND(AG24=2,O24=3),SUMIF(Refurb_Poss_Tbl[Refurbishment Possible],J24,Refurb_Poss_Tbl[%])*AE24*BL24,0)))))) -> 0 | AZ24: 0 | BA24: 0 | BB24: =IFERROR(IF(AF24=100,IF(P24=1,(N24/I24)*(Y24*BO24)*-1,IF(P24=2,(N24/K24)*(Y24*SUMIF(Refurb_Poss_Tbl[Refurbishment Possible],J24,Refurb_Poss_Tbl[%]))*BO24*-1,IF(P24=3,(N24/I24)*(Y24+(T24*ValidationLists!$F$114)+(U24*ValidationLists!$F$115))*BO24*-1,0))),0),0) -> 0 | BC24: =IF(AF24=0,0,IF(AND($AG24=3,O24=1),S24*BO24,IF(AND(AG24=3,O24=3),S24*BO24,IF(AND(AG24=3,O24=2),S24/SUMIF(Refurb_Poss_Tbl[Refurbishment Possible],J24,Refurb_Poss_Tbl[%])*BO24,0)))) -> 0 | BD24: =IF(AF24=0,0,IF(AND(AG24=3,O24=1),(T24/ValidationLists!$F$114)*BO24,IF(AND($AG24=3,O24=3),T24*BO24,IF(AND(AG24=3,O24=2),T24/SUMIF(Refurb_Poss_Tbl[Refurbishment Possible],J24,Refurb_Poss_Tbl[%])*BO24,0)))) -> 0 | BE24: =IF(AF24=0,0,IF(AND(AG24=3,O24=1),(U24/ValidationLists!$F$114)*BO24,IF(AND($AG24=3,O24=3),U24*BO24,IF(AND(AG24=3,O24=2),U24/SUMIF(Refurb_Poss_Tbl[Refurbishment Possible],J24,Refurb_Poss_Tbl[%])*BO24,0)))) -> 0 | BF24: =IF(AF24=0,0,IF(AND(AG24=3,O24=1),R24*BO24,IF(AND(AG24=3,O24=3),R24*BO24,IF(AND(AG24=3,O24=2),R24/SUMIF(Refurb_Poss_Tbl[Refurbishment Possible],J24,Refurb_Poss_Tbl[%])*BO24,0)))) -> 0 | BG24: =IF(AF24=0,0,IF(AND(AG24=3,O24=1),V24*BO24,IF(AND(AG24=3,O24=3),V24*BO24,IF(AND(AG24=3,O24=2),V24/SUMIF(Refurb_Poss_Tbl[Refurbishment Possible],J24,Refurb_Poss_Tbl[%])*BO24,0)))) -> 0 | BH24: =IF(AF24=0,0,IF(AND(AG24=3,O24=1),W24*BO24,IF(AND(AG24=3,O24=3),W24*BO24,IF(AND(AG24=3,O24=2),W24/SUMIF(Refurb_Poss_Tbl[Refurbishment Possible],J24,Refurb_Poss_Tbl[%])*BO24,0)))) -> 0 | BI24: =IF(AF24=0,0,IF(AND(AG24=3,O24=1),X24*BO24,IF(AND(AG24=3,O24=3),X24*BO24,IF(AND(AG24=3,O24=2),X24/SUMIF(Refurb_Poss_Tbl[Refurbishment Possible],J24,Refurb_Poss_Tbl[%])*BO24,0)))) -> 0 | BJ24: =VLOOKUP($AF24,DiscountWorking!$B$7:$C$107,2,FALSE) -> 0.2720351933 | BK24: =VLOOKUP($AF24,DiscountWorking!$J$7:$K$107,2,FALSE) -> 0.9099970076 | BL24: =VLOOKUP($AF24,DiscountWorking!$Q$7:$R$107,2,FALSE) -> 0.8023761204 | BM24: =VLOOKUP($AF24,DiscountWorking!$T$7:$U$107,2,FALSE) -> 0.5931650245 | BN24: =VLOOKUP($AF24,DiscountWorking!$W$7:$X$107,2,FALSE) -> 0.5910161005 | BO24: =VLOOKUP($AF24,DiscountWorking!$Z$7:$AA$107,2,FALSE) -> 0.7082761594
A25: ChanEA05 | C25: Channel | D25: ChanEA0556 | F25: Channel | G25: 120 | H25: First intervention | I25: Expected new build/Replacement life | J25: Refurbishment type | K25: Expected refurbished Life | L25: 0 | M25: 0 | N25: 0 | O25: First Intervention code | P25: 2 | Q25: 0 | R25: 0 | S25: 0 | T25: 0 | U25: 0 | V25: 0 | W25: 0 | X25: 0 | Y25: 0 | Z25: 0 | AA25: 0 | AB25: 0 | AC25: 0 | AD25: 0 | AE25: 0 | AF25: 23 | AG25: 0 | AH25: =VLOOKUP(AF25,ValidationLists!$M$1:$N$102,2,FALSE) -> 0.4532856336 | AI25: 0 | AJ25: 0 | AK25: 0 | AL25: 0 | AM25: 0 | AN25: 0 | AO25: 0 | AP25: 0 | AQ25: 0 | AR25: =IF(AND(O25=1,OR(AG25=3,AG25=2,AG25=0)),SUMIFS(FlatMaint!$Z$2:$Z$10000,FlatMaint!$A$2:$A$10000,D25,FlatMaint!$Y$2:$Y$10000,AF25)*BO25,IF(AND(O25=2,OR(AG25=3,AG25=2,AG25=0)),SUMIFS(FlatMaint!$Z$2:$Z$10000,FlatMaint!$A$2:$A$10000,D25,FlatMaint!$Y$2:$Y$10000,AF25)/SUMIF(Refurb_Poss_Tbl[Refurbishment Possible],J25,Refurb_Poss_Tbl[%])*BO25,IF(AND(O25=3,OR(AG25=3,AG25=2,AG25=0)),SUMIFS(FlatMaint!$Z$2:$Z$10000,FlatMaint!$A$2:$A$10000,D25,FlatMaint!$Y$2:$Y$10000,AF25)*BO25,0))) -> 0 | AS25: =IF(AND(O25=1,OR(AG25=3,AG25=2,AG25=0)),SUMIFS(FlatRepair!$Z$2:$Z$10000,FlatRepair!$A$2:$A$10000,D25,FlatRepair!$Y$2:$Y$10000,AF25)*BO25,IF(AND(O25=2,OR(AG25=3,AG25=2,AG25=0)),SUMIFS(FlatRepair!$Z$2:$Z$10000,FlatRepair!$A$2:$A$10000,D25,FlatRepair!$Y$2:$Y$10000,AF25)/SUMIF(Refurb_Poss_Tbl[Refurbishment Possible],J25,Refurb_Poss_Tbl[%])*BO25,IF(AND(O25=3,OR(AG25=3,AG25=2,AG25=0)),SUMIFS(FlatRepair!$Z$2:$Z$10000,FlatRepair!$A$2:$A$10000,D25,FlatRepair!$Y$2:$Y$10000,AF25)*BO25,0))) -> 0 | AT25: 0 | AU25: 0 | AV25: 0 | AW25: =IF(AND(AG25=3,O25=1),AC25*BM25,IF(AND(AG25=3,O25=3),AC25*BM25,IF(AND(AG25=3,O25=2),AC25/SUMIF(Refurb_Poss_Tbl[Refurbishment Possible],J25,Refurb_Poss_Tbl[%])*BM25,IF(AND(AG25=2,O25=2),AC25*BM25,IF(AND(AG25=2,O25=1),SUMIF(Refurb_Poss_Tbl[Refurbishment Possible],J25,Refurb_Poss_Tbl[%])*AC25*BM25,IF(AND(AG25=2,O25=3),SUMIF(Refurb_Poss_Tbl[Refurbishment Possible],J25,Refurb_Poss_Tbl[%])*AC25*BM25,0)))))) -> 0 | AX25: =IF(AND(AG25=3,O25=1),AD25*BK25,IF(AND(AG25=3,O25=3),AD25*BK25,IF(AND(AG25=3,O25=2),AD25/SUMIF(Refurb_Poss_Tbl[Refurbishment Possible],J25,Refurb_Poss_Tbl[%])*BK25,IF(AND(AG25=2,O25=2),AD25*BK25,IF(AND(AG25=2,O25=1),SUMIF(Refurb_Poss_Tbl[Refurbishment Possible],J25,Refurb_Poss_Tbl[%])*AD25*BK25,IF(AND(AG25=2,O25=3),SUMIF(Refurb_Poss_Tbl[Refurbishment Possible],J25,Refurb_Poss_Tbl[%])*AD25*BK25,0)))))) -> 0 | AY25: =IF(AND(AG25=3,O25=1),(AE25/ValidationLists!$F$114)*BL25,IF(AND(AG25=3,O25=3),AE25*BL25,IF(AND(AG25=3,O25=2),AE25/SUMIF(Refurb_Poss_Tbl[Refurbishment Possible],J25,Refurb_Poss_Tbl[%])*BL25,IF(AND(AG25=2,O25=2),AE25*BL25,IF(AND(AG25=2,O25=1),SUMIF(Refurb_Poss_Tbl[Refurbishment Possible],J25,Refurb_Poss_Tbl[%])*AE25*BL25,IF(AND(AG25=2,O25=3),SUMIF(Refurb_Poss_Tbl[Refurbishment Possible],J25,Refurb_Poss_Tbl[%])*AE25*BL25,0)))))) -> 0 | AZ25: 0 | BA25: 0 | BB25: =IFERROR(IF(AF25=100,IF(P25=1,(N25/I25)*(Y25*BO25)*-1,IF(P25=2,(N25/K25)*(Y25*SUMIF(Refurb_Poss_Tbl[Refurbishment Possible],J25,Refurb_Poss_Tbl[%]))*BO25*-1,IF(P25=3,(N25/I25)*(Y25+(T25*ValidationLists!$F$114)+(U25*ValidationLists!$F$115))*BO25*-1,0))),0),0) -> 0 | BC25: =IF(AF25=0,0,IF(AND($AG25=3,O25=1),S25*BO25,IF(AND(AG25=3,O25=3),S25*BO25,IF(AND(AG25=3,O25=2),S25/SUMIF(Refurb_Poss_Tbl[Refurbishment Possible],J25,Refurb_Poss_Tbl[%])*BO25,0)))) -> 0 | BD25: =IF(AF25=0,0,IF(AND(AG25=3,O25=1),(T25/ValidationLists!$F$114)*BO25,IF(AND($AG25=3,O25=3),T25*BO25,IF(AND(AG25=3,O25=2),T25/SUMIF(Refurb_Poss_Tbl[Refurbishment Possible],J25,Refurb_Poss_Tbl[%])*BO25,0)))) -> 0 | BE25: =IF(AF25=0,0,IF(AND(AG25=3,O25=1),(U25/ValidationLists!$F$114)*BO25,IF(AND($AG25=3,O25=3),U25*BO25,IF(AND(AG25=3,O25=2),U25/SUMIF(Refurb_Poss_Tbl[Refurbishment Possible],J25,Refurb_Poss_Tbl[%])*BO25,0)))) -> 0 | BF25: =IF(AF25=0,0,IF(AND(AG25=3,O25=1),R25*BO25,IF(AND(AG25=3,O25=3),R25*BO25,IF(AND(AG25=3,O25=2),R25/SUMIF(Refurb_Poss_Tbl[Refurbishment Possible],J25,Refurb_Poss_Tbl[%])*BO25,0)))) -> 0 | BG25: =IF(AF25=0,0,IF(AND(AG25=3,O25=1),V25*BO25,IF(AND(AG25=3,O25=3),V25*BO25,IF(AND(AG25=3,O25=2),V25/SUMIF(Refurb_Poss_Tbl[Refurbishment Possible],J25,Refurb_Poss_Tbl[%])*BO25,0)))) -> 0 | BH25: =IF(AF25=0,0,IF(AND(AG25=3,O25=1),W25*BO25,IF(AND(AG25=3,O25=3),W25*BO25,IF(AND(AG25=3,O25=2),W25/SUMIF(Refurb_Poss_Tbl[Refurbishment Possible],J25,Refurb_Poss_Tbl[%])*BO25,0)))) -> 0 | BI25: =IF(AF25=0,0,IF(AND(AG25=3,O25=1),X25*BO25,IF(AND(AG25=3,O25=3),X25*BO25,IF(AND(AG25=3,O25=2),X25/SUMIF(Refurb_Poss_Tbl[Refurbishment Possible],J25,Refurb_Poss_Tbl[%])*BO25,0)))) -> 0 | BJ25: =VLOOKUP($AF25,DiscountWorking!$B$7:$C$107,2,FALSE) -> 0.2625763209 | BK25: =VLOOKUP($AF25,DiscountWorking!$J$7:$K$107,2,FALSE) -> 0.9098929259 | BL25: =VLOOKUP($AF25,DiscountWorking!$Q$7:$R$107,2,FALSE) -> 0.8028711828 | BM25: =VLOOKUP($AF25,DiscountWorking!$T$7:$U$107,2,FALSE) -> 0.5884150583 | BN25: =VLOOKUP($AF25,DiscountWorking!$W$7:$X$107,2,FALSE) -> 0.5862346234 | BO25: =VLOOKUP($AF25,DiscountWorking!$Z$7:$AA$107,2,FALSE) -> 0.7054318571
A26: ChanEA05 | C26: Channel | D26: ChanEA0556 | F26: Channel | G26: 120 | H26: First intervention | I26: Expected new build/Replacement life | J26: Refurbishment type | K26: Expected refurbished Life | L26: 0 | M26: 0 | N26: 0 | O26: First Intervention code | P26: 2 | Q26: 0 | R26: 0 | S26: 0 | T26: 0 | U26: 0 | V26: 0 | W26: 0 | X26: 0 | Y26: 0 | Z26: 0 | AA26: 0 | AB26: 0 | AC26: 0 | AD26: 0 | AE26: 0 | AF26: 24 | AG26: 0 | AH26: =VLOOKUP(AF26,ValidationLists!$M$1:$N$102,2,FALSE) -> 0.4379571339 | AI26: 0 | AJ26: 0 | AK26: 0 | AL26: 0 | AM26: 0 | AN26: 0 | AO26: 0 | AP26: 0 | AQ26: 0 | AR26: =IF(AND(O26=1,OR(AG26=3,AG26=2,AG26=0)),SUMIFS(FlatMaint!$Z$2:$Z$10000,FlatMaint!$A$2:$A$10000,D26,FlatMaint!$Y$2:$Y$10000,AF26)*BO26,IF(AND(O26=2,OR(AG26=3,AG26=2,AG26=0)),SUMIFS(FlatMaint!$Z$2:$Z$10000,FlatMaint!$A$2:$A$10000,D26,FlatMaint!$Y$2:$Y$10000,AF26)/SUMIF(Refurb_Poss_Tbl[Refurbishment Possible],J26,Refurb_Poss_Tbl[%])*BO26,IF(AND(O26=3,OR(AG26=3,AG26=2,AG26=0)),SUMIFS(FlatMaint!$Z$2:$Z$10000,FlatMaint!$A$2:$A$10000,D26,FlatMaint!$Y$2:$Y$10000,AF26)*BO26,0))) -> 0 | AS26: =IF(AND(O26=1,OR(AG26=3,AG26=2,AG26=0)),SUMIFS(FlatRepair!$Z$2:$Z$10000,FlatRepair!$A$2:$A$10000,D26,FlatRepair!$Y$2:$Y$10000,AF26)*BO26,IF(AND(O26=2,OR(AG26=3,AG26=2,AG26=0)),SUMIFS(FlatRepair!$Z$2:$Z$10000,FlatRepair!$A$2:$A$10000,D26,FlatRepair!$Y$2:$Y$10000,AF26)/SUMIF(Refurb_Poss_Tbl[Refurbishment Possible],J26,Refurb_Poss_Tbl[%])*BO26,IF(AND(O26=3,OR(AG26=3,AG26=2,AG26=0)),SUMIFS(FlatRepair!$Z$2:$Z$10000,FlatRepair!$A$2:$A$10000,D26,FlatRepair!$Y$2:$Y$10000,AF26)*BO26,0))) -> 0 | AT26: 0 | AU26: 0 | AV26: 0 | AW26: =IF(AND(AG26=3,O26=1),AC26*BM26,IF(AND(AG26=3,O26=3),AC26*BM26,IF(AND(AG26=3,O26=2),AC26/SUMIF(Refurb_Poss_Tbl[Refurbishment Possible],J26,Refurb_Poss_Tbl[%])*BM26,IF(AND(AG26=2,O26=2),AC26*BM26,IF(AND(AG26=2,O26=1),SUMIF(Refurb_Poss_Tbl[Refurbishment Possible],J26,Refurb_Poss_Tbl[%])*AC26*BM26,IF(AND(AG26=2,O26=3),SUMIF(Refurb_Poss_Tbl[Refurbishment Possible],J26,Refurb_Poss_Tbl[%])*AC26*BM26,0)))))) -> 0 | AX26: =IF(AND(AG26=3,O26=1),AD26*BK26,IF(AND(AG26=3,O26=3),AD26*BK26,IF(AND(AG26=3,O26=2),AD26/SUMIF(Refurb_Poss_Tbl[Refurbishment Possible],J26,Refurb_Poss_Tbl[%])*BK26,IF(AND(AG26=2,O26=2),AD26*BK26,IF(AND(AG26=2,O26=1),SUMIF(Refurb_Poss_Tbl[Refurbishment Possible],J26,Refurb_Poss_Tbl[%])*AD26*BK26,IF(AND(AG26=2,O26=3),SUMIF(Refurb_Poss_Tbl[Refurbishment Possible],J26,Refurb_Poss_Tbl[%])*AD26*BK26,0)))))) -> 0 | AY26: =IF(AND(AG26=3,O26=1),(AE26/ValidationLists!$F$114)*BL26,IF(AND(AG26=3,O26=3),AE26*BL26,IF(AND(AG26=3,O26=2),AE26/SUMIF(Refurb_Poss_Tbl[Refurbishment Possible],J26,Refurb_Poss_Tbl[%])*BL26,IF(AND(AG26=2,O26=2),AE26*BL26,IF(AND(AG26=2,O26=1),SUMIF(Refurb_Poss_Tbl[Refurbishment Possible],J26,Refurb_Poss_Tbl[%])*AE26*BL26,IF(AND(AG26=2,O26=3),SUMIF(Refurb_Poss_Tbl[Refurbishment Possible],J26,Refurb_Poss_Tbl[%])*AE26*BL26,0)))))) -> 0 | AZ26: 0 | BA26: 0 | BB26: =IFERROR(IF(AF26=100,IF(P26=1,(N26/I26)*(Y26*BO26)*-1,IF(P26=2,(N26/K26)*(Y26*SUMIF(Refurb_Poss_Tbl[Refurbishment Possible],J26,Refurb_Poss_Tbl[%]))*BO26*-1,IF(P26=3,(N26/I26)*(Y26+(T26*ValidationLists!$F$114)+(U26*ValidationLists!$F$115))*BO26*-1,0))),0),0) -> 0 | BC26: =IF(AF26=0,0,IF(AND($AG26=3,O26=1),S26*BO26,IF(AND(AG26=3,O26=3),S26*BO26,IF(AND(AG26=3,O26=2),S26/SUMIF(Refurb_Poss_Tbl[Refurbishment Possible],J26,Refurb_Poss_Tbl[%])*BO26,0)))) -> 0 | BD26: =IF(AF26=0,0,IF(AND(AG26=3,O26=1),(T26/ValidationLists!$F$114)*BO26,IF(AND($AG26=3,O26=3),T26*BO26,IF(AND(AG26=3,O26=2),T26/SUMIF(Refurb_Poss_Tbl[Refurbishment Possible],J26,Refurb_Poss_Tbl[%])*BO26,0)))) -> 0 | BE26: =IF(AF26=0,0,IF(AND(AG26=3,O26=1),(U26/ValidationLists!$F$114)*BO26,IF(AND($AG26=3,O26=3),U26*BO26,IF(AND(AG26=3,O26=2),U26/SUMIF(Refurb_Poss_Tbl[Refurbishment Possible],J26,Refurb_Poss_Tbl[%])*BO26,0)))) -> 0 | BF26: =IF(AF26=0,0,IF(AND(AG26=3,O26=1),R26*BO26,IF(AND(AG26=3,O26=3),R26*BO26,IF(AND(AG26=3,O26=2),R26/SUMIF(Refurb_Poss_Tbl[Refurbishment Possible],J26,Refurb_Poss_Tbl[%])*BO26,0)))) -> 0 | BG26: =IF(AF26=0,0,IF(AND(AG26=3,O26=1),V26*BO26,IF(AND(AG26=3,O26=3),V26*BO26,IF(AND(AG26=3,O26=2),V26/SUMIF(Refurb_Poss_Tbl[Refurbishment Possible],J26,Refurb_Poss_Tbl[%])*BO26,0)))) -> 0 | BH26: =IF(AF26=0,0,IF(AND(AG26=3,O26=1),W26*BO26,IF(AND(AG26=3,O26=3),W26*BO26,IF(AND(AG26=3,O26=2),W26/SUMIF(Refurb_Poss_Tbl[Refurbishment Possible],J26,Refurb_Poss_Tbl[%])*BO26,0)))) -> 0 | BI26: =IF(AF26=0,0,IF(AND(AG26=3,O26=1),X26*BO26,IF(AND(AG26=3,O26=3),X26*BO26,IF(AND(AG26=3,O26=2),X26/SUMIF(Refurb_Poss_Tbl[Refurbishment Possible],J26,Refurb_Poss_Tbl[%])*BO26,0)))) -> 0 | BJ26: =VLOOKUP($AF26,DiscountWorking!$B$7:$C$107,2,FALSE) -> 0.2531174485 | BK26: =VLOOKUP($AF26,DiscountWorking!$J$7:$K$107,2,FALSE) -> 0.9098043812 | BL26: =VLOOKUP($AF26,DiscountWorking!$Q$7:$R$107,2,FALSE) -> 0.7999706469 | BM26: =VLOOKUP($AF26,DiscountWorking!$T$7:$U$107,2,FALSE) -> 0.5836729129 | BN26: =VLOOKUP($AF26,DiscountWorking!$W$7:$X$107,2,FALSE) -> 0.5814609148 | BO26: =VLOOKUP($AF26,DiscountWorking!$Z$7:$AA$107,2,FALSE) -> 0.7022573276
A27: ChanEA05 | C27: Channel | D27: ChanEA0556 | F27: Channel | G27: 120 | H27: First intervention | I27: Expected new build/Replacement life | J27: Refurbishment type | K27: Expected refurbished Life | L27: 0 | M27: 0 | N27: 0 | O27: First Intervention code | P27: 2 | Q27: 0 | R27: 0 | S27: 0 | T27: 0 | U27: 0 | V27: 0 | W27: 0 | X27: 0 | Y27: 0 | Z27: 0 | AA27: 0 | AB27: 0 | AC27: 0 | AD27: 0 | AE27: 0 | AF27: 25 | AG27: 0 | AH27: =VLOOKUP(AF27,ValidationLists!$M$1:$N$102,2,FALSE) -> 0.4231469893 | AI27: 0 | AJ27: 0 | AK27: 0 | AL27: 0 | AM27: 0 | AN27: 0 | AO27: 0 | AP27: 0 | AQ27: 0 | AR27: =IF(AND(O27=1,OR(AG27=3,AG27=2,AG27=0)),SUMIFS(FlatMaint!$Z$2:$Z$10000,FlatMaint!$A$2:$A$10000,D27,FlatMaint!$Y$2:$Y$10000,AF27)*BO27,IF(AND(O27=2,OR(AG27=3,AG27=2,AG27=0)),SUMIFS(FlatMaint!$Z$2:$Z$10000,FlatMaint!$A$2:$A$10000,D27,FlatMaint!$Y$2:$Y$10000,AF27)/SUMIF(Refurb_Poss_Tbl[Refurbishment Possible],J27,Refurb_Poss_Tbl[%])*BO27,IF(AND(O27=3,OR(AG27=3,AG27=2,AG27=0)),SUMIFS(FlatMaint!$Z$2:$Z$10000,FlatMaint!$A$2:$A$10000,D27,FlatMaint!$Y$2:$Y$10000,AF27)*BO27,0))) -> 0 | AS27: =IF(AND(O27=1,OR(AG27=3,AG27=2,AG27=0)),SUMIFS(FlatRepair!$Z$2:$Z$10000,FlatRepair!$A$2:$A$10000,D27,FlatRepair!$Y$2:$Y$10000,AF27)*BO27,IF(AND(O27=2,OR(AG27=3,AG27=2,AG27=0)),SUMIFS(FlatRepair!$Z$2:$Z$10000,FlatRepair!$A$2:$A$10000,D27,FlatRepair!$Y$2:$Y$10000,AF27)/SUMIF(Refurb_Poss_Tbl[Refurbishment Possible],J27,Refurb_Poss_Tbl[%])*BO27,IF(AND(O27=3,OR(AG27=3,AG27=2,AG27=0)),SUMIFS(FlatRepair!$Z$2:$Z$10000,FlatRepair!$A$2:$A$10000,D27,FlatRepair!$Y$2:$Y$10000,AF27)*BO27,0))) -> 0 | AT27: 0 | AU27: 0 | AV27: 0 | AW27: =IF(AND(AG27=3,O27=1),AC27*BM27,IF(AND(AG27=3,O27=3),AC27*BM27,IF(AND(AG27=3,O27=2),AC27/SUMIF(Refurb_Poss_Tbl[Refurbishment Possible],J27,Refurb_Poss_Tbl[%])*BM27,IF(AND(AG27=2,O27=2),AC27*BM27,IF(AND(AG27=2,O27=1),SUMIF(Refurb_Poss_Tbl[Refurbishment Possible],J27,Refurb_Poss_Tbl[%])*AC27*BM27,IF(AND(AG27=2,O27=3),SUMIF(Refurb_Poss_Tbl[Refurbishment Possible],J27,Refurb_Poss_Tbl[%])*AC27*BM27,0)))))) -> 0 | AX27: =IF(AND(AG27=3,O27=1),AD27*BK27,IF(AND(AG27=3,O27=3),AD27*BK27,IF(AND(AG27=3,O27=2),AD27/SUMIF(Refurb_Poss_Tbl[Refurbishment Possible],J27,Refurb_Poss_Tbl[%])*BK27,IF(AND(AG27=2,O27=2),AD27*BK27,IF(AND(AG27=2,O27=1),SUMIF(Refurb_Poss_Tbl[Refurbishment Possible],J27,Refurb_Poss_Tbl[%])*AD27*BK27,IF(AND(AG27=2,O27=3),SUMIF(Refurb_Poss_Tbl[Refurbishment Possible],J27,Refurb_Poss_Tbl[%])*AD27*BK27,0)))))) -> 0 | AY27: =IF(AND(AG27=3,O27=1),(AE27/ValidationLists!$F$114)*BL27,IF(AND(AG27=3,O27=3),AE27*BL27,IF(AND(AG27=3,O27=2),AE27/SUMIF(Refurb_Poss_Tbl[Refurbishment Possible],J27,Refurb_Poss_Tbl[%])*BL27,IF(AND(AG27=2,O27=2),AE27*BL27,IF(AND(AG27=2,O27=1),SUMIF(Refurb_Poss_Tbl[Refurbishment Possible],J27,Refurb_Poss_Tbl[%])*AE27*BL27,IF(AND(AG27=2,O27=3),SUMIF(Refurb_Poss_Tbl[Refurbishment Possible],J27,Refurb_Poss_Tbl[%])*AE27*BL27,0)))))) -> 0 | AZ27: 0 | BA27: 0 | BB27: =IFERROR(IF(AF27=100,IF(P27=1,(N27/I27)*(Y27*BO27)*-1,IF(P27=2,(N27/K27)*(Y27*SUMIF(Refurb_Poss_Tbl[Refurbishment Possible],J27,Refurb_Poss_Tbl[%]))*BO27*-1,IF(P27=3,(N27/I27)*(Y27+(T27*ValidationLists!$F$114)+(U27*ValidationLists!$F$115))*BO27*-1,0))),0),0) -> 0 | BC27: =IF(AF27=0,0,IF(AND($AG27=3,O27=1),S27*BO27,IF(AND(AG27=3,O27=3),S27*BO27,IF(AND(AG27=3,O27=2),S27/SUMIF(Refurb_Poss_Tbl[Refurbishment Possible],J27,Refurb_Poss_Tbl[%])*BO27,0)))) -> 0 | BD27: =IF(AF27=0,0,IF(AND(AG27=3,O27=1),(T27/ValidationLists!$F$114)*BO27,IF(AND($AG27=3,O27=3),T27*BO27,IF(AND(AG27=3,O27=2),T27/SUMIF(Refurb_Poss_Tbl[Refurbishment Possible],J27,Refurb_Poss_Tbl[%])*BO27,0)))) -> 0 | BE27: =IF(AF27=0,0,IF(AND(AG27=3,O27=1),(U27/ValidationLists!$F$114)*BO27,IF(AND($AG27=3,O27=3),U27*BO27,IF(AND(AG27=3,O27=2),U27/SUMIF(Refurb_Poss_Tbl[Refurbishment Possible],J27,Refurb_Poss_Tbl[%])*BO27,0)))) -> 0 | BF27: =IF(AF27=0,0,IF(AND(AG27=3,O27=1),R27*BO27,IF(AND(AG27=3,O27=3),R27*BO27,IF(AND(AG27=3,O27=2),R27/SUMIF(Refurb_Poss_Tbl[Refurbishment Possible],J27,Refurb_Poss_Tbl[%])*BO27,0)))) -> 0 | BG27: =IF(AF27=0,0,IF(AND(AG27=3,O27=1),V27*BO27,IF(AND(AG27=3,O27=3),V27*BO27,IF(AND(AG27=3,O27=2),V27/SUMIF(Refurb_Poss_Tbl[Refurbishment Possible],J27,Refurb_Poss_Tbl[%])*BO27,0)))) -> 0 | BH27: =IF(AF27=0,0,IF(AND(AG27=3,O27=1),W27*BO27,IF(AND(AG27=3,O27=3),W27*BO27,IF(AND(AG27=3,O27=2),W27/SUMIF(Refurb_Poss_Tbl[Refurbishment Possible],J27,Refurb_Poss_Tbl[%])*BO27,0)))) -> 0 | BI27: =IF(AF27=0,0,IF(AND(AG27=3,O27=1),X27*BO27,IF(AND(AG27=3,O27=3),X27*BO27,IF(AND(AG27=3,O27=2),X27/SUMIF(Refurb_Poss_Tbl[Refurbishment Possible],J27,Refurb_Poss_Tbl[%])*BO27,0)))) -> 0 | BJ27: =VLOOKUP($AF27,DiscountWorking!$B$7:$C$107,2,FALSE) -> 0.2436585762 | BK27: =VLOOKUP($AF27,DiscountWorking!$J$7:$K$107,2,FALSE) -> 0.9097231257 | BL27: =VLOOKUP($AF27,DiscountWorking!$Q$7:$R$107,2,FALSE) -> 0.8006810689 | BM27: =VLOOKUP($AF27,DiscountWorking!$T$7:$U$107,2,FALSE) -> 0.5789344368 | BN27: =VLOOKUP($AF27,DiscountWorking!$W$7:$X$107,2,FALSE) -> 0.576690851 | BO27: =VLOOKUP($AF27,DiscountWorking!$Z$7:$AA$107,2,FALSE) -> 0.6994482724
A28: ChanEA05 | C28: Channel | D28: ChanEA0556 | F28: Channel | G28: 120 | H28: First intervention | I28: Expected new build/Replacement life | J28: Refurbishment type | K28: Expected refurbished Life | L28: 0 | M28: 0 | N28: 0 | O28: First Intervention code | P28: 2 | Q28: 0 | R28: 0 | S28: 0 | T28: 0 | U28: 0 | V28: 0 | W28: 0 | X28: 0 | Y28: 0 | Z28: 0 | AA28: 0 | AB28: 0 | AC28: 0 | AD28: 0 | AE28: 0 | AF28: 26 | AG28: 0 | AH28: =VLOOKUP(AF28,ValidationLists!$M$1:$N$102,2,FALSE) -> 0.4088376708 | AI28: 0 | AJ28: 0 | AK28: 0 | AL28: 0 | AM28: 0 | AN28: 0 | AO28: 0 | AP28: 0 | AQ28: 0 | AR28: =IF(AND(O28=1,OR(AG28=3,AG28=2,AG28=0)),SUMIFS(FlatMaint!$Z$2:$Z$10000,FlatMaint!$A$2:$A$10000,D28,FlatMaint!$Y$2:$Y$10000,AF28)*BO28,IF(AND(O28=2,OR(AG28=3,AG28=2,AG28=0)),SUMIFS(FlatMaint!$Z$2:$Z$10000,FlatMaint!$A$2:$A$10000,D28,FlatMaint!$Y$2:$Y$10000,AF28)/SUMIF(Refurb_Poss_Tbl[Refurbishment Possible],J28,Refurb_Poss_Tbl[%])*BO28,IF(AND(O28=3,OR(AG28=3,AG28=2,AG28=0)),SUMIFS(FlatMaint!$Z$2:$Z$10000,FlatMaint!$A$2:$A$10000,D28,FlatMaint!$Y$2:$Y$10000,AF28)*BO28,0))) -> 0 | AS28: =IF(AND(O28=1,OR(AG28=3,AG28=2,AG28=0)),SUMIFS(FlatRepair!$Z$2:$Z$10000,FlatRepair!$A$2:$A$10000,D28,FlatRepair!$Y$2:$Y$10000,AF28)*BO28,IF(AND(O28=2,OR(AG28=3,AG28=2,AG28=0)),SUMIFS(FlatRepair!$Z$2:$Z$10000,FlatRepair!$A$2:$A$10000,D28,FlatRepair!$Y$2:$Y$10000,AF28)/SUMIF(Refurb_Poss_Tbl[Refurbishment Possible],J28,Refurb_Poss_Tbl[%])*BO28,IF(AND(O28=3,OR(AG28=3,AG28=2,AG28=0)),SUMIFS(FlatRepair!$Z$2:$Z$10000,FlatRepair!$A$2:$A$10000,D28,FlatRepair!$Y$2:$Y$10000,AF28)*BO28,0))) -> 0 | AT28: 0 | AU28: 0 | AV28: 0 | AW28: =IF(AND(AG28=3,O28=1),AC28*BM28,IF(AND(AG28=3,O28=3),AC28*BM28,IF(AND(AG28=3,O28=2),AC28/SUMIF(Refurb_Poss_Tbl[Refurbishment Possible],J28,Refurb_Poss_Tbl[%])*BM28,IF(AND(AG28=2,O28=2),AC28*BM28,IF(AND(AG28=2,O28=1),SUMIF(Refurb_Poss_Tbl[Refurbishment Possible],J28,Refurb_Poss_Tbl[%])*AC28*BM28,IF(AND(AG28=2,O28=3),SUMIF(Refurb_Poss_Tbl[Refurbishment Possible],J28,Refurb_Poss_Tbl[%])*AC28*BM28,0)))))) -> 0 | AX28: =IF(AND(AG28=3,O28=1),AD28*BK28,IF(AND(AG28=3,O28=3),AD28*BK28,IF(AND(AG28=3,O28=2),AD28/SUMIF(Refurb_Poss_Tbl[Refurbishment Possible],J28,Refurb_Poss_Tbl[%])*BK28,IF(AND(AG28=2,O28=2),AD28*BK28,IF(AND(AG28=2,O28=1),SUMIF(Refurb_Poss_Tbl[Refurbishment Possible],J28,Refurb_Poss_Tbl[%])*AD28*BK28,IF(AND(AG28=2,O28=3),SUMIF(Refurb_Poss_Tbl[Refurbishment Possible],J28,Refurb_Poss_Tbl[%])*AD28*BK28,0)))))) -> 0 | AY28: =IF(AND(AG28=3,O28=1),(AE28/ValidationLists!$F$114)*BL28,IF(AND(AG28=3,O28=3),AE28*BL28,IF(AND(AG28=3,O28=2),AE28/SUMIF(Refurb_Poss_Tbl[Refurbishment Possible],J28,Refurb_Poss_Tbl[%])*BL28,IF(AND(AG28=2,O28=2),AE28*BL28,IF(AND(AG28=2,O28=1),SUMIF(Refurb_Poss_Tbl[Refurbishment Possible],J28,Refurb_Poss_Tbl[%])*AE28*BL28,IF(AND(AG28=2,O28=3),SUMIF(Refurb_Poss_Tbl[Refurbishment Possible],J28,Refurb_Poss_Tbl[%])*AE28*BL28,0)))))) -> 0 | AZ28: 0 | BA28: 0 | BB28: =IFERROR(IF(AF28=100,IF(P28=1,(N28/I28)*(Y28*BO28)*-1,IF(P28=2,(N28/K28)*(Y28*SUMIF(Refurb_Poss_Tbl[Refurbishment Possible],J28,Refurb_Poss_Tbl[%]))*BO28*-1,IF(P28=3,(N28/I28)*(Y28+(T28*ValidationLists!$F$114)+(U28*ValidationLists!$F$115))*BO28*-1,0))),0),0) -> 0 | BC28: =IF(AF28=0,0,IF(AND($AG28=3,O28=1),S28*BO28,IF(AND(AG28=3,O28=3),S28*BO28,IF(AND(AG28=3,O28=2),S28/SUMIF(Refurb_Poss_Tbl[Refurbishment Possible],J28,Refurb_Poss_Tbl[%])*BO28,0)))) -> 0 | BD28: =IF(AF28=0,0,IF(AND(AG28=3,O28=1),(T28/ValidationLists!$F$114)*BO28,IF(AND($AG28=3,O28=3),T28*BO28,IF(AND(AG28=3,O28=2),T28/SUMIF(Refurb_Poss_Tbl[Refurbishment Possible],J28,Refurb_Poss_Tbl[%])*BO28,0)))) -> 0 | BE28: =IF(AF28=0,0,IF(AND(AG28=3,O28=1),(U28/ValidationLists!$F$114)*BO28,IF(AND($AG28=3,O28=3),U28*BO28,IF(AND(AG28=3,O28=2),U28/SUMIF(Refurb_Poss_Tbl[Refurbishment Possible],J28,Refurb_Poss_Tbl[%])*BO28,0)))) -> 0 | BF28: =IF(AF28=0,0,IF(AND(AG28=3,O28=1),R28*BO28,IF(AND(AG28=3,O28=3),R28*BO28,IF(AND(AG28=3,O28=2),R28/SUMIF(Refurb_Poss_Tbl[Refurbishment Possible],J28,Refurb_Poss_Tbl[%])*BO28,0)))) -> 0 | BG28: =IF(AF28=0,0,IF(AND(AG28=3,O28=1),V28*BO28,IF(AND(AG28=3,O28=3),V28*BO28,IF(AND(AG28=3,O28=2),V28/SUMIF(Refurb_Poss_Tbl[Refurbishment Possible],J28,Refurb_Poss_Tbl[%])*BO28,0)))) -> 0 | BH28: =IF(AF28=0,0,IF(AND(AG28=3,O28=1),W28*BO28,IF(AND(AG28=3,O28=3),W28*BO28,IF(AND(AG28=3,O28=2),W28/SUMIF(Refurb_Poss_Tbl[Refurbishment Possible],J28,Refurb_Poss_Tbl[%])*BO28,0)))) -> 0 | BI28: =IF(AF28=0,0,IF(AND(AG28=3,O28=1),X28*BO28,IF(AND(AG28=3,O28=3),X28*BO28,IF(AND(AG28=3,O28=2),X28/SUMIF(Refurb_Poss_Tbl[Refurbishment Possible],J28,Refurb_Poss_Tbl[%])*BO28,0)))) -> 0 | BJ28: =VLOOKUP($AF28,DiscountWorking!$B$7:$C$107,2,FALSE) -> 0.2341997038 | BK28: =VLOOKUP($AF28,DiscountWorking!$J$7:$K$107,2,FALSE) -> 0.9096591319 | BL28: =VLOOKUP($AF28,DiscountWorking!$Q$7:$R$107,2,FALSE) -> 0.8014362029 | BM28: =VLOOKUP($AF28,DiscountWorking!$T$7:$U$107,2,FALSE) -> 0.5742046496 | BN28: =VLOOKUP($AF28,DiscountWorking!$W$7:$X$107,2,FALSE) -> 0.5719294179 | BO28: =VLOOKUP($AF28,DiscountWorking!$Z$7:$AA$107,2,FALSE) -> 0.6966540569
A29: ChanEA05 | C29: Channel | D29: ChanEA0556 | F29: Channel | G29: 120 | H29: First intervention | I29: Expected new build/Replacement life | J29: Refurbishment type | K29: Expected refurbished Life | L29: 0 | M29: 0 | N29: 0 | O29: First Intervention code | P29: 2 | Q29: 0 | R29: 0 | S29: 0 | T29: 0 | U29: 0 | V29: 0 | W29: 0 | X29: 0 | Y29: 0 | Z29: 0 | AA29: 0 | AB29: 0 | AC29: 0 | AD29: 0 | AE29: 0 | AF29: 27 | AG29: 0 | AH29: =VLOOKUP(AF29,ValidationLists!$M$1:$N$102,2,FALSE) -> 0.3950122423 | AI29: 0 | AJ29: 0 | AK29: 0 | AL29: 0 | AM29: 0 | AN29: 0 | AO29: 0 | AP29: 0 | AQ29: 0 | AR29: =IF(AND(O29=1,OR(AG29=3,AG29=2,AG29=0)),SUMIFS(FlatMaint!$Z$2:$Z$10000,FlatMaint!$A$2:$A$10000,D29,FlatMaint!$Y$2:$Y$10000,AF29)*BO29,IF(AND(O29=2,OR(AG29=3,AG29=2,AG29=0)),SUMIFS(FlatMaint!$Z$2:$Z$10000,FlatMaint!$A$2:$A$10000,D29,FlatMaint!$Y$2:$Y$10000,AF29)/SUMIF(Refurb_Poss_Tbl[Refurbishment Possible],J29,Refurb_Poss_Tbl[%])*BO29,IF(AND(O29=3,OR(AG29=3,AG29=2,AG29=0)),SUMIFS(FlatMaint!$Z$2:$Z$10000,FlatMaint!$A$2:$A$10000,D29,FlatMaint!$Y$2:$Y$10000,AF29)*BO29,0))) -> 0 | AS29: =IF(AND(O29=1,OR(AG29=3,AG29=2,AG29=0)),SUMIFS(FlatRepair!$Z$2:$Z$10000,FlatRepair!$A$2:$A$10000,D29,FlatRepair!$Y$2:$Y$10000,AF29)*BO29,IF(AND(O29=2,OR(AG29=3,AG29=2,AG29=0)),SUMIFS(FlatRepair!$Z$2:$Z$10000,FlatRepair!$A$2:$A$10000,D29,FlatRepair!$Y$2:$Y$10000,AF29)/SUMIF(Refurb_Poss_Tbl[Refurbishment Possible],J29,Refurb_Poss_Tbl[%])*BO29,IF(AND(O29=3,OR(AG29=3,AG29=2,AG29=0)),SUMIFS(FlatRepair!$Z$2:$Z$10000,FlatRepair!$A$2:$A$10000,D29,FlatRepair!$Y$2:$Y$10000,AF29)*BO29,0))) -> 0 | AT29: 0 | AU29: 0 | AV29: 0 | AW29: =IF(AND(AG29=3,O29=1),AC29*BM29,IF(AND(AG29=3,O29=3),AC29*BM29,IF(AND(AG29=3,O29=2),AC29/SUMIF(Refurb_Poss_Tbl[Refurbishment Possible],J29,Refurb_Poss_Tbl[%])*BM29,IF(AND(AG29=2,O29=2),AC29*BM29,IF(AND(AG29=2,O29=1),SUMIF(Refurb_Poss_Tbl[Refurbishment Possible],J29,Refurb_Poss_Tbl[%])*AC29*BM29,IF(AND(AG29=2,O29=3),SUMIF(Refurb_Poss_Tbl[Refurbishment Possible],J29,Refurb_Poss_Tbl[%])*AC29*BM29,0)))))) -> 0 | AX29: =IF(AND(AG29=3,O29=1),AD29*BK29,IF(AND(AG29=3,O29=3),AD29*BK29,IF(AND(AG29=3,O29=2),AD29/SUMIF(Refurb_Poss_Tbl[Refurbishment Possible],J29,Refurb_Poss_Tbl[%])*BK29,IF(AND(AG29=2,O29=2),AD29*BK29,IF(AND(AG29=2,O29=1),SUMIF(Refurb_Poss_Tbl[Refurbishment Possible],J29,Refurb_Poss_Tbl[%])*AD29*BK29,IF(AND(AG29=2,O29=3),SUMIF(Refurb_Poss_Tbl[Refurbishment Possible],J29,Refurb_Poss_Tbl[%])*AD29*BK29,0)))))) -> 0 | AY29: =IF(AND(AG29=3,O29=1),(AE29/ValidationLists!$F$114)*BL29,IF(AND(AG29=3,O29=3),AE29*BL29,IF(AND(AG29=3,O29=2),AE29/SUMIF(Refurb_Poss_Tbl[Refurbishment Possible],J29,Refurb_Poss_Tbl[%])*BL29,IF(AND(AG29=2,O29=2),AE29*BL29,IF(AND(AG29=2,O29=1),SUMIF(Refurb_Poss_Tbl[Refurbishment Possible],J29,Refurb_Poss_Tbl[%])*AE29*BL29,IF(AND(AG29=2,O29=3),SUMIF(Refurb_Poss_Tbl[Refurbishment Possible],J29,Refurb_Poss_Tbl[%])*AE29*BL29,0)))))) -> 0 | AZ29: 0 | BA29: 0 | BB29: =IFERROR(IF(AF29=100,IF(P29=1,(N29/I29)*(Y29*BO29)*-1,IF(P29=2,(N29/K29)*(Y29*SUMIF(Refurb_Poss_Tbl[Refurbishment Possible],J29,Refurb_Poss_Tbl[%]))*BO29*-1,IF(P29=3,(N29/I29)*(Y29+(T29*ValidationLists!$F$114)+(U29*ValidationLists!$F$115))*BO29*-1,0))),0),0) -> 0 | BC29: =IF(AF29=0,0,IF(AND($AG29=3,O29=1),S29*BO29,IF(AND(AG29=3,O29=3),S29*BO29,IF(AND(AG29=3,O29=2),S29/SUMIF(Refurb_Poss_Tbl[Refurbishment Possible],J29,Refurb_Poss_Tbl[%])*BO29,0)))) -> 0 | BD29: =IF(AF29=0,0,IF(AND(AG29=3,O29=1),(T29/ValidationLists!$F$114)*BO29,IF(AND($AG29=3,O29=3),T29*BO29,IF(AND(AG29=3,O29=2),T29/SUMIF(Refurb_Poss_Tbl[Refurbishment Possible],J29,Refurb_Poss_Tbl[%])*BO29,0)))) -> 0 | BE29: =IF(AF29=0,0,IF(AND(AG29=3,O29=1),(U29/ValidationLists!$F$114)*BO29,IF(AND($AG29=3,O29=3),U29*BO29,IF(AND(AG29=3,O29=2),U29/SUMIF(Refurb_Poss_Tbl[Refurbishment Possible],J29,Refurb_Poss_Tbl[%])*BO29,0)))) -> 0 | BF29: =IF(AF29=0,0,IF(AND(AG29=3,O29=1),R29*BO29,IF(AND(AG29=3,O29=3),R29*BO29,IF(AND(AG29=3,O29=2),R29/SUMIF(Refurb_Poss_Tbl[Refurbishment Possible],J29,Refurb_Poss_Tbl[%])*BO29,0)))) -> 0 | BG29: =IF(AF29=0,0,IF(AND(AG29=3,O29=1),V29*BO29,IF(AND(AG29=3,O29=3),V29*BO29,IF(AND(AG29=3,O29=2),V29/SUMIF(Refurb_Poss_Tbl[Refurbishment Possible],J29,Refurb_Poss_Tbl[%])*BO29,0)))) -> 0 | BH29: =IF(AF29=0,0,IF(AND(AG29=3,O29=1),W29*BO29,IF(AND(AG29=3,O29=3),W29*BO29,IF(AND(AG29=3,O29=2),W29/SUMIF(Refurb_Poss_Tbl[Refurbishment Possible],J29,Refurb_Poss_Tbl[%])*BO29,0)))) -> 0 | BI29: =IF(AF29=0,0,IF(AND(AG29=3,O29=1),X29*BO29,IF(AND(AG29=3,O29=3),X29*BO29,IF(AND(AG29=3,O29=2),X29/SUMIF(Refurb_Poss_Tbl[Refurbishment Possible],J29,Refurb_Poss_Tbl[%])*BO29,0)))) -> 0 | BJ29: =VLOOKUP($AF29,DiscountWorking!$B$7:$C$107,2,FALSE) -> 0.2247408315 | BK29: =VLOOKUP($AF29,DiscountWorking!$J$7:$K$107,2,FALSE) -> 0.9095983789 | BL29: =VLOOKUP($AF29,DiscountWorking!$Q$7:$R$107,2,FALSE) -> 0.7987548076 | BM29: =VLOOKUP($AF29,DiscountWorking!$T$7:$U$107,2,FALSE) -> 0.5694764937 | BN29: =VLOOKUP($AF29,DiscountWorking!$W$7:$X$107,2,FALSE) -> 0.5671696052 | BO29: =VLOOKUP($AF29,DiscountWorking!$Z$7:$AA$107,2,FALSE) -> 0.6935181352
A30: ChanEA05 | C30: Channel | D30: ChanEA0556 | F30: Channel | G30: 120 | H30: First intervention | I30: Expected new build/Replacement life | J30: Refurbishment type | K30: Expected refurbished Life | L30: 0 | M30: 0 | N30: 0 | O30: First Intervention code | P30: 2 | Q30: 0 | R30: 0 | S30: 0 | T30: 0 | U30: 0 | V30: 0 | W30: 0 | X30: 0 | Y30: 0 | Z30: 0 | AA30: 0 | AB30: 0 | AC30: 0 | AD30: 0 | AE30: 0 | AF30: 28 | AG30: 0 | AH30: =VLOOKUP(AF30,ValidationLists!$M$1:$N$102,2,FALSE) -> 0.3816543404 | AI30: 0 | AJ30: 0 | AK30: 0 | AL30: 0 | AM30: 0 | AN30: 0 | AO30: 0 | AP30: 0 | AQ30: 0 | AR30: =IF(AND(O30=1,OR(AG30=3,AG30=2,AG30=0)),SUMIFS(FlatMaint!$Z$2:$Z$10000,FlatMaint!$A$2:$A$10000,D30,FlatMaint!$Y$2:$Y$10000,AF30)*BO30,IF(AND(O30=2,OR(AG30=3,AG30=2,AG30=0)),SUMIFS(FlatMaint!$Z$2:$Z$10000,FlatMaint!$A$2:$A$10000,D30,FlatMaint!$Y$2:$Y$10000,AF30)/SUMIF(Refurb_Poss_Tbl[Refurbishment Possible],J30,Refurb_Poss_Tbl[%])*BO30,IF(AND(O30=3,OR(AG30=3,AG30=2,AG30=0)),SUMIFS(FlatMaint!$Z$2:$Z$10000,FlatMaint!$A$2:$A$10000,D30,FlatMaint!$Y$2:$Y$10000,AF30)*BO30,0))) -> 0 | AS30: =IF(AND(O30=1,OR(AG30=3,AG30=2,AG30=0)),SUMIFS(FlatRepair!$Z$2:$Z$10000,FlatRepair!$A$2:$A$10000,D30,FlatRepair!$Y$2:$Y$10000,AF30)*BO30,IF(AND(O30=2,OR(AG30=3,AG30=2,AG30=0)),SUMIFS(FlatRepair!$Z$2:$Z$10000,FlatRepair!$A$2:$A$10000,D30,FlatRepair!$Y$2:$Y$10000,AF30)/SUMIF(Refurb_Poss_Tbl[Refurbishment Possible],J30,Refurb_Poss_Tbl[%])*BO30,IF(AND(O30=3,OR(AG30=3,AG30=2,AG30=0)),SUMIFS(FlatRepair!$Z$2:$Z$10000,FlatRepair!$A$2:$A$10000,D30,FlatRepair!$Y$2:$Y$10000,AF30)*BO30,0))) -> 0 | AT30: 0 | AU30: 0 | AV30: 0 | AW30: =IF(AND(AG30=3,O30=1),AC30*BM30,IF(AND(AG30=3,O30=3),AC30*BM30,IF(AND(AG30=3,O30=2),AC30/SUMIF(Refurb_Poss_Tbl[Refurbishment Possible],J30,Refurb_Poss_Tbl[%])*BM30,IF(AND(AG30=2,O30=2),AC30*BM30,IF(AND(AG30=2,O30=1),SUMIF(Refurb_Poss_Tbl[Refurbishment Possible],J30,Refurb_Poss_Tbl[%])*AC30*BM30,IF(AND(AG30=2,O30=3),SUMIF(Refurb_Poss_Tbl[Refurbishment Possible],J30,Refurb_Poss_Tbl[%])*AC30*BM30,0)))))) -> 0 | AX30: =IF(AND(AG30=3,O30=1),AD30*BK30,IF(AND(AG30=3,O30=3),AD30*BK30,IF(AND(AG30=3,O30=2),AD30/SUMIF(Refurb_Poss_Tbl[Refurbishment Possible],J30,Refurb_Poss_Tbl[%])*BK30,IF(AND(AG30=2,O30=2),AD30*BK30,IF(AND(AG30=2,O30=1),SUMIF(Refurb_Poss_Tbl[Refurbishment Possible],J30,Refurb_Poss_Tbl[%])*AD30*BK30,IF(AND(AG30=2,O30=3),SUMIF(Refurb_Poss_Tbl[Refurbishment Possible],J30,Refurb_Poss_Tbl[%])*AD30*BK30,0)))))) -> 0 | AY30: =IF(AND(AG30=3,O30=1),(AE30/ValidationLists!$F$114)*BL30,IF(AND(AG30=3,O30=3),AE30*BL30,IF(AND(AG30=3,O30=2),AE30/SUMIF(Refurb_Poss_Tbl[Refurbishment Possible],J30,Refurb_Poss_Tbl[%])*BL30,IF(AND(AG30=2,O30=2),AE30*BL30,IF(AND(AG30=2,O30=1),SUMIF(Refurb_Poss_Tbl[Refurbishment Possible],J30,Refurb_Poss_Tbl[%])*AE30*BL30,IF(AND(AG30=2,O30=3),SUMIF(Refurb_Poss_Tbl[Refurbishment Possible],J30,Refurb_Poss_Tbl[%])*AE30*BL30,0)))))) -> 0 | AZ30: 0 | BA30: 0 | BB30: =IFERROR(IF(AF30=100,IF(P30=1,(N30/I30)*(Y30*BO30)*-1,IF(P30=2,(N30/K30)*(Y30*SUMIF(Refurb_Poss_Tbl[Refurbishment Possible],J30,Refurb_Poss_Tbl[%]))*BO30*-1,IF(P30=3,(N30/I30)*(Y30+(T30*ValidationLists!$F$114)+(U30*ValidationLists!$F$115))*BO30*-1,0))),0),0) -> 0 | BC30: =IF(AF30=0,0,IF(AND($AG30=3,O30=1),S30*BO30,IF(AND(AG30=3,O30=3),S30*BO30,IF(AND(AG30=3,O30=2),S30/SUMIF(Refurb_Poss_Tbl[Refurbishment Possible],J30,Refurb_Poss_Tbl[%])*BO30,0)))) -> 0 | BD30: =IF(AF30=0,0,IF(AND(AG30=3,O30=1),(T30/ValidationLists!$F$114)*BO30,IF(AND($AG30=3,O30=3),T30*BO30,IF(AND(AG30=3,O30=2),T30/SUMIF(Refurb_Poss_Tbl[Refurbishment Possible],J30,Refurb_Poss_Tbl[%])*BO30,0)))) -> 0 | BE30: =IF(AF30=0,0,IF(AND(AG30=3,O30=1),(U30/ValidationLists!$F$114)*BO30,IF(AND($AG30=3,O30=3),U30*BO30,IF(AND(AG30=3,O30=2),U30/SUMIF(Refurb_Poss_Tbl[Refurbishment Possible],J30,Refurb_Poss_Tbl[%])*BO30,0)))) -> 0 | BF30: =IF(AF30=0,0,IF(AND(AG30=3,O30=1),R30*BO30,IF(AND(AG30=3,O30=3),R30*BO30,IF(AND(AG30=3,O30=2),R30/SUMIF(Refurb_Poss_Tbl[Refurbishment Possible],J30,Refurb_Poss_Tbl[%])*BO30,0)))) -> 0 | BG30: =IF(AF30=0,0,IF(AND(AG30=3,O30=1),V30*BO30,IF(AND(AG30=3,O30=3),V30*BO30,IF(AND(AG30=3,O30=2),V30/SUMIF(Refurb_Poss_Tbl[Refurbishment Possible],J30,Refurb_Poss_Tbl[%])*BO30,0)))) -> 0 | BH30: =IF(AF30=0,0,IF(AND(AG30=3,O30=1),W30*BO30,IF(AND(AG30=3,O30=3),W30*BO30,IF(AND(AG30=3,O30=2),W30/SUMIF(Refurb_Poss_Tbl[Refurbishment Possible],J30,Refurb_Poss_Tbl[%])*BO30,0)))) -> 0 | BI30: =IF(AF30=0,0,IF(AND(AG30=3,O30=1),X30*BO30,IF(AND(AG30=3,O30=3),X30*BO30,IF(AND(AG30=3,O30=2),X30/SUMIF(Refurb_Poss_Tbl[Refurbishment Possible],J30,Refurb_Poss_Tbl[%])*BO30,0)))) -> 0 | BJ30: =VLOOKUP($AF30,DiscountWorking!$B$7:$C$107,2,FALSE) -> 0.2152819591 | BK30: =VLOOKUP($AF30,DiscountWorking!$J$7:$K$107,2,FALSE) -> 0.9095374712 | BL30: =VLOOKUP($AF30,DiscountWorking!$Q$7:$R$107,2,FALSE) -> 0.7995960956 | BM30: =VLOOKUP($AF30,DiscountWorking!$T$7:$U$107,2,FALSE) -> 0.56474826 | BN30: =VLOOKUP($AF30,DiscountWorking!$W$7:$X$107,2,FALSE) -> 0.5624097151 | BO30: =VLOOKUP($AF30,DiscountWorking!$Z$7:$AA$107,2,FALSE) -> 0.690734389
A31: ChanEA05 | C31: Channel | D31: ChanEA0556 | F31: Channel | G31: 120 | H31: First intervention | I31: Expected new build/Replacement life | J31: Refurbishment type | K31: Expected refurbished Life | L31: 0 | M31: 0 | N31: 0 | O31: First Intervention code | P31: 2 | Q31: 0 | R31: 0 | S31: 0 | T31: 0 | U31: 0 | V31: 0 | W31: 0 | X31: 0 | Y31: 0 | Z31: 0 | AA31: 0 | AB31: 0 | AC31: 0 | AD31: 0 | AE31: 0 | AF31: 29 | AG31: 0 | AH31: =VLOOKUP(AF31,ValidationLists!$M$1:$N$102,2,FALSE) -> 0.368748155 | AI31: 0 | AJ31: 0 | AK31: 0 | AL31: 0 | AM31: 0 | AN31: 0 | AO31: 0 | AP31: 0 | AQ31: 0 | AR31: =IF(AND(O31=1,OR(AG31=3,AG31=2,AG31=0)),SUMIFS(FlatMaint!$Z$2:$Z$10000,FlatMaint!$A$2:$A$10000,D31,FlatMaint!$Y$2:$Y$10000,AF31)*BO31,IF(AND(O31=2,OR(AG31=3,AG31=2,AG31=0)),SUMIFS(FlatMaint!$Z$2:$Z$10000,FlatMaint!$A$2:$A$10000,D31,FlatMaint!$Y$2:$Y$10000,AF31)/SUMIF(Refurb_Poss_Tbl[Refurbishment Possible],J31,Refurb_Poss_Tbl[%])*BO31,IF(AND(O31=3,OR(AG31=3,AG31=2,AG31=0)),SUMIFS(FlatMaint!$Z$2:$Z$10000,FlatMaint!$A$2:$A$10000,D31,FlatMaint!$Y$2:$Y$10000,AF31)*BO31,0))) -> 0 | AS31: =IF(AND(O31=1,OR(AG31=3,AG31=2,AG31=0)),SUMIFS(FlatRepair!$Z$2:$Z$10000,FlatRepair!$A$2:$A$10000,D31,FlatRepair!$Y$2:$Y$10000,AF31)*BO31,IF(AND(O31=2,OR(AG31=3,AG31=2,AG31=0)),SUMIFS(FlatRepair!$Z$2:$Z$10000,FlatRepair!$A$2:$A$10000,D31,FlatRepair!$Y$2:$Y$10000,AF31)/SUMIF(Refurb_Poss_Tbl[Refurbishment Possible],J31,Refurb_Poss_Tbl[%])*BO31,IF(AND(O31=3,OR(AG31=3,AG31=2,AG31=0)),SUMIFS(FlatRepair!$Z$2:$Z$10000,FlatRepair!$A$2:$A$10000,D31,FlatRepair!$Y$2:$Y$10000,AF31)*BO31,0))) -> 0 | AT31: 0 | AU31: 0 | AV31: 0 | AW31: =IF(AND(AG31=3,O31=1),AC31*BM31,IF(AND(AG31=3,O31=3),AC31*BM31,IF(AND(AG31=3,O31=2),AC31/SUMIF(Refurb_Poss_Tbl[Refurbishment Possible],J31,Refurb_Poss_Tbl[%])*BM31,IF(AND(AG31=2,O31=2),AC31*BM31,IF(AND(AG31=2,O31=1),SUMIF(Refurb_Poss_Tbl[Refurbishment Possible],J31,Refurb_Poss_Tbl[%])*AC31*BM31,IF(AND(AG31=2,O31=3),SUMIF(Refurb_Poss_Tbl[Refurbishment Possible],J31,Refurb_Poss_Tbl[%])*AC31*BM31,0)))))) -> 0 | AX31: =IF(AND(AG31=3,O31=1),AD31*BK31,IF(AND(AG31=3,O31=3),AD31*BK31,IF(AND(AG31=3,O31=2),AD31/SUMIF(Refurb_Poss_Tbl[Refurbishment Possible],J31,Refurb_Poss_Tbl[%])*BK31,IF(AND(AG31=2,O31=2),AD31*BK31,IF(AND(AG31=2,O31=1),SUMIF(Refurb_Poss_Tbl[Refurbishment Possible],J31,Refurb_Poss_Tbl[%])*AD31*BK31,IF(AND(AG31=2,O31=3),SUMIF(Refurb_Poss_Tbl[Refurbishment Possible],J31,Refurb_Poss_Tbl[%])*AD31*BK31,0)))))) -> 0 | AY31: =IF(AND(AG31=3,O31=1),(AE31/ValidationLists!$F$114)*BL31,IF(AND(AG31=3,O31=3),AE31*BL31,IF(AND(AG31=3,O31=2),AE31/SUMIF(Refurb_Poss_Tbl[Refurbishment Possible],J31,Refurb_Poss_Tbl[%])*BL31,IF(AND(AG31=2,O31=2),AE31*BL31,IF(AND(AG31=2,O31=1),SUMIF(Refurb_Poss_Tbl[Refurbishment Possible],J31,Refurb_Poss_Tbl[%])*AE31*BL31,IF(AND(AG31=2,O31=3),SUMIF(Refurb_Poss_Tbl[Refurbishment Possible],J31,Refurb_Poss_Tbl[%])*AE31*BL31,0)))))) -> 0 | AZ31: 0 | BA31: 0 | BB31: =IFERROR(IF(AF31=100,IF(P31=1,(N31/I31)*(Y31*BO31)*-1,IF(P31=2,(N31/K31)*(Y31*SUMIF(Refurb_Poss_Tbl[Refurbishment Possible],J31,Refurb_Poss_Tbl[%]))*BO31*-1,IF(P31=3,(N31/I31)*(Y31+(T31*ValidationLists!$F$114)+(U31*ValidationLists!$F$115))*BO31*-1,0))),0),0) -> 0 | BC31: =IF(AF31=0,0,IF(AND($AG31=3,O31=1),S31*BO31,IF(AND(AG31=3,O31=3),S31*BO31,IF(AND(AG31=3,O31=2),S31/SUMIF(Refurb_Poss_Tbl[Refurbishment Possible],J31,Refurb_Poss_Tbl[%])*BO31,0)))) -> 0 | BD31: =IF(AF31=0,0,IF(AND(AG31=3,O31=1),(T31/ValidationLists!$F$114)*BO31,IF(AND($AG31=3,O31=3),T31*BO31,IF(AND(AG31=3,O31=2),T31/SUMIF(Refurb_Poss_Tbl[Refurbishment Possible],J31,Refurb_Poss_Tbl[%])*BO31,0)))) -> 0 | BE31: =IF(AF31=0,0,IF(AND(AG31=3,O31=1),(U31/ValidationLists!$F$114)*BO31,IF(AND($AG31=3,O31=3),U31*BO31,IF(AND(AG31=3,O31=2),U31/SUMIF(Refurb_Poss_Tbl[Refurbishment Possible],J31,Refurb_Poss_Tbl[%])*BO31,0)))) -> 0 | BF31: =IF(AF31=0,0,IF(AND(AG31=3,O31=1),R31*BO31,IF(AND(AG31=3,O31=3),R31*BO31,IF(AND(AG31=3,O31=2),R31/SUMIF(Refurb_Poss_Tbl[Refurbishment Possible],J31,Refurb_Poss_Tbl[%])*BO31,0)))) -> 0 | BG31: =IF(AF31=0,0,IF(AND(AG31=3,O31=1),V31*BO31,IF(AND(AG31=3,O31=3),V31*BO31,IF(AND(AG31=3,O31=2),V31/SUMIF(Refurb_Poss_Tbl[Refurbishment Possible],J31,Refurb_Poss_Tbl[%])*BO31,0)))) -> 0 | BH31: =IF(AF31=0,0,IF(AND(AG31=3,O31=1),W31*BO31,IF(AND(AG31=3,O31=3),W31*BO31,IF(AND(AG31=3,O31=2),W31/SUMIF(Refurb_Poss_Tbl[Refurbishment Possible],J31,Refurb_Poss_Tbl[%])*BO31,0)))) -> 0 | BI31: =IF(AF31=0,0,IF(AND(AG31=3,O31=1),X31*BO31,IF(AND(AG31=3,O31=3),X31*BO31,IF(AND(AG31=3,O31=2),X31/SUMIF(Refurb_Poss_Tbl[Refurbishment Possible],J31,Refurb_Poss_Tbl[%])*BO31,0)))) -> 0 | BJ31: =VLOOKUP($AF31,DiscountWorking!$B$7:$C$107,2,FALSE) -> 0.2058230867 | BK31: =VLOOKUP($AF31,DiscountWorking!$J$7:$K$107,2,FALSE) -> 0.9094802143 | BL31: =VLOOKUP($AF31,DiscountWorking!$Q$7:$R$107,2,FALSE) -> 0.8004496419 | BM31: =VLOOKUP($AF31,DiscountWorking!$T$7:$U$107,2,FALSE) -> 0.560021864 | BN31: =VLOOKUP($AF31,DiscountWorking!$W$7:$X$107,2,FALSE) -> 0.5576516505 | BO31: =VLOOKUP($AF31,DiscountWorking!$Z$7:$AA$107,2,FALSE) -> 0.6879540615
A32: ChanEA05 | C32: Channel | D32: ChanEA0556 | F32: Channel | G32: 120 | H32: First intervention | I32: Expected new build/Replacement life | J32: Refurbishment type | K32: Expected refurbished Life | L32: 0 | M32: 0 | N32: 0 | O32: First Intervention code | P32: 2 | Q32: 0 | R32: 0 | S32: 0 | T32: 0 | U32: 0 | V32: 0 | W32: 0 | X32: 0 | Y32: 0 | Z32: 0 | AA32: 0 | AB32: 0 | AC32: 0 | AD32: 0 | AE32: 0 | AF32: 30 | AG32: 0 | AH32: =VLOOKUP(AF32,ValidationLists!$M$1:$N$102,2,FALSE) -> 0.3562784106 | AI32: 0 | AJ32: 0 | AK32: 0 | AL32: 0 | AM32: 0 | AN32: 0 | AO32: 0 | AP32: 0 | AQ32: 0 | AR32: =IF(AND(O32=1,OR(AG32=3,AG32=2,AG32=0)),SUMIFS(FlatMaint!$Z$2:$Z$10000,FlatMaint!$A$2:$A$10000,D32,FlatMaint!$Y$2:$Y$10000,AF32)*BO32,IF(AND(O32=2,OR(AG32=3,AG32=2,AG32=0)),SUMIFS(FlatMaint!$Z$2:$Z$10000,FlatMaint!$A$2:$A$10000,D32,FlatMaint!$Y$2:$Y$10000,AF32)/SUMIF(Refurb_Poss_Tbl[Refurbishment Possible],J32,Refurb_Poss_Tbl[%])*BO32,IF(AND(O32=3,OR(AG32=3,AG32=2,AG32=0)),SUMIFS(FlatMaint!$Z$2:$Z$10000,FlatMaint!$A$2:$A$10000,D32,FlatMaint!$Y$2:$Y$10000,AF32)*BO32,0))) -> 0 | AS32: =IF(AND(O32=1,OR(AG32=3,AG32=2,AG32=0)),SUMIFS(FlatRepair!$Z$2:$Z$10000,FlatRepair!$A$2:$A$10000,D32,FlatRepair!$Y$2:$Y$10000,AF32)*BO32,IF(AND(O32=2,OR(AG32=3,AG32=2,AG32=0)),SUMIFS(FlatRepair!$Z$2:$Z$10000,FlatRepair!$A$2:$A$10000,D32,FlatRepair!$Y$2:$Y$10000,AF32)/SUMIF(Refurb_Poss_Tbl[Refurbishment Possible],J32,Refurb_Poss_Tbl[%])*BO32,IF(AND(O32=3,OR(AG32=3,AG32=2,AG32=0)),SUMIFS(FlatRepair!$Z$2:$Z$10000,FlatRepair!$A$2:$A$10000,D32,FlatRepair!$Y$2:$Y$10000,AF32)*BO32,0))) -> 0 | AT32: 0 | AU32: 0 | AV32: 0 | AW32: =IF(AND(AG32=3,O32=1),AC32*BM32,IF(AND(AG32=3,O32=3),AC32*BM32,IF(AND(AG32=3,O32=2),AC32/SUMIF(Refurb_Poss_Tbl[Refurbishment Possible],J32,Refurb_Poss_Tbl[%])*BM32,IF(AND(AG32=2,O32=2),AC32*BM32,IF(AND(AG32=2,O32=1),SUMIF(Refurb_Poss_Tbl[Refurbishment Possible],J32,Refurb_Poss_Tbl[%])*AC32*BM32,IF(AND(AG32=2,O32=3),SUMIF(Refurb_Poss_Tbl[Refurbishment Possible],J32,Refurb_Poss_Tbl[%])*AC32*BM32,0)))))) -> 0 | AX32: =IF(AND(AG32=3,O32=1),AD32*BK32,IF(AND(AG32=3,O32=3),AD32*BK32,IF(AND(AG32=3,O32=2),AD32/SUMIF(Refurb_Poss_Tbl[Refurbishment Possible],J32,Refurb_Poss_Tbl[%])*BK32,IF(AND(AG32=2,O32=2),AD32*BK32,IF(AND(AG32=2,O32=1),SUMIF(Refurb_Poss_Tbl[Refurbishment Possible],J32,Refurb_Poss_Tbl[%])*AD32*BK32,IF(AND(AG32=2,O32=3),SUMIF(Refurb_Poss_Tbl[Refurbishment Possible],J32,Refurb_Poss_Tbl[%])*AD32*BK32,0)))))) -> 0 | AY32: =IF(AND(AG32=3,O32=1),(AE32/ValidationLists!$F$114)*BL32,IF(AND(AG32=3,O32=3),AE32*BL32,IF(AND(AG32=3,O32=2),AE32/SUMIF(Refurb_Poss_Tbl[Refurbishment Possible],J32,Refurb_Poss_Tbl[%])*BL32,IF(AND(AG32=2,O32=2),AE32*BL32,IF(AND(AG32=2,O32=1),SUMIF(Refurb_Poss_Tbl[Refurbishment Possible],J32,Refurb_Poss_Tbl[%])*AE32*BL32,IF(AND(AG32=2,O32=3),SUMIF(Refurb_Poss_Tbl[Refurbishment Possible],J32,Refurb_Poss_Tbl[%])*AE32*BL32,0)))))) -> 0 | AZ32: 0 | BA32: 0 | BB32: =IFERROR(IF(AF32=100,IF(P32=1,(N32/I32)*(Y32*BO32)*-1,IF(P32=2,(N32/K32)*(Y32*SUMIF(Refurb_Poss_Tbl[Refurbishment Possible],J32,Refurb_Poss_Tbl[%]))*BO32*-1,IF(P32=3,(N32/I32)*(Y32+(T32*ValidationLists!$F$114)+(U32*ValidationLists!$F$115))*BO32*-1,0))),0),0) -> 0 | BC32: =IF(AF32=0,0,IF(AND($AG32=3,O32=1),S32*BO32,IF(AND(AG32=3,O32=3),S32*BO32,IF(AND(AG32=3,O32=2),S32/SUMIF(Refurb_Poss_Tbl[Refurbishment Possible],J32,Refurb_Poss_Tbl[%])*BO32,0)))) -> 0 | BD32: =IF(AF32=0,0,IF(AND(AG32=3,O32=1),(T32/ValidationLists!$F$114)*BO32,IF(AND($AG32=3,O32=3),T32*BO32,IF(AND(AG32=3,O32=2),T32/SUMIF(Refurb_Poss_Tbl[Refurbishment Possible],J32,Refurb_Poss_Tbl[%])*BO32,0)))) -> 0 | BE32: =IF(AF32=0,0,IF(AND(AG32=3,O32=1),(U32/ValidationLists!$F$114)*BO32,IF(AND($AG32=3,O32=3),U32*BO32,IF(AND(AG32=3,O32=2),U32/SUMIF(Refurb_Poss_Tbl[Refurbishment Possible],J32,Refurb_Poss_Tbl[%])*BO32,0)))) -> 0 | BF32: =IF(AF32=0,0,IF(AND(AG32=3,O32=1),R32*BO32,IF(AND(AG32=3,O32=3),R32*BO32,IF(AND(AG32=3,O32=2),R32/SUMIF(Refurb_Poss_Tbl[Refurbishment Possible],J32,Refurb_Poss_Tbl[%])*BO32,0)))) -> 0 | BG32: =IF(AF32=0,0,IF(AND(AG32=3,O32=1),V32*BO32,IF(AND(AG32=3,O32=3),V32*BO32,IF(AND(AG32=3,O32=2),V32/SUMIF(Refurb_Poss_Tbl[Refurbishment Possible],J32,Refurb_Poss_Tbl[%])*BO32,0)))) -> 0 | BH32: =IF(AF32=0,0,IF(AND(AG32=3,O32=1),W32*BO32,IF(AND(AG32=3,O32=3),W32*BO32,IF(AND(AG32=3,O32=2),W32/SUMIF(Refurb_Poss_Tbl[Refurbishment Possible],J32,Refurb_Poss_Tbl[%])*BO32,0)))) -> 0 | BI32: =IF(AF32=0,0,IF(AND(AG32=3,O32=1),X32*BO32,IF(AND(AG32=3,O32=3),X32*BO32,IF(AND(AG32=3,O32=2),X32/SUMIF(Refurb_Poss_Tbl[Refurbishment Possible],J32,Refurb_Poss_Tbl[%])*BO32,0)))) -> 0 | BJ32: =VLOOKUP($AF32,DiscountWorking!$B$7:$C$107,2,FALSE) -> 0.1963642144 | BK32: =VLOOKUP($AF32,DiscountWorking!$J$7:$K$107,2,FALSE) -> 0.9094271558 | BL32: =VLOOKUP($AF32,DiscountWorking!$Q$7:$R$107,2,FALSE) -> 0.7978914366 | BM32: =VLOOKUP($AF32,DiscountWorking!$T$7:$U$107,2,FALSE) -> 0.5552975813 | BN32: =VLOOKUP($AF32,DiscountWorking!$W$7:$X$107,2,FALSE) -> 0.5528956851 | BO32: =VLOOKUP($AF32,DiscountWorking!$Z$7:$AA$107,2,FALSE) -> 0.6848350807
A33: ChanEA05 | C33: Channel | D33: ChanEA0556 | F33: Channel | G33: 120 | H33: First intervention | I33: Expected new build/Replacement life | J33: Refurbishment type | K33: Expected refurbished Life | L33: 0 | M33: 0 | N33: 0 | O33: First Intervention code | P33: 2 | Q33: 0 | R33: 0 | S33: 0 | T33: 0 | U33: 0 | V33: 0 | W33: 0 | X33: 0 | Y33: 0 | Z33: 0 | AA33: 0 | AB33: 0 | AC33: 0 | AD33: 0 | AE33: 0 | AF33: 31 | AG33: 0 | AH33: =VLOOKUP(AF33,ValidationLists!$M$1:$N$102,2,FALSE) -> 0.3999871452 | AI33: 0 | AJ33: 0 | AK33: 0 | AL33: 0 | AM33: 0 | AN33: 0 | AO33: 0 | AP33: 0 | AQ33: 0 | AR33: =IF(AND(O33=1,OR(AG33=3,AG33=2,AG33=0)),SUMIFS(FlatMaint!$Z$2:$Z$10000,FlatMaint!$A$2:$A$10000,D33,FlatMaint!$Y$2:$Y$10000,AF33)*BO33,IF(AND(O33=2,OR(AG33=3,AG33=2,AG33=0)),SUMIFS(FlatMaint!$Z$2:$Z$10000,FlatMaint!$A$2:$A$10000,D33,FlatMaint!$Y$2:$Y$10000,AF33)/SUMIF(Refurb_Poss_Tbl[Refurbishment Possible],J33,Refurb_Poss_Tbl[%])*BO33,IF(AND(O33=3,OR(AG33=3,AG33=2,AG33=0)),SUMIFS(FlatMaint!$Z$2:$Z$10000,FlatMaint!$A$2:$A$10000,D33,FlatMaint!$Y$2:$Y$10000,AF33)*BO33,0))) -> 0 | AS33: =IF(AND(O33=1,OR(AG33=3,AG33=2,AG33=0)),SUMIFS(FlatRepair!$Z$2:$Z$10000,FlatRepair!$A$2:$A$10000,D33,FlatRepair!$Y$2:$Y$10000,AF33)*BO33,IF(AND(O33=2,OR(AG33=3,AG33=2,AG33=0)),SUMIFS(FlatRepair!$Z$2:$Z$10000,FlatRepair!$A$2:$A$10000,D33,FlatRepair!$Y$2:$Y$10000,AF33)/SUMIF(Refurb_Poss_Tbl[Refurbishment Possible],J33,Refurb_Poss_Tbl[%])*BO33,IF(AND(O33=3,OR(AG33=3,AG33=2,AG33=0)),SUMIFS(FlatRepair!$Z$2:$Z$10000,FlatRepair!$A$2:$A$10000,D33,FlatRepair!$Y$2:$Y$10000,AF33)*BO33,0))) -> 0 | AT33: 0 | AU33: 0 | AV33: 0 | AW33: =IF(AND(AG33=3,O33=1),AC33*BM33,IF(AND(AG33=3,O33=3),AC33*BM33,IF(AND(AG33=3,O33=2),AC33/SUMIF(Refurb_Poss_Tbl[Refurbishment Possible],J33,Refurb_Poss_Tbl[%])*BM33,IF(AND(AG33=2,O33=2),AC33*BM33,IF(AND(AG33=2,O33=1),SUMIF(Refurb_Poss_Tbl[Refurbishment Possible],J33,Refurb_Poss_Tbl[%])*AC33*BM33,IF(AND(AG33=2,O33=3),SUMIF(Refurb_Poss_Tbl[Refurbishment Possible],J33,Refurb_Poss_Tbl[%])*AC33*BM33,0)))))) -> 0 | AX33: =IF(AND(AG33=3,O33=1),AD33*BK33,IF(AND(AG33=3,O33=3),AD33*BK33,IF(AND(AG33=3,O33=2),AD33/SUMIF(Refurb_Poss_Tbl[Refurbishment Possible],J33,Refurb_Poss_Tbl[%])*BK33,IF(AND(AG33=2,O33=2),AD33*BK33,IF(AND(AG33=2,O33=1),SUMIF(Refurb_Poss_Tbl[Refurbishment Possible],J33,Refurb_Poss_Tbl[%])*AD33*BK33,IF(AND(AG33=2,O33=3),SUMIF(Refurb_Poss_Tbl[Refurbishment Possible],J33,Refurb_Poss_Tbl[%])*AD33*BK33,0)))))) -> 0 | AY33: =IF(AND(AG33=3,O33=1),(AE33/ValidationLists!$F$114)*BL33,IF(AND(AG33=3,O33=3),AE33*BL33,IF(AND(AG33=3,O33=2),AE33/SUMIF(Refurb_Poss_Tbl[Refurbishment Possible],J33,Refurb_Poss_Tbl[%])*BL33,IF(AND(AG33=2,O33=2),AE33*BL33,IF(AND(AG33=2,O33=1),SUMIF(Refurb_Poss_Tbl[Refurbishment Possible],J33,Refurb_Poss_Tbl[%])*AE33*BL33,IF(AND(AG33=2,O33=3),SUMIF(Refurb_Poss_Tbl[Refurbishment Possible],J33,Refurb_Poss_Tbl[%])*AE33*BL33,0)))))) -> 0 | AZ33: 0 | BA33: 0 | BB33: =IFERROR(IF(AF33=100,IF(P33=1,(N33/I33)*(Y33*BO33)*-1,IF(P33=2,(N33/K33)*(Y33*SUMIF(Refurb_Poss_Tbl[Refurbishment Possible],J33,Refurb_Poss_Tbl[%]))*BO33*-1,IF(P33=3,(N33/I33)*(Y33+(T33*ValidationLists!$F$114)+(U33*ValidationLists!$F$115))*BO33*-1,0))),0),0) -> 0 | BC33: =IF(AF33=0,0,IF(AND($AG33=3,O33=1),S33*BO33,IF(AND(AG33=3,O33=3),S33*BO33,IF(AND(AG33=3,O33=2),S33/SUMIF(Refurb_Poss_Tbl[Refurbishment Possible],J33,Refurb_Poss_Tbl[%])*BO33,0)))) -> 0 | BD33: =IF(AF33=0,0,IF(AND(AG33=3,O33=1),(T33/ValidationLists!$F$114)*BO33,IF(AND($AG33=3,O33=3),T33*BO33,IF(AND(AG33=3,O33=2),T33/SUMIF(Refurb_Poss_Tbl[Refurbishment Possible],J33,Refurb_Poss_Tbl[%])*BO33,0)))) -> 0 | BE33: =IF(AF33=0,0,IF(AND(AG33=3,O33=1),(U33/ValidationLists!$F$114)*BO33,IF(AND($AG33=3,O33=3),U33*BO33,IF(AND(AG33=3,O33=2),U33/SUMIF(Refurb_Poss_Tbl[Refurbishment Possible],J33,Refurb_Poss_Tbl[%])*BO33,0)))) -> 0 | BF33: =IF(AF33=0,0,IF(AND(AG33=3,O33=1),R33*BO33,IF(AND(AG33=3,O33=3),R33*BO33,IF(AND(AG33=3,O33=2),R33/SUMIF(Refurb_Poss_Tbl[Refurbishment Possible],J33,Refurb_Poss_Tbl[%])*BO33,0)))) -> 0 | BG33: =IF(AF33=0,0,IF(AND(AG33=3,O33=1),V33*BO33,IF(AND(AG33=3,O33=3),V33*BO33,IF(AND(AG33=3,O33=2),V33/SUMIF(Refurb_Poss_Tbl[Refurbishment Possible],J33,Refurb_Poss_Tbl[%])*BO33,0)))) -> 0 | BH33: =IF(AF33=0,0,IF(AND(AG33=3,O33=1),W33*BO33,IF(AND(AG33=3,O33=3),W33*BO33,IF(AND(AG33=3,O33=2),W33/SUMIF(Refurb_Poss_Tbl[Refurbishment Possible],J33,Refurb_Poss_Tbl[%])*BO33,0)))) -> 0 | BI33: =IF(AF33=0,0,IF(AND(AG33=3,O33=1),X33*BO33,IF(AND(AG33=3,O33=3),X33*BO33,IF(AND(AG33=3,O33=2),X33/SUMIF(Refurb_Poss_Tbl[Refurbishment Possible],J33,Refurb_Poss_Tbl[%])*BO33,0)))) -> 0 | BJ33: =VLOOKUP($AF33,DiscountWorking!$B$7:$C$107,2,FALSE) -> 0.1963642144 | BK33: =VLOOKUP($AF33,DiscountWorking!$J$7:$K$107,2,FALSE) -> 0.9094271558 | BL33: =VLOOKUP($AF33,DiscountWorking!$Q$7:$R$107,2,FALSE) -> 0.7971000302 | BM33: =VLOOKUP($AF33,DiscountWorking!$T$7:$U$107,2,FALSE) -> 0.5552975813 | BN33: =VLOOKUP($AF33,DiscountWorking!$W$7:$X$107,2,FALSE) -> 0.5528956851 | BO33: =VLOOKUP($AF33,DiscountWorking!$Z$7:$AA$107,2,FALSE) -> 0.68475594
A34: ChanEA05 | C34: Channel | D34: ChanEA0556 | F34: Channel | G34: 120 | H34: First intervention | I34: Expected new build/Replacement life | J34: Refurbishment type | K34: Expected refurbished Life | L34: 0 | M34: 0 | N34: 0 | O34: First Intervention code | P34: 2 | Q34: 0 | R34: 0 | S34: 0 | T34: 0 | U34: 0 | V34: 0 | W34: 0 | X34: 0 | Y34: 0 | Z34: 0 | AA34: 0 | AB34: 0 | AC34: 0 | AD34: 0 | AE34: 0 | AF34: 32 | AG34: 0 | AH34: =VLOOKUP(AF34,ValidationLists!$M$1:$N$102,2,FALSE) -> 0.3883370341 | AI34: =IF(AF34=0,R34*BM34,0) -> 0 | AJ34: =IF(AF34=0,S34*BK34,0) -> 0 | AK34: =IF(AF34=0,T34*BL34,0) -> 0 | AL34: =IF(AF34=0,U34*BK34,0) -> 0 | AM34: =IF(AF34=0,V34*BN34,0) -> 0 | AN34: =IF(AF34=0,W34*BK34,0) -> 0 | AO34: =IF(AF34=0,X34*BK34,0) -> 0 | AP34: =IF(AF34=0,AI34+AJ34+AK34+AL34+AM34+AN34+AO34,0) -> 0 | AQ34: =IF(OR(AG34=3,AG34=2,AG34=0),Z34*BL34,0) -> 0 | AR34: =IF(AND(O34=1,OR(AG34=3,AG34=2,AG34=0)),SUMIFS(FlatMaint!$Z$2:$Z$10000,FlatMaint!$A$2:$A$10000,D34,FlatMaint!$Y$2:$Y$10000,AF34)*BO34,IF(AND(O34=2,OR(AG34=3,AG34=2,AG34=0)),SUMIFS(FlatMaint!$Z$2:$Z$10000,FlatMaint!$A$2:$A$10000,D34,FlatMaint!$Y$2:$Y$10000,AF34)/SUMIF(Refurb_Poss_Tbl[Refurbishment Possible],J34,Refurb_Poss_Tbl[%])*BO34,IF(AND(O34=3,OR(AG34=3,AG34=2,AG34=0)),SUMIFS(FlatMaint!$Z$2:$Z$10000,FlatMaint!$A$2:$A$10000,D34,FlatMaint!$Y$2:$Y$10000,AF34)*BO34,0))) -> 0 | AS34: =IF(AND(O34=1,OR(AG34=3,AG34=2,AG34=0)),SUMIFS(FlatRepair!$Z$2:$Z$10000,FlatRepair!$A$2:$A$10000,D34,FlatRepair!$Y$2:$Y$10000,AF34)*BO34,IF(AND(O34=2,OR(AG34=3,AG34=2,AG34=0)),SUMIFS(FlatRepair!$Z$2:$Z$10000,FlatRepair!$A$2:$A$10000,D34,FlatRepair!$Y$2:$Y$10000,AF34)/SUMIF(Refurb_Poss_Tbl[Refurbishment Possible],J34,Refurb_Poss_Tbl[%])*BO34,IF(AND(O34=3,OR(AG34=3,AG34=2,AG34=0)),SUMIFS(FlatRepair!$Z$2:$Z$10000,FlatRepair!$A$2:$A$10000,D34,FlatRepair!$Y$2:$Y$10000,AF34)*BO34,0))) -> 0 | AT34: =IF(OR(AF34=3,AF34=2,AG34=0),AA34*BJ34,0) -> 0 | AU34: =AQ34+AR34+AS34+AT34 -> 0 | AV34: =IF(AF34=0,0,IF(AG34=2,AB34*BO34,0)) -> 0 | AW34: =IF(AND(AG34=3,O34=1),AC34*BM34,IF(AND(AG34=3,O34=3),AC34*BM34,IF(AND(AG34=3,O34=2),AC34/SUMIF(Refurb_Poss_Tbl[Refurbishment Possible],J34,Refurb_Poss_Tbl[%])*BM34,IF(AND(AG34=2,O34=2),AC34*BM34,IF(AND(AG34=2,O34=1),SUMIF(Refurb_Poss_Tbl[Refurbishment Possible],J34,Refurb_Poss_Tbl[%])*AC34*BM34,IF(AND(AG34=2,O34=3),SUMIF(Refurb_Poss_Tbl[Refurbishment Possible],J34,Refurb_Poss_Tbl[%])*AC34*BM34,0)))))) -> 0 | AX34: =IF(AND(AG34=3,O34=1),AD34*BK34,IF(AND(AG34=3,O34=3),AD34*BK34,IF(AND(AG34=3,O34=2),AD34/SUMIF(Refurb_Poss_Tbl[Refurbishment Possible],J34,Refurb_Poss_Tbl[%])*BK34,IF(AND(AG34=2,O34=2),AD34*BK34,IF(AND(AG34=2,O34=1),SUMIF(Refurb_Poss_Tbl[Refurbishment Possible],J34,Refurb_Poss_Tbl[%])*AD34*BK34,IF(AND(AG34=2,O34=3),SUMIF(Refurb_Poss_Tbl[Refurbishment Possible],J34,Refurb_Poss_Tbl[%])*AD34*BK34,0)))))) -> 0 | AY34: =IF(AND(AG34=3,O34=1),(AE34/ValidationLists!$F$114)*BL34,IF(AND(AG34=3,O34=3),AE34*BL34,IF(AND(AG34=3,O34=2),AE34/SUMIF(Refurb_Poss_Tbl[Refurbishment Possible],J34,Refurb_Poss_Tbl[%])*BL34,IF(AND(AG34=2,O34=2),AE34*BL34,IF(AND(AG34=2,O34=1),SUMIF(Refurb_Poss_Tbl[Refurbishment Possible],J34,Refurb_Poss_Tbl[%])*AE34*BL34,IF(AND(AG34=2,O34=3),SUMIF(Refurb_Poss_Tbl[Refurbishment Possible],J34,Refurb_Poss_Tbl[%])*AE34*BL34,0)))))) -> 0 | AZ34: =BC34+BD34+BE34+BF34+BG34+BH34+BI34 -> 0 | BA34: =AP34+AU34+AV34+AW34+AX34+AY34+AZ34 -> 0 | BB34: =IFERROR(IF(AF34=100,IF(P34=1,(N34/I34)*(Y34*BO34)*-1,IF(P34=2,(N34/K34)*(Y34*SUMIF(Refurb_Poss_Tbl[Refurbishment Possible],J34,Refurb_Poss_Tbl[%]))*BO34*-1,IF(P34=3,(N34/I34)*(Y34+(T34*ValidationLists!$F$114)+(U34*ValidationLists!$F$115))*BO34*-1,0))),0),0) -> 0 | BC34: =IF(AF34=0,0,IF(AND($AG34=3,O34=1),S34*BO34,IF(AND(AG34=3,O34=3),S34*BO34,IF(AND(AG34=3,O34=2),S34/SUMIF(Refurb_Poss_Tbl[Refurbishment Possible],J34,Refurb_Poss_Tbl[%])*BO34,0)))) -> 0 | BD34: =IF(AF34=0,0,IF(AND(AG34=3,O34=1),(T34/ValidationLists!$F$114)*BO34,IF(AND($AG34=3,O34=3),T34*BO34,IF(AND(AG34=3,O34=2),T34/SUMIF(Refurb_Poss_Tbl[Refurbishment Possible],J34,Refurb_Poss_Tbl[%])*BO34,0)))) -> 0 | BE34: =IF(AF34=0,0,IF(AND(AG34=3,O34=1),(U34/ValidationLists!$F$114)*BO34,IF(AND($AG34=3,O34=3),U34*BO34,IF(AND(AG34=3,O34=2),U34/SUMIF(Refurb_Poss_Tbl[Refurbishment Possible],J34,Refurb_Poss_Tbl[%])*BO34,0)))) -> 0 | BF34: =IF(AF34=0,0,IF(AND(AG34=3,O34=1),R34*BO34,IF(AND(AG34=3,O34=3),R34*BO34,IF(AND(AG34=3,O34=2),R34/SUMIF(Refurb_Poss_Tbl[Refurbishment Possible],J34,Refurb_Poss_Tbl[%])*BO34,0)))) -> 0 | BG34: =IF(AF34=0,0,IF(AND(AG34=3,O34=1),V34*BO34,IF(AND(AG34=3,O34=3),V34*BO34,IF(AND(AG34=3,O34=2),V34/SUMIF(Refurb_Poss_Tbl[Refurbishment Possible],J34,Refurb_Poss_Tbl[%])*BO34,0)))) -> 0 | BH34: =IF(AF34=0,0,IF(AND(AG34=3,O34=1),W34*BO34,IF(AND(AG34=3,O34=3),W34*BO34,IF(AND(AG34=3,O34=2),W34/SUMIF(Refurb_Poss_Tbl[Refurbishment Possible],J34,Refurb_Poss_Tbl[%])*BO34,0)))) -> 0 | BI34: =IF(AF34=0,0,IF(AND(AG34=3,O34=1),X34*BO34,IF(AND(AG34=3,O34=3),X34*BO34,IF(AND(AG34=3,O34=2),X34/SUMIF(Refurb_Poss_Tbl[Refurbishment Possible],J34,Refurb_Poss_Tbl[%])*BO34,0)))) -> 0 | BJ34: =VLOOKUP($AF34,DiscountWorking!$B$7:$C$107,2,FALSE) -> 0.1963642144 | BK34: =VLOOKUP($AF34,DiscountWorking!$J$7:$K$107,2,FALSE) -> 0.9094271558 | BL34: =VLOOKUP($AF34,DiscountWorking!$Q$7:$R$107,2,FALSE) -> 0.7971000302 | BM34: =VLOOKUP($AF34,DiscountWorking!$T$7:$U$107,2,FALSE) -> 0.5552975813 | BN34: =VLOOKUP($AF34,DiscountWorking!$W$7:$X$107,2,FALSE) -> 0.5528956851 | BO34: =VLOOKUP($AF34,DiscountWorking!$Z$7:$AA$107,2,FALSE) -> 0.68475594
A35: ChanEA05 | C35: Channel | D35: ChanEA0556 | F35: Channel | G35: 120 | H35: First intervention | I35: Expected new build/Replacement life | J35: Refurbishment type | K35: Expected refurbished Life | L35: 0 | M35: 0 | N35: 0 | O35: First Intervention code | P35: 2 | Q35: 0 | R35: 0 | S35: 0 | T35: 0 | U35: 0 | V35: 0 | W35: 0 | X35: 0 | Y35: 0 | Z35: 0 | AA35: 0 | AB35: 0 | AC35: 0 | AD35: 0 | AE35: 0 | AF35: 33 | AG35: 0 | AH35: =VLOOKUP(AF35,ValidationLists!$M$1:$N$102,2,FALSE) -> 0.3770262467 | AI35: 0 | AJ35: 0 | AK35: 0 | AL35: 0 | AM35: 0 | AN35: 0 | AO35: 0 | AP35: 0 | AQ35: 0 | AR35: =IF(AND(O35=1,OR(AG35=3,AG35=2,AG35=0)),SUMIFS(FlatMaint!$Z$2:$Z$10000,FlatMaint!$A$2:$A$10000,D35,FlatMaint!$Y$2:$Y$10000,AF35)*BO35,IF(AND(O35=2,OR(AG35=3,AG35=2,AG35=0)),SUMIFS(FlatMaint!$Z$2:$Z$10000,FlatMaint!$A$2:$A$10000,D35,FlatMaint!$Y$2:$Y$10000,AF35)/SUMIF(Refurb_Poss_Tbl[Refurbishment Possible],J35,Refurb_Poss_Tbl[%])*BO35,IF(AND(O35=3,OR(AG35=3,AG35=2,AG35=0)),SUMIFS(FlatMaint!$Z$2:$Z$10000,FlatMaint!$A$2:$A$10000,D35,FlatMaint!$Y$2:$Y$10000,AF35)*BO35,0))) -> 0 | AS35: =IF(AND(O35=1,OR(AG35=3,AG35=2,AG35=0)),SUMIFS(FlatRepair!$Z$2:$Z$10000,FlatRepair!$A$2:$A$10000,D35,FlatRepair!$Y$2:$Y$10000,AF35)*BO35,IF(AND(O35=2,OR(AG35=3,AG35=2,AG35=0)),SUMIFS(FlatRepair!$Z$2:$Z$10000,FlatRepair!$A$2:$A$10000,D35,FlatRepair!$Y$2:$Y$10000,AF35)/SUMIF(Refurb_Poss_Tbl[Refurbishment Possible],J35,Refurb_Poss_Tbl[%])*BO35,IF(AND(O35=3,OR(AG35=3,AG35=2,AG35=0)),SUMIFS(FlatRepair!$Z$2:$Z$10000,FlatRepair!$A$2:$A$10000,D35,FlatRepair!$Y$2:$Y$10000,AF35)*BO35,0))) -> 0 | AT35: 0 | AU35: 0 | AV35: 0 | AW35: =IF(AND(AG35=3,O35=1),AC35*BM35,IF(AND(AG35=3,O35=3),AC35*BM35,IF(AND(AG35=3,O35=2),AC35/SUMIF(Refurb_Poss_Tbl[Refurbishment Possible],J35,Refurb_Poss_Tbl[%])*BM35,IF(AND(AG35=2,O35=2),AC35*BM35,IF(AND(AG35=2,O35=1),SUMIF(Refurb_Poss_Tbl[Refurbishment Possible],J35,Refurb_Poss_Tbl[%])*AC35*BM35,IF(AND(AG35=2,O35=3),SUMIF(Refurb_Poss_Tbl[Refurbishment Possible],J35,Refurb_Poss_Tbl[%])*AC35*BM35,0)))))) -> 0 | AX35: =IF(AND(AG35=3,O35=1),AD35*BK35,IF(AND(AG35=3,O35=3),AD35*BK35,IF(AND(AG35=3,O35=2),AD35/SUMIF(Refurb_Poss_Tbl[Refurbishment Possible],J35,Refurb_Poss_Tbl[%])*BK35,IF(AND(AG35=2,O35=2),AD35*BK35,IF(AND(AG35=2,O35=1),SUMIF(Refurb_Poss_Tbl[Refurbishment Possible],J35,Refurb_Poss_Tbl[%])*AD35*BK35,IF(AND(AG35=2,O35=3),SUMIF(Refurb_Poss_Tbl[Refurbishment Possible],J35,Refurb_Poss_Tbl[%])*AD35*BK35,0)))))) -> 0 | AY35: =IF(AND(AG35=3,O35=1),(AE35/ValidationLists!$F$114)*BL35,IF(AND(AG35=3,O35=3),AE35*BL35,IF(AND(AG35=3,O35=2),AE35/SUMIF(Refurb_Poss_Tbl[Refurbishment Possible],J35,Refurb_Poss_Tbl[%])*BL35,IF(AND(AG35=2,O35=2),AE35*BL35,IF(AND(AG35=2,O35=1),SUMIF(Refurb_Poss_Tbl[Refurbishment Possible],J35,Refurb_Poss_Tbl[%])*AE35*BL35,IF(AND(AG35=2,O35=3),SUMIF(Refurb_Poss_Tbl[Refurbishment Possible],J35,Refurb_Poss_Tbl[%])*AE35*BL35,0)))))) -> 0 | AZ35: 0 | BA35: 0 | BB35: =IFERROR(IF(AF35=100,IF(P35=1,(N35/I35)*(Y35*BO35)*-1,IF(P35=2,(N35/K35)*(Y35*SUMIF(Refurb_Poss_Tbl[Refurbishment Possible],J35,Refurb_Poss_Tbl[%]))*BO35*-1,IF(P35=3,(N35/I35)*(Y35+(T35*ValidationLists!$F$114)+(U35*ValidationLists!$F$115))*BO35*-1,0))),0),0) -> 0 | BC35: =IF(AF35=0,0,IF(AND($AG35=3,O35=1),S35*BO35,IF(AND(AG35=3,O35=3),S35*BO35,IF(AND(AG35=3,O35=2),S35/SUMIF(Refurb_Poss_Tbl[Refurbishment Possible],J35,Refurb_Poss_Tbl[%])*BO35,0)))) -> 0 | BD35: =IF(AF35=0,0,IF(AND(AG35=3,O35=1),(T35/ValidationLists!$F$114)*BO35,IF(AND($AG35=3,O35=3),T35*BO35,IF(AND(AG35=3,O35=2),T35/SUMIF(Refurb_Poss_Tbl[Refurbishment Possible],J35,Refurb_Poss_Tbl[%])*BO35,0)))) -> 0 | BE35: =IF(AF35=0,0,IF(AND(AG35=3,O35=1),(U35/ValidationLists!$F$114)*BO35,IF(AND($AG35=3,O35=3),U35*BO35,IF(AND(AG35=3,O35=2),U35/SUMIF(Refurb_Poss_Tbl[Refurbishment Possible],J35,Refurb_Poss_Tbl[%])*BO35,0)))) -> 0 | BF35: =IF(AF35=0,0,IF(AND(AG35=3,O35=1),R35*BO35,IF(AND(AG35=3,O35=3),R35*BO35,IF(AND(AG35=3,O35=2),R35/SUMIF(Refurb_Poss_Tbl[Refurbishment Possible],J35,Refurb_Poss_Tbl[%])*BO35,0)))) -> 0 | BG35: =IF(AF35=0,0,IF(AND(AG35=3,O35=1),V35*BO35,IF(AND(AG35=3,O35=3),V35*BO35,IF(AND(AG35=3,O35=2),V35/SUMIF(Refurb_Poss_Tbl[Refurbishment Possible],J35,Refurb_Poss_Tbl[%])*BO35,0)))) -> 0 | BH35: =IF(AF35=0,0,IF(AND(AG35=3,O35=1),W35*BO35,IF(AND(AG35=3,O35=3),W35*BO35,IF(AND(AG35=3,O35=2),W35/SUMIF(Refurb_Poss_Tbl[Refurbishment Possible],J35,Refurb_Poss_Tbl[%])*BO35,0)))) -> 0 | BI35: =IF(AF35=0,0,IF(AND(AG35=3,O35=1),X35*BO35,IF(AND(AG35=3,O35=3),X35*BO35,IF(AND(AG35=3,O35=2),X35/SUMIF(Refurb_Poss_Tbl[Refurbishment Possible],J35,Refurb_Poss_Tbl[%])*BO35,0)))) -> 0 | BJ35: =VLOOKUP($AF35,DiscountWorking!$B$7:$C$107,2,FALSE) -> 0.1963642144 | BK35: =VLOOKUP($AF35,DiscountWorking!$J$7:$K$107,2,FALSE) -> 0.9094271558 | BL35: =VLOOKUP($AF35,DiscountWorking!$Q$7:$R$107,2,FALSE) -> 0.7971000302 | BM35: =VLOOKUP($AF35,DiscountWorking!$T$7:$U$107,2,FALSE) -> 0.5552975813 | BN35: =VLOOKUP($AF35,DiscountWorking!$W$7:$X$107,2,FALSE) -> 0.5528956851 | BO35: =VLOOKUP($AF35,DiscountWorking!$Z$7:$AA$107,2,FALSE) -> 0.68475594
A36: ChanEA05 | C36: Channel | D36: ChanEA0556 | F36: Channel | G36: 120 | H36: First intervention | I36: Expected new build/Replacement life | J36: Refurbishment type | K36: Expected refurbished Life | L36: 0 | M36: 0 | N36: 0 | O36: First Intervention code | P36: 2 | Q36: 0 | R36: 0 | S36: 0 | T36: 0 | U36: 0 | V36: 0 | W36: 0 | X36: 0 | Y36: 0 | Z36: 0 | AA36: 0 | AB36: 0 | AC36: 0 | AD36: 0 | AE36: 0 | AF36: 34 | AG36: 0 | AH36: =VLOOKUP(AF36,ValidationLists!$M$1:$N$102,2,FALSE) -> 0.3660448997 | AI36: 0 | AJ36: 0 | AK36: 0 | AL36: 0 | AM36: 0 | AN36: 0 | AO36: 0 | AP36: 0 | AQ36: 0 | AR36: =IF(AND(O36=1,OR(AG36=3,AG36=2,AG36=0)),SUMIFS(FlatMaint!$Z$2:$Z$10000,FlatMaint!$A$2:$A$10000,D36,FlatMaint!$Y$2:$Y$10000,AF36)*BO36,IF(AND(O36=2,OR(AG36=3,AG36=2,AG36=0)),SUMIFS(FlatMaint!$Z$2:$Z$10000,FlatMaint!$A$2:$A$10000,D36,FlatMaint!$Y$2:$Y$10000,AF36)/SUMIF(Refurb_Poss_Tbl[Refurbishment Possible],J36,Refurb_Poss_Tbl[%])*BO36,IF(AND(O36=3,OR(AG36=3,AG36=2,AG36=0)),SUMIFS(FlatMaint!$Z$2:$Z$10000,FlatMaint!$A$2:$A$10000,D36,FlatMaint!$Y$2:$Y$10000,AF36)*BO36,0))) -> 0 | AS36: =IF(AND(O36=1,OR(AG36=3,AG36=2,AG36=0)),SUMIFS(FlatRepair!$Z$2:$Z$10000,FlatRepair!$A$2:$A$10000,D36,FlatRepair!$Y$2:$Y$10000,AF36)*BO36,IF(AND(O36=2,OR(AG36=3,AG36=2,AG36=0)),SUMIFS(FlatRepair!$Z$2:$Z$10000,FlatRepair!$A$2:$A$10000,D36,FlatRepair!$Y$2:$Y$10000,AF36)/SUMIF(Refurb_Poss_Tbl[Refurbishment Possible],J36,Refurb_Poss_Tbl[%])*BO36,IF(AND(O36=3,OR(AG36=3,AG36=2,AG36=0)),SUMIFS(FlatRepair!$Z$2:$Z$10000,FlatRepair!$A$2:$A$10000,D36,FlatRepair!$Y$2:$Y$10000,AF36)*BO36,0))) -> 0 | AT36: 0 | AU36: 0 | AV36: 0 | AW36: =IF(AND(AG36=3,O36=1),AC36*BM36,IF(AND(AG36=3,O36=3),AC36*BM36,IF(AND(AG36=3,O36=2),AC36/SUMIF(Refurb_Poss_Tbl[Refurbishment Possible],J36,Refurb_Poss_Tbl[%])*BM36,IF(AND(AG36=2,O36=2),AC36*BM36,IF(AND(AG36=2,O36=1),SUMIF(Refurb_Poss_Tbl[Refurbishment Possible],J36,Refurb_Poss_Tbl[%])*AC36*BM36,IF(AND(AG36=2,O36=3),SUMIF(Refurb_Poss_Tbl[Refurbishment Possible],J36,Refurb_Poss_Tbl[%])*AC36*BM36,0)))))) -> 0 | AX36: =IF(AND(AG36=3,O36=1),AD36*BK36,IF(AND(AG36=3,O36=3),AD36*BK36,IF(AND(AG36=3,O36=2),AD36/SUMIF(Refurb_Poss_Tbl[Refurbishment Possible],J36,Refurb_Poss_Tbl[%])*BK36,IF(AND(AG36=2,O36=2),AD36*BK36,IF(AND(AG36=2,O36=1),SUMIF(Refurb_Poss_Tbl[Refurbishment Possible],J36,Refurb_Poss_Tbl[%])*AD36*BK36,IF(AND(AG36=2,O36=3),SUMIF(Refurb_Poss_Tbl[Refurbishment Possible],J36,Refurb_Poss_Tbl[%])*AD36*BK36,0)))))) -> 0 | AY36: =IF(AND(AG36=3,O36=1),(AE36/ValidationLists!$F$114)*BL36,IF(AND(AG36=3,O36=3),AE36*BL36,IF(AND(AG36=3,O36=2),AE36/SUMIF(Refurb_Poss_Tbl[Refurbishment Possible],J36,Refurb_Poss_Tbl[%])*BL36,IF(AND(AG36=2,O36=2),AE36*BL36,IF(AND(AG36=2,O36=1),SUMIF(Refurb_Poss_Tbl[Refurbishment Possible],J36,Refurb_Poss_Tbl[%])*AE36*BL36,IF(AND(AG36=2,O36=3),SUMIF(Refurb_Poss_Tbl[Refurbishment Possible],J36,Refurb_Poss_Tbl[%])*AE36*BL36,0)))))) -> 0 | AZ36: 0 | BA36: 0 | BB36: =IFERROR(IF(AF36=100,IF(P36=1,(N36/I36)*(Y36*BO36)*-1,IF(P36=2,(N36/K36)*(Y36*SUMIF(Refurb_Poss_Tbl[Refurbishment Possible],J36,Refurb_Poss_Tbl[%]))*BO36*-1,IF(P36=3,(N36/I36)*(Y36+(T36*ValidationLists!$F$114)+(U36*ValidationLists!$F$115))*BO36*-1,0))),0),0) -> 0 | BC36: =IF(AF36=0,0,IF(AND($AG36=3,O36=1),S36*BO36,IF(AND(AG36=3,O36=3),S36*BO36,IF(AND(AG36=3,O36=2),S36/SUMIF(Refurb_Poss_Tbl[Refurbishment Possible],J36,Refurb_Poss_Tbl[%])*BO36,0)))) -> 0 | BD36: =IF(AF36=0,0,IF(AND(AG36=3,O36=1),(T36/ValidationLists!$F$114)*BO36,IF(AND($AG36=3,O36=3),T36*BO36,IF(AND(AG36=3,O36=2),T36/SUMIF(Refurb_Poss_Tbl[Refurbishment Possible],J36,Refurb_Poss_Tbl[%])*BO36,0)))) -> 0 | BE36: =IF(AF36=0,0,IF(AND(AG36=3,O36=1),(U36/ValidationLists!$F$114)*BO36,IF(AND($AG36=3,O36=3),U36*BO36,IF(AND(AG36=3,O36=2),U36/SUMIF(Refurb_Poss_Tbl[Refurbishment Possible],J36,Refurb_Poss_Tbl[%])*BO36,0)))) -> 0 | BF36: =IF(AF36=0,0,IF(AND(AG36=3,O36=1),R36*BO36,IF(AND(AG36=3,O36=3),R36*BO36,IF(AND(AG36=3,O36=2),R36/SUMIF(Refurb_Poss_Tbl[Refurbishment Possible],J36,Refurb_Poss_Tbl[%])*BO36,0)))) -> 0 | BG36: =IF(AF36=0,0,IF(AND(AG36=3,O36=1),V36*BO36,IF(AND(AG36=3,O36=3),V36*BO36,IF(AND(AG36=3,O36=2),V36/SUMIF(Refurb_Poss_Tbl[Refurbishment Possible],J36,Refurb_Poss_Tbl[%])*BO36,0)))) -> 0 | BH36: =IF(AF36=0,0,IF(AND(AG36=3,O36=1),W36*BO36,IF(AND(AG36=3,O36=3),W36*BO36,IF(AND(AG36=3,O36=2),W36/SUMIF(Refurb_Poss_Tbl[Refurbishment Possible],J36,Refurb_Poss_Tbl[%])*BO36,0)))) -> 0 | BI36: =IF(AF36=0,0,IF(AND(AG36=3,O36=1),X36*BO36,IF(AND(AG36=3,O36=3),X36*BO36,IF(AND(AG36=3,O36=2),X36/SUMIF(Refurb_Poss_Tbl[Refurbishment Possible],J36,Refurb_Poss_Tbl[%])*BO36,0)))) -> 0 | BJ36: =VLOOKUP($AF36,DiscountWorking!$B$7:$C$107,2,FALSE) -> 0.1963642144 | BK36: =VLOOKUP($AF36,DiscountWorking!$J$7:$K$107,2,FALSE) -> 0.9094271558 | BL36: =VLOOKUP($AF36,DiscountWorking!$Q$7:$R$107,2,FALSE) -> 0.7971000302 | BM36: =VLOOKUP($AF36,DiscountWorking!$T$7:$U$107,2,FALSE) -> 0.5552975813 | BN36: =VLOOKUP($AF36,DiscountWorking!$W$7:$X$107,2,FALSE) -> 0.5528956851 | BO36: =VLOOKUP($AF36,DiscountWorking!$Z$7:$AA$107,2,FALSE) -> 0.68475594
A37: ChanEA05 | C37: Channel | D37: ChanEA0556 | F37: Channel | G37: 120 | H37: First intervention | I37: Expected new build/Replacement life | J37: Refurbishment type | K37: Expected refurbished Life | L37: 0 | M37: 0 | N37: 0 | O37: First Intervention code | P37: 2 | Q37: 0 | R37: 0 | S37: 0 | T37: 0 | U37: 0 | V37: 0 | W37: 0 | X37: 0 | Y37: 0 | Z37: 0 | AA37: 0 | AB37: 0 | AC37: 0 | AD37: 0 | AE37: 0 | AF37: 35 | AG37: 0 | AH37: =VLOOKUP(AF37,ValidationLists!$M$1:$N$102,2,FALSE) -> 0.3553833978 | AI37: 0 | AJ37: 0 | AK37: 0 | AL37: 0 | AM37: 0 | AN37: 0 | AO37: 0 | AP37: 0 | AQ37: 0 | AR37: =IF(AND(O37=1,OR(AG37=3,AG37=2,AG37=0)),SUMIFS(FlatMaint!$Z$2:$Z$10000,FlatMaint!$A$2:$A$10000,D37,FlatMaint!$Y$2:$Y$10000,AF37)*BO37,IF(AND(O37=2,OR(AG37=3,AG37=2,AG37=0)),SUMIFS(FlatMaint!$Z$2:$Z$10000,FlatMaint!$A$2:$A$10000,D37,FlatMaint!$Y$2:$Y$10000,AF37)/SUMIF(Refurb_Poss_Tbl[Refurbishment Possible],J37,Refurb_Poss_Tbl[%])*BO37,IF(AND(O37=3,OR(AG37=3,AG37=2,AG37=0)),SUMIFS(FlatMaint!$Z$2:$Z$10000,FlatMaint!$A$2:$A$10000,D37,FlatMaint!$Y$2:$Y$10000,AF37)*BO37,0))) -> 0 | AS37: =IF(AND(O37=1,OR(AG37=3,AG37=2,AG37=0)),SUMIFS(FlatRepair!$Z$2:$Z$10000,FlatRepair!$A$2:$A$10000,D37,FlatRepair!$Y$2:$Y$10000,AF37)*BO37,IF(AND(O37=2,OR(AG37=3,AG37=2,AG37=0)),SUMIFS(FlatRepair!$Z$2:$Z$10000,FlatRepair!$A$2:$A$10000,D37,FlatRepair!$Y$2:$Y$10000,AF37)/SUMIF(Refurb_Poss_Tbl[Refurbishment Possible],J37,Refurb_Poss_Tbl[%])*BO37,IF(AND(O37=3,OR(AG37=3,AG37=2,AG37=0)),SUMIFS(FlatRepair!$Z$2:$Z$10000,FlatRepair!$A$2:$A$10000,D37,FlatRepair!$Y$2:$Y$10000,AF37)*BO37,0))) -> 0 | AT37: 0 | AU37: 0 | AV37: 0 | AW37: =IF(AND(AG37=3,O37=1),AC37*BM37,IF(AND(AG37=3,O37=3),AC37*BM37,IF(AND(AG37=3,O37=2),AC37/SUMIF(Refurb_Poss_Tbl[Refurbishment Possible],J37,Refurb_Poss_Tbl[%])*BM37,IF(AND(AG37=2,O37=2),AC37*BM37,IF(AND(AG37=2,O37=1),SUMIF(Refurb_Poss_Tbl[Refurbishment Possible],J37,Refurb_Poss_Tbl[%])*AC37*BM37,IF(AND(AG37=2,O37=3),SUMIF(Refurb_Poss_Tbl[Refurbishment Possible],J37,Refurb_Poss_Tbl[%])*AC37*BM37,0)))))) -> 0 | AX37: =IF(AND(AG37=3,O37=1),AD37*BK37,IF(AND(AG37=3,O37=3),AD37*BK37,IF(AND(AG37=3,O37=2),AD37/SUMIF(Refurb_Poss_Tbl[Refurbishment Possible],J37,Refurb_Poss_Tbl[%])*BK37,IF(AND(AG37=2,O37=2),AD37*BK37,IF(AND(AG37=2,O37=1),SUMIF(Refurb_Poss_Tbl[Refurbishment Possible],J37,Refurb_Poss_Tbl[%])*AD37*BK37,IF(AND(AG37=2,O37=3),SUMIF(Refurb_Poss_Tbl[Refurbishment Possible],J37,Refurb_Poss_Tbl[%])*AD37*BK37,0)))))) -> 0 | AY37: =IF(AND(AG37=3,O37=1),(AE37/ValidationLists!$F$114)*BL37,IF(AND(AG37=3,O37=3),AE37*BL37,IF(AND(AG37=3,O37=2),AE37/SUMIF(Refurb_Poss_Tbl[Refurbishment Possible],J37,Refurb_Poss_Tbl[%])*BL37,IF(AND(AG37=2,O37=2),AE37*BL37,IF(AND(AG37=2,O37=1),SUMIF(Refurb_Poss_Tbl[Refurbishment Possible],J37,Refurb_Poss_Tbl[%])*AE37*BL37,IF(AND(AG37=2,O37=3),SUMIF(Refurb_Poss_Tbl[Refurbishment Possible],J37,Refurb_Poss_Tbl[%])*AE37*BL37,0)))))) -> 0 | AZ37: 0 | BA37: 0 | BB37: =IFERROR(IF(AF37=100,IF(P37=1,(N37/I37)*(Y37*BO37)*-1,IF(P37=2,(N37/K37)*(Y37*SUMIF(Refurb_Poss_Tbl[Refurbishment Possible],J37,Refurb_Poss_Tbl[%]))*BO37*-1,IF(P37=3,(N37/I37)*(Y37+(T37*ValidationLists!$F$114)+(U37*ValidationLists!$F$115))*BO37*-1,0))),0),0) -> 0 | BC37: =IF(AF37=0,0,IF(AND($AG37=3,O37=1),S37*BO37,IF(AND(AG37=3,O37=3),S37*BO37,IF(AND(AG37=3,O37=2),S37/SUMIF(Refurb_Poss_Tbl[Refurbishment Possible],J37,Refurb_Poss_Tbl[%])*BO37,0)))) -> 0 | BD37: =IF(AF37=0,0,IF(AND(AG37=3,O37=1),(T37/ValidationLists!$F$114)*BO37,IF(AND($AG37=3,O37=3),T37*BO37,IF(AND(AG37=3,O37=2),T37/SUMIF(Refurb_Poss_Tbl[Refurbishment Possible],J37,Refurb_Poss_Tbl[%])*BO37,0)))) -> 0 | BE37: =IF(AF37=0,0,IF(AND(AG37=3,O37=1),(U37/ValidationLists!$F$114)*BO37,IF(AND($AG37=3,O37=3),U37*BO37,IF(AND(AG37=3,O37=2),U37/SUMIF(Refurb_Poss_Tbl[Refurbishment Possible],J37,Refurb_Poss_Tbl[%])*BO37,0)))) -> 0 | BF37: =IF(AF37=0,0,IF(AND(AG37=3,O37=1),R37*BO37,IF(AND(AG37=3,O37=3),R37*BO37,IF(AND(AG37=3,O37=2),R37/SUMIF(Refurb_Poss_Tbl[Refurbishment Possible],J37,Refurb_Poss_Tbl[%])*BO37,0)))) -> 0 | BG37: =IF(AF37=0,0,IF(AND(AG37=3,O37=1),V37*BO37,IF(AND(AG37=3,O37=3),V37*BO37,IF(AND(AG37=3,O37=2),V37/SUMIF(Refurb_Poss_Tbl[Refurbishment Possible],J37,Refurb_Poss_Tbl[%])*BO37,0)))) -> 0 | BH37: =IF(AF37=0,0,IF(AND(AG37=3,O37=1),W37*BO37,IF(AND(AG37=3,O37=3),W37*BO37,IF(AND(AG37=3,O37=2),W37/SUMIF(Refurb_Poss_Tbl[Refurbishment Possible],J37,Refurb_Poss_Tbl[%])*BO37,0)))) -> 0 | BI37: =IF(AF37=0,0,IF(AND(AG37=3,O37=1),X37*BO37,IF(AND(AG37=3,O37=3),X37*BO37,IF(AND(AG37=3,O37=2),X37/SUMIF(Refurb_Poss_Tbl[Refurbishment Possible],J37,Refurb_Poss_Tbl[%])*BO37,0)))) -> 0 | BJ37: =VLOOKUP($AF37,DiscountWorking!$B$7:$C$107,2,FALSE) -> 0.1963642144 | BK37: =VLOOKUP($AF37,DiscountWorking!$J$7:$K$107,2,FALSE) -> 0.9094271558 | BL37: =VLOOKUP($AF37,DiscountWorking!$Q$7:$R$107,2,FALSE) -> 0.7971000302 | BM37: =VLOOKUP($AF37,DiscountWorking!$T$7:$U$107,2,FALSE) -> 0.5552975813 | BN37: =VLOOKUP($AF37,DiscountWorking!$W$7:$X$107,2,FALSE) -> 0.5528956851 | BO37: =VLOOKUP($AF37,DiscountWorking!$Z$7:$AA$107,2,FALSE) -> 0.68475594
A38: ChanEA05 | C38: Channel | D38: ChanEA0556 | F38: Channel | G38: 120 | H38: First intervention | I38: Expected new build/Replacement life | J38: Refurbishment type | K38: Expected refurbished Life | L38: 0 | M38: 0 | N38: 0 | O38: First Intervention code | P38: 2 | Q38: 0 | R38: 0 | S38: 0 | T38: 0 | U38: 0 | V38: 0 | W38: 0 | X38: 0 | Y38: 0 | Z38: 0 | AA38: 0 | AB38: 0 | AC38: 0 | AD38: 0 | AE38: 0 | AF38: 36 | AG38: 0 | AH38: =VLOOKUP(AF38,ValidationLists!$M$1:$N$102,2,FALSE) -> 0.3450324251 | AI38: 0 | AJ38: 0 | AK38: 0 | AL38: 0 | AM38: 0 | AN38: 0 | AO38: 0 | AP38: 0 | AQ38: 0 | AR38: =IF(AND(O38=1,OR(AG38=3,AG38=2,AG38=0)),SUMIFS(FlatMaint!$Z$2:$Z$10000,FlatMaint!$A$2:$A$10000,D38,FlatMaint!$Y$2:$Y$10000,AF38)*BO38,IF(AND(O38=2,OR(AG38=3,AG38=2,AG38=0)),SUMIFS(FlatMaint!$Z$2:$Z$10000,FlatMaint!$A$2:$A$10000,D38,FlatMaint!$Y$2:$Y$10000,AF38)/SUMIF(Refurb_Poss_Tbl[Refurbishment Possible],J38,Refurb_Poss_Tbl[%])*BO38,IF(AND(O38=3,OR(AG38=3,AG38=2,AG38=0)),SUMIFS(FlatMaint!$Z$2:$Z$10000,FlatMaint!$A$2:$A$10000,D38,FlatMaint!$Y$2:$Y$10000,AF38)*BO38,0))) -> 0 | AS38: =IF(AND(O38=1,OR(AG38=3,AG38=2,AG38=0)),SUMIFS(FlatRepair!$Z$2:$Z$10000,FlatRepair!$A$2:$A$10000,D38,FlatRepair!$Y$2:$Y$10000,AF38)*BO38,IF(AND(O38=2,OR(AG38=3,AG38=2,AG38=0)),SUMIFS(FlatRepair!$Z$2:$Z$10000,FlatRepair!$A$2:$A$10000,D38,FlatRepair!$Y$2:$Y$10000,AF38)/SUMIF(Refurb_Poss_Tbl[Refurbishment Possible],J38,Refurb_Poss_Tbl[%])*BO38,IF(AND(O38=3,OR(AG38=3,AG38=2,AG38=0)),SUMIFS(FlatRepair!$Z$2:$Z$10000,FlatRepair!$A$2:$A$10000,D38,FlatRepair!$Y$2:$Y$10000,AF38)*BO38,0))) -> 0 | AT38: 0 | AU38: 0 | AV38: 0 | AW38: =IF(AND(AG38=3,O38=1),AC38*BM38,IF(AND(AG38=3,O38=3),AC38*BM38,IF(AND(AG38=3,O38=2),AC38/SUMIF(Refurb_Poss_Tbl[Refurbishment Possible],J38,Refurb_Poss_Tbl[%])*BM38,IF(AND(AG38=2,O38=2),AC38*BM38,IF(AND(AG38=2,O38=1),SUMIF(Refurb_Poss_Tbl[Refurbishment Possible],J38,Refurb_Poss_Tbl[%])*AC38*BM38,IF(AND(AG38=2,O38=3),SUMIF(Refurb_Poss_Tbl[Refurbishment Possible],J38,Refurb_Poss_Tbl[%])*AC38*BM38,0)))))) -> 0 | AX38: =IF(AND(AG38=3,O38=1),AD38*BK38,IF(AND(AG38=3,O38=3),AD38*BK38,IF(AND(AG38=3,O38=2),AD38/SUMIF(Refurb_Poss_Tbl[Refurbishment Possible],J38,Refurb_Poss_Tbl[%])*BK38,IF(AND(AG38=2,O38=2),AD38*BK38,IF(AND(AG38=2,O38=1),SUMIF(Refurb_Poss_Tbl[Refurbishment Possible],J38,Refurb_Poss_Tbl[%])*AD38*BK38,IF(AND(AG38=2,O38=3),SUMIF(Refurb_Poss_Tbl[Refurbishment Possible],J38,Refurb_Poss_Tbl[%])*AD38*BK38,0)))))) -> 0 | AY38: =IF(AND(AG38=3,O38=1),(AE38/ValidationLists!$F$114)*BL38,IF(AND(AG38=3,O38=3),AE38*BL38,IF(AND(AG38=3,O38=2),AE38/SUMIF(Refurb_Poss_Tbl[Refurbishment Possible],J38,Refurb_Poss_Tbl[%])*BL38,IF(AND(AG38=2,O38=2),AE38*BL38,IF(AND(AG38=2,O38=1),SUMIF(Refurb_Poss_Tbl[Refurbishment Possible],J38,Refurb_Poss_Tbl[%])*AE38*BL38,IF(AND(AG38=2,O38=3),SUMIF(Refurb_Poss_Tbl[Refurbishment Possible],J38,Refurb_Poss_Tbl[%])*AE38*BL38,0)))))) -> 0 | AZ38: 0 | BA38: 0 | BB38: =IFERROR(IF(AF38=100,IF(P38=1,(N38/I38)*(Y38*BO38)*-1,IF(P38=2,(N38/K38)*(Y38*SUMIF(Refurb_Poss_Tbl[Refurbishment Possible],J38,Refurb_Poss_Tbl[%]))*BO38*-1,IF(P38=3,(N38/I38)*(Y38+(T38*ValidationLists!$F$114)+(U38*ValidationLists!$F$115))*BO38*-1,0))),0),0) -> 0 | BC38: =IF(AF38=0,0,IF(AND($AG38=3,O38=1),S38*BO38,IF(AND(AG38=3,O38=3),S38*BO38,IF(AND(AG38=3,O38=2),S38/SUMIF(Refurb_Poss_Tbl[Refurbishment Possible],J38,Refurb_Poss_Tbl[%])*BO38,0)))) -> 0 | BD38: =IF(AF38=0,0,IF(AND(AG38=3,O38=1),(T38/ValidationLists!$F$114)*BO38,IF(AND($AG38=3,O38=3),T38*BO38,IF(AND(AG38=3,O38=2),T38/SUMIF(Refurb_Poss_Tbl[Refurbishment Possible],J38,Refurb_Poss_Tbl[%])*BO38,0)))) -> 0 | BE38: =IF(AF38=0,0,IF(AND(AG38=3,O38=1),(U38/ValidationLists!$F$114)*BO38,IF(AND($AG38=3,O38=3),U38*BO38,IF(AND(AG38=3,O38=2),U38/SUMIF(Refurb_Poss_Tbl[Refurbishment Possible],J38,Refurb_Poss_Tbl[%])*BO38,0)))) -> 0 | BF38: =IF(AF38=0,0,IF(AND(AG38=3,O38=1),R38*BO38,IF(AND(AG38=3,O38=3),R38*BO38,IF(AND(AG38=3,O38=2),R38/SUMIF(Refurb_Poss_Tbl[Refurbishment Possible],J38,Refurb_Poss_Tbl[%])*BO38,0)))) -> 0 | BG38: =IF(AF38=0,0,IF(AND(AG38=3,O38=1),V38*BO38,IF(AND(AG38=3,O38=3),V38*BO38,IF(AND(AG38=3,O38=2),V38/SUMIF(Refurb_Poss_Tbl[Refurbishment Possible],J38,Refurb_Poss_Tbl[%])*BO38,0)))) -> 0 | BH38: =IF(AF38=0,0,IF(AND(AG38=3,O38=1),W38*BO38,IF(AND(AG38=3,O38=3),W38*BO38,IF(AND(AG38=3,O38=2),W38/SUMIF(Refurb_Poss_Tbl[Refurbishment Possible],J38,Refurb_Poss_Tbl[%])*BO38,0)))) -> 0 | BI38: =IF(AF38=0,0,IF(AND(AG38=3,O38=1),X38*BO38,IF(AND(AG38=3,O38=3),X38*BO38,IF(AND(AG38=3,O38=2),X38/SUMIF(Refurb_Poss_Tbl[Refurbishment Possible],J38,Refurb_Poss_Tbl[%])*BO38,0)))) -> 0 | BJ38: =VLOOKUP($AF38,DiscountWorking!$B$7:$C$107,2,FALSE) -> 0.1963642144 | BK38: =VLOOKUP($AF38,DiscountWorking!$J$7:$K$107,2,FALSE) -> 0.9094271558 | BL38: =VLOOKUP($AF38,DiscountWorking!$Q$7:$R$107,2,FALSE) -> 0.7971000302 | BM38: =VLOOKUP($AF38,DiscountWorking!$T$7:$U$107,2,FALSE) -> 0.5552975813 | BN38: =VLOOKUP($AF38,DiscountWorking!$W$7:$X$107,2,FALSE) -> 0.5528956851 | BO38: =VLOOKUP($AF38,DiscountWorking!$Z$7:$AA$107,2,FALSE) -> 0.68475594
A39: ChanEA05 | C39: Channel | D39: ChanEA0556 | F39: Channel | G39: 120 | H39: First intervention | I39: Expected new build/Replacement life | J39: Refurbishment type | K39: Expected refurbished Life | L39: 0 | M39: 0 | N39: 0 | O39: First Intervention code | P39: 2 | Q39: 0 | R39: 0 | S39: 0 | T39: 0 | U39: 0 | V39: 0 | W39: 0 | X39: 0 | Y39: 0 | Z39: 0 | AA39: 0 | AB39: 0 | AC39: 0 | AD39: 0 | AE39: 0 | AF39: 37 | AG39: 0 | AH39: =VLOOKUP(AF39,ValidationLists!$M$1:$N$102,2,FALSE) -> 0.3349829369 | AI39: 0 | AJ39: 0 | AK39: 0 | AL39: 0 | AM39: 0 | AN39: 0 | AO39: 0 | AP39: 0 | AQ39: 0 | AR39: =IF(AND(O39=1,OR(AG39=3,AG39=2,AG39=0)),SUMIFS(FlatMaint!$Z$2:$Z$10000,FlatMaint!$A$2:$A$10000,D39,FlatMaint!$Y$2:$Y$10000,AF39)*BO39,IF(AND(O39=2,OR(AG39=3,AG39=2,AG39=0)),SUMIFS(FlatMaint!$Z$2:$Z$10000,FlatMaint!$A$2:$A$10000,D39,FlatMaint!$Y$2:$Y$10000,AF39)/SUMIF(Refurb_Poss_Tbl[Refurbishment Possible],J39,Refurb_Poss_Tbl[%])*BO39,IF(AND(O39=3,OR(AG39=3,AG39=2,AG39=0)),SUMIFS(FlatMaint!$Z$2:$Z$10000,FlatMaint!$A$2:$A$10000,D39,FlatMaint!$Y$2:$Y$10000,AF39)*BO39,0))) -> 0 | AS39: =IF(AND(O39=1,OR(AG39=3,AG39=2,AG39=0)),SUMIFS(FlatRepair!$Z$2:$Z$10000,FlatRepair!$A$2:$A$10000,D39,FlatRepair!$Y$2:$Y$10000,AF39)*BO39,IF(AND(O39=2,OR(AG39=3,AG39=2,AG39=0)),SUMIFS(FlatRepair!$Z$2:$Z$10000,FlatRepair!$A$2:$A$10000,D39,FlatRepair!$Y$2:$Y$10000,AF39)/SUMIF(Refurb_Poss_Tbl[Refurbishment Possible],J39,Refurb_Poss_Tbl[%])*BO39,IF(AND(O39=3,OR(AG39=3,AG39=2,AG39=0)),SUMIFS(FlatRepair!$Z$2:$Z$10000,FlatRepair!$A$2:$A$10000,D39,FlatRepair!$Y$2:$Y$10000,AF39)*BO39,0))) -> 0 | AT39: 0 | AU39: 0 | AV39: 0 | AW39: =IF(AND(AG39=3,O39=1),AC39*BM39,IF(AND(AG39=3,O39=3),AC39*BM39,IF(AND(AG39=3,O39=2),AC39/SUMIF(Refurb_Poss_Tbl[Refurbishment Possible],J39,Refurb_Poss_Tbl[%])*BM39,IF(AND(AG39=2,O39=2),AC39*BM39,IF(AND(AG39=2,O39=1),SUMIF(Refurb_Poss_Tbl[Refurbishment Possible],J39,Refurb_Poss_Tbl[%])*AC39*BM39,IF(AND(AG39=2,O39=3),SUMIF(Refurb_Poss_Tbl[Refurbishment Possible],J39,Refurb_Poss_Tbl[%])*AC39*BM39,0)))))) -> 0 | AX39: =IF(AND(AG39=3,O39=1),AD39*BK39,IF(AND(AG39=3,O39=3),AD39*BK39,IF(AND(AG39=3,O39=2),AD39/SUMIF(Refurb_Poss_Tbl[Refurbishment Possible],J39,Refurb_Poss_Tbl[%])*BK39,IF(AND(AG39=2,O39=2),AD39*BK39,IF(AND(AG39=2,O39=1),SUMIF(Refurb_Poss_Tbl[Refurbishment Possible],J39,Refurb_Poss_Tbl[%])*AD39*BK39,IF(AND(AG39=2,O39=3),SUMIF(Refurb_Poss_Tbl[Refurbishment Possible],J39,Refurb_Poss_Tbl[%])*AD39*BK39,0)))))) -> 0 | AY39: =IF(AND(AG39=3,O39=1),(AE39/ValidationLists!$F$114)*BL39,IF(AND(AG39=3,O39=3),AE39*BL39,IF(AND(AG39=3,O39=2),AE39/SUMIF(Refurb_Poss_Tbl[Refurbishment Possible],J39,Refurb_Poss_Tbl[%])*BL39,IF(AND(AG39=2,O39=2),AE39*BL39,IF(AND(AG39=2,O39=1),SUMIF(Refurb_Poss_Tbl[Refurbishment Possible],J39,Refurb_Poss_Tbl[%])*AE39*BL39,IF(AND(AG39=2,O39=3),SUMIF(Refurb_Poss_Tbl[Refurbishment Possible],J39,Refurb_Poss_Tbl[%])*AE39*BL39,0)))))) -> 0 | AZ39: 0 | BA39: 0 | BB39: =IFERROR(IF(AF39=100,IF(P39=1,(N39/I39)*(Y39*BO39)*-1,IF(P39=2,(N39/K39)*(Y39*SUMIF(Refurb_Poss_Tbl[Refurbishment Possible],J39,Refurb_Poss_Tbl[%]))*BO39*-1,IF(P39=3,(N39/I39)*(Y39+(T39*ValidationLists!$F$114)+(U39*ValidationLists!$F$115))*BO39*-1,0))),0),0) -> 0 | BC39: =IF(AF39=0,0,IF(AND($AG39=3,O39=1),S39*BO39,IF(AND(AG39=3,O39=3),S39*BO39,IF(AND(AG39=3,O39=2),S39/SUMIF(Refurb_Poss_Tbl[Refurbishment Possible],J39,Refurb_Poss_Tbl[%])*BO39,0)))) -> 0 | BD39: =IF(AF39=0,0,IF(AND(AG39=3,O39=1),(T39/ValidationLists!$F$114)*BO39,IF(AND($AG39=3,O39=3),T39*BO39,IF(AND(AG39=3,O39=2),T39/SUMIF(Refurb_Poss_Tbl[Refurbishment Possible],J39,Refurb_Poss_Tbl[%])*BO39,0)))) -> 0 | BE39: =IF(AF39=0,0,IF(AND(AG39=3,O39=1),(U39/ValidationLists!$F$114)*BO39,IF(AND($AG39=3,O39=3),U39*BO39,IF(AND(AG39=3,O39=2),U39/SUMIF(Refurb_Poss_Tbl[Refurbishment Possible],J39,Refurb_Poss_Tbl[%])*BO39,0)))) -> 0 | BF39: =IF(AF39=0,0,IF(AND(AG39=3,O39=1),R39*BO39,IF(AND(AG39=3,O39=3),R39*BO39,IF(AND(AG39=3,O39=2),R39/SUMIF(Refurb_Poss_Tbl[Refurbishment Possible],J39,Refurb_Poss_Tbl[%])*BO39,0)))) -> 0 | BG39: =IF(AF39=0,0,IF(AND(AG39=3,O39=1),V39*BO39,IF(AND(AG39=3,O39=3),V39*BO39,IF(AND(AG39=3,O39=2),V39/SUMIF(Refurb_Poss_Tbl[Refurbishment Possible],J39,Refurb_Poss_Tbl[%])*BO39,0)))) -> 0 | BH39: =IF(AF39=0,0,IF(AND(AG39=3,O39=1),W39*BO39,IF(AND(AG39=3,O39=3),W39*BO39,IF(AND(AG39=3,O39=2),W39/SUMIF(Refurb_Poss_Tbl[Refurbishment Possible],J39,Refurb_Poss_Tbl[%])*BO39,0)))) -> 0 | BI39: =IF(AF39=0,0,IF(AND(AG39=3,O39=1),X39*BO39,IF(AND(AG39=3,O39=3),X39*BO39,IF(AND(AG39=3,O39=2),X39/SUMIF(Refurb_Poss_Tbl[Refurbishment Possible],J39,Refurb_Poss_Tbl[%])*BO39,0)))) -> 0 | BJ39: =VLOOKUP($AF39,DiscountWorking!$B$7:$C$107,2,FALSE) -> 0.1963642144 | BK39: =VLOOKUP($AF39,DiscountWorking!$J$7:$K$107,2,FALSE) -> 0.9094271558 | BL39: =VLOOKUP($AF39,DiscountWorking!$Q$7:$R$107,2,FALSE) -> 0.7971000302 | BM39: =VLOOKUP($AF39,DiscountWorking!$T$7:$U$107,2,FALSE) -> 0.5552975813 | BN39: =VLOOKUP($AF39,DiscountWorking!$W$7:$X$107,2,FALSE) -> 0.5528956851 | BO39: =VLOOKUP($AF39,DiscountWorking!$Z$7:$AA$107,2,FALSE) -> 0.68475594
A40: ChanEA05 | C40: Channel | D40: ChanEA0556 | F40: Channel | G40: 120 | H40: First intervention | I40: Expected new build/Replacement life | J40: Refurbishment type | K40: Expected refurbished Life | L40: 0 | M40: 0 | N40: 0 | O40: First Intervention code | P40: 2 | Q40: 0 | R40: 0 | S40: 0 | T40: 0 | U40: 0 | V40: 0 | W40: 0 | X40: 0 | Y40: 0 | Z40: 0 | AA40: 0 | AB40: 0 | AC40: 0 | AD40: 0 | AE40: 0 | AF40: 38 | AG40: 0 | AH40: =VLOOKUP(AF40,ValidationLists!$M$1:$N$102,2,FALSE) -> 0.3252261524 | AI40: 0 | AJ40: 0 | AK40: 0 | AL40: 0 | AM40: 0 | AN40: 0 | AO40: 0 | AP40: 0 | AQ40: 0 | AR40: =IF(AND(O40=1,OR(AG40=3,AG40=2,AG40=0)),SUMIFS(FlatMaint!$Z$2:$Z$10000,FlatMaint!$A$2:$A$10000,D40,FlatMaint!$Y$2:$Y$10000,AF40)*BO40,IF(AND(O40=2,OR(AG40=3,AG40=2,AG40=0)),SUMIFS(FlatMaint!$Z$2:$Z$10000,FlatMaint!$A$2:$A$10000,D40,FlatMaint!$Y$2:$Y$10000,AF40)/SUMIF(Refurb_Poss_Tbl[Refurbishment Possible],J40,Refurb_Poss_Tbl[%])*BO40,IF(AND(O40=3,OR(AG40=3,AG40=2,AG40=0)),SUMIFS(FlatMaint!$Z$2:$Z$10000,FlatMaint!$A$2:$A$10000,D40,FlatMaint!$Y$2:$Y$10000,AF40)*BO40,0))) -> 0 | AS40: =IF(AND(O40=1,OR(AG40=3,AG40=2,AG40=0)),SUMIFS(FlatRepair!$Z$2:$Z$10000,FlatRepair!$A$2:$A$10000,D40,FlatRepair!$Y$2:$Y$10000,AF40)*BO40,IF(AND(O40=2,OR(AG40=3,AG40=2,AG40=0)),SUMIFS(FlatRepair!$Z$2:$Z$10000,FlatRepair!$A$2:$A$10000,D40,FlatRepair!$Y$2:$Y$10000,AF40)/SUMIF(Refurb_Poss_Tbl[Refurbishment Possible],J40,Refurb_Poss_Tbl[%])*BO40,IF(AND(O40=3,OR(AG40=3,AG40=2,AG40=0)),SUMIFS(FlatRepair!$Z$2:$Z$10000,FlatRepair!$A$2:$A$10000,D40,FlatRepair!$Y$2:$Y$10000,AF40)*BO40,0))) -> 0 | AT40: 0 | AU40: 0 | AV40: 0 | AW40: =IF(AND(AG40=3,O40=1),AC40*BM40,IF(AND(AG40=3,O40=3),AC40*BM40,IF(AND(AG40=3,O40=2),AC40/SUMIF(Refurb_Poss_Tbl[Refurbishment Possible],J40,Refurb_Poss_Tbl[%])*BM40,IF(AND(AG40=2,O40=2),AC40*BM40,IF(AND(AG40=2,O40=1),SUMIF(Refurb_Poss_Tbl[Refurbishment Possible],J40,Refurb_Poss_Tbl[%])*AC40*BM40,IF(AND(AG40=2,O40=3),SUMIF(Refurb_Poss_Tbl[Refurbishment Possible],J40,Refurb_Poss_Tbl[%])*AC40*BM40,0)))))) -> 0 | AX40: =IF(AND(AG40=3,O40=1),AD40*BK40,IF(AND(AG40=3,O40=3),AD40*BK40,IF(AND(AG40=3,O40=2),AD40/SUMIF(Refurb_Poss_Tbl[Refurbishment Possible],J40,Refurb_Poss_Tbl[%])*BK40,IF(AND(AG40=2,O40=2),AD40*BK40,IF(AND(AG40=2,O40=1),SUMIF(Refurb_Poss_Tbl[Refurbishment Possible],J40,Refurb_Poss_Tbl[%])*AD40*BK40,IF(AND(AG40=2,O40=3),SUMIF(Refurb_Poss_Tbl[Refurbishment Possible],J40,Refurb_Poss_Tbl[%])*AD40*BK40,0)))))) -> 0 | AY40: =IF(AND(AG40=3,O40=1),(AE40/ValidationLists!$F$114)*BL40,IF(AND(AG40=3,O40=3),AE40*BL40,IF(AND(AG40=3,O40=2),AE40/SUMIF(Refurb_Poss_Tbl[Refurbishment Possible],J40,Refurb_Poss_Tbl[%])*BL40,IF(AND(AG40=2,O40=2),AE40*BL40,IF(AND(AG40=2,O40=1),SUMIF(Refurb_Poss_Tbl[Refurbishment Possible],J40,Refurb_Poss_Tbl[%])*AE40*BL40,IF(AND(AG40=2,O40=3),SUMIF(Refurb_Poss_Tbl[Refurbishment Possible],J40,Refurb_Poss_Tbl[%])*AE40*BL40,0)))))) -> 0 | AZ40: 0 | BA40: 0 | BB40: =IFERROR(IF(AF40=100,IF(P40=1,(N40/I40)*(Y40*BO40)*-1,IF(P40=2,(N40/K40)*(Y40*SUMIF(Refurb_Poss_Tbl[Refurbishment Possible],J40,Refurb_Poss_Tbl[%]))*BO40*-1,IF(P40=3,(N40/I40)*(Y40+(T40*ValidationLists!$F$114)+(U40*ValidationLists!$F$115))*BO40*-1,0))),0),0) -> 0 | BC40: =IF(AF40=0,0,IF(AND($AG40=3,O40=1),S40*BO40,IF(AND(AG40=3,O40=3),S40*BO40,IF(AND(AG40=3,O40=2),S40/SUMIF(Refurb_Poss_Tbl[Refurbishment Possible],J40,Refurb_Poss_Tbl[%])*BO40,0)))) -> 0 | BD40: =IF(AF40=0,0,IF(AND(AG40=3,O40=1),(T40/ValidationLists!$F$114)*BO40,IF(AND($AG40=3,O40=3),T40*BO40,IF(AND(AG40=3,O40=2),T40/SUMIF(Refurb_Poss_Tbl[Refurbishment Possible],J40,Refurb_Poss_Tbl[%])*BO40,0)))) -> 0 | BE40: =IF(AF40=0,0,IF(AND(AG40=3,O40=1),(U40/ValidationLists!$F$114)*BO40,IF(AND($AG40=3,O40=3),U40*BO40,IF(AND(AG40=3,O40=2),U40/SUMIF(Refurb_Poss_Tbl[Refurbishment Possible],J40,Refurb_Poss_Tbl[%])*BO40,0)))) -> 0 | BF40: =IF(AF40=0,0,IF(AND(AG40=3,O40=1),R40*BO40,IF(AND(AG40=3,O40=3),R40*BO40,IF(AND(AG40=3,O40=2),R40/SUMIF(Refurb_Poss_Tbl[Refurbishment Possible],J40,Refurb_Poss_Tbl[%])*BO40,0)))) -> 0 | BG40: =IF(AF40=0,0,IF(AND(AG40=3,O40=1),V40*BO40,IF(AND(AG40=3,O40=3),V40*BO40,IF(AND(AG40=3,O40=2),V40/SUMIF(Refurb_Poss_Tbl[Refurbishment Possible],J40,Refurb_Poss_Tbl[%])*BO40,0)))) -> 0 | BH40: =IF(AF40=0,0,IF(AND(AG40=3,O40=1),W40*BO40,IF(AND(AG40=3,O40=3),W40*BO40,IF(AND(AG40=3,O40=2),W40/SUMIF(Refurb_Poss_Tbl[Refurbishment Possible],J40,Refurb_Poss_Tbl[%])*BO40,0)))) -> 0 | BI40: =IF(AF40=0,0,IF(AND(AG40=3,O40=1),X40*BO40,IF(AND(AG40=3,O40=3),X40*BO40,IF(AND(AG40=3,O40=2),X40/SUMIF(Refurb_Poss_Tbl[Refurbishment Possible],J40,Refurb_Poss_Tbl[%])*BO40,0)))) -> 0 | BJ40: =VLOOKUP($AF40,DiscountWorking!$B$7:$C$107,2,FALSE) -> 0.1963642144 | BK40: =VLOOKUP($AF40,DiscountWorking!$J$7:$K$107,2,FALSE) -> 0.9094271558 | BL40: =VLOOKUP($AF40,DiscountWorking!$Q$7:$R$107,2,FALSE) -> 0.7971000302 | BM40: =VLOOKUP($AF40,DiscountWorking!$T$7:$U$107,2,FALSE) -> 0.5552975813 | BN40: =VLOOKUP($AF40,DiscountWorking!$W$7:$X$107,2,FALSE) -> 0.5528956851 | BO40: =VLOOKUP($AF40,DiscountWorking!$Z$7:$AA$107,2,FALSE) -> 0.68475594
A41: ChanEA05 | C41: Channel | D41: ChanEA0556 | F41: Channel | G41: 120 | H41: First intervention | I41: Expected new build/Replacement life | J41: Refurbishment type | K41: Expected refurbished Life | L41: 0 | M41: 0 | N41: 0 | O41: First Intervention code | P41: 2 | Q41: 0 | R41: 0 | S41: 0 | T41: 0 | U41: 0 | V41: 0 | W41: 0 | X41: 0 | Y41: 0 | Z41: 0 | AA41: 0 | AB41: 0 | AC41: 0 | AD41: 0 | AE41: 0 | AF41: 39 | AG41: 0 | AH41: =VLOOKUP(AF41,ValidationLists!$M$1:$N$102,2,FALSE) -> 0.315753546 | AI41: 0 | AJ41: 0 | AK41: 0 | AL41: 0 | AM41: 0 | AN41: 0 | AO41: 0 | AP41: 0 | AQ41: 0 | AR41: =IF(AND(O41=1,OR(AG41=3,AG41=2,AG41=0)),SUMIFS(FlatMaint!$Z$2:$Z$10000,FlatMaint!$A$2:$A$10000,D41,FlatMaint!$Y$2:$Y$10000,AF41)*BO41,IF(AND(O41=2,OR(AG41=3,AG41=2,AG41=0)),SUMIFS(FlatMaint!$Z$2:$Z$10000,FlatMaint!$A$2:$A$10000,D41,FlatMaint!$Y$2:$Y$10000,AF41)/SUMIF(Refurb_Poss_Tbl[Refurbishment Possible],J41,Refurb_Poss_Tbl[%])*BO41,IF(AND(O41=3,OR(AG41=3,AG41=2,AG41=0)),SUMIFS(FlatMaint!$Z$2:$Z$10000,FlatMaint!$A$2:$A$10000,D41,FlatMaint!$Y$2:$Y$10000,AF41)*BO41,0))) -> 0 | AS41: =IF(AND(O41=1,OR(AG41=3,AG41=2,AG41=0)),SUMIFS(FlatRepair!$Z$2:$Z$10000,FlatRepair!$A$2:$A$10000,D41,FlatRepair!$Y$2:$Y$10000,AF41)*BO41,IF(AND(O41=2,OR(AG41=3,AG41=2,AG41=0)),SUMIFS(FlatRepair!$Z$2:$Z$10000,FlatRepair!$A$2:$A$10000,D41,FlatRepair!$Y$2:$Y$10000,AF41)/SUMIF(Refurb_Poss_Tbl[Refurbishment Possible],J41,Refurb_Poss_Tbl[%])*BO41,IF(AND(O41=3,OR(AG41=3,AG41=2,AG41=0)),SUMIFS(FlatRepair!$Z$2:$Z$10000,FlatRepair!$A$2:$A$10000,D41,FlatRepair!$Y$2:$Y$10000,AF41)*BO41,0))) -> 0 | AT41: 0 | AU41: 0 | AV41: 0 | AW41: =IF(AND(AG41=3,O41=1),AC41*BM41,IF(AND(AG41=3,O41=3),AC41*BM41,IF(AND(AG41=3,O41=2),AC41/SUMIF(Refurb_Poss_Tbl[Refurbishment Possible],J41,Refurb_Poss_Tbl[%])*BM41,IF(AND(AG41=2,O41=2),AC41*BM41,IF(AND(AG41=2,O41=1),SUMIF(Refurb_Poss_Tbl[Refurbishment Possible],J41,Refurb_Poss_Tbl[%])*AC41*BM41,IF(AND(AG41=2,O41=3),SUMIF(Refurb_Poss_Tbl[Refurbishment Possible],J41,Refurb_Poss_Tbl[%])*AC41*BM41,0)))))) -> 0 | AX41: =IF(AND(AG41=3,O41=1),AD41*BK41,IF(AND(AG41=3,O41=3),AD41*BK41,IF(AND(AG41=3,O41=2),AD41/SUMIF(Refurb_Poss_Tbl[Refurbishment Possible],J41,Refurb_Poss_Tbl[%])*BK41,IF(AND(AG41=2,O41=2),AD41*BK41,IF(AND(AG41=2,O41=1),SUMIF(Refurb_Poss_Tbl[Refurbishment Possible],J41,Refurb_Poss_Tbl[%])*AD41*BK41,IF(AND(AG41=2,O41=3),SUMIF(Refurb_Poss_Tbl[Refurbishment Possible],J41,Refurb_Poss_Tbl[%])*AD41*BK41,0)))))) -> 0 | AY41: =IF(AND(AG41=3,O41=1),(AE41/ValidationLists!$F$114)*BL41,IF(AND(AG41=3,O41=3),AE41*BL41,IF(AND(AG41=3,O41=2),AE41/SUMIF(Refurb_Poss_Tbl[Refurbishment Possible],J41,Refurb_Poss_Tbl[%])*BL41,IF(AND(AG41=2,O41=2),AE41*BL41,IF(AND(AG41=2,O41=1),SUMIF(Refurb_Poss_Tbl[Refurbishment Possible],J41,Refurb_Poss_Tbl[%])*AE41*BL41,IF(AND(AG41=2,O41=3),SUMIF(Refurb_Poss_Tbl[Refurbishment Possible],J41,Refurb_Poss_Tbl[%])*AE41*BL41,0)))))) -> 0 | AZ41: 0 | BA41: 0 | BB41: =IFERROR(IF(AF41=100,IF(P41=1,(N41/I41)*(Y41*BO41)*-1,IF(P41=2,(N41/K41)*(Y41*SUMIF(Refurb_Poss_Tbl[Refurbishment Possible],J41,Refurb_Poss_Tbl[%]))*BO41*-1,IF(P41=3,(N41/I41)*(Y41+(T41*ValidationLists!$F$114)+(U41*ValidationLists!$F$115))*BO41*-1,0))),0),0) -> 0 | BC41: =IF(AF41=0,0,IF(AND($AG41=3,O41=1),S41*BO41,IF(AND(AG41=3,O41=3),S41*BO41,IF(AND(AG41=3,O41=2),S41/SUMIF(Refurb_Poss_Tbl[Refurbishment Possible],J41,Refurb_Poss_Tbl[%])*BO41,0)))) -> 0 | BD41: =IF(AF41=0,0,IF(AND(AG41=3,O41=1),(T41/ValidationLists!$F$114)*BO41,IF(AND($AG41=3,O41=3),T41*BO41,IF(AND(AG41=3,O41=2),T41/SUMIF(Refurb_Poss_Tbl[Refurbishment Possible],J41,Refurb_Poss_Tbl[%])*BO41,0)))) -> 0 | BE41: =IF(AF41=0,0,IF(AND(AG41=3,O41=1),(U41/ValidationLists!$F$114)*BO41,IF(AND($AG41=3,O41=3),U41*BO41,IF(AND(AG41=3,O41=2),U41/SUMIF(Refurb_Poss_Tbl[Refurbishment Possible],J41,Refurb_Poss_Tbl[%])*BO41,0)))) -> 0 | BF41: =IF(AF41=0,0,IF(AND(AG41=3,O41=1),R41*BO41,IF(AND(AG41=3,O41=3),R41*BO41,IF(AND(AG41=3,O41=2),R41/SUMIF(Refurb_Poss_Tbl[Refurbishment Possible],J41,Refurb_Poss_Tbl[%])*BO41,0)))) -> 0 | BG41: =IF(AF41=0,0,IF(AND(AG41=3,O41=1),V41*BO41,IF(AND(AG41=3,O41=3),V41*BO41,IF(AND(AG41=3,O41=2),V41/SUMIF(Refurb_Poss_Tbl[Refurbishment Possible],J41,Refurb_Poss_Tbl[%])*BO41,0)))) -> 0 | BH41: =IF(AF41=0,0,IF(AND(AG41=3,O41=1),W41*BO41,IF(AND(AG41=3,O41=3),W41*BO41,IF(AND(AG41=3,O41=2),W41/SUMIF(Refurb_Poss_Tbl[Refurbishment Possible],J41,Refurb_Poss_Tbl[%])*BO41,0)))) -> 0 | BI41: =IF(AF41=0,0,IF(AND(AG41=3,O41=1),X41*BO41,IF(AND(AG41=3,O41=3),X41*BO41,IF(AND(AG41=3,O41=2),X41/SUMIF(Refurb_Poss_Tbl[Refurbishment Possible],J41,Refurb_Poss_Tbl[%])*BO41,0)))) -> 0 | BJ41: =VLOOKUP($AF41,DiscountWorking!$B$7:$C$107,2,FALSE) -> 0.1963642144 | BK41: =VLOOKUP($AF41,DiscountWorking!$J$7:$K$107,2,FALSE) -> 0.9094271558 | BL41: =VLOOKUP($AF41,DiscountWorking!$Q$7:$R$107,2,FALSE) -> 0.7971000302 | BM41: =VLOOKUP($AF41,DiscountWorking!$T$7:$U$107,2,FALSE) -> 0.5552975813 | BN41: =VLOOKUP($AF41,DiscountWorking!$W$7:$X$107,2,FALSE) -> 0.5528956851 | BO41: =VLOOKUP($AF41,DiscountWorking!$Z$7:$AA$107,2,FALSE) -> 0.68475594
A42: ChanEA05 | C42: Channel | D42: ChanEA0556 | F42: Channel | G42: 120 | H42: First intervention | I42: Expected new build/Replacement life | J42: Refurbishment type | K42: Expected refurbished Life | L42: 0 | M42: 0 | N42: 0 | O42: First Intervention code | P42: 2 | Q42: 0 | R42: 0 | S42: 0 | T42: 0 | U42: 0 | V42: 0 | W42: 0 | X42: 0 | Y42: 0 | Z42: 0 | AA42: 0 | AB42: 0 | AC42: 0 | AD42: 0 | AE42: 0 | AF42: 40 | AG42: 0 | AH42: =VLOOKUP(AF42,ValidationLists!$M$1:$N$102,2,FALSE) -> 0.3065568408 | AI42: 0 | AJ42: 0 | AK42: 0 | AL42: 0 | AM42: 0 | AN42: 0 | AO42: 0 | AP42: 0 | AQ42: 0 | AR42: =IF(AND(O42=1,OR(AG42=3,AG42=2,AG42=0)),SUMIFS(FlatMaint!$Z$2:$Z$10000,FlatMaint!$A$2:$A$10000,D42,FlatMaint!$Y$2:$Y$10000,AF42)*BO42,IF(AND(O42=2,OR(AG42=3,AG42=2,AG42=0)),SUMIFS(FlatMaint!$Z$2:$Z$10000,FlatMaint!$A$2:$A$10000,D42,FlatMaint!$Y$2:$Y$10000,AF42)/SUMIF(Refurb_Poss_Tbl[Refurbishment Possible],J42,Refurb_Poss_Tbl[%])*BO42,IF(AND(O42=3,OR(AG42=3,AG42=2,AG42=0)),SUMIFS(FlatMaint!$Z$2:$Z$10000,FlatMaint!$A$2:$A$10000,D42,FlatMaint!$Y$2:$Y$10000,AF42)*BO42,0))) -> 0 | AS42: =IF(AND(O42=1,OR(AG42=3,AG42=2,AG42=0)),SUMIFS(FlatRepair!$Z$2:$Z$10000,FlatRepair!$A$2:$A$10000,D42,FlatRepair!$Y$2:$Y$10000,AF42)*BO42,IF(AND(O42=2,OR(AG42=3,AG42=2,AG42=0)),SUMIFS(FlatRepair!$Z$2:$Z$10000,FlatRepair!$A$2:$A$10000,D42,FlatRepair!$Y$2:$Y$10000,AF42)/SUMIF(Refurb_Poss_Tbl[Refurbishment Possible],J42,Refurb_Poss_Tbl[%])*BO42,IF(AND(O42=3,OR(AG42=3,AG42=2,AG42=0)),SUMIFS(FlatRepair!$Z$2:$Z$10000,FlatRepair!$A$2:$A$10000,D42,FlatRepair!$Y$2:$Y$10000,AF42)*BO42,0))) -> 0 | AT42: 0 | AU42: 0 | AV42: 0 | AW42: =IF(AND(AG42=3,O42=1),AC42*BM42,IF(AND(AG42=3,O42=3),AC42*BM42,IF(AND(AG42=3,O42=2),AC42/SUMIF(Refurb_Poss_Tbl[Refurbishment Possible],J42,Refurb_Poss_Tbl[%])*BM42,IF(AND(AG42=2,O42=2),AC42*BM42,IF(AND(AG42=2,O42=1),SUMIF(Refurb_Poss_Tbl[Refurbishment Possible],J42,Refurb_Poss_Tbl[%])*AC42*BM42,IF(AND(AG42=2,O42=3),SUMIF(Refurb_Poss_Tbl[Refurbishment Possible],J42,Refurb_Poss_Tbl[%])*AC42*BM42,0)))))) -> 0 | AX42: =IF(AND(AG42=3,O42=1),AD42*BK42,IF(AND(AG42=3,O42=3),AD42*BK42,IF(AND(AG42=3,O42=2),AD42/SUMIF(Refurb_Poss_Tbl[Refurbishment Possible],J42,Refurb_Poss_Tbl[%])*BK42,IF(AND(AG42=2,O42=2),AD42*BK42,IF(AND(AG42=2,O42=1),SUMIF(Refurb_Poss_Tbl[Refurbishment Possible],J42,Refurb_Poss_Tbl[%])*AD42*BK42,IF(AND(AG42=2,O42=3),SUMIF(Refurb_Poss_Tbl[Refurbishment Possible],J42,Refurb_Poss_Tbl[%])*AD42*BK42,0)))))) -> 0 | AY42: =IF(AND(AG42=3,O42=1),(AE42/ValidationLists!$F$114)*BL42,IF(AND(AG42=3,O42=3),AE42*BL42,IF(AND(AG42=3,O42=2),AE42/SUMIF(Refurb_Poss_Tbl[Refurbishment Possible],J42,Refurb_Poss_Tbl[%])*BL42,IF(AND(AG42=2,O42=2),AE42*BL42,IF(AND(AG42=2,O42=1),SUMIF(Refurb_Poss_Tbl[Refurbishment Possible],J42,Refurb_Poss_Tbl[%])*AE42*BL42,IF(AND(AG42=2,O42=3),SUMIF(Refurb_Poss_Tbl[Refurbishment Possible],J42,Refurb_Poss_Tbl[%])*AE42*BL42,0)))))) -> 0 | AZ42: 0 | BA42: 0 | BB42: =IFERROR(IF(AF42=100,IF(P42=1,(N42/I42)*(Y42*BO42)*-1,IF(P42=2,(N42/K42)*(Y42*SUMIF(Refurb_Poss_Tbl[Refurbishment Possible],J42,Refurb_Poss_Tbl[%]))*BO42*-1,IF(P42=3,(N42/I42)*(Y42+(T42*ValidationLists!$F$114)+(U42*ValidationLists!$F$115))*BO42*-1,0))),0),0) -> 0 | BC42: =IF(AF42=0,0,IF(AND($AG42=3,O42=1),S42*BO42,IF(AND(AG42=3,O42=3),S42*BO42,IF(AND(AG42=3,O42=2),S42/SUMIF(Refurb_Poss_Tbl[Refurbishment Possible],J42,Refurb_Poss_Tbl[%])*BO42,0)))) -> 0 | BD42: =IF(AF42=0,0,IF(AND(AG42=3,O42=1),(T42/ValidationLists!$F$114)*BO42,IF(AND($AG42=3,O42=3),T42*BO42,IF(AND(AG42=3,O42=2),T42/SUMIF(Refurb_Poss_Tbl[Refurbishment Possible],J42,Refurb_Poss_Tbl[%])*BO42,0)))) -> 0 | BE42: =IF(AF42=0,0,IF(AND(AG42=3,O42=1),(U42/ValidationLists!$F$114)*BO42,IF(AND($AG42=3,O42=3),U42*BO42,IF(AND(AG42=3,O42=2),U42/SUMIF(Refurb_Poss_Tbl[Refurbishment Possible],J42,Refurb_Poss_Tbl[%])*BO42,0)))) -> 0 | BF42: =IF(AF42=0,0,IF(AND(AG42=3,O42=1),R42*BO42,IF(AND(AG42=3,O42=3),R42*BO42,IF(AND(AG42=3,O42=2),R42/SUMIF(Refurb_Poss_Tbl[Refurbishment Possible],J42,Refurb_Poss_Tbl[%])*BO42,0)))) -> 0 | BG42: =IF(AF42=0,0,IF(AND(AG42=3,O42=1),V42*BO42,IF(AND(AG42=3,O42=3),V42*BO42,IF(AND(AG42=3,O42=2),V42/SUMIF(Refurb_Poss_Tbl[Refurbishment Possible],J42,Refurb_Poss_Tbl[%])*BO42,0)))) -> 0 | BH42: =IF(AF42=0,0,IF(AND(AG42=3,O42=1),W42*BO42,IF(AND(AG42=3,O42=3),W42*BO42,IF(AND(AG42=3,O42=2),W42/SUMIF(Refurb_Poss_Tbl[Refurbishment Possible],J42,Refurb_Poss_Tbl[%])*BO42,0)))) -> 0 | BI42: =IF(AF42=0,0,IF(AND(AG42=3,O42=1),X42*BO42,IF(AND(AG42=3,O42=3),X42*BO42,IF(AND(AG42=3,O42=2),X42/SUMIF(Refurb_Poss_Tbl[Refurbishment Possible],J42,Refurb_Poss_Tbl[%])*BO42,0)))) -> 0 | BJ42: =VLOOKUP($AF42,DiscountWorking!$B$7:$C$107,2,FALSE) -> 0.1963642144 | BK42: =VLOOKUP($AF42,DiscountWorking!$J$7:$K$107,2,FALSE) -> 0.9094271558 | BL42: =VLOOKUP($AF42,DiscountWorking!$Q$7:$R$107,2,FALSE) -> 0.7971000302 | BM42: =VLOOKUP($AF42,DiscountWorking!$T$7:$U$107,2,FALSE) -> 0.5552975813 | BN42: =VLOOKUP($AF42,DiscountWorking!$W$7:$X$107,2,FALSE) -> 0.5528956851 | BO42: =VLOOKUP($AF42,DiscountWorking!$Z$7:$AA$107,2,FALSE) -> 0.68475594
A43: ChanEA05 | C43: Channel | D43: ChanEA0556 | F43: Channel | G43: 120 | H43: First intervention | I43: Expected new build/Replacement life | J43: Refurbishment type | K43: Expected refurbished Life | L43: 0 | M43: 0 | N43: 0 | O43: First Intervention code | P43: 2 | Q43: 0 | R43: 0 | S43: 0 | T43: 0 | U43: 0 | V43: 0 | W43: 0 | X43: 0 | Y43: 0 | Z43: 0 | AA43: 0 | AB43: 0 | AC43: 0 | AD43: 0 | AE43: 0 | AF43: 41 | AG43: 0 | AH43: =VLOOKUP(AF43,ValidationLists!$M$1:$N$102,2,FALSE) -> 0.2976280008 | AI43: 0 | AJ43: 0 | AK43: 0 | AL43: 0 | AM43: 0 | AN43: 0 | AO43: 0 | AP43: 0 | AQ43: 0 | AR43: =IF(AND(O43=1,OR(AG43=3,AG43=2,AG43=0)),SUMIFS(FlatMaint!$Z$2:$Z$10000,FlatMaint!$A$2:$A$10000,D43,FlatMaint!$Y$2:$Y$10000,AF43)*BO43,IF(AND(O43=2,OR(AG43=3,AG43=2,AG43=0)),SUMIFS(FlatMaint!$Z$2:$Z$10000,FlatMaint!$A$2:$A$10000,D43,FlatMaint!$Y$2:$Y$10000,AF43)/SUMIF(Refurb_Poss_Tbl[Refurbishment Possible],J43,Refurb_Poss_Tbl[%])*BO43,IF(AND(O43=3,OR(AG43=3,AG43=2,AG43=0)),SUMIFS(FlatMaint!$Z$2:$Z$10000,FlatMaint!$A$2:$A$10000,D43,FlatMaint!$Y$2:$Y$10000,AF43)*BO43,0))) -> 0 | AS43: =IF(AND(O43=1,OR(AG43=3,AG43=2,AG43=0)),SUMIFS(FlatRepair!$Z$2:$Z$10000,FlatRepair!$A$2:$A$10000,D43,FlatRepair!$Y$2:$Y$10000,AF43)*BO43,IF(AND(O43=2,OR(AG43=3,AG43=2,AG43=0)),SUMIFS(FlatRepair!$Z$2:$Z$10000,FlatRepair!$A$2:$A$10000,D43,FlatRepair!$Y$2:$Y$10000,AF43)/SUMIF(Refurb_Poss_Tbl[Refurbishment Possible],J43,Refurb_Poss_Tbl[%])*BO43,IF(AND(O43=3,OR(AG43=3,AG43=2,AG43=0)),SUMIFS(FlatRepair!$Z$2:$Z$10000,FlatRepair!$A$2:$A$10000,D43,FlatRepair!$Y$2:$Y$10000,AF43)*BO43,0))) -> 0 | AT43: 0 | AU43: 0 | AV43: 0 | AW43: =IF(AND(AG43=3,O43=1),AC43*BM43,IF(AND(AG43=3,O43=3),AC43*BM43,IF(AND(AG43=3,O43=2),AC43/SUMIF(Refurb_Poss_Tbl[Refurbishment Possible],J43,Refurb_Poss_Tbl[%])*BM43,IF(AND(AG43=2,O43=2),AC43*BM43,IF(AND(AG43=2,O43=1),SUMIF(Refurb_Poss_Tbl[Refurbishment Possible],J43,Refurb_Poss_Tbl[%])*AC43*BM43,IF(AND(AG43=2,O43=3),SUMIF(Refurb_Poss_Tbl[Refurbishment Possible],J43,Refurb_Poss_Tbl[%])*AC43*BM43,0)))))) -> 0 | AX43: =IF(AND(AG43=3,O43=1),AD43*BK43,IF(AND(AG43=3,O43=3),AD43*BK43,IF(AND(AG43=3,O43=2),AD43/SUMIF(Refurb_Poss_Tbl[Refurbishment Possible],J43,Refurb_Poss_Tbl[%])*BK43,IF(AND(AG43=2,O43=2),AD43*BK43,IF(AND(AG43=2,O43=1),SUMIF(Refurb_Poss_Tbl[Refurbishment Possible],J43,Refurb_Poss_Tbl[%])*AD43*BK43,IF(AND(AG43=2,O43=3),SUMIF(Refurb_Poss_Tbl[Refurbishment Possible],J43,Refurb_Poss_Tbl[%])*AD43*BK43,0)))))) -> 0 | AY43: =IF(AND(AG43=3,O43=1),(AE43/ValidationLists!$F$114)*BL43,IF(AND(AG43=3,O43=3),AE43*BL43,IF(AND(AG43=3,O43=2),AE43/SUMIF(Refurb_Poss_Tbl[Refurbishment Possible],J43,Refurb_Poss_Tbl[%])*BL43,IF(AND(AG43=2,O43=2),AE43*BL43,IF(AND(AG43=2,O43=1),SUMIF(Refurb_Poss_Tbl[Refurbishment Possible],J43,Refurb_Poss_Tbl[%])*AE43*BL43,IF(AND(AG43=2,O43=3),SUMIF(Refurb_Poss_Tbl[Refurbishment Possible],J43,Refurb_Poss_Tbl[%])*AE43*BL43,0)))))) -> 0 | AZ43: 0 | BA43: 0 | BB43: =IFERROR(IF(AF43=100,IF(P43=1,(N43/I43)*(Y43*BO43)*-1,IF(P43=2,(N43/K43)*(Y43*SUMIF(Refurb_Poss_Tbl[Refurbishment Possible],J43,Refurb_Poss_Tbl[%]))*BO43*-1,IF(P43=3,(N43/I43)*(Y43+(T43*ValidationLists!$F$114)+(U43*ValidationLists!$F$115))*BO43*-1,0))),0),0) -> 0 | BC43: =IF(AF43=0,0,IF(AND($AG43=3,O43=1),S43*BO43,IF(AND(AG43=3,O43=3),S43*BO43,IF(AND(AG43=3,O43=2),S43/SUMIF(Refurb_Poss_Tbl[Refurbishment Possible],J43,Refurb_Poss_Tbl[%])*BO43,0)))) -> 0 | BD43: =IF(AF43=0,0,IF(AND(AG43=3,O43=1),(T43/ValidationLists!$F$114)*BO43,IF(AND($AG43=3,O43=3),T43*BO43,IF(AND(AG43=3,O43=2),T43/SUMIF(Refurb_Poss_Tbl[Refurbishment Possible],J43,Refurb_Poss_Tbl[%])*BO43,0)))) -> 0 | BE43: =IF(AF43=0,0,IF(AND(AG43=3,O43=1),(U43/ValidationLists!$F$114)*BO43,IF(AND($AG43=3,O43=3),U43*BO43,IF(AND(AG43=3,O43=2),U43/SUMIF(Refurb_Poss_Tbl[Refurbishment Possible],J43,Refurb_Poss_Tbl[%])*BO43,0)))) -> 0 | BF43: =IF(AF43=0,0,IF(AND(AG43=3,O43=1),R43*BO43,IF(AND(AG43=3,O43=3),R43*BO43,IF(AND(AG43=3,O43=2),R43/SUMIF(Refurb_Poss_Tbl[Refurbishment Possible],J43,Refurb_Poss_Tbl[%])*BO43,0)))) -> 0 | BG43: =IF(AF43=0,0,IF(AND(AG43=3,O43=1),V43*BO43,IF(AND(AG43=3,O43=3),V43*BO43,IF(AND(AG43=3,O43=2),V43/SUMIF(Refurb_Poss_Tbl[Refurbishment Possible],J43,Refurb_Poss_Tbl[%])*BO43,0)))) -> 0 | BH43: =IF(AF43=0,0,IF(AND(AG43=3,O43=1),W43*BO43,IF(AND(AG43=3,O43=3),W43*BO43,IF(AND(AG43=3,O43=2),W43/SUMIF(Refurb_Poss_Tbl[Refurbishment Possible],J43,Refurb_Poss_Tbl[%])*BO43,0)))) -> 0 | BI43: =IF(AF43=0,0,IF(AND(AG43=3,O43=1),X43*BO43,IF(AND(AG43=3,O43=3),X43*BO43,IF(AND(AG43=3,O43=2),X43/SUMIF(Refurb_Poss_Tbl[Refurbishment Possible],J43,Refurb_Poss_Tbl[%])*BO43,0)))) -> 0 | BJ43: =VLOOKUP($AF43,DiscountWorking!$B$7:$C$107,2,FALSE) -> 0.1963642144 | BK43: =VLOOKUP($AF43,DiscountWorking!$J$7:$K$107,2,FALSE) -> 0.9094271558 | BL43: =VLOOKUP($AF43,DiscountWorking!$Q$7:$R$107,2,FALSE) -> 0.7971000302 | BM43: =VLOOKUP($AF43,DiscountWorking!$T$7:$U$107,2,FALSE) -> 0.5552975813 | BN43: =VLOOKUP($AF43,DiscountWorking!$W$7:$X$107,2,FALSE) -> 0.5528956851 | BO43: =VLOOKUP($AF43,DiscountWorking!$Z$7:$AA$107,2,FALSE) -> 0.68475594
A44: ChanEA05 | C44: Channel | D44: ChanEA0556 | F44: Channel | G44: 120 | H44: First intervention | I44: Expected new build/Replacement life | J44: Refurbishment type | K44: Expected refurbished Life | L44: 0 | M44: 0 | N44: 0 | O44: First Intervention code | P44: 2 | Q44: 0 | R44: 0 | S44: 0 | T44: 0 | U44: 0 | V44: 0 | W44: 0 | X44: 0 | Y44: 0 | Z44: 0 | AA44: 0 | AB44: 0 | AC44: 0 | AD44: 0 | AE44: 0 | AF44: 42 | AG44: 0 | AH44: =VLOOKUP(AF44,ValidationLists!$M$1:$N$102,2,FALSE) -> 0.288959224 | AI44: 0 | AJ44: 0 | AK44: 0 | AL44: 0 | AM44: 0 | AN44: 0 | AO44: 0 | AP44: 0 | AQ44: 0 | AR44: =IF(AND(O44=1,OR(AG44=3,AG44=2,AG44=0)),SUMIFS(FlatMaint!$Z$2:$Z$10000,FlatMaint!$A$2:$A$10000,D44,FlatMaint!$Y$2:$Y$10000,AF44)*BO44,IF(AND(O44=2,OR(AG44=3,AG44=2,AG44=0)),SUMIFS(FlatMaint!$Z$2:$Z$10000,FlatMaint!$A$2:$A$10000,D44,FlatMaint!$Y$2:$Y$10000,AF44)/SUMIF(Refurb_Poss_Tbl[Refurbishment Possible],J44,Refurb_Poss_Tbl[%])*BO44,IF(AND(O44=3,OR(AG44=3,AG44=2,AG44=0)),SUMIFS(FlatMaint!$Z$2:$Z$10000,FlatMaint!$A$2:$A$10000,D44,FlatMaint!$Y$2:$Y$10000,AF44)*BO44,0))) -> 0 | AS44: =IF(AND(O44=1,OR(AG44=3,AG44=2,AG44=0)),SUMIFS(FlatRepair!$Z$2:$Z$10000,FlatRepair!$A$2:$A$10000,D44,FlatRepair!$Y$2:$Y$10000,AF44)*BO44,IF(AND(O44=2,OR(AG44=3,AG44=2,AG44=0)),SUMIFS(FlatRepair!$Z$2:$Z$10000,FlatRepair!$A$2:$A$10000,D44,FlatRepair!$Y$2:$Y$10000,AF44)/SUMIF(Refurb_Poss_Tbl[Refurbishment Possible],J44,Refurb_Poss_Tbl[%])*BO44,IF(AND(O44=3,OR(AG44=3,AG44=2,AG44=0)),SUMIFS(FlatRepair!$Z$2:$Z$10000,FlatRepair!$A$2:$A$10000,D44,FlatRepair!$Y$2:$Y$10000,AF44)*BO44,0))) -> 0 | AT44: 0 | AU44: 0 | AV44: 0 | AW44: =IF(AND(AG44=3,O44=1),AC44*BM44,IF(AND(AG44=3,O44=3),AC44*BM44,IF(AND(AG44=3,O44=2),AC44/SUMIF(Refurb_Poss_Tbl[Refurbishment Possible],J44,Refurb_Poss_Tbl[%])*BM44,IF(AND(AG44=2,O44=2),AC44*BM44,IF(AND(AG44=2,O44=1),SUMIF(Refurb_Poss_Tbl[Refurbishment Possible],J44,Refurb_Poss_Tbl[%])*AC44*BM44,IF(AND(AG44=2,O44=3),SUMIF(Refurb_Poss_Tbl[Refurbishment Possible],J44,Refurb_Poss_Tbl[%])*AC44*BM44,0)))))) -> 0 | AX44: =IF(AND(AG44=3,O44=1),AD44*BK44,IF(AND(AG44=3,O44=3),AD44*BK44,IF(AND(AG44=3,O44=2),AD44/SUMIF(Refurb_Poss_Tbl[Refurbishment Possible],J44,Refurb_Poss_Tbl[%])*BK44,IF(AND(AG44=2,O44=2),AD44*BK44,IF(AND(AG44=2,O44=1),SUMIF(Refurb_Poss_Tbl[Refurbishment Possible],J44,Refurb_Poss_Tbl[%])*AD44*BK44,IF(AND(AG44=2,O44=3),SUMIF(Refurb_Poss_Tbl[Refurbishment Possible],J44,Refurb_Poss_Tbl[%])*AD44*BK44,0)))))) -> 0 | AY44: =IF(AND(AG44=3,O44=1),(AE44/ValidationLists!$F$114)*BL44,IF(AND(AG44=3,O44=3),AE44*BL44,IF(AND(AG44=3,O44=2),AE44/SUMIF(Refurb_Poss_Tbl[Refurbishment Possible],J44,Refurb_Poss_Tbl[%])*BL44,IF(AND(AG44=2,O44=2),AE44*BL44,IF(AND(AG44=2,O44=1),SUMIF(Refurb_Poss_Tbl[Refurbishment Possible],J44,Refurb_Poss_Tbl[%])*AE44*BL44,IF(AND(AG44=2,O44=3),SUMIF(Refurb_Poss_Tbl[Refurbishment Possible],J44,Refurb_Poss_Tbl[%])*AE44*BL44,0)))))) -> 0 | AZ44: 0 | BA44: 0 | BB44: =IFERROR(IF(AF44=100,IF(P44=1,(N44/I44)*(Y44*BO44)*-1,IF(P44=2,(N44/K44)*(Y44*SUMIF(Refurb_Poss_Tbl[Refurbishment Possible],J44,Refurb_Poss_Tbl[%]))*BO44*-1,IF(P44=3,(N44/I44)*(Y44+(T44*ValidationLists!$F$114)+(U44*ValidationLists!$F$115))*BO44*-1,0))),0),0) -> 0 | BC44: =IF(AF44=0,0,IF(AND($AG44=3,O44=1),S44*BO44,IF(AND(AG44=3,O44=3),S44*BO44,IF(AND(AG44=3,O44=2),S44/SUMIF(Refurb_Poss_Tbl[Refurbishment Possible],J44,Refurb_Poss_Tbl[%])*BO44,0)))) -> 0 | BD44: =IF(AF44=0,0,IF(AND(AG44=3,O44=1),(T44/ValidationLists!$F$114)*BO44,IF(AND($AG44=3,O44=3),T44*BO44,IF(AND(AG44=3,O44=2),T44/SUMIF(Refurb_Poss_Tbl[Refurbishment Possible],J44,Refurb_Poss_Tbl[%])*BO44,0)))) -> 0 | BE44: =IF(AF44=0,0,IF(AND(AG44=3,O44=1),(U44/ValidationLists!$F$114)*BO44,IF(AND($AG44=3,O44=3),U44*BO44,IF(AND(AG44=3,O44=2),U44/SUMIF(Refurb_Poss_Tbl[Refurbishment Possible],J44,Refurb_Poss_Tbl[%])*BO44,0)))) -> 0 | BF44: =IF(AF44=0,0,IF(AND(AG44=3,O44=1),R44*BO44,IF(AND(AG44=3,O44=3),R44*BO44,IF(AND(AG44=3,O44=2),R44/SUMIF(Refurb_Poss_Tbl[Refurbishment Possible],J44,Refurb_Poss_Tbl[%])*BO44,0)))) -> 0 | BG44: =IF(AF44=0,0,IF(AND(AG44=3,O44=1),V44*BO44,IF(AND(AG44=3,O44=3),V44*BO44,IF(AND(AG44=3,O44=2),V44/SUMIF(Refurb_Poss_Tbl[Refurbishment Possible],J44,Refurb_Poss_Tbl[%])*BO44,0)))) -> 0 | BH44: =IF(AF44=0,0,IF(AND(AG44=3,O44=1),W44*BO44,IF(AND(AG44=3,O44=3),W44*BO44,IF(AND(AG44=3,O44=2),W44/SUMIF(Refurb_Poss_Tbl[Refurbishment Possible],J44,Refurb_Poss_Tbl[%])*BO44,0)))) -> 0 | BI44: =IF(AF44=0,0,IF(AND(AG44=3,O44=1),X44*BO44,IF(AND(AG44=3,O44=3),X44*BO44,IF(AND(AG44=3,O44=2),X44/SUMIF(Refurb_Poss_Tbl[Refurbishment Possible],J44,Refurb_Poss_Tbl[%])*BO44,0)))) -> 0 | BJ44: =VLOOKUP($AF44,DiscountWorking!$B$7:$C$107,2,FALSE) -> 0.1963642144 | BK44: =VLOOKUP($AF44,DiscountWorking!$J$7:$K$107,2,FALSE) -> 0.9094271558 | BL44: =VLOOKUP($AF44,DiscountWorking!$Q$7:$R$107,2,FALSE) -> 0.7971000302 | BM44: =VLOOKUP($AF44,DiscountWorking!$T$7:$U$107,2,FALSE) -> 0.5552975813 | BN44: =VLOOKUP($AF44,DiscountWorking!$W$7:$X$107,2,FALSE) -> 0.5528956851 | BO44: =VLOOKUP($AF44,DiscountWorking!$Z$7:$AA$107,2,FALSE) -> 0.68475594
A45: ChanEA05 | C45: Channel | D45: ChanEA0556 | F45: Channel | G45: 120 | H45: First intervention | I45: Expected new build/Replacement life | J45: Refurbishment type | K45: Expected refurbished Life | L45: 0 | M45: 0 | N45: 0 | O45: First Intervention code | P45: 2 | Q45: 0 | R45: 0 | S45: 0 | T45: 0 | U45: 0 | V45: 0 | W45: 0 | X45: 0 | Y45: 0 | Z45: 0 | AA45: 0 | AB45: 0 | AC45: 0 | AD45: 0 | AE45: 0 | AF45: 43 | AG45: 0 | AH45: =VLOOKUP(AF45,ValidationLists!$M$1:$N$102,2,FALSE) -> 0.280542936 | AI45: 0 | AJ45: 0 | AK45: 0 | AL45: 0 | AM45: 0 | AN45: 0 | AO45: 0 | AP45: 0 | AQ45: 0 | AR45: =IF(AND(O45=1,OR(AG45=3,AG45=2,AG45=0)),SUMIFS(FlatMaint!$Z$2:$Z$10000,FlatMaint!$A$2:$A$10000,D45,FlatMaint!$Y$2:$Y$10000,AF45)*BO45,IF(AND(O45=2,OR(AG45=3,AG45=2,AG45=0)),SUMIFS(FlatMaint!$Z$2:$Z$10000,FlatMaint!$A$2:$A$10000,D45,FlatMaint!$Y$2:$Y$10000,AF45)/SUMIF(Refurb_Poss_Tbl[Refurbishment Possible],J45,Refurb_Poss_Tbl[%])*BO45,IF(AND(O45=3,OR(AG45=3,AG45=2,AG45=0)),SUMIFS(FlatMaint!$Z$2:$Z$10000,FlatMaint!$A$2:$A$10000,D45,FlatMaint!$Y$2:$Y$10000,AF45)*BO45,0))) -> 0 | AS45: =IF(AND(O45=1,OR(AG45=3,AG45=2,AG45=0)),SUMIFS(FlatRepair!$Z$2:$Z$10000,FlatRepair!$A$2:$A$10000,D45,FlatRepair!$Y$2:$Y$10000,AF45)*BO45,IF(AND(O45=2,OR(AG45=3,AG45=2,AG45=0)),SUMIFS(FlatRepair!$Z$2:$Z$10000,FlatRepair!$A$2:$A$10000,D45,FlatRepair!$Y$2:$Y$10000,AF45)/SUMIF(Refurb_Poss_Tbl[Refurbishment Possible],J45,Refurb_Poss_Tbl[%])*BO45,IF(AND(O45=3,OR(AG45=3,AG45=2,AG45=0)),SUMIFS(FlatRepair!$Z$2:$Z$10000,FlatRepair!$A$2:$A$10000,D45,FlatRepair!$Y$2:$Y$10000,AF45)*BO45,0))) -> 0 | AT45: 0 | AU45: 0 | AV45: 0 | AW45: =IF(AND(AG45=3,O45=1),AC45*BM45,IF(AND(AG45=3,O45=3),AC45*BM45,IF(AND(AG45=3,O45=2),AC45/SUMIF(Refurb_Poss_Tbl[Refurbishment Possible],J45,Refurb_Poss_Tbl[%])*BM45,IF(AND(AG45=2,O45=2),AC45*BM45,IF(AND(AG45=2,O45=1),SUMIF(Refurb_Poss_Tbl[Refurbishment Possible],J45,Refurb_Poss_Tbl[%])*AC45*BM45,IF(AND(AG45=2,O45=3),SUMIF(Refurb_Poss_Tbl[Refurbishment Possible],J45,Refurb_Poss_Tbl[%])*AC45*BM45,0)))))) -> 0 | AX45: =IF(AND(AG45=3,O45=1),AD45*BK45,IF(AND(AG45=3,O45=3),AD45*BK45,IF(AND(AG45=3,O45=2),AD45/SUMIF(Refurb_Poss_Tbl[Refurbishment Possible],J45,Refurb_Poss_Tbl[%])*BK45,IF(AND(AG45=2,O45=2),AD45*BK45,IF(AND(AG45=2,O45=1),SUMIF(Refurb_Poss_Tbl[Refurbishment Possible],J45,Refurb_Poss_Tbl[%])*AD45*BK45,IF(AND(AG45=2,O45=3),SUMIF(Refurb_Poss_Tbl[Refurbishment Possible],J45,Refurb_Poss_Tbl[%])*AD45*BK45,0)))))) -> 0 | AY45: =IF(AND(AG45=3,O45=1),(AE45/ValidationLists!$F$114)*BL45,IF(AND(AG45=3,O45=3),AE45*BL45,IF(AND(AG45=3,O45=2),AE45/SUMIF(Refurb_Poss_Tbl[Refurbishment Possible],J45,Refurb_Poss_Tbl[%])*BL45,IF(AND(AG45=2,O45=2),AE45*BL45,IF(AND(AG45=2,O45=1),SUMIF(Refurb_Poss_Tbl[Refurbishment Possible],J45,Refurb_Poss_Tbl[%])*AE45*BL45,IF(AND(AG45=2,O45=3),SUMIF(Refurb_Poss_Tbl[Refurbishment Possible],J45,Refurb_Poss_Tbl[%])*AE45*BL45,0)))))) -> 0 | AZ45: 0 | BA45: 0 | BB45: =IFERROR(IF(AF45=100,IF(P45=1,(N45/I45)*(Y45*BO45)*-1,IF(P45=2,(N45/K45)*(Y45*SUMIF(Refurb_Poss_Tbl[Refurbishment Possible],J45,Refurb_Poss_Tbl[%]))*BO45*-1,IF(P45=3,(N45/I45)*(Y45+(T45*ValidationLists!$F$114)+(U45*ValidationLists!$F$115))*BO45*-1,0))),0),0) -> 0 | BC45: =IF(AF45=0,0,IF(AND($AG45=3,O45=1),S45*BO45,IF(AND(AG45=3,O45=3),S45*BO45,IF(AND(AG45=3,O45=2),S45/SUMIF(Refurb_Poss_Tbl[Refurbishment Possible],J45,Refurb_Poss_Tbl[%])*BO45,0)))) -> 0 | BD45: =IF(AF45=0,0,IF(AND(AG45=3,O45=1),(T45/ValidationLists!$F$114)*BO45,IF(AND($AG45=3,O45=3),T45*BO45,IF(AND(AG45=3,O45=2),T45/SUMIF(Refurb_Poss_Tbl[Refurbishment Possible],J45,Refurb_Poss_Tbl[%])*BO45,0)))) -> 0 | BE45: =IF(AF45=0,0,IF(AND(AG45=3,O45=1),(U45/ValidationLists!$F$114)*BO45,IF(AND($AG45=3,O45=3),U45*BO45,IF(AND(AG45=3,O45=2),U45/SUMIF(Refurb_Poss_Tbl[Refurbishment Possible],J45,Refurb_Poss_Tbl[%])*BO45,0)))) -> 0 | BF45: =IF(AF45=0,0,IF(AND(AG45=3,O45=1),R45*BO45,IF(AND(AG45=3,O45=3),R45*BO45,IF(AND(AG45=3,O45=2),R45/SUMIF(Refurb_Poss_Tbl[Refurbishment Possible],J45,Refurb_Poss_Tbl[%])*BO45,0)))) -> 0 | BG45: =IF(AF45=0,0,IF(AND(AG45=3,O45=1),V45*BO45,IF(AND(AG45=3,O45=3),V45*BO45,IF(AND(AG45=3,O45=2),V45/SUMIF(Refurb_Poss_Tbl[Refurbishment Possible],J45,Refurb_Poss_Tbl[%])*BO45,0)))) -> 0 | BH45: =IF(AF45=0,0,IF(AND(AG45=3,O45=1),W45*BO45,IF(AND(AG45=3,O45=3),W45*BO45,IF(AND(AG45=3,O45=2),W45/SUMIF(Refurb_Poss_Tbl[Refurbishment Possible],J45,Refurb_Poss_Tbl[%])*BO45,0)))) -> 0 | BI45: =IF(AF45=0,0,IF(AND(AG45=3,O45=1),X45*BO45,IF(AND(AG45=3,O45=3),X45*BO45,IF(AND(AG45=3,O45=2),X45/SUMIF(Refurb_Poss_Tbl[Refurbishment Possible],J45,Refurb_Poss_Tbl[%])*BO45,0)))) -> 0 | BJ45: =VLOOKUP($AF45,DiscountWorking!$B$7:$C$107,2,FALSE) -> 0.1963642144 | BK45: =VLOOKUP($AF45,DiscountWorking!$J$7:$K$107,2,FALSE) -> 0.9094271558 | BL45: =VLOOKUP($AF45,DiscountWorking!$Q$7:$R$107,2,FALSE) -> 0.7971000302 | BM45: =VLOOKUP($AF45,DiscountWorking!$T$7:$U$107,2,FALSE) -> 0.5552975813 | BN45: =VLOOKUP($AF45,DiscountWorking!$W$7:$X$107,2,FALSE) -> 0.5528956851 | BO45: =VLOOKUP($AF45,DiscountWorking!$Z$7:$AA$107,2,FALSE) -> 0.68475594
A46: ChanEA05 | C46: Channel | D46: ChanEA0556 | F46: Channel | G46: 120 | H46: First intervention | I46: Expected new build/Replacement life | J46: Refurbishment type | K46: Expected refurbished Life | L46: 0 | M46: 0 | N46: 0 | O46: First Intervention code | P46: 2 | Q46: 0 | R46: 0 | S46: 0 | T46: 0 | U46: 0 | V46: 0 | W46: 0 | X46: 0 | Y46: 0 | Z46: 0 | AA46: 0 | AB46: 0 | AC46: 0 | AD46: 0 | AE46: 0 | AF46: 44 | AG46: 0 | AH46: =VLOOKUP(AF46,ValidationLists!$M$1:$N$102,2,FALSE) -> 0.2723717825 | AI46: 0 | AJ46: 0 | AK46: 0 | AL46: 0 | AM46: 0 | AN46: 0 | AO46: 0 | AP46: 0 | AQ46: 0 | AR46: =IF(AND(O46=1,OR(AG46=3,AG46=2,AG46=0)),SUMIFS(FlatMaint!$Z$2:$Z$10000,FlatMaint!$A$2:$A$10000,D46,FlatMaint!$Y$2:$Y$10000,AF46)*BO46,IF(AND(O46=2,OR(AG46=3,AG46=2,AG46=0)),SUMIFS(FlatMaint!$Z$2:$Z$10000,FlatMaint!$A$2:$A$10000,D46,FlatMaint!$Y$2:$Y$10000,AF46)/SUMIF(Refurb_Poss_Tbl[Refurbishment Possible],J46,Refurb_Poss_Tbl[%])*BO46,IF(AND(O46=3,OR(AG46=3,AG46=2,AG46=0)),SUMIFS(FlatMaint!$Z$2:$Z$10000,FlatMaint!$A$2:$A$10000,D46,FlatMaint!$Y$2:$Y$10000,AF46)*BO46,0))) -> 0 | AS46: =IF(AND(O46=1,OR(AG46=3,AG46=2,AG46=0)),SUMIFS(FlatRepair!$Z$2:$Z$10000,FlatRepair!$A$2:$A$10000,D46,FlatRepair!$Y$2:$Y$10000,AF46)*BO46,IF(AND(O46=2,OR(AG46=3,AG46=2,AG46=0)),SUMIFS(FlatRepair!$Z$2:$Z$10000,FlatRepair!$A$2:$A$10000,D46,FlatRepair!$Y$2:$Y$10000,AF46)/SUMIF(Refurb_Poss_Tbl[Refurbishment Possible],J46,Refurb_Poss_Tbl[%])*BO46,IF(AND(O46=3,OR(AG46=3,AG46=2,AG46=0)),SUMIFS(FlatRepair!$Z$2:$Z$10000,FlatRepair!$A$2:$A$10000,D46,FlatRepair!$Y$2:$Y$10000,AF46)*BO46,0))) -> 0 | AT46: 0 | AU46: 0 | AV46: 0 | AW46: =IF(AND(AG46=3,O46=1),AC46*BM46,IF(AND(AG46=3,O46=3),AC46*BM46,IF(AND(AG46=3,O46=2),AC46/SUMIF(Refurb_Poss_Tbl[Refurbishment Possible],J46,Refurb_Poss_Tbl[%])*BM46,IF(AND(AG46=2,O46=2),AC46*BM46,IF(AND(AG46=2,O46=1),SUMIF(Refurb_Poss_Tbl[Refurbishment Possible],J46,Refurb_Poss_Tbl[%])*AC46*BM46,IF(AND(AG46=2,O46=3),SUMIF(Refurb_Poss_Tbl[Refurbishment Possible],J46,Refurb_Poss_Tbl[%])*AC46*BM46,0)))))) -> 0 | AX46: =IF(AND(AG46=3,O46=1),AD46*BK46,IF(AND(AG46=3,O46=3),AD46*BK46,IF(AND(AG46=3,O46=2),AD46/SUMIF(Refurb_Poss_Tbl[Refurbishment Possible],J46,Refurb_Poss_Tbl[%])*BK46,IF(AND(AG46=2,O46=2),AD46*BK46,IF(AND(AG46=2,O46=1),SUMIF(Refurb_Poss_Tbl[Refurbishment Possible],J46,Refurb_Poss_Tbl[%])*AD46*BK46,IF(AND(AG46=2,O46=3),SUMIF(Refurb_Poss_Tbl[Refurbishment Possible],J46,Refurb_Poss_Tbl[%])*AD46*BK46,0)))))) -> 0 | AY46: =IF(AND(AG46=3,O46=1),(AE46/ValidationLists!$F$114)*BL46,IF(AND(AG46=3,O46=3),AE46*BL46,IF(AND(AG46=3,O46=2),AE46/SUMIF(Refurb_Poss_Tbl[Refurbishment Possible],J46,Refurb_Poss_Tbl[%])*BL46,IF(AND(AG46=2,O46=2),AE46*BL46,IF(AND(AG46=2,O46=1),SUMIF(Refurb_Poss_Tbl[Refurbishment Possible],J46,Refurb_Poss_Tbl[%])*AE46*BL46,IF(AND(AG46=2,O46=3),SUMIF(Refurb_Poss_Tbl[Refurbishment Possible],J46,Refurb_Poss_Tbl[%])*AE46*BL46,0)))))) -> 0 | AZ46: 0 | BA46: 0 | BB46: =IFERROR(IF(AF46=100,IF(P46=1,(N46/I46)*(Y46*BO46)*-1,IF(P46=2,(N46/K46)*(Y46*SUMIF(Refurb_Poss_Tbl[Refurbishment Possible],J46,Refurb_Poss_Tbl[%]))*BO46*-1,IF(P46=3,(N46/I46)*(Y46+(T46*ValidationLists!$F$114)+(U46*ValidationLists!$F$115))*BO46*-1,0))),0),0) -> 0 | BC46: =IF(AF46=0,0,IF(AND($AG46=3,O46=1),S46*BO46,IF(AND(AG46=3,O46=3),S46*BO46,IF(AND(AG46=3,O46=2),S46/SUMIF(Refurb_Poss_Tbl[Refurbishment Possible],J46,Refurb_Poss_Tbl[%])*BO46,0)))) -> 0 | BD46: =IF(AF46=0,0,IF(AND(AG46=3,O46=1),(T46/ValidationLists!$F$114)*BO46,IF(AND($AG46=3,O46=3),T46*BO46,IF(AND(AG46=3,O46=2),T46/SUMIF(Refurb_Poss_Tbl[Refurbishment Possible],J46,Refurb_Poss_Tbl[%])*BO46,0)))) -> 0 | BE46: =IF(AF46=0,0,IF(AND(AG46=3,O46=1),(U46/ValidationLists!$F$114)*BO46,IF(AND($AG46=3,O46=3),U46*BO46,IF(AND(AG46=3,O46=2),U46/SUMIF(Refurb_Poss_Tbl[Refurbishment Possible],J46,Refurb_Poss_Tbl[%])*BO46,0)))) -> 0 | BF46: =IF(AF46=0,0,IF(AND(AG46=3,O46=1),R46*BO46,IF(AND(AG46=3,O46=3),R46*BO46,IF(AND(AG46=3,O46=2),R46/SUMIF(Refurb_Poss_Tbl[Refurbishment Possible],J46,Refurb_Poss_Tbl[%])*BO46,0)))) -> 0 | BG46: =IF(AF46=0,0,IF(AND(AG46=3,O46=1),V46*BO46,IF(AND(AG46=3,O46=3),V46*BO46,IF(AND(AG46=3,O46=2),V46/SUMIF(Refurb_Poss_Tbl[Refurbishment Possible],J46,Refurb_Poss_Tbl[%])*BO46,0)))) -> 0 | BH46: =IF(AF46=0,0,IF(AND(AG46=3,O46=1),W46*BO46,IF(AND(AG46=3,O46=3),W46*BO46,IF(AND(AG46=3,O46=2),W46/SUMIF(Refurb_Poss_Tbl[Refurbishment Possible],J46,Refurb_Poss_Tbl[%])*BO46,0)))) -> 0 | BI46: =IF(AF46=0,0,IF(AND(AG46=3,O46=1),X46*BO46,IF(AND(AG46=3,O46=3),X46*BO46,IF(AND(AG46=3,O46=2),X46/SUMIF(Refurb_Poss_Tbl[Refurbishment Possible],J46,Refurb_Poss_Tbl[%])*BO46,0)))) -> 0 | BJ46: =VLOOKUP($AF46,DiscountWorking!$B$7:$C$107,2,FALSE) -> 0.1963642144 | BK46: =VLOOKUP($AF46,DiscountWorking!$J$7:$K$107,2,FALSE) -> 0.9094271558 | BL46: =VLOOKUP($AF46,DiscountWorking!$Q$7:$R$107,2,FALSE) -> 0.7971000302 | BM46: =VLOOKUP($AF46,DiscountWorking!$T$7:$U$107,2,FALSE) -> 0.5552975813 | BN46: =VLOOKUP($AF46,DiscountWorking!$W$7:$X$107,2,FALSE) -> 0.5528956851 | BO46: =VLOOKUP($AF46,DiscountWorking!$Z$7:$AA$107,2,FALSE) -> 0.68475594
A47: ChanEA05 | C47: Channel | D47: ChanEA0556 | F47: Channel | G47: 120 | H47: First intervention | I47: Expected new build/Replacement life | J47: Refurbishment type | K47: Expected refurbished Life | L47: 0 | M47: 0 | N47: 0 | O47: First Intervention code | P47: 2 | Q47: 0 | R47: 0 | S47: 0 | T47: 0 | U47: 0 | V47: 0 | W47: 0 | X47: 0 | Y47: 0 | Z47: 0 | AA47: 0 | AB47: 0 | AC47: 0 | AD47: 0 | AE47: 0 | AF47: 45 | AG47: 0 | AH47: =VLOOKUP(AF47,ValidationLists!$M$1:$N$102,2,FALSE) -> 0.2644386238 | AI47: 0 | AJ47: 0 | AK47: 0 | AL47: 0 | AM47: 0 | AN47: 0 | AO47: 0 | AP47: 0 | AQ47: 0 | AR47: =IF(AND(O47=1,OR(AG47=3,AG47=2,AG47=0)),SUMIFS(FlatMaint!$Z$2:$Z$10000,FlatMaint!$A$2:$A$10000,D47,FlatMaint!$Y$2:$Y$10000,AF47)*BO47,IF(AND(O47=2,OR(AG47=3,AG47=2,AG47=0)),SUMIFS(FlatMaint!$Z$2:$Z$10000,FlatMaint!$A$2:$A$10000,D47,FlatMaint!$Y$2:$Y$10000,AF47)/SUMIF(Refurb_Poss_Tbl[Refurbishment Possible],J47,Refurb_Poss_Tbl[%])*BO47,IF(AND(O47=3,OR(AG47=3,AG47=2,AG47=0)),SUMIFS(FlatMaint!$Z$2:$Z$10000,FlatMaint!$A$2:$A$10000,D47,FlatMaint!$Y$2:$Y$10000,AF47)*BO47,0))) -> 0 | AS47: =IF(AND(O47=1,OR(AG47=3,AG47=2,AG47=0)),SUMIFS(FlatRepair!$Z$2:$Z$10000,FlatRepair!$A$2:$A$10000,D47,FlatRepair!$Y$2:$Y$10000,AF47)*BO47,IF(AND(O47=2,OR(AG47=3,AG47=2,AG47=0)),SUMIFS(FlatRepair!$Z$2:$Z$10000,FlatRepair!$A$2:$A$10000,D47,FlatRepair!$Y$2:$Y$10000,AF47)/SUMIF(Refurb_Poss_Tbl[Refurbishment Possible],J47,Refurb_Poss_Tbl[%])*BO47,IF(AND(O47=3,OR(AG47=3,AG47=2,AG47=0)),SUMIFS(FlatRepair!$Z$2:$Z$10000,FlatRepair!$A$2:$A$10000,D47,FlatRepair!$Y$2:$Y$10000,AF47)*BO47,0))) -> 0 | AT47: 0 | AU47: 0 | AV47: 0 | AW47: =IF(AND(AG47=3,O47=1),AC47*BM47,IF(AND(AG47=3,O47=3),AC47*BM47,IF(AND(AG47=3,O47=2),AC47/SUMIF(Refurb_Poss_Tbl[Refurbishment Possible],J47,Refurb_Poss_Tbl[%])*BM47,IF(AND(AG47=2,O47=2),AC47*BM47,IF(AND(AG47=2,O47=1),SUMIF(Refurb_Poss_Tbl[Refurbishment Possible],J47,Refurb_Poss_Tbl[%])*AC47*BM47,IF(AND(AG47=2,O47=3),SUMIF(Refurb_Poss_Tbl[Refurbishment Possible],J47,Refurb_Poss_Tbl[%])*AC47*BM47,0)))))) -> 0 | AX47: =IF(AND(AG47=3,O47=1),AD47*BK47,IF(AND(AG47=3,O47=3),AD47*BK47,IF(AND(AG47=3,O47=2),AD47/SUMIF(Refurb_Poss_Tbl[Refurbishment Possible],J47,Refurb_Poss_Tbl[%])*BK47,IF(AND(AG47=2,O47=2),AD47*BK47,IF(AND(AG47=2,O47=1),SUMIF(Refurb_Poss_Tbl[Refurbishment Possible],J47,Refurb_Poss_Tbl[%])*AD47*BK47,IF(AND(AG47=2,O47=3),SUMIF(Refurb_Poss_Tbl[Refurbishment Possible],J47,Refurb_Poss_Tbl[%])*AD47*BK47,0)))))) -> 0 | AY47: =IF(AND(AG47=3,O47=1),(AE47/ValidationLists!$F$114)*BL47,IF(AND(AG47=3,O47=3),AE47*BL47,IF(AND(AG47=3,O47=2),AE47/SUMIF(Refurb_Poss_Tbl[Refurbishment Possible],J47,Refurb_Poss_Tbl[%])*BL47,IF(AND(AG47=2,O47=2),AE47*BL47,IF(AND(AG47=2,O47=1),SUMIF(Refurb_Poss_Tbl[Refurbishment Possible],J47,Refurb_Poss_Tbl[%])*AE47*BL47,IF(AND(AG47=2,O47=3),SUMIF(Refurb_Poss_Tbl[Refurbishment Possible],J47,Refurb_Poss_Tbl[%])*AE47*BL47,0)))))) -> 0 | AZ47: 0 | BA47: 0 | BB47: =IFERROR(IF(AF47=100,IF(P47=1,(N47/I47)*(Y47*BO47)*-1,IF(P47=2,(N47/K47)*(Y47*SUMIF(Refurb_Poss_Tbl[Refurbishment Possible],J47,Refurb_Poss_Tbl[%]))*BO47*-1,IF(P47=3,(N47/I47)*(Y47+(T47*ValidationLists!$F$114)+(U47*ValidationLists!$F$115))*BO47*-1,0))),0),0) -> 0 | BC47: =IF(AF47=0,0,IF(AND($AG47=3,O47=1),S47*BO47,IF(AND(AG47=3,O47=3),S47*BO47,IF(AND(AG47=3,O47=2),S47/SUMIF(Refurb_Poss_Tbl[Refurbishment Possible],J47,Refurb_Poss_Tbl[%])*BO47,0)))) -> 0 | BD47: =IF(AF47=0,0,IF(AND(AG47=3,O47=1),(T47/ValidationLists!$F$114)*BO47,IF(AND($AG47=3,O47=3),T47*BO47,IF(AND(AG47=3,O47=2),T47/SUMIF(Refurb_Poss_Tbl[Refurbishment Possible],J47,Refurb_Poss_Tbl[%])*BO47,0)))) -> 0 | BE47: =IF(AF47=0,0,IF(AND(AG47=3,O47=1),(U47/ValidationLists!$F$114)*BO47,IF(AND($AG47=3,O47=3),U47*BO47,IF(AND(AG47=3,O47=2),U47/SUMIF(Refurb_Poss_Tbl[Refurbishment Possible],J47,Refurb_Poss_Tbl[%])*BO47,0)))) -> 0 | BF47: =IF(AF47=0,0,IF(AND(AG47=3,O47=1),R47*BO47,IF(AND(AG47=3,O47=3),R47*BO47,IF(AND(AG47=3,O47=2),R47/SUMIF(Refurb_Poss_Tbl[Refurbishment Possible],J47,Refurb_Poss_Tbl[%])*BO47,0)))) -> 0 | BG47: =IF(AF47=0,0,IF(AND(AG47=3,O47=1),V47*BO47,IF(AND(AG47=3,O47=3),V47*BO47,IF(AND(AG47=3,O47=2),V47/SUMIF(Refurb_Poss_Tbl[Refurbishment Possible],J47,Refurb_Poss_Tbl[%])*BO47,0)))) -> 0 | BH47: =IF(AF47=0,0,IF(AND(AG47=3,O47=1),W47*BO47,IF(AND(AG47=3,O47=3),W47*BO47,IF(AND(AG47=3,O47=2),W47/SUMIF(Refurb_Poss_Tbl[Refurbishment Possible],J47,Refurb_Poss_Tbl[%])*BO47,0)))) -> 0 | BI47: =IF(AF47=0,0,IF(AND(AG47=3,O47=1),X47*BO47,IF(AND(AG47=3,O47=3),X47*BO47,IF(AND(AG47=3,O47=2),X47/SUMIF(Refurb_Poss_Tbl[Refurbishment Possible],J47,Refurb_Poss_Tbl[%])*BO47,0)))) -> 0 | BJ47: =VLOOKUP($AF47,DiscountWorking!$B$7:$C$107,2,FALSE) -> 0.1963642144 | BK47: =VLOOKUP($AF47,DiscountWorking!$J$7:$K$107,2,FALSE) -> 0.9094271558 | BL47: =VLOOKUP($AF47,DiscountWorking!$Q$7:$R$107,2,FALSE) -> 0.7971000302 | BM47: =VLOOKUP($AF47,DiscountWorking!$T$7:$U$107,2,FALSE) -> 0.5552975813 | BN47: =VLOOKUP($AF47,DiscountWorking!$W$7:$X$107,2,FALSE) -> 0.5528956851 | BO47: =VLOOKUP($AF47,DiscountWorking!$Z$7:$AA$107,2,FALSE) -> 0.68475594
A48: ChanEA05 | C48: Channel | D48: ChanEA0556 | F48: Channel | G48: 120 | H48: First intervention | I48: Expected new build/Replacement life | J48: Refurbishment type | K48: Expected refurbished Life | L48: 0 | M48: 0 | N48: 0 | O48: First Intervention code | P48: 2 | Q48: 0 | R48: 0 | S48: 0 | T48: 0 | U48: 0 | V48: 0 | W48: 0 | X48: 0 | Y48: 0 | Z48: 0 | AA48: 0 | AB48: 0 | AC48: 0 | AD48: 0 | AE48: 0 | AF48: 46 | AG48: 0 | AH48: =VLOOKUP(AF48,ValidationLists!$M$1:$N$102,2,FALSE) -> 0.2567365279 | AI48: 0 | AJ48: 0 | AK48: 0 | AL48: 0 | AM48: 0 | AN48: 0 | AO48: 0 | AP48: 0 | AQ48: 0 | AR48: =IF(AND(O48=1,OR(AG48=3,AG48=2,AG48=0)),SUMIFS(FlatMaint!$Z$2:$Z$10000,FlatMaint!$A$2:$A$10000,D48,FlatMaint!$Y$2:$Y$10000,AF48)*BO48,IF(AND(O48=2,OR(AG48=3,AG48=2,AG48=0)),SUMIFS(FlatMaint!$Z$2:$Z$10000,FlatMaint!$A$2:$A$10000,D48,FlatMaint!$Y$2:$Y$10000,AF48)/SUMIF(Refurb_Poss_Tbl[Refurbishment Possible],J48,Refurb_Poss_Tbl[%])*BO48,IF(AND(O48=3,OR(AG48=3,AG48=2,AG48=0)),SUMIFS(FlatMaint!$Z$2:$Z$10000,FlatMaint!$A$2:$A$10000,D48,FlatMaint!$Y$2:$Y$10000,AF48)*BO48,0))) -> 0 | AS48: =IF(AND(O48=1,OR(AG48=3,AG48=2,AG48=0)),SUMIFS(FlatRepair!$Z$2:$Z$10000,FlatRepair!$A$2:$A$10000,D48,FlatRepair!$Y$2:$Y$10000,AF48)*BO48,IF(AND(O48=2,OR(AG48=3,AG48=2,AG48=0)),SUMIFS(FlatRepair!$Z$2:$Z$10000,FlatRepair!$A$2:$A$10000,D48,FlatRepair!$Y$2:$Y$10000,AF48)/SUMIF(Refurb_Poss_Tbl[Refurbishment Possible],J48,Refurb_Poss_Tbl[%])*BO48,IF(AND(O48=3,OR(AG48=3,AG48=2,AG48=0)),SUMIFS(FlatRepair!$Z$2:$Z$10000,FlatRepair!$A$2:$A$10000,D48,FlatRepair!$Y$2:$Y$10000,AF48)*BO48,0))) -> 0 | AT48: 0 | AU48: 0 | AV48: 0 | AW48: =IF(AND(AG48=3,O48=1),AC48*BM48,IF(AND(AG48=3,O48=3),AC48*BM48,IF(AND(AG48=3,O48=2),AC48/SUMIF(Refurb_Poss_Tbl[Refurbishment Possible],J48,Refurb_Poss_Tbl[%])*BM48,IF(AND(AG48=2,O48=2),AC48*BM48,IF(AND(AG48=2,O48=1),SUMIF(Refurb_Poss_Tbl[Refurbishment Possible],J48,Refurb_Poss_Tbl[%])*AC48*BM48,IF(AND(AG48=2,O48=3),SUMIF(Refurb_Poss_Tbl[Refurbishment Possible],J48,Refurb_Poss_Tbl[%])*AC48*BM48,0)))))) -> 0 | AX48: =IF(AND(AG48=3,O48=1),AD48*BK48,IF(AND(AG48=3,O48=3),AD48*BK48,IF(AND(AG48=3,O48=2),AD48/SUMIF(Refurb_Poss_Tbl[Refurbishment Possible],J48,Refurb_Poss_Tbl[%])*BK48,IF(AND(AG48=2,O48=2),AD48*BK48,IF(AND(AG48=2,O48=1),SUMIF(Refurb_Poss_Tbl[Refurbishment Possible],J48,Refurb_Poss_Tbl[%])*AD48*BK48,IF(AND(AG48=2,O48=3),SUMIF(Refurb_Poss_Tbl[Refurbishment Possible],J48,Refurb_Poss_Tbl[%])*AD48*BK48,0)))))) -> 0 | AY48: =IF(AND(AG48=3,O48=1),(AE48/ValidationLists!$F$114)*BL48,IF(AND(AG48=3,O48=3),AE48*BL48,IF(AND(AG48=3,O48=2),AE48/SUMIF(Refurb_Poss_Tbl[Refurbishment Possible],J48,Refurb_Poss_Tbl[%])*BL48,IF(AND(AG48=2,O48=2),AE48*BL48,IF(AND(AG48=2,O48=1),SUMIF(Refurb_Poss_Tbl[Refurbishment Possible],J48,Refurb_Poss_Tbl[%])*AE48*BL48,IF(AND(AG48=2,O48=3),SUMIF(Refurb_Poss_Tbl[Refurbishment Possible],J48,Refurb_Poss_Tbl[%])*AE48*BL48,0)))))) -> 0 | AZ48: 0 | BA48: 0 | BB48: =IFERROR(IF(AF48=100,IF(P48=1,(N48/I48)*(Y48*BO48)*-1,IF(P48=2,(N48/K48)*(Y48*SUMIF(Refurb_Poss_Tbl[Refurbishment Possible],J48,Refurb_Poss_Tbl[%]))*BO48*-1,IF(P48=3,(N48/I48)*(Y48+(T48*ValidationLists!$F$114)+(U48*ValidationLists!$F$115))*BO48*-1,0))),0),0) -> 0 | BC48: =IF(AF48=0,0,IF(AND($AG48=3,O48=1),S48*BO48,IF(AND(AG48=3,O48=3),S48*BO48,IF(AND(AG48=3,O48=2),S48/SUMIF(Refurb_Poss_Tbl[Refurbishment Possible],J48,Refurb_Poss_Tbl[%])*BO48,0)))) -> 0 | BD48: =IF(AF48=0,0,IF(AND(AG48=3,O48=1),(T48/ValidationLists!$F$114)*BO48,IF(AND($AG48=3,O48=3),T48*BO48,IF(AND(AG48=3,O48=2),T48/SUMIF(Refurb_Poss_Tbl[Refurbishment Possible],J48,Refurb_Poss_Tbl[%])*BO48,0)))) -> 0 | BE48: =IF(AF48=0,0,IF(AND(AG48=3,O48=1),(U48/ValidationLists!$F$114)*BO48,IF(AND($AG48=3,O48=3),U48*BO48,IF(AND(AG48=3,O48=2),U48/SUMIF(Refurb_Poss_Tbl[Refurbishment Possible],J48,Refurb_Poss_Tbl[%])*BO48,0)))) -> 0 | BF48: =IF(AF48=0,0,IF(AND(AG48=3,O48=1),R48*BO48,IF(AND(AG48=3,O48=3),R48*BO48,IF(AND(AG48=3,O48=2),R48/SUMIF(Refurb_Poss_Tbl[Refurbishment Possible],J48,Refurb_Poss_Tbl[%])*BO48,0)))) -> 0 | BG48: =IF(AF48=0,0,IF(AND(AG48=3,O48=1),V48*BO48,IF(AND(AG48=3,O48=3),V48*BO48,IF(AND(AG48=3,O48=2),V48/SUMIF(Refurb_Poss_Tbl[Refurbishment Possible],J48,Refurb_Poss_Tbl[%])*BO48,0)))) -> 0 | BH48: =IF(AF48=0,0,IF(AND(AG48=3,O48=1),W48*BO48,IF(AND(AG48=3,O48=3),W48*BO48,IF(AND(AG48=3,O48=2),W48/SUMIF(Refurb_Poss_Tbl[Refurbishment Possible],J48,Refurb_Poss_Tbl[%])*BO48,0)))) -> 0 | BI48: =IF(AF48=0,0,IF(AND(AG48=3,O48=1),X48*BO48,IF(AND(AG48=3,O48=3),X48*BO48,IF(AND(AG48=3,O48=2),X48/SUMIF(Refurb_Poss_Tbl[Refurbishment Possible],J48,Refurb_Poss_Tbl[%])*BO48,0)))) -> 0 | BJ48: =VLOOKUP($AF48,DiscountWorking!$B$7:$C$107,2,FALSE) -> 0.1963642144 | BK48: =VLOOKUP($AF48,DiscountWorking!$J$7:$K$107,2,FALSE) -> 0.9094271558 | BL48: =VLOOKUP($AF48,DiscountWorking!$Q$7:$R$107,2,FALSE) -> 0.7971000302 | BM48: =VLOOKUP($AF48,DiscountWorking!$T$7:$U$107,2,FALSE) -> 0.5552975813 | BN48: =VLOOKUP($AF48,DiscountWorking!$W$7:$X$107,2,FALSE) -> 0.5528956851 | BO48: =VLOOKUP($AF48,DiscountWorking!$Z$7:$AA$107,2,FALSE) -> 0.68475594
A49: ChanEA05 | C49: Channel | D49: ChanEA0556 | F49: Channel | G49: 120 | H49: First intervention | I49: Expected new build/Replacement life | J49: Refurbishment type | K49: Expected refurbished Life | L49: 0 | M49: 0 | N49: 0 | O49: First Intervention code | P49: 2 | Q49: 0 | R49: 0 | S49: 0 | T49: 0 | U49: 0 | V49: 0 | W49: 0 | X49: 0 | Y49: 0 | Z49: 0 | AA49: 0 | AB49: 0 | AC49: 0 | AD49: 0 | AE49: 0 | AF49: 47 | AG49: 0 | AH49: =VLOOKUP(AF49,ValidationLists!$M$1:$N$102,2,FALSE) -> 0.249258765 | AI49: 0 | AJ49: 0 | AK49: 0 | AL49: 0 | AM49: 0 | AN49: 0 | AO49: 0 | AP49: 0 | AQ49: 0 | AR49: =IF(AND(O49=1,OR(AG49=3,AG49=2,AG49=0)),SUMIFS(FlatMaint!$Z$2:$Z$10000,FlatMaint!$A$2:$A$10000,D49,FlatMaint!$Y$2:$Y$10000,AF49)*BO49,IF(AND(O49=2,OR(AG49=3,AG49=2,AG49=0)),SUMIFS(FlatMaint!$Z$2:$Z$10000,FlatMaint!$A$2:$A$10000,D49,FlatMaint!$Y$2:$Y$10000,AF49)/SUMIF(Refurb_Poss_Tbl[Refurbishment Possible],J49,Refurb_Poss_Tbl[%])*BO49,IF(AND(O49=3,OR(AG49=3,AG49=2,AG49=0)),SUMIFS(FlatMaint!$Z$2:$Z$10000,FlatMaint!$A$2:$A$10000,D49,FlatMaint!$Y$2:$Y$10000,AF49)*BO49,0))) -> 0 | AS49: =IF(AND(O49=1,OR(AG49=3,AG49=2,AG49=0)),SUMIFS(FlatRepair!$Z$2:$Z$10000,FlatRepair!$A$2:$A$10000,D49,FlatRepair!$Y$2:$Y$10000,AF49)*BO49,IF(AND(O49=2,OR(AG49=3,AG49=2,AG49=0)),SUMIFS(FlatRepair!$Z$2:$Z$10000,FlatRepair!$A$2:$A$10000,D49,FlatRepair!$Y$2:$Y$10000,AF49)/SUMIF(Refurb_Poss_Tbl[Refurbishment Possible],J49,Refurb_Poss_Tbl[%])*BO49,IF(AND(O49=3,OR(AG49=3,AG49=2,AG49=0)),SUMIFS(FlatRepair!$Z$2:$Z$10000,FlatRepair!$A$2:$A$10000,D49,FlatRepair!$Y$2:$Y$10000,AF49)*BO49,0))) -> 0 | AT49: 0 | AU49: 0 | AV49: 0 | AW49: =IF(AND(AG49=3,O49=1),AC49*BM49,IF(AND(AG49=3,O49=3),AC49*BM49,IF(AND(AG49=3,O49=2),AC49/SUMIF(Refurb_Poss_Tbl[Refurbishment Possible],J49,Refurb_Poss_Tbl[%])*BM49,IF(AND(AG49=2,O49=2),AC49*BM49,IF(AND(AG49=2,O49=1),SUMIF(Refurb_Poss_Tbl[Refurbishment Possible],J49,Refurb_Poss_Tbl[%])*AC49*BM49,IF(AND(AG49=2,O49=3),SUMIF(Refurb_Poss_Tbl[Refurbishment Possible],J49,Refurb_Poss_Tbl[%])*AC49*BM49,0)))))) -> 0 | AX49: =IF(AND(AG49=3,O49=1),AD49*BK49,IF(AND(AG49=3,O49=3),AD49*BK49,IF(AND(AG49=3,O49=2),AD49/SUMIF(Refurb_Poss_Tbl[Refurbishment Possible],J49,Refurb_Poss_Tbl[%])*BK49,IF(AND(AG49=2,O49=2),AD49*BK49,IF(AND(AG49=2,O49=1),SUMIF(Refurb_Poss_Tbl[Refurbishment Possible],J49,Refurb_Poss_Tbl[%])*AD49*BK49,IF(AND(AG49=2,O49=3),SUMIF(Refurb_Poss_Tbl[Refurbishment Possible],J49,Refurb_Poss_Tbl[%])*AD49*BK49,0)))))) -> 0 | AY49: =IF(AND(AG49=3,O49=1),(AE49/ValidationLists!$F$114)*BL49,IF(AND(AG49=3,O49=3),AE49*BL49,IF(AND(AG49=3,O49=2),AE49/SUMIF(Refurb_Poss_Tbl[Refurbishment Possible],J49,Refurb_Poss_Tbl[%])*BL49,IF(AND(AG49=2,O49=2),AE49*BL49,IF(AND(AG49=2,O49=1),SUMIF(Refurb_Poss_Tbl[Refurbishment Possible],J49,Refurb_Poss_Tbl[%])*AE49*BL49,IF(AND(AG49=2,O49=3),SUMIF(Refurb_Poss_Tbl[Refurbishment Possible],J49,Refurb_Poss_Tbl[%])*AE49*BL49,0)))))) -> 0 | AZ49: 0 | BA49: 0 | BB49: =IFERROR(IF(AF49=100,IF(P49=1,(N49/I49)*(Y49*BO49)*-1,IF(P49=2,(N49/K49)*(Y49*SUMIF(Refurb_Poss_Tbl[Refurbishment Possible],J49,Refurb_Poss_Tbl[%]))*BO49*-1,IF(P49=3,(N49/I49)*(Y49+(T49*ValidationLists!$F$114)+(U49*ValidationLists!$F$115))*BO49*-1,0))),0),0) -> 0 | BC49: =IF(AF49=0,0,IF(AND($AG49=3,O49=1),S49*BO49,IF(AND(AG49=3,O49=3),S49*BO49,IF(AND(AG49=3,O49=2),S49/SUMIF(Refurb_Poss_Tbl[Refurbishment Possible],J49,Refurb_Poss_Tbl[%])*BO49,0)))) -> 0 | BD49: =IF(AF49=0,0,IF(AND(AG49=3,O49=1),(T49/ValidationLists!$F$114)*BO49,IF(AND($AG49=3,O49=3),T49*BO49,IF(AND(AG49=3,O49=2),T49/SUMIF(Refurb_Poss_Tbl[Refurbishment Possible],J49,Refurb_Poss_Tbl[%])*BO49,0)))) -> 0 | BE49: =IF(AF49=0,0,IF(AND(AG49=3,O49=1),(U49/ValidationLists!$F$114)*BO49,IF(AND($AG49=3,O49=3),U49*BO49,IF(AND(AG49=3,O49=2),U49/SUMIF(Refurb_Poss_Tbl[Refurbishment Possible],J49,Refurb_Poss_Tbl[%])*BO49,0)))) -> 0 | BF49: =IF(AF49=0,0,IF(AND(AG49=3,O49=1),R49*BO49,IF(AND(AG49=3,O49=3),R49*BO49,IF(AND(AG49=3,O49=2),R49/SUMIF(Refurb_Poss_Tbl[Refurbishment Possible],J49,Refurb_Poss_Tbl[%])*BO49,0)))) -> 0 | BG49: =IF(AF49=0,0,IF(AND(AG49=3,O49=1),V49*BO49,IF(AND(AG49=3,O49=3),V49*BO49,IF(AND(AG49=3,O49=2),V49/SUMIF(Refurb_Poss_Tbl[Refurbishment Possible],J49,Refurb_Poss_Tbl[%])*BO49,0)))) -> 0 | BH49: =IF(AF49=0,0,IF(AND(AG49=3,O49=1),W49*BO49,IF(AND(AG49=3,O49=3),W49*BO49,IF(AND(AG49=3,O49=2),W49/SUMIF(Refurb_Poss_Tbl[Refurbishment Possible],J49,Refurb_Poss_Tbl[%])*BO49,0)))) -> 0 | BI49: =IF(AF49=0,0,IF(AND(AG49=3,O49=1),X49*BO49,IF(AND(AG49=3,O49=3),X49*BO49,IF(AND(AG49=3,O49=2),X49/SUMIF(Refurb_Poss_Tbl[Refurbishment Possible],J49,Refurb_Poss_Tbl[%])*BO49,0)))) -> 0 | BJ49: =VLOOKUP($AF49,DiscountWorking!$B$7:$C$107,2,FALSE) -> 0.1963642144 | BK49: =VLOOKUP($AF49,DiscountWorking!$J$7:$K$107,2,FALSE) -> 0.9094271558 | BL49: =VLOOKUP($AF49,DiscountWorking!$Q$7:$R$107,2,FALSE) -> 0.7971000302 | BM49: =VLOOKUP($AF49,DiscountWorking!$T$7:$U$107,2,FALSE) -> 0.5552975813 | BN49: =VLOOKUP($AF49,DiscountWorking!$W$7:$X$107,2,FALSE) -> 0.5528956851 | BO49: =VLOOKUP($AF49,DiscountWorking!$Z$7:$AA$107,2,FALSE) -> 0.68475594
A50: ChanEA05 | C50: Channel | D50: ChanEA0556 | F50: Channel | G50: 120 | H50: First intervention | I50: Expected new build/Replacement life | J50: Refurbishment type | K50: Expected refurbished Life | L50: 0 | M50: 0 | N50: 0 | O50: First Intervention code | P50: 2 | Q50: 0 | R50: 0 | S50: 0 | T50: 0 | U50: 0 | V50: 0 | W50: 0 | X50: 0 | Y50: 0 | Z50: 0 | AA50: 0 | AB50: 0 | AC50: 0 | AD50: 0 | AE50: 0 | AF50: 48 | AG50: 0 | AH50: =VLOOKUP(AF50,ValidationLists!$M$1:$N$102,2,FALSE) -> 0.2419988009 | AI50: 0 | AJ50: 0 | AK50: 0 | AL50: 0 | AM50: 0 | AN50: 0 | AO50: 0 | AP50: 0 | AQ50: 0 | AR50: =IF(AND(O50=1,OR(AG50=3,AG50=2,AG50=0)),SUMIFS(FlatMaint!$Z$2:$Z$10000,FlatMaint!$A$2:$A$10000,D50,FlatMaint!$Y$2:$Y$10000,AF50)*BO50,IF(AND(O50=2,OR(AG50=3,AG50=2,AG50=0)),SUMIFS(FlatMaint!$Z$2:$Z$10000,FlatMaint!$A$2:$A$10000,D50,FlatMaint!$Y$2:$Y$10000,AF50)/SUMIF(Refurb_Poss_Tbl[Refurbishment Possible],J50,Refurb_Poss_Tbl[%])*BO50,IF(AND(O50=3,OR(AG50=3,AG50=2,AG50=0)),SUMIFS(FlatMaint!$Z$2:$Z$10000,FlatMaint!$A$2:$A$10000,D50,FlatMaint!$Y$2:$Y$10000,AF50)*BO50,0))) -> 0 | AS50: =IF(AND(O50=1,OR(AG50=3,AG50=2,AG50=0)),SUMIFS(FlatRepair!$Z$2:$Z$10000,FlatRepair!$A$2:$A$10000,D50,FlatRepair!$Y$2:$Y$10000,AF50)*BO50,IF(AND(O50=2,OR(AG50=3,AG50=2,AG50=0)),SUMIFS(FlatRepair!$Z$2:$Z$10000,FlatRepair!$A$2:$A$10000,D50,FlatRepair!$Y$2:$Y$10000,AF50)/SUMIF(Refurb_Poss_Tbl[Refurbishment Possible],J50,Refurb_Poss_Tbl[%])*BO50,IF(AND(O50=3,OR(AG50=3,AG50=2,AG50=0)),SUMIFS(FlatRepair!$Z$2:$Z$10000,FlatRepair!$A$2:$A$10000,D50,FlatRepair!$Y$2:$Y$10000,AF50)*BO50,0))) -> 0 | AT50: 0 | AU50: 0 | AV50: 0 | AW50: =IF(AND(AG50=3,O50=1),AC50*BM50,IF(AND(AG50=3,O50=3),AC50*BM50,IF(AND(AG50=3,O50=2),AC50/SUMIF(Refurb_Poss_Tbl[Refurbishment Possible],J50,Refurb_Poss_Tbl[%])*BM50,IF(AND(AG50=2,O50=2),AC50*BM50,IF(AND(AG50=2,O50=1),SUMIF(Refurb_Poss_Tbl[Refurbishment Possible],J50,Refurb_Poss_Tbl[%])*AC50*BM50,IF(AND(AG50=2,O50=3),SUMIF(Refurb_Poss_Tbl[Refurbishment Possible],J50,Refurb_Poss_Tbl[%])*AC50*BM50,0)))))) -> 0 | AX50: =IF(AND(AG50=3,O50=1),AD50*BK50,IF(AND(AG50=3,O50=3),AD50*BK50,IF(AND(AG50=3,O50=2),AD50/SUMIF(Refurb_Poss_Tbl[Refurbishment Possible],J50,Refurb_Poss_Tbl[%])*BK50,IF(AND(AG50=2,O50=2),AD50*BK50,IF(AND(AG50=2,O50=1),SUMIF(Refurb_Poss_Tbl[Refurbishment Possible],J50,Refurb_Poss_Tbl[%])*AD50*BK50,IF(AND(AG50=2,O50=3),SUMIF(Refurb_Poss_Tbl[Refurbishment Possible],J50,Refurb_Poss_Tbl[%])*AD50*BK50,0)))))) -> 0 | AY50: =IF(AND(AG50=3,O50=1),(AE50/ValidationLists!$F$114)*BL50,IF(AND(AG50=3,O50=3),AE50*BL50,IF(AND(AG50=3,O50=2),AE50/SUMIF(Refurb_Poss_Tbl[Refurbishment Possible],J50,Refurb_Poss_Tbl[%])*BL50,IF(AND(AG50=2,O50=2),AE50*BL50,IF(AND(AG50=2,O50=1),SUMIF(Refurb_Poss_Tbl[Refurbishment Possible],J50,Refurb_Poss_Tbl[%])*AE50*BL50,IF(AND(AG50=2,O50=3),SUMIF(Refurb_Poss_Tbl[Refurbishment Possible],J50,Refurb_Poss_Tbl[%])*AE50*BL50,0)))))) -> 0 | AZ50: 0 | BA50: 0 | BB50: =IFERROR(IF(AF50=100,IF(P50=1,(N50/I50)*(Y50*BO50)*-1,IF(P50=2,(N50/K50)*(Y50*SUMIF(Refurb_Poss_Tbl[Refurbishment Possible],J50,Refurb_Poss_Tbl[%]))*BO50*-1,IF(P50=3,(N50/I50)*(Y50+(T50*ValidationLists!$F$114)+(U50*ValidationLists!$F$115))*BO50*-1,0))),0),0) -> 0 | BC50: =IF(AF50=0,0,IF(AND($AG50=3,O50=1),S50*BO50,IF(AND(AG50=3,O50=3),S50*BO50,IF(AND(AG50=3,O50=2),S50/SUMIF(Refurb_Poss_Tbl[Refurbishment Possible],J50,Refurb_Poss_Tbl[%])*BO50,0)))) -> 0 | BD50: =IF(AF50=0,0,IF(AND(AG50=3,O50=1),(T50/ValidationLists!$F$114)*BO50,IF(AND($AG50=3,O50=3),T50*BO50,IF(AND(AG50=3,O50=2),T50/SUMIF(Refurb_Poss_Tbl[Refurbishment Possible],J50,Refurb_Poss_Tbl[%])*BO50,0)))) -> 0 | BE50: =IF(AF50=0,0,IF(AND(AG50=3,O50=1),(U50/ValidationLists!$F$114)*BO50,IF(AND($AG50=3,O50=3),U50*BO50,IF(AND(AG50=3,O50=2),U50/SUMIF(Refurb_Poss_Tbl[Refurbishment Possible],J50,Refurb_Poss_Tbl[%])*BO50,0)))) -> 0 | BF50: =IF(AF50=0,0,IF(AND(AG50=3,O50=1),R50*BO50,IF(AND(AG50=3,O50=3),R50*BO50,IF(AND(AG50=3,O50=2),R50/SUMIF(Refurb_Poss_Tbl[Refurbishment Possible],J50,Refurb_Poss_Tbl[%])*BO50,0)))) -> 0 | BG50: =IF(AF50=0,0,IF(AND(AG50=3,O50=1),V50*BO50,IF(AND(AG50=3,O50=3),V50*BO50,IF(AND(AG50=3,O50=2),V50/SUMIF(Refurb_Poss_Tbl[Refurbishment Possible],J50,Refurb_Poss_Tbl[%])*BO50,0)))) -> 0 | BH50: =IF(AF50=0,0,IF(AND(AG50=3,O50=1),W50*BO50,IF(AND(AG50=3,O50=3),W50*BO50,IF(AND(AG50=3,O50=2),W50/SUMIF(Refurb_Poss_Tbl[Refurbishment Possible],J50,Refurb_Poss_Tbl[%])*BO50,0)))) -> 0 | BI50: =IF(AF50=0,0,IF(AND(AG50=3,O50=1),X50*BO50,IF(AND(AG50=3,O50=3),X50*BO50,IF(AND(AG50=3,O50=2),X50/SUMIF(Refurb_Poss_Tbl[Refurbishment Possible],J50,Refurb_Poss_Tbl[%])*BO50,0)))) -> 0 | BJ50: =VLOOKUP($AF50,DiscountWorking!$B$7:$C$107,2,FALSE) -> 0.1963642144 | BK50: =VLOOKUP($AF50,DiscountWorking!$J$7:$K$107,2,FALSE) -> 0.9094271558 | BL50: =VLOOKUP($AF50,DiscountWorking!$Q$7:$R$107,2,FALSE) -> 0.7971000302 | BM50: =VLOOKUP($AF50,DiscountWorking!$T$7:$U$107,2,FALSE) -> 0.5552975813 | BN50: =VLOOKUP($AF50,DiscountWorking!$W$7:$X$107,2,FALSE) -> 0.5528956851 | BO50: =VLOOKUP($AF50,DiscountWorking!$Z$7:$AA$107,2,FALSE) -> 0.68475594
A51: ChanEA05 | C51: Channel | D51: ChanEA0556 | F51: Channel | G51: 120 | H51: First intervention | I51: Expected new build/Replacement life | J51: Refurbishment type | K51: Expected refurbished Life | L51: 0 | M51: 0 | N51: 0 | O51: First Intervention code | P51: 2 | Q51: 0 | R51: 0 | S51: 0 | T51: 0 | U51: 0 | V51: 0 | W51: 0 | X51: 0 | Y51: 0 | Z51: 0 | AA51: 0 | AB51: 0 | AC51: 0 | AD51: 0 | AE51: 0 | AF51: 49 | AG51: 0 | AH51: =VLOOKUP(AF51,ValidationLists!$M$1:$N$102,2,FALSE) -> 0.2349502922 | AI51: 0 | AJ51: 0 | AK51: 0 | AL51: 0 | AM51: 0 | AN51: 0 | AO51: 0 | AP51: 0 | AQ51: 0 | AR51: =IF(AND(O51=1,OR(AG51=3,AG51=2,AG51=0)),SUMIFS(FlatMaint!$Z$2:$Z$10000,FlatMaint!$A$2:$A$10000,D51,FlatMaint!$Y$2:$Y$10000,AF51)*BO51,IF(AND(O51=2,OR(AG51=3,AG51=2,AG51=0)),SUMIFS(FlatMaint!$Z$2:$Z$10000,FlatMaint!$A$2:$A$10000,D51,FlatMaint!$Y$2:$Y$10000,AF51)/SUMIF(Refurb_Poss_Tbl[Refurbishment Possible],J51,Refurb_Poss_Tbl[%])*BO51,IF(AND(O51=3,OR(AG51=3,AG51=2,AG51=0)),SUMIFS(FlatMaint!$Z$2:$Z$10000,FlatMaint!$A$2:$A$10000,D51,FlatMaint!$Y$2:$Y$10000,AF51)*BO51,0))) -> 0 | AS51: =IF(AND(O51=1,OR(AG51=3,AG51=2,AG51=0)),SUMIFS(FlatRepair!$Z$2:$Z$10000,FlatRepair!$A$2:$A$10000,D51,FlatRepair!$Y$2:$Y$10000,AF51)*BO51,IF(AND(O51=2,OR(AG51=3,AG51=2,AG51=0)),SUMIFS(FlatRepair!$Z$2:$Z$10000,FlatRepair!$A$2:$A$10000,D51,FlatRepair!$Y$2:$Y$10000,AF51)/SUMIF(Refurb_Poss_Tbl[Refurbishment Possible],J51,Refurb_Poss_Tbl[%])*BO51,IF(AND(O51=3,OR(AG51=3,AG51=2,AG51=0)),SUMIFS(FlatRepair!$Z$2:$Z$10000,FlatRepair!$A$2:$A$10000,D51,FlatRepair!$Y$2:$Y$10000,AF51)*BO51,0))) -> 0 | AT51: 0 | AU51: 0 | AV51: 0 | AW51: =IF(AND(AG51=3,O51=1),AC51*BM51,IF(AND(AG51=3,O51=3),AC51*BM51,IF(AND(AG51=3,O51=2),AC51/SUMIF(Refurb_Poss_Tbl[Refurbishment Possible],J51,Refurb_Poss_Tbl[%])*BM51,IF(AND(AG51=2,O51=2),AC51*BM51,IF(AND(AG51=2,O51=1),SUMIF(Refurb_Poss_Tbl[Refurbishment Possible],J51,Refurb_Poss_Tbl[%])*AC51*BM51,IF(AND(AG51=2,O51=3),SUMIF(Refurb_Poss_Tbl[Refurbishment Possible],J51,Refurb_Poss_Tbl[%])*AC51*BM51,0)))))) -> 0 | AX51: =IF(AND(AG51=3,O51=1),AD51*BK51,IF(AND(AG51=3,O51=3),AD51*BK51,IF(AND(AG51=3,O51=2),AD51/SUMIF(Refurb_Poss_Tbl[Refurbishment Possible],J51,Refurb_Poss_Tbl[%])*BK51,IF(AND(AG51=2,O51=2),AD51*BK51,IF(AND(AG51=2,O51=1),SUMIF(Refurb_Poss_Tbl[Refurbishment Possible],J51,Refurb_Poss_Tbl[%])*AD51*BK51,IF(AND(AG51=2,O51=3),SUMIF(Refurb_Poss_Tbl[Refurbishment Possible],J51,Refurb_Poss_Tbl[%])*AD51*BK51,0)))))) -> 0 | AY51: =IF(AND(AG51=3,O51=1),(AE51/ValidationLists!$F$114)*BL51,IF(AND(AG51=3,O51=3),AE51*BL51,IF(AND(AG51=3,O51=2),AE51/SUMIF(Refurb_Poss_Tbl[Refurbishment Possible],J51,Refurb_Poss_Tbl[%])*BL51,IF(AND(AG51=2,O51=2),AE51*BL51,IF(AND(AG51=2,O51=1),SUMIF(Refurb_Poss_Tbl[Refurbishment Possible],J51,Refurb_Poss_Tbl[%])*AE51*BL51,IF(AND(AG51=2,O51=3),SUMIF(Refurb_Poss_Tbl[Refurbishment Possible],J51,Refurb_Poss_Tbl[%])*AE51*BL51,0)))))) -> 0 | AZ51: 0 | BA51: 0 | BB51: =IFERROR(IF(AF51=100,IF(P51=1,(N51/I51)*(Y51*BO51)*-1,IF(P51=2,(N51/K51)*(Y51*SUMIF(Refurb_Poss_Tbl[Refurbishment Possible],J51,Refurb_Poss_Tbl[%]))*BO51*-1,IF(P51=3,(N51/I51)*(Y51+(T51*ValidationLists!$F$114)+(U51*ValidationLists!$F$115))*BO51*-1,0))),0),0) -> 0 | BC51: =IF(AF51=0,0,IF(AND($AG51=3,O51=1),S51*BO51,IF(AND(AG51=3,O51=3),S51*BO51,IF(AND(AG51=3,O51=2),S51/SUMIF(Refurb_Poss_Tbl[Refurbishment Possible],J51,Refurb_Poss_Tbl[%])*BO51,0)))) -> 0 | BD51: =IF(AF51=0,0,IF(AND(AG51=3,O51=1),(T51/ValidationLists!$F$114)*BO51,IF(AND($AG51=3,O51=3),T51*BO51,IF(AND(AG51=3,O51=2),T51/SUMIF(Refurb_Poss_Tbl[Refurbishment Possible],J51,Refurb_Poss_Tbl[%])*BO51,0)))) -> 0 | BE51: =IF(AF51=0,0,IF(AND(AG51=3,O51=1),(U51/ValidationLists!$F$114)*BO51,IF(AND($AG51=3,O51=3),U51*BO51,IF(AND(AG51=3,O51=2),U51/SUMIF(Refurb_Poss_Tbl[Refurbishment Possible],J51,Refurb_Poss_Tbl[%])*BO51,0)))) -> 0 | BF51: =IF(AF51=0,0,IF(AND(AG51=3,O51=1),R51*BO51,IF(AND(AG51=3,O51=3),R51*BO51,IF(AND(AG51=3,O51=2),R51/SUMIF(Refurb_Poss_Tbl[Refurbishment Possible],J51,Refurb_Poss_Tbl[%])*BO51,0)))) -> 0 | BG51: =IF(AF51=0,0,IF(AND(AG51=3,O51=1),V51*BO51,IF(AND(AG51=3,O51=3),V51*BO51,IF(AND(AG51=3,O51=2),V51/SUMIF(Refurb_Poss_Tbl[Refurbishment Possible],J51,Refurb_Poss_Tbl[%])*BO51,0)))) -> 0 | BH51: =IF(AF51=0,0,IF(AND(AG51=3,O51=1),W51*BO51,IF(AND(AG51=3,O51=3),W51*BO51,IF(AND(AG51=3,O51=2),W51/SUMIF(Refurb_Poss_Tbl[Refurbishment Possible],J51,Refurb_Poss_Tbl[%])*BO51,0)))) -> 0 | BI51: =IF(AF51=0,0,IF(AND(AG51=3,O51=1),X51*BO51,IF(AND(AG51=3,O51=3),X51*BO51,IF(AND(AG51=3,O51=2),X51/SUMIF(Refurb_Poss_Tbl[Refurbishment Possible],J51,Refurb_Poss_Tbl[%])*BO51,0)))) -> 0 | BJ51: =VLOOKUP($AF51,DiscountWorking!$B$7:$C$107,2,FALSE) -> 0.1963642144 | BK51: =VLOOKUP($AF51,DiscountWorking!$J$7:$K$107,2,FALSE) -> 0.9094271558 | BL51: =VLOOKUP($AF51,DiscountWorking!$Q$7:$R$107,2,FALSE) -> 0.7971000302 | BM51: =VLOOKUP($AF51,DiscountWorking!$T$7:$U$107,2,FALSE) -> 0.5552975813 | BN51: =VLOOKUP($AF51,DiscountWorking!$W$7:$X$107,2,FALSE) -> 0.5528956851 | BO51: =VLOOKUP($AF51,DiscountWorking!$Z$7:$AA$107,2,FALSE) -> 0.68475594
A52: ChanEA05 | C52: Channel | D52: ChanEA0556 | F52: Channel | G52: 120 | H52: First intervention | I52: Expected new build/Replacement life | J52: Refurbishment type | K52: Expected refurbished Life | L52: 0 | M52: 0 | N52: 0 | O52: First Intervention code | P52: 2 | Q52: 0 | R52: 0 | S52: 0 | T52: 0 | U52: 0 | V52: 0 | W52: 0 | X52: 0 | Y52: 0 | Z52: 0 | AA52: 0 | AB52: 0 | AC52: 0 | AD52: 0 | AE52: 0 | AF52: 50 | AG52: 0 | AH52: =VLOOKUP(AF52,ValidationLists!$M$1:$N$102,2,FALSE) -> 0.2281070798 | AI52: 0 | AJ52: 0 | AK52: 0 | AL52: 0 | AM52: 0 | AN52: 0 | AO52: 0 | AP52: 0 | AQ52: 0 | AR52: =IF(AND(O52=1,OR(AG52=3,AG52=2,AG52=0)),SUMIFS(FlatMaint!$Z$2:$Z$10000,FlatMaint!$A$2:$A$10000,D52,FlatMaint!$Y$2:$Y$10000,AF52)*BO52,IF(AND(O52=2,OR(AG52=3,AG52=2,AG52=0)),SUMIFS(FlatMaint!$Z$2:$Z$10000,FlatMaint!$A$2:$A$10000,D52,FlatMaint!$Y$2:$Y$10000,AF52)/SUMIF(Refurb_Poss_Tbl[Refurbishment Possible],J52,Refurb_Poss_Tbl[%])*BO52,IF(AND(O52=3,OR(AG52=3,AG52=2,AG52=0)),SUMIFS(FlatMaint!$Z$2:$Z$10000,FlatMaint!$A$2:$A$10000,D52,FlatMaint!$Y$2:$Y$10000,AF52)*BO52,0))) -> 0 | AS52: =IF(AND(O52=1,OR(AG52=3,AG52=2,AG52=0)),SUMIFS(FlatRepair!$Z$2:$Z$10000,FlatRepair!$A$2:$A$10000,D52,FlatRepair!$Y$2:$Y$10000,AF52)*BO52,IF(AND(O52=2,OR(AG52=3,AG52=2,AG52=0)),SUMIFS(FlatRepair!$Z$2:$Z$10000,FlatRepair!$A$2:$A$10000,D52,FlatRepair!$Y$2:$Y$10000,AF52)/SUMIF(Refurb_Poss_Tbl[Refurbishment Possible],J52,Refurb_Poss_Tbl[%])*BO52,IF(AND(O52=3,OR(AG52=3,AG52=2,AG52=0)),SUMIFS(FlatRepair!$Z$2:$Z$10000,FlatRepair!$A$2:$A$10000,D52,FlatRepair!$Y$2:$Y$10000,AF52)*BO52,0))) -> 0 | AT52: 0 | AU52: 0 | AV52: 0 | AW52: =IF(AND(AG52=3,O52=1),AC52*BM52,IF(AND(AG52=3,O52=3),AC52*BM52,IF(AND(AG52=3,O52=2),AC52/SUMIF(Refurb_Poss_Tbl[Refurbishment Possible],J52,Refurb_Poss_Tbl[%])*BM52,IF(AND(AG52=2,O52=2),AC52*BM52,IF(AND(AG52=2,O52=1),SUMIF(Refurb_Poss_Tbl[Refurbishment Possible],J52,Refurb_Poss_Tbl[%])*AC52*BM52,IF(AND(AG52=2,O52=3),SUMIF(Refurb_Poss_Tbl[Refurbishment Possible],J52,Refurb_Poss_Tbl[%])*AC52*BM52,0)))))) -> 0 | AX52: =IF(AND(AG52=3,O52=1),AD52*BK52,IF(AND(AG52=3,O52=3),AD52*BK52,IF(AND(AG52=3,O52=2),AD52/SUMIF(Refurb_Poss_Tbl[Refurbishment Possible],J52,Refurb_Poss_Tbl[%])*BK52,IF(AND(AG52=2,O52=2),AD52*BK52,IF(AND(AG52=2,O52=1),SUMIF(Refurb_Poss_Tbl[Refurbishment Possible],J52,Refurb_Poss_Tbl[%])*AD52*BK52,IF(AND(AG52=2,O52=3),SUMIF(Refurb_Poss_Tbl[Refurbishment Possible],J52,Refurb_Poss_Tbl[%])*AD52*BK52,0)))))) -> 0 | AY52: =IF(AND(AG52=3,O52=1),(AE52/ValidationLists!$F$114)*BL52,IF(AND(AG52=3,O52=3),AE52*BL52,IF(AND(AG52=3,O52=2),AE52/SUMIF(Refurb_Poss_Tbl[Refurbishment Possible],J52,Refurb_Poss_Tbl[%])*BL52,IF(AND(AG52=2,O52=2),AE52*BL52,IF(AND(AG52=2,O52=1),SUMIF(Refurb_Poss_Tbl[Refurbishment Possible],J52,Refurb_Poss_Tbl[%])*AE52*BL52,IF(AND(AG52=2,O52=3),SUMIF(Refurb_Poss_Tbl[Refurbishment Possible],J52,Refurb_Poss_Tbl[%])*AE52*BL52,0)))))) -> 0 | AZ52: 0 | BA52: 0 | BB52: =IFERROR(IF(AF52=100,IF(P52=1,(N52/I52)*(Y52*BO52)*-1,IF(P52=2,(N52/K52)*(Y52*SUMIF(Refurb_Poss_Tbl[Refurbishment Possible],J52,Refurb_Poss_Tbl[%]))*BO52*-1,IF(P52=3,(N52/I52)*(Y52+(T52*ValidationLists!$F$114)+(U52*ValidationLists!$F$115))*BO52*-1,0))),0),0) -> 0 | BC52: =IF(AF52=0,0,IF(AND($AG52=3,O52=1),S52*BO52,IF(AND(AG52=3,O52=3),S52*BO52,IF(AND(AG52=3,O52=2),S52/SUMIF(Refurb_Poss_Tbl[Refurbishment Possible],J52,Refurb_Poss_Tbl[%])*BO52,0)))) -> 0 | BD52: =IF(AF52=0,0,IF(AND(AG52=3,O52=1),(T52/ValidationLists!$F$114)*BO52,IF(AND($AG52=3,O52=3),T52*BO52,IF(AND(AG52=3,O52=2),T52/SUMIF(Refurb_Poss_Tbl[Refurbishment Possible],J52,Refurb_Poss_Tbl[%])*BO52,0)))) -> 0 | BE52: =IF(AF52=0,0,IF(AND(AG52=3,O52=1),(U52/ValidationLists!$F$114)*BO52,IF(AND($AG52=3,O52=3),U52*BO52,IF(AND(AG52=3,O52=2),U52/SUMIF(Refurb_Poss_Tbl[Refurbishment Possible],J52,Refurb_Poss_Tbl[%])*BO52,0)))) -> 0 | BF52: =IF(AF52=0,0,IF(AND(AG52=3,O52=1),R52*BO52,IF(AND(AG52=3,O52=3),R52*BO52,IF(AND(AG52=3,O52=2),R52/SUMIF(Refurb_Poss_Tbl[Refurbishment Possible],J52,Refurb_Poss_Tbl[%])*BO52,0)))) -> 0 | BG52: =IF(AF52=0,0,IF(AND(AG52=3,O52=1),V52*BO52,IF(AND(AG52=3,O52=3),V52*BO52,IF(AND(AG52=3,O52=2),V52/SUMIF(Refurb_Poss_Tbl[Refurbishment Possible],J52,Refurb_Poss_Tbl[%])*BO52,0)))) -> 0 | BH52: =IF(AF52=0,0,IF(AND(AG52=3,O52=1),W52*BO52,IF(AND(AG52=3,O52=3),W52*BO52,IF(AND(AG52=3,O52=2),W52/SUMIF(Refurb_Poss_Tbl[Refurbishment Possible],J52,Refurb_Poss_Tbl[%])*BO52,0)))) -> 0 | BI52: =IF(AF52=0,0,IF(AND(AG52=3,O52=1),X52*BO52,IF(AND(AG52=3,O52=3),X52*BO52,IF(AND(AG52=3,O52=2),X52/SUMIF(Refurb_Poss_Tbl[Refurbishment Possible],J52,Refurb_Poss_Tbl[%])*BO52,0)))) -> 0 | BJ52: =VLOOKUP($AF52,DiscountWorking!$B$7:$C$107,2,FALSE) -> 0.1963642144 | BK52: =VLOOKUP($AF52,DiscountWorking!$J$7:$K$107,2,FALSE) -> 0.9094271558 | BL52: =VLOOKUP($AF52,DiscountWorking!$Q$7:$R$107,2,FALSE) -> 0.7971000302 | BM52: =VLOOKUP($AF52,DiscountWorking!$T$7:$U$107,2,FALSE) -> 0.5552975813 | BN52: =VLOOKUP($AF52,DiscountWorking!$W$7:$X$107,2,FALSE) -> 0.5528956851 | BO52: =VLOOKUP($AF52,DiscountWorking!$Z$7:$AA$107,2,FALSE) -> 0.68475594
